Workbook

Sheet Startmenü
B2: Kindertagesstätten im Landkreis Weilheim-Schongau
B3: Stand: März 2026

Sheet Statistik
B2: KiTa-Statistiken
B3: Stand: März 2026
B4: Satistik | D4: Ort | H4: Region | M4: Gruppenform | Q4: Kategorie Größe | U4: Einrichtungstyp | Y4: Fachdienst | AC4: Fachdienste | AF4: Öffnungszeit | AJ4: Schließzeit | AN4: Wochenöffnung >45 Std. | AR4: Mittagessen (ME) | AV4: Caterer | AZ4: Rechtsform | BD4: Integrationsplätze | BH4: Barrierefreiheit | BL4: Konfessionelle Ausrichtung | BP4: Namensgebung | BT4: Teilnahme 2026
D6: Ort | E6: Einrichtungen | H6: Region | I6: in Prozent | M6: Gruppenform | N6: in Prozent | Q6: Kategorie | R6: in Prozent | U6: Typ | V6: in Prozent | Y6: Fachdienst | Z6: In Prozent | AC6: Fachdienste | AD6: Anbieter | AF6: Früheste Öffnung | AG6: in Prozent | AJ6: Späteste Schließung | AK6: In Prozent | AN6: >45 Std. geöffnet | AO6: in Prozent | AR6: Mittagessen | AS6: in Prozent | AV6: Caterer | AW6: in Prozent | AZ6: Rechtsform | BA6: in Prozent | BD6: Integrationsplätze | BE6: in Prozent | BH6: Barrierefreiheit | BI6: in Prozent | BL6: Konfession (2024) | BM6: in Prozent | BP6: Namensgebung | BQ6: in Prozent | BT6: Teilnahme 2026 | BU6: in Prozent
D7: Weilheim | E7: 21 | H7: M | I7: 0.4495412844 | M7: Offen | N7: 0.05434782609 | Q7: XS (<25 Ki.) | R7: 0.1739130435 | U7: Krippe & Kindergarten | V7: 0.4347826087 | Y7: intern | Z7: 0.3695652174 | AC7: Kinderhilfe Oberland | AD7: 9 | AF7: 07:00 Uhr | AG7: 0.4456521739 | AJ7: vor 14:00 Uhr | AK7: 0.0652173913 | AN7: ja | AO7: 0.25 | AR7: Caterer | AS7: 0.7934782609 | AV7: Albrechthof | AW7: 0.8082191781 | AZ7: Kommunal | BA7: 0.3027522936 | BD7: Integrative Einrichtung | BE7: 0.6086956522 | BH7: vollständig | BI7: 0.09782608696 | BL7: Weltanschaulich neutral | BM7: 0.5596330275 | BP7: Heilige/r / biblisch | BQ7: 0.2385321101 | BT7: ja | BU7: 0.8440366972
D8: Penzberg | E8: 13 | H8: NW | I8: 0.2752293578 | M8: Teiloffen | N8: 0.5326086957 | Q8: S (25-49 Ki.) | R8: 0.1956521739 | U8: Kindergarten | V8: 0.25 | Y8: extern | Z8: 0.3695652174 | AC8: Frühförderstelle Penzberg | AD8: 4 | AF8: 07:15 Uhr | AG8: 0.08695652174 | AJ8: 13:00 | AK8: 0.02173913043 | AN8: nein | AO8: 0.75 | AR8: Eigene Küche | AS8: 0.1086956522 | AV8: Fischerhof | AW8: 0.06849315068 | AZ8: gGmbH | BA8: 0.2293577982 | BD8: Einzel-Integration | BE8: 0.08695652174 | BH8: weitgehend | BI8: 0.25 | BL8: Katholisch | BM8: 0.2568807339 | BP8: Gemeinde | BQ8: 0.2018348624 | BT8: nein | BU8: 0.1559633028
D9: Peiting | E9: 10 | H9: O | I9: 0.2201834862 | M9: Geschlossen | N9: 0.4130434783 | Q9: M (50-99 Ki.) | R9: 0.4456521739 | U9: Krippe & Kindergarten & Hort | V9: 0.152173913 | Y9: nein | Z9: 0.2608695652 | AC9: Interdisziplinäre Frühförderung Kinderhilfe Oberland | AD9: 1 | AF9: 07:30 Uhr | AG9: 0.3804347826 | AJ9: 13:30 | AK9: 0.04347826087 | AN9: Gesamt | AO9: 1 | AR9: Kein ME | AS9: 0.05434782609 | AV9: Leckerbissen | AW9: 0.04109589041 | AZ9: Verein | BA9: 0.2201834862 | BD9: Keine Plätze | BE9: 0.3043478261 | BH9: teilweise | BI9: 0.2717391304 | BL9: Evangelisch | BM9: 0.1467889908 | BP9: Fröhlich | BQ9: 0.1926605505 | BT9: Gesamt | BU9: 1
D10: Schongau | E10: 9 | H10: SW | I10: 0.05504587156 | M10: Gesamt | N10: 1 | Q10: L (100-149 Ki.) | R10: 0.1630434783 | U10: Krippe | V10: 0.05434782609 | Y10: Gesamt | Z10: 1 | AC10: Klinik Hochried | AD10: 1 | AF10: 08:00 Uhr | AG10: 0.05434782609 | AJ10: vor 15:00 Uhr | AK10: 0.07608695652 | AR10: Zweite Brotzeit | AS10: 0.04347826087 | AV10: Kaiserapfel | AW10: 0.02739726027 | AZ10: Kirchlich | BA10: 0.2201834862 | BD10: Gesamt | BE10: 1 | BH10: eingeschränkt | BI10: 0.152173913 | BL10: Christlich Sonstige | BM10: 0.02752293578 | BP10: Ortsbezeichnung | BQ10: 0.1467889908
D11: Peißenberg | E11: 7 | H11: Gesamt | I11: 1 | Q11: XL (150- Ki.) | R11: 0.02173913043 | U11: Hort | V11: 0.05434782609 | AC11: Kinderhife Oberland | AD11: 1 | AF11: 10:00 Uhr | AG11: 0.01086956522 | AJ11: 14:00 | AK11: 0.0652173913 | AR11: Gesamt | AS11: 1 | AV11: Regens-Wagner Rottenbuch | AW11: 0.02739726027 | AZ11: K.d.ö.R. | BA11: 0.02752293578 | BH11: nein | BI11: 0.2282608696 | BL11: k. A. | BM11: 0.009174311927 | BP11: Natur, Tier- und Pflanzenwelt | BQ11: 0.1100917431
D12: Hohenpeißenberg | E12: 4 | Q12: Gesamt | R12: 1 | U12: Kindergarten & Hort | V12: 0.05434782609 | AC12: Frühförderstelle Peißenberg | AD12: 1 | AF12: 11:00 Uhr | AG12: 0.01086956522 | AJ12: 14:30 | AK12: 0.01086956522 | AV12: Seniorenzentrum Peißenberg | AW12: 0.01369863014 | AZ12: Gesamt | BA12: 1 | BH12: Gesamt | BI12: 1 | BL12: Gesamt | BM12: 1 | BP12: Sonstige | BQ12: 0.04587155963
D13: Raisting | E13: 3 | U13: Gesamt | V13: 1 | Y13: Fachdienst | Z13: Einrichtungen | AC13: Kinderhilfe Oberland-Frühförderstätte Weilheim | AD13: 1 | AF13: 11:15 Uhr | AG13: 0.01086956522 | AJ13: vor 16:00 Uhr | AK13: 0.2934782609 | AV13: Schmankerlküche Wolfratshausen | AW13: 0.01369863014 | BP13: Person | BQ13: 0.04587155963 | BT13: Teilnahme 2026 | BU13: Einrichtungen
D14: Wielenbach | E14: 3 | H14: Region | I14: Einrichtungen | Y14: intern | Z14: 34 | AC14: Frühförderstelle Schongau | AD14: 1 | AF14: Gesamt | AG14: 1 | AJ14: 15:00 | AK14: 0.152173913 | AN14: >45 Std. geöffnet | AO14: Einrichtungen | AV14: Gesamt | AW14: 1 | BP14: Gebäude | BQ14: 0.01834862385 | BT14: ja | BU14: 92
D15: Bernried | E15: 3 | H15: M | I15: 49 | M15: Gruppenform | N15: Einrichtungen | Y15: extern | Z15: 34 | AC15: Praxis für Heilpädagogik und systemische Kinder- und Jugendlichentherapie - Barbara Stockinger-Daberkow | AD15: 1 | AJ15: 15:15 | AK15: 0.02173913043 | AN15: ja | AO15: 23 | BD15: Integrationsplätze | BE15: Einrichtungen | BP15: Gesamt | BQ15: 1 | BT15: nein | BU15: 17
D16: Polling | E16: 3 | H16: NW | I16: 30 | M16: Offen | N16: 5 | Q16: Kategorie | R16: Einrichtungen | Y16: nein | Z16: 24 | AC16: Frühförderstelle, Musikschule | AD16: 1 | AJ16: 15:30 | AK16: 0.1195652174 | AN16: nein | AO16: 69 | AR16: Mittagessen | AS16: Einrichtungen | BD16: Integrative Einrichtung | BE16: 56 | BH16: Barrierefreiheit | BI16: Einrichtungen | BT16: Gesamt | BU16: 109
D17: Pähl | E17: 3 | H17: O | I17: 24 | M17: Teiloffen | N17: 49 | Q17: XS (<25 Ki.) | R17: 16 | Y17: Gesamt | Z17: 92 | AC17: KiM Fachdienst 07 | AD17: 1 | AF17: Früheste Öffnung | AG17: Einrichtungen | AJ17: vor 17:00 Uhr | AK17: 0.4673913043 | AN17: Gesamt | AO17: 92 | AR17: Caterer | AS17: 73 | AZ17: Rechtsform | BA17: Enrichtungen | BD17: Einzel-Integration | BE17: 8 | BH17: vollständig | BI17: 9
D18: Huglfing | E18: 2 | H18: SW | I18: 6 | M18: Geschlossen | N18: 38 | Q18: S (25-49 Ki.) | R18: 18 | AC18: Frühförderung Peiting | AD18: 1 | AF18: 07:00 Uhr | AG18: 41 | AJ18: 16:00 | AK18: 0.3369565217 | AR18: Eigene Küche | AS18: 10 | AV18: Caterer | AW18: Einrichtungen | AZ18: Kommunal | BA18: 33 | BD18: Keine Plätze | BE18: 28 | BH18: weitgehend | BI18: 23 | BL18: Konfession (2024) | BM18: Einrichtungen | BP18: Namensgebung | BQ18: Einrichtungen
D19: Seeshaupt | E19: 2 | H19: Gesamt | I19: 109 | M19: Gesamt | N19: 92 | Q19: M (50-99 Ki.) | R19: 41 | U19: Typ | V19: Einrichtungen | AC19: Kinderhilfe Frühförderstelle Weilheim | AD19: 1 | AF19: 07:15 Uhr | AG19: 8 | AJ19: 16:30 | AK19: 0.1195652174 | AR19: Kein ME | AS19: 5 | AV19: Albrechthof | AW19: 59 | AZ19: gGmbH | BA19: 25 | BD19: Gesamt | BE19: 92 | BH19: teilweise | BI19: 25 | BL19: Weltanschaulich neutral | BM19: 61 | BP19: Heilige/r / biblisch | BQ19: 26
D20: Habach | E20: 2 | Q20: L (100-149 Ki.) | R20: 15 | U20: Krippe & Kindergarten | V20: 40 | AC20: Frühförderung Steingaden | AD20: 1 | AF20: 07:30 Uhr | AG20: 35 | AJ20: 16:45 | AK20: 0.01086956522 | AR20: Zweite Brotzeit | AS20: 4 | AV20: Fischerhof | AW20: 5 | AZ20: Verein | BA20: 24 | BH20: eingeschränkt | BI20: 14 | BL20: Katholisch | BM20: 28 | BP20: Gemeinde | BQ20: 22
D21: Oberhausen | E21: 2 | Q21: XL (150- Ki.) | R21: 2 | U21: Kindergarten | V21: 23 | AC21: Kinderhilfe Oberland und MonteKin (Bad Tölz) | AD21: 1 | AF21: 08:00 Uhr | AG21: 5 | AJ21: vor 18:00 Uhr | AK21: 0.09782608696 | AR21: Gesamt | AS21: 92 | AV21: Leckerbissen | AW21: 3 | AZ21: Kirchlich | BA21: 24 | BH21: nein | BI21: 21 | BL21: Evangelisch | BM21: 16 | BP21: Fröhlich | BQ21: 21
D22: Wessobrunn | E22: 2 | Q22: Gesamt | R22: 92 | U22: Krippe & Kindergarten & Hort | V22: 14 | AC22: Heilpädagogin | AD22: 1 | AF22: 10:00 Uhr | AG22: 1 | AJ22: 17:00 | AK22: 0.08695652174 | AV22: Kaiserapfel | AW22: 2 | AZ22: K.d.ö.R. | BA22: 3 | BH22: Gesamt | BI22: 92 | BL22: Christlich Sonstige | BM22: 3 | BP22: Ortsbezeichnung | BQ22: 16
D23: Altenstadt | E23: 2 | U23: Krippe | V23: 5 | AC23: Kinderhilfe Oberland-Frühförderstelle Schongau | AD23: 1 | AF23: 11:00 Uhr | AG23: 1 | AJ23: 17:30 | AK23: 0.01086956522 | AV23: Regens-Wagner Rottenbuch | AW23: 2 | AZ23: Gesamt | BA23: 109 | BL23: k. A. | BM23: 1 | BP23: Natur, Tier- und Pflanzenwelt | BQ23: 12
D24: Eglfing | E24: 2 | U24: Hort | V24: 5 | AC24: Heilpädagogin Hauke Koch Folkerts | AD24: 1 | AF24: 11:15 Uhr | AG24: 1 | AJ24: Gesamt | AK24: 1 | AV24: Seniorenzentrum Peißenberg | AW24: 1 | BL24: Gesamt | BM24: 109 | BP24: Sonstige | BQ24: 5
D25: Wildsteig | E25: 1 | U25: Kindergarten & Hort | V25: 5 | AC25: Mobile Sonderpädagog. Hilfe, Frühförderstelle | AD25: 1 | AF25: Gesamt | AG25: 92 | AV25: Schmankerlküche Wolfratshausen | AW25: 1 | BP25: Person | BQ25: 5
D26: Steingaden | E26: 1 | U26: Gesamt | V26: 92 | AC26: Heilpädagogischer Fachdienst der Städtischen KiM KITA Penzberg | AD26: 1 | AJ26: Späteste Schließung | AK26: Einrichtungen | AV26: Gesamt | AW26: 73 | BP26: Gebäude | BQ26: 2
D27: Ingenried | E27: 1 | AC27: Frühförderstelle Kinderhilfe Peiting | AD27: 1 | AJ27: vor 14:00 Uhr | AK27: 6 | BP27: Gesamt | BQ27: 109
D28: Burggen | E28: 1 | AC28: Hochried | AD28: 1 | AJ28: vor 15:00 Uhr | AK28: 7
D29: Antdorf | E29: 1 | AC29: Gesamt | AD29: 33 | AJ29: vor 16:00 Uhr | AK29: 27
D30: Eberfing | E30: 1 | AJ30: vor 17:00 Uhr | AK30: 43
D31: Schwabsoien | E31: 1 | AJ31: vor 18:00 Uhr | AK31: 9
D32: Prem | E32: 1 | AJ32: Gesamt | AK32: 92
D33: Sindelsdorf | E33: 1
D34: Iffeldorf | E34: 1
D35: Hohenfurch | E35: 1
D36: Rottenbuch | E36: 1
D37: Bernbeuren | E37: 1
D38: Obersöchering | E38: 1
D39: Böbing | E39: 1
D40: Schwabbruck | E40: 1
D41: Gesamt | E41: 109

Sheet Adressen
C2: Adressen | I2: Stand: März 2026
C4: =tbl_Adressen[[#Totals],[Ort]] -> 109
B5: Einrichtungs-Nr. | C5: Ort | D5: Einrichtung | E5: Straße | F5: PLZ | G5: Ortsteil | H5: Ort-Gesamt | I5: Adresse | J5: Region | K5: Umfrage 2026
B6: 1901110002 | C6: Altenstadt | D6: Integratives Kinderhaus Altenstadt | I6: Schulweg 12, 86972 Altenstadt | J6: NW | K6: ja
B7: 1901110001 | C7: Altenstadt | D7: Kath. Kindergarten St. Michael | I7: Jahnstr. 10, 86972 Altenstadt | J7: NW | K7: ja
B8: 1901130002 | C8: Antdorf | D8: Kindertagesstätte Antdorf | I8: Iffeldorfer Str. 5, 82387 Antdorf | J8: O | K8: ja
B9: 1901140003 | C9: Bernbeuren | D9: Kath. Kindergarten St. Nikolaus | I9: Am Hügel 7, 86975 Bernbeuren | J9: SW | K9: ja
B10: 1901151115 | C10: Bernried | D10: Kinderhaus Bernried | I10: Reitweg 13, 82347 Bernried | J10: O | K10: ja
B11: 1901150116 | C11: Bernried | D11: Krippe am Kloster | I11: Klosterhof 8, 82347 Bernried | J11: O | K11: nein
B12: 1901150005 | C12: Bernried | D12: Waldkinder Bernried e.V. | I12: Kapellenstr. 10b, 82347 Bernried | J12: O | K12: ja
B13: 1901171111 | C13: Böbing | D13: Kindergarten St. Hedwig | I13: Schöffauerstr. 16, 82389 Böbing | J13: M | K13: ja
B14: 1901180007 | C14: Burggen | D14: Katholische Kindertageseinrichtung St. Anna | I14: Pfarrhaldenweg 4, 86977 Burggen | J14: SW | K14: ja
B15: 1901200008 | C15: Eberfing | D15: Eberfinger Kinderhaus "Ich & Du" | I15: Sportplatzstr. 11, 82390 Eberfing | J15: M | K15: ja
B16: 1901210009 | C16: Eglfing | D16: Kindergarten Eglfing | I16: Hauptstr. 20, 82436 Eglfing | J16: M | K16: ja
B17: 1901210097 | C17: Eglfing | D17: Kinderkrippe Tauting | I17: Dorfstr. 3, 82436 Eglfing-Tauting | J17: M | K17: ja
B18: 1901260011 | C18: Habach | D18: Kindergarten Achgrom-Zwergal e.V. | I18: Jaudenmühle 1, 82392 Habach | J18: O | K18: nein
B19: 1901260010 | C19: Habach | D19: Ulrich Kinderhaus Habach | I19: Steinberg 4, 82392 Habach | J19: O | K19: ja
B20: 1901290011 | C20: Hohenfurch | D20: Kindergarten 'Sonnenblick' Kindergarten & Krippe | I20: Römerstr 9, 86978 Hohenfurch | J20: NW | K20: ja
B21: 1901300012 | C21: Hohenpeißenberg | D21: Caritas Kindertagesstätte St. Anna | I21: Bahnhofstr. 3, 82383 Hohenpeißenberg | J21: NW | K21: nein
B22: 1901300014 | C22: Hohenpeißenberg | D22: Integratives Kinderhaus am Schächen | I22: HauptStr. 41, 82383 Hohenpeißenberg | J22: NW | K22: ja
B23: 1901300013 | C23: Hohenpeißenberg | D23: Kindergarten im Hetten | I23: Am Anger 45, 82383 Hohenpeißenberg | J23: NW | K23: ja
B24: 1901300015 | C24: Hohenpeißenberg | D24: Naturkindergarten Bergwaldkinder | I24: Glückaufstr. 70 - Wanderparkplatz, 82383 Hohenpeißenberg | J24: NW | K24: nein
B25: 1901310121 | C25: Huglfing | D25: Kindertagesstätte Huglhupf | I25: Ringstr. 34a, 82386 Huglfing | J25: M | K25: ja
B26: 1901310122 | C26: Huglfing | D26: Naturkindergarten Himmelblau | I26: Tautinger Weg, 82386 Huglfing | J26: M | K26: nein
B27: 1901320015 | C27: Iffeldorf | D27: Katholisches Haus für Kinder St. Vitus | I27: Maffeistr. 20, 82393 Iffeldorf | J27: O | K27: ja
B28: 1901330016 | C28: Ingenried | D28: Kindergarten St. Georg | I28: Kirchenstr. 5, 86980 Ingenried | J28: NW | K28: ja
B29: 1901350120 | C29: Oberhausen | D29: Kinderhaus am Storchennest | I29: Schulstr. 3, 82386 Oberhausen | J29: M | K29: ja
B30: 1901351112 | C30: Oberhausen | D30: Naturkindergarten "Die kleinen Forscher" | I30: Am Gewerbegebiet 12, 82386 Oberhausen-Maxlried | J30: M | K30: nein
B31: 1901360018 | C31: Obersöchering | D31: Kinderhaus Söcheringer Wespennest | I31: Sportanger 13, 82395 Obersöchering | J31: O | K31: ja
B32: 1901380020 | C32: Pähl | D32: Kath. Kindertagesstätte St. Elisabeth | I32: Wettersteinstr. 14, 82396 Pähl-Fischen a. Ammersee | J32: M | K32: nein
B33: 1901380019 | C33: Pähl | D33: Kath. Kita St.Christophorus | I33: Kirchstr. 2, 82396 Pähl | J33: M | K33: nein
B34: 1901380022 | C34: Pähl | D34: Waldkindergarten "Bärenbande" | I34: Am Gasteig, 82396 Pähl | J34: M | K34: nein
B35: 1901390024 | C35: Peißenberg | D35: AWO-Kinderhaus Pumuckl | I35: Zieglmeierstr. 9, 82380 Peißenberg | J35: M | K35: ja
B36: 1901390023 | C36: Peißenberg | D36: Evang. Kindergarten Regenbogen | I36: Thalackerstr. 3, 82380 Peißenberg | J36: M | K36: ja
B37: 1901390025 | C37: Peißenberg | D37: FortSchritt Inklusives Kinderhaus an der Ammer | I37: Wörther Str. 92, 82380 Peißenberg | J37: M | K37: ja
B38: 1901390021 | C38: Peißenberg | D38: Kindergarten St. Johannes Baptist | I38: Oskar-Dietlmeier-Str. 14, 82380 Peißenberg | J38: M | K38: ja
B39: 1901390026 | C39: Peißenberg | D39: Kinderhaus am Berg | I39: Bergstr. 38, 82380 Peißenberg | J39: M | K39: ja
B40: 1901390125 | C40: Peißenberg | D40: Kinderhaus im Dorf | I40: Hauptstr. 55-57, 82380 Peißenberg | J40: M | K40: ja
B41: 1901390022 | C41: Peißenberg | D41: Kindertagesstätte St. Barbara | I41: Hans-Böckler-Str. 1, 82380 Peißenberg-Wörth | J41: M | K41: ja
B42: 1901400027 | C42: Peiting | D42: Caritas Kita St. Michael | I42: Angermoosstr. 4, 86971 Peiting | J42: NW | K42: ja
B43: 1901400073 | C43: Peiting | D43: Integrativer Hort im Kinderhaus Peiting | I43: Untereggstr. 4, 86971 Peiting | J43: NW | K43: ja
B44: 1901400107 | C44: Peiting | D44: Integrativer Naturkindergarten am Weiherhäusle | I44: Weiherstr. 2, 86971 Peiting-Herzogsägmühle | J44: NW | K44: ja
B45: 1901400113 | C45: Peiting | D45: Integratives Kinderhaus im Forsthaus | I45: Münchener Str. 11, 86971 Peiting | J45: NW | K45: ja
B46: 1901400030 | C46: Peiting | D46: Kindergarten am Gumpen | I46: Gumpenweg 1, 86971 Peiting | J46: NW | K46: ja
B47: 1901400033 | C47: Peiting | D47: Kindergarten Birkland | I47: Aich 11, 86971 Peiting-Birkland | J47: NW | K47: ja
B48: 1901400029 | C48: Peiting | D48: Kinderhaus Peiting | I48: Untereggstr. 4, 86971 Peiting | J48: NW | K48: ja
B49: 1901400100 | C49: Peiting | D49: Kita Sonnenschein | I49: Jägerstr. 31, 86971 Peiting | J49: NW | K49: ja
B50: 1901400032 | C50: Peiting | D50: Therese-Peter-Haus für Kinder | I50: Kampfgartenweg 20, 86971 Peiting | J50: NW | K50: ja
B51: 1901400098 | C51: Peiting | D51: Waldkindergarten Wurzelzwerge Peiting e.V | I51: Heinrichstr. 18a, 86971 Peiting | J51: NW | K51: ja
B52: 1901410040 | C52: Penzberg | D52: Albert-Schweitzer Waldkindergarten | I52: Vordermeier 3, 82377 Penzberg | J52: O | K52: ja
B53: 1901410037 | C53: Penzberg | D53: AWO Kinderhaus an der Birkenstraße | I53: Birkenstr. 7a, 82377 Penzberg | J53: O | K53: ja
B54: 1901410075 | C54: Penzberg | D54: AWO Kinderhort Winterstraße | I54: Winterstr. 20, 82377 Penzberg | J54: O | K54: ja
B55: 1901410036 | C55: Penzberg | D55: AWOlino Kindergarten | I55: Schulstr. 1, 82377 Penzberg | J55: O | K55: nein
B56: 1901410035 | C56: Penzberg | D56: Evang. Haus für Kinder Penzberg | I56: Am Schloßbichl 3, 82377 Penzberg | J56: O | K56: ja
B57: 1901410038 | C57: Penzberg | D57: Familienzentrum Arche Noah | I57: Im Thal 6, 82377 Penzberg | J57: O | K57: ja
B58: 1901410117 | C58: Penzberg | D58: Integrativer Kindergarten mit Krippe an der Birkenstraße | I58: Birkenstr. 6, 82377 Penzberg | J58: O | K58: ja
B59: 1901410104 | C59: Penzberg | D59: Katholischer Kindergarten St. Franziskus | I59: Sigmundstr. 20, 82377 Penzberg | J59: O | K59: ja
B60: 1901410039 | C60: Penzberg | D60: KiM-Kita Penzberg | I60: Daserweg 1, 82377 Penzberg | J60: O | K60: ja
B61: 1901410122 | C61: Penzberg | D61: Kindergarten Spatzennest | I61: Daserweg 1a, 82377 Penzberg | J61: O | K61: ja
C62: Penzberg | D62: Kinderkrippe Spatzennest | J62: O | K62: ja
B63: 1901410034 | C63: Penzberg | D63: Kindertagesstätte St. Raphael | I63: Pater-Sabino-Weg 4, 82377 Penzberg-Steigenberg | J63: O | K63: ja
B64: 1901410079 | C64: Penzberg | D64: Montessori Kinderhaus Penzberg | I64: Grube 19, 82377 Penzberg | J64: O | K64: ja
B65: 1901420041 | C65: Polling | D65: Integratives Kinderhaus Polling | I65: Kirchplatz 1b, 82398 Polling | J65: M | K65: ja
B66: 1901420042 | C66: Polling | D66: Kindertagesstätte der Gemeinde Polling | I66: Kirchplatz 11a, 82398 Polling | J66: M | K66: ja
B67: 1901420043 | C67: Polling | D67: Naturkindergarten 'Waldwichtel' in Polling | I67: Am Schafsbichl, 82398 Polling | J67: M | K67: ja
B68: 1901430043 | C68: Prem | D68: Kindergarten Prem | I68: Schulweg 8, 86984 Prem | J68: SW | K68: ja
B69: 1901440101 | C69: Raisting | D69: AWO Kindertagesstätte Zwergerlnest | I69: Herrenstr. 3, 82399 Raisting | J69: M | K69: nein
B70: 1901440106 | C70: Raisting | D70: BRK Kindergarten St. Raphael Raisting | I70: Kirchenweg 18, 82399 Raisting | J70: M | K70: ja
B71: 1901440105 | C71: Raisting | D71: Kinderhort Bunte Kleckse | I71: Kirchenweg 14, 82399 Raisting | J71: M | K71: ja
B72: 1901450046 | C72: Rottenbuch | D72: Don Bosco Haus für Kinder | I72: Franz-von-Heeren-Str. 6, 82401 Rottenbuch | J72: SW | K72: ja
B73: 1901480081 | C73: Schongau | D73: Elterninitiative Kindernest Schongau e.V. | I73: Burggener Str. 2, 86956 Schongau | J73: NW | K73: ja
B74: 1901480119 | C74: Schongau | D74: Haus für Kinder | I74: Gartenweg 6, 86956 Schongau | J74: NW | K74: ja
B75: 1901480103 | C75: Schongau | D75: Kindergarten Clara-Fey | I75: Haldenbergerstr. 50, 86956 Schongau | J75: NW | K75: ja
B76: 1901480052 | C76: Schongau | D76: Kindergarten Kunterbunt | I76: Thanellerstr. 4, 86956 Schongau | J76: NW | K76: ja
B77: 1901480051 | C77: Schongau | D77: Kindergarten Luftballon | I77: Wilhelm-Köhler-Str. 4, 86956 Schongau | J77: NW | K77: nein
B78: 1901480050 | C78: Schongau | D78: Kindergarten Regenbogen | I78: Bahnhofstr. 36, 86956 Schongau | J78: NW | K78: ja
B79: 1901480048 | C79: Schongau | D79: Kindergarten St. Franziskus - Haus für Inklusion | I79: Burggener Str. 2, 86956 Schongau | J79: NW | K79: nein
B80: 1901480047 | C80: Schongau | D80: Kindergarten St. Johannes | I80: Schönlinder Str. 37a, 86956 Schongau | J80: NW | K80: ja
B81: 1901480049 | C81: Schongau | D81: Kita Mariä Himmelfahrt | I81: Jakob-Pfeiffer-Str. 13a, 86956 Schongau | J81: NW | K81: ja
B82: 1901490053 | C82: Schwabbruck | D82: Kindergarten St. Walburga | I82: Dorfstr. 3, 86986 Schwabbruck | J82: NW | K82: ja
B83: 1901510055 | C83: Schwabsoien | D83: Kindergarten mit Krippe Sonnenblume | I83: Schulstr. 8, 86987 Schwabsoien | J83: NW | K83: ja
B84: 1901520055 | C84: Seeshaupt | D84: Kinderhaus Seeshaupt | E84: Schulweg 12 | F84: 86972 | H84: =IF(tbl_Adressen[[#This Row],[Ortsteil]]="",tbl_Adressen[[#This Row],[Ort]],tbl_Adressen[[#This Row],[Ort]]&"-"&tbl_Adressen[[#This Row],[Ortsteil]]) -> Seeshaupt | I84: Pettenkoferallee 13, 82402 Seeshaupt | J84: O | K84: ja
B85: 1901520080 | C85: Seeshaupt | D85: Kindernest Seeshaupt | E85: Jahnstr. 10 | F85: 86972 | H85: =IF(tbl_Adressen[[#This Row],[Ortsteil]]="",tbl_Adressen[[#This Row],[Ort]],tbl_Adressen[[#This Row],[Ort]]&"-"&tbl_Adressen[[#This Row],[Ortsteil]]) -> Seeshaupt | I85: Pettenkoferallee 47, 82402 Seeshaupt | J85: O | K85: nein
B86: 1901530056 | C86: Sindelsdorf | D86: Gemeindekindergarten Sindelsdorf | E86: Römerstr. 9 | F86: 86978 | H86: =IF(tbl_Adressen[[#This Row],[Ortsteil]]="",tbl_Adressen[[#This Row],[Ort]],tbl_Adressen[[#This Row],[Ort]]&"-"&tbl_Adressen[[#This Row],[Ortsteil]]) -> Sindelsdorf | I86: Schulgasse 2, 82404 Sindelsdorf | J86: O | K86: ja
B87: 1901540057 | C87: Steingaden | D87: Kita Steingaden | E87: Bahnhofstr. 3 | F87: 82383 | H87: =IF(tbl_Adressen[[#This Row],[Ortsteil]]="",tbl_Adressen[[#This Row],[Ort]],tbl_Adressen[[#This Row],[Ort]]&"-"&tbl_Adressen[[#This Row],[Ortsteil]]) -> Steingaden | I87: Marie-Eberth-Str. 12, 86989 Steingaden | J87: SW | K87: ja
B88: 1901570062 | C88: Weilheim | D88: AWO Kinderhaus Villa Kunterbunt | E88: HauptStr. 41 | F88: 82383 | H88: =IF(tbl_Adressen[[#This Row],[Ortsteil]]="",tbl_Adressen[[#This Row],[Ort]],tbl_Adressen[[#This Row],[Ort]]&"-"&tbl_Adressen[[#This Row],[Ortsteil]]) -> Weilheim | I88: Hardtkapellenstr. 16, 82362 Weilheim | J88: M | K88: ja
B89: 1901570124 | C89: Weilheim | D89: BRK Kinderhaus Weltentdecker | E89: Am Anger 45 | F89: 82383 | H89: =IF(tbl_Adressen[[#This Row],[Ortsteil]]="",tbl_Adressen[[#This Row],[Ort]],tbl_Adressen[[#This Row],[Ort]]&"-"&tbl_Adressen[[#This Row],[Ortsteil]]) -> Weilheim | I89: Kanalstr. 2b, 82362 Weilheim | J89: M | K89: ja
B90: 1901570061 | C90: Weilheim | D90: Evangelisch-Lutherisches Haus für Kinder | E90: Glückaufstr. 70 - Wanderparkplatz | F90: 82383 | H90: =IF(tbl_Adressen[[#This Row],[Ortsteil]]="",tbl_Adressen[[#This Row],[Ort]],tbl_Adressen[[#This Row],[Ort]]&"-"&tbl_Adressen[[#This Row],[Ortsteil]]) -> Weilheim | I90: Am Wehr 2, 82362 Weilheim | J90: M | K90: ja
B91: 1901570116 | C91: Weilheim | D91: Fortschritt Kinderhaus am Sonnenfeld | E91: Kirchenstr. 5 | F91: 86980 | H91: =IF(tbl_Adressen[[#This Row],[Ortsteil]]="",tbl_Adressen[[#This Row],[Ort]],tbl_Adressen[[#This Row],[Ort]]&"-"&tbl_Adressen[[#This Row],[Ortsteil]]) -> Weilheim | I91: Hardtkapellenstr. 8, 82362 Weilheim | J91: M | K91: ja
B92: 1901570108 | C92: Weilheim | D92: Inklusives Kinderhaus Pfiffikus | E92: Angermoosstr. 4 | F92: 86971 | H92: =IF(tbl_Adressen[[#This Row],[Ortsteil]]="",tbl_Adressen[[#This Row],[Ort]],tbl_Adressen[[#This Row],[Ort]]&"-"&tbl_Adressen[[#This Row],[Ortsteil]]) -> Weilheim | I92: Andreas-Schmidtner-Str. 21, 82362 Weilheim | J92: M | K92: ja
B93: 1901570110 | C93: Weilheim | D93: Integrativer Hort an der Ammer | E93: Untereggstr. 4 | F93: 86971 | H93: =IF(tbl_Adressen[[#This Row],[Ortsteil]]="",tbl_Adressen[[#This Row],[Ort]],tbl_Adressen[[#This Row],[Ort]]&"-"&tbl_Adressen[[#This Row],[Ortsteil]]) -> Weilheim | I93: Schützenstr. 16a, 82362 Weilheim | J93: M | K93: ja
B94: 1901570077 | C94: Weilheim | D94: Integratives Kinderhaus Franziskus | E94: Weiherstr. 2 | F94: 86971 | G94: Herzogsägmühle | H94: =IF(tbl_Adressen[[#This Row],[Ortsteil]]="",tbl_Adressen[[#This Row],[Ort]],tbl_Adressen[[#This Row],[Ort]]&"-"&tbl_Adressen[[#This Row],[Ortsteil]]) -> Weilheim-Herzogsägmühle | I94: Waisenhausstr. 1, 82362 Weilheim | J94: M | K94: ja
B95: 1901570060 | C95: Weilheim | D95: Kath. Kindergarten St. Michael Marnbach | E95: Münchener Str. 11 | F95: 86971 | H95: =IF(tbl_Adressen[[#This Row],[Ortsteil]]="",tbl_Adressen[[#This Row],[Ort]],tbl_Adressen[[#This Row],[Ort]]&"-"&tbl_Adressen[[#This Row],[Ortsteil]]) -> Weilheim | I95: Antdorfer Str. 5, 82362 Weilheim-Marnbach | J95: M | K95: ja
B96: 1901570059 | C96: Weilheim | D96: Kath. Kneippkinderhaus St. Anna | E96: Gumpenweg 1 | F96: 86971 | H96: =IF(tbl_Adressen[[#This Row],[Ortsteil]]="",tbl_Adressen[[#This Row],[Ort]],tbl_Adressen[[#This Row],[Ort]]&"-"&tbl_Adressen[[#This Row],[Ortsteil]]) -> Weilheim | I96: Prälatenweg 5a, 82362 Weilheim | J96: M | K96: ja
B97: 1901570102 | C97: Weilheim | D97: Kinderhaus im Paradeis | E97: Aich 11 | F97: 86971 | G97: Birkland | H97: =IF(tbl_Adressen[[#This Row],[Ortsteil]]="",tbl_Adressen[[#This Row],[Ort]],tbl_Adressen[[#This Row],[Ort]]&"-"&tbl_Adressen[[#This Row],[Ortsteil]]) -> Weilheim-Birkland | I97: Paradeisstr. 73, 82362 Weilheim | J97: M | K97: ja
B98: 1901570058 | C98: Weilheim | D98: Kinderhaus Mariae Himmelfahrt | E98: Untereggstr. 4 | F98: 86971 | H98: =IF(tbl_Adressen[[#This Row],[Ortsteil]]="",tbl_Adressen[[#This Row],[Ort]],tbl_Adressen[[#This Row],[Ort]]&"-"&tbl_Adressen[[#This Row],[Ortsteil]]) -> Weilheim | I98: Schwaigerstr. 5, 82362 Weilheim | J98: M | K98: nein
B99: 1901570090 | C99: Weilheim | D99: Kinderkrippe Zwergerltreff | E99: Jägerstr. 31 | F99: 86971 | H99: =IF(tbl_Adressen[[#This Row],[Ortsteil]]="",tbl_Adressen[[#This Row],[Ort]],tbl_Adressen[[#This Row],[Ort]]&"-"&tbl_Adressen[[#This Row],[Ortsteil]]) -> Weilheim | I99: Obere Stadt 106, 82362 Weilheim | J99: M | K99: ja
B100: 1901570082 | C100: Weilheim | D100: Kindernest am Rosengarten | E100: Kampfgartenweg 20 | F100: 86971 | H100: =IF(tbl_Adressen[[#This Row],[Ortsteil]]="",tbl_Adressen[[#This Row],[Ort]],tbl_Adressen[[#This Row],[Ort]]&"-"&tbl_Adressen[[#This Row],[Ortsteil]]) -> Weilheim | I100: Augsburger Str. 4, 82362 Weilheim | J100: M | K100: ja
B101: 1901570001 | C101: Weilheim | D101: Kindertgeseinrichtung der Johanniter Weilheim | E101: Heinrichstr. 18a | F101: 86971 | H101: =IF(tbl_Adressen[[#This Row],[Ortsteil]]="",tbl_Adressen[[#This Row],[Ort]],tbl_Adressen[[#This Row],[Ort]]&"-"&tbl_Adressen[[#This Row],[Ortsteil]]) -> Weilheim | I101: Kanalstr. 3c, 82362 Weilheim | J101: M | K101: nein
B102: 1901570063 | C102: Weilheim | D102: Montessori-Kinderhaus Weilheim | E102: Haldenbergerstr. 50 | F102: 86956 | H102: =IF(tbl_Adressen[[#This Row],[Ortsteil]]="",tbl_Adressen[[#This Row],[Ort]],tbl_Adressen[[#This Row],[Ort]]&"-"&tbl_Adressen[[#This Row],[Ortsteil]]) -> Weilheim | I102: Am Öferl 23, 82362 Weilheim | J102: M | K102: ja
B103: 1901570080 | C103: Weilheim | D103: Naturkindergarten Schmetterlinge Weilheim | E103: Burggener Str. 2 | F103: 86956 | H103: =IF(tbl_Adressen[[#This Row],[Ortsteil]]="",tbl_Adressen[[#This Row],[Ort]],tbl_Adressen[[#This Row],[Ort]]&"-"&tbl_Adressen[[#This Row],[Ortsteil]]) -> Weilheim | I103: Im Hardt 1a, 82362 Weilheim | J103: M | K103: ja
B104: 1901570067 | C104: Weilheim | D104: Städt. Kindergarten und Krippe Unterhausener Dorfspatzen | E104: Schönlinder Str. 37a | F104: 86956 | H104: =IF(tbl_Adressen[[#This Row],[Ortsteil]]="",tbl_Adressen[[#This Row],[Ort]],tbl_Adressen[[#This Row],[Ort]]&"-"&tbl_Adressen[[#This Row],[Ortsteil]]) -> Weilheim | I104: Raistinger Str. 2, 82362 Weilheim-Unterhausen | J104: M | K104: ja
B105: 1901570066 | C105: Weilheim | D105: Städtisches Kinderhaus Nepomuk | E105: Gartenweg 6 | F105: 86956 | H105: =IF(tbl_Adressen[[#This Row],[Ortsteil]]="",tbl_Adressen[[#This Row],[Ort]],tbl_Adressen[[#This Row],[Ort]]&"-"&tbl_Adressen[[#This Row],[Ortsteil]]) -> Weilheim | I105: Westendstr. 32, 82362 Weilheim | J105: M | K105: ja
B106: 1901570064 | C106: Weilheim | D106: WaldorfHaus Weilheim | E106: Thanellerstr. 4 | F106: 86956 | H106: =IF(tbl_Adressen[[#This Row],[Ortsteil]]="",tbl_Adressen[[#This Row],[Ort]],tbl_Adressen[[#This Row],[Ort]]&"-"&tbl_Adressen[[#This Row],[Ortsteil]]) -> Weilheim | I106: Johann-Dürr-Str. 4, 82362 Weilheim | J106: M | K106: ja
B107: 1901570083 | C107: Weilheim | D107: Weilheimer Kindernest Gelbe Villa | E107: Wilhelm-Köhler-Str. 4 | F107: 86956 | H107: =IF(tbl_Adressen[[#This Row],[Ortsteil]]="",tbl_Adressen[[#This Row],[Ort]],tbl_Adressen[[#This Row],[Ort]]&"-"&tbl_Adressen[[#This Row],[Ortsteil]]) -> Weilheim | I107: Röntgenstr. 9, 82362 Weilheim | J107: M | K107: ja
B108: 1901580069 | C108: Wessobrunn | D108: Kindergarten Bärenhöhle | E108: Burggener Str. 2 | F108: 86956 | H108: =IF(tbl_Adressen[[#This Row],[Ortsteil]]="",tbl_Adressen[[#This Row],[Ort]],tbl_Adressen[[#This Row],[Ort]]&"-"&tbl_Adressen[[#This Row],[Ortsteil]]) -> Wessobrunn | I108: Schmuzer Str. 6, 82405 Wessobrunn | J108: M | K108: ja
B109: 1901580070 | C109: Wessobrunn | D109: Kindergarten Dorfstrolche | E109: Bahnhofstr. 36 | F109: 86956 | H109: =IF(tbl_Adressen[[#This Row],[Ortsteil]]="",tbl_Adressen[[#This Row],[Ort]],tbl_Adressen[[#This Row],[Ort]]&"-"&tbl_Adressen[[#This Row],[Ortsteil]]) -> Wessobrunn | I109: Templhof 4, 82405 Wessobrunn-Forst | J109: NW | K109: ja
B110: 1901570068 | C110: Weilheim | D110: Waldkindergarten Weilheim "Die Wurzelkinder" e.V. | E110: Jakob-Pfeiffer-Str. 13a | F110: 86956 | H110: =IF(tbl_Adressen[[#This Row],[Ortsteil]]="",tbl_Adressen[[#This Row],[Ort]],tbl_Adressen[[#This Row],[Ort]]&"-"&tbl_Adressen[[#This Row],[Ortsteil]]) -> Weilheim | I110: Peißenberger Str. 30, 82405 Weilheim | J110: M | K110: ja
B111: 1901590071 | C111: Wielenbach | D111: Gemeinde Kita Schatzkiste | E111: Dorfstr. 3 | F111: 86986 | H111: =IF(tbl_Adressen[[#This Row],[Ortsteil]]="",tbl_Adressen[[#This Row],[Ort]],tbl_Adressen[[#This Row],[Ort]]&"-"&tbl_Adressen[[#This Row],[Ortsteil]]) -> Wielenbach | I111: Rosenstr. 9b, 82407 Wielenbach | J111: M | K111: ja
B112: 1901590072 | C112: Wielenbach | D112: Kinderkrippe Wielenbach | E112: Schulstr. 8 | F112: 86987 | H112: =IF(tbl_Adressen[[#This Row],[Ortsteil]]="",tbl_Adressen[[#This Row],[Ort]],tbl_Adressen[[#This Row],[Ort]]&"-"&tbl_Adressen[[#This Row],[Ortsteil]]) -> Wielenbach | I112: Gut Raucherberg 1a, 82407 Wielenbach | J112: M | K112: ja
B113: 1901590076 | C113: Wielenbach | D113: Waldkindergarten Wielenbach | E113: Templhof 4 | F113: 82405 | G113: Forst | H113: =IF(tbl_Adressen[[#This Row],[Ortsteil]]="",tbl_Adressen[[#This Row],[Ort]],tbl_Adressen[[#This Row],[Ort]]&"-"&tbl_Adressen[[#This Row],[Ortsteil]]) -> Wielenbach-Forst | I113: Flurnummer 2344/Hopfenlaich | J113: M | K113: nein
B114: 1901600072 | C114: Wildsteig | D114: Kindergarten Wildsteig | H114: =IF(tbl_Adressen[[#This Row],[Ortsteil]]="",tbl_Adressen[[#This Row],[Ort]],tbl_Adressen[[#This Row],[Ort]]&"-"&tbl_Adressen[[#This Row],[Ortsteil]]) -> Wildsteig | I114: St.-Leonhards-Weg 4, 82409 Wildsteig | J114: SW | K114: ja
B115: Ergebnis | C115: =SUBTOTAL(103,tbl_Adressen[Ort]) -> 109 | K115: =SUBTOTAL(103,tbl_Adressen[Umfrage 2026]) -> 109
C116: Anzahl

Sheet Kommunikation
C2: Kommunikation | H2: Stand: März 2026
C4: =tbl_Kommunikation[[#Totals],[Ort]] -> 109
B5: Einrichtungs-Nr. | C5: Ort | D5: Einrichtung | E5: Telefon-Nr. | F5: E-Mail-Adresse | G5: www | H5: Link | I5: Umfrage 2026 | J5: Region
B6: 1901110002 | C6: Altenstadt | D6: Integratives Kinderhaus Altenstadt | E6: +49 8861 2197970 | F6: kita.altenstadt@kinderhilfe-oberland.de | G6: https://www.kinderhilfe-oberland.de/angebot/kinderhaus-in-altenstadt/ | H6: =IF(tbl_Kommunikation[[#This Row],[www]]="","",HYPERLINK(tbl_Kommunikation[[#This Row],[www]],"URL")) -> URL | I6: ja | J6: NW
B7: 1901110001 | C7: Altenstadt | D7: Kath. Kindergarten St. Michael | E7: +49 8861 8171 | F7: kita.st.michael.altenstadt@bistum-augsburg.de | G7: https://pg-altenstadt.org/kindergarten/ | H7: =IF(tbl_Kommunikation[[#This Row],[www]]="","",HYPERLINK(tbl_Kommunikation[[#This Row],[www]],"URL")) -> URL | I7: ja | J7: NW
B8: 1901130002 | C8: Antdorf | D8: Kindertagesstätte Antdorf | E8: +49 8856 83344 | F8: kita@antdorf.de | G8: https://www.antdorf.de/seite/389732/startseite.html | H8: =IF(tbl_Kommunikation[[#This Row],[www]]="","",HYPERLINK(tbl_Kommunikation[[#This Row],[www]],"URL")) -> URL | I8: ja | J8: O
B9: 1901140003 | C9: Bernbeuren | D9: Kath. Kindergarten St. Nikolaus | E9: +49 8860 555 | F9: kita.bernbeuren@bistum-augsburg.de | G9: www.kiga-bernbeuren.de | H9: =IF(tbl_Kommunikation[[#This Row],[www]]="","",HYPERLINK(tbl_Kommunikation[[#This Row],[www]],"URL")) -> URL | I9: ja | J9: SW
B10: 1901151115 | C10: Bernried | D10: Kinderhaus Bernried | E10: +49 8158 9973920 | F10: Kita.bernried@kinderhilfe-oberland.de | G10: https://www.kinderhilfe-oberland.de/angebot/kinderhaus-bernried/ | H10: =IF(tbl_Kommunikation[[#This Row],[www]]="","",HYPERLINK(tbl_Kommunikation[[#This Row],[www]],"URL")) -> URL | I10: ja | J10: O
B11: 1901150116 | C11: Bernried | D11: Krippe am Kloster | E11: +49 8158 9067040 | F11: krippe.amkloster@kinderhilfe-oberland.de | G11: https://www.kinderhilfe-oberland.de/angebot/krippe-am-kloster-in-bernried/ | H11: =IF(tbl_Kommunikation[[#This Row],[www]]="","",HYPERLINK(tbl_Kommunikation[[#This Row],[www]],"URL")) -> URL | I11: nein | J11: O
B12: 1901150005 | C12: Bernried | D12: Waldkinder Bernried e.V. | E12: +49 8158 9229818 | F12: franziska.ebert@waldkinder-bernried.de | G12: https://www.waldkinder-bernried.de/ | H12: =IF(tbl_Kommunikation[[#This Row],[www]]="","",HYPERLINK(tbl_Kommunikation[[#This Row],[www]],"URL")) -> URL | I12: ja | J12: O
B13: 1901171111 | C13: Böbing | D13: Kindergarten St. Hedwig | E13: +49 8867 8216 | F13: kindergarten@boebing.de | G13: https://www.boebing.de/gemeinde/kindergarten-kinderkrippe/ | H13: =IF(tbl_Kommunikation[[#This Row],[www]]="","",HYPERLINK(tbl_Kommunikation[[#This Row],[www]],"URL")) -> URL | I13: ja | J13: M
B14: 1901180007 | C14: Burggen | D14: Katholische Kindertageseinrichtung St. Anna | E14: +49 8860 1522 | F14: kita.burggen@bistum-augsburg.de | G14: https://www.burggen.de/gemeinde/kindergarten | H14: =IF(tbl_Kommunikation[[#This Row],[www]]="","",HYPERLINK(tbl_Kommunikation[[#This Row],[www]],"URL")) -> URL | I14: ja | J14: SW
B15: 1901200008 | C15: Eberfing | D15: Eberfinger Kinderhaus "Ich & Du" | E15: +49 8802 419 | F15: kiga@kindergarten-eberfing.de | G15: https://www.kinderhaus-eberfing.de/newpage | H15: =IF(tbl_Kommunikation[[#This Row],[www]]="","",HYPERLINK(tbl_Kommunikation[[#This Row],[www]],"URL")) -> URL | I15: ja | J15: M
B16: 1901210009 | C16: Eglfing | D16: Kindergarten Eglfing | E16: +49 8847 1219 | F16: kiga.eglfing@gmail.com | G16: https://www.eglfing.de/de/kindergarten.html | H16: =IF(tbl_Kommunikation[[#This Row],[www]]="","",HYPERLINK(tbl_Kommunikation[[#This Row],[www]],"URL")) -> URL | I16: ja | J16: M
B17: 1901210097 | C17: Eglfing | D17: Kinderkrippe Tauting | E17: +49 8847 6999473 | F17: kikri-tauting@outlook.de | G17: www.eglfing.de | H17: =IF(tbl_Kommunikation[[#This Row],[www]]="","",HYPERLINK(tbl_Kommunikation[[#This Row],[www]],"URL")) -> URL | I17: ja | J17: M
B18: 1901260011 | C18: Habach | D18: Kindergarten Achgrom-Zwergal e.V. | E18: +49 8847 698195 | F18: achgrom-zwergal@posteo.de | H18: =IF(tbl_Kommunikation[[#This Row],[www]]="","",HYPERLINK(tbl_Kommunikation[[#This Row],[www]],"URL")) ->  | I18: nein | J18: O
B19: 1901260010 | C19: Habach | D19: Ulrich Kinderhaus Habach | E19: +49 8847 453 | F19: kiga@habach.de | G19: https://habach.de/allgemeines/ | H19: =IF(tbl_Kommunikation[[#This Row],[www]]="","",HYPERLINK(tbl_Kommunikation[[#This Row],[www]],"URL")) -> URL | I19: ja | J19: O
B20: 1901290011 | C20: Hohenfurch | D20: Kindergarten 'Sonnenblick' Kindergarten & Krippe | E20: +49 8861 8757 | F20: kindergarten@hohenfurch.de | G20: https://www.hohenfurch.de/gemeinde/kindergarten/allgemeines | H20: =IF(tbl_Kommunikation[[#This Row],[www]]="","",HYPERLINK(tbl_Kommunikation[[#This Row],[www]],"URL")) -> URL | I20: ja | J20: NW
B21: 1901300012 | C21: Hohenpeißenberg | D21: Caritas Kindertagesstätte St. Anna | E21: +49 8805 530 | F21: sarah.habersetzer@caritasmuenchen.org | G21: https://www.caritas-kita-st-anna.de/de | H21: =IF(tbl_Kommunikation[[#This Row],[www]]="","",HYPERLINK(tbl_Kommunikation[[#This Row],[www]],"URL")) -> URL | I21: nein | J21: NW
B22: 1901300014 | C22: Hohenpeißenberg | D22: Integratives Kinderhaus am Schächen | E22: +49 8861 2198650 | F22: kita.schaechen@kinderhilfe-oberland.de | G22: https://www.kinderhilfe-oberland.de/angebot/kinderhaus-am-schaechen-hohenpeissenberg/ | H22: =IF(tbl_Kommunikation[[#This Row],[www]]="","",HYPERLINK(tbl_Kommunikation[[#This Row],[www]],"URL")) -> URL | I22: ja | J22: NW
B23: 1901300013 | C23: Hohenpeißenberg | D23: Kindergarten im Hetten | E23: +49 8805 92060 | F23: franziska.seemiller@kinderhilfe-oberland.de | G23: https://www.kinderhilfe-oberland.de/angebot/kindergarten-im-hetten-hohenpeissenberg/ | H23: =IF(tbl_Kommunikation[[#This Row],[www]]="","",HYPERLINK(tbl_Kommunikation[[#This Row],[www]],"URL")) -> URL | I23: ja | J23: NW
B24: 1901300015 | C24: Hohenpeißenberg | D24: Naturkindergarten Bergwaldkinder | E24: +49 1575 8727653 | F24: kiga5@natuerlich-oberhausen.de | G24: https://natuerlich-oberhausen.de/bergwaldkinder | H24: =IF(tbl_Kommunikation[[#This Row],[www]]="","",HYPERLINK(tbl_Kommunikation[[#This Row],[www]],"URL")) -> URL | I24: nein | J24: NW
B25: 1901310121 | C25: Huglfing | D25: Kindertagesstätte Huglhupf | E25: +49 8802 1456 | F25: info@kita-huglhupf.de | G25: www.kita-huglhupf.de | H25: =IF(tbl_Kommunikation[[#This Row],[www]]="","",HYPERLINK(tbl_Kommunikation[[#This Row],[www]],"URL")) -> URL | I25: ja | J25: M
B26: 1901310122 | C26: Huglfing | D26: Naturkindergarten Himmelblau | E26: +49 178 2656786 | F26: kiga2@natuerlich-oberhausen.de | G26: https://natuerlich-oberhausen.de/nakihuglfing | H26: =IF(tbl_Kommunikation[[#This Row],[www]]="","",HYPERLINK(tbl_Kommunikation[[#This Row],[www]],"URL")) -> URL | I26: nein | J26: M
B27: 1901320015 | C27: Iffeldorf | D27: Katholisches Haus für Kinder St. Vitus | E27: +49 8856 4411 | F27: kita.st.vitus.iffeldorf@bistum-augsburg.de | G27: http://www.stvitus.de/seite/293528/kindergarten.html | H27: =IF(tbl_Kommunikation[[#This Row],[www]]="","",HYPERLINK(tbl_Kommunikation[[#This Row],[www]],"URL")) -> URL | I27: ja | J27: O
B28: 1901330016 | C28: Ingenried | D28: Kindergarten St. Georg | E28: +49 8868 715 | F28: kiga.ingenried@t-online.de | G28: https://www.ingenried.de/gemeinde/kindergarten | H28: =IF(tbl_Kommunikation[[#This Row],[www]]="","",HYPERLINK(tbl_Kommunikation[[#This Row],[www]],"URL")) -> URL | I28: ja | J28: NW
B29: 1901350120 | C29: Oberhausen | D29: Kinderhaus am Storchennest | E29: +49 8802 9138440 | F29: kinderhaus-oberhausen@t-online.de | G29: www.oberhausen-obb.de | H29: =IF(tbl_Kommunikation[[#This Row],[www]]="","",HYPERLINK(tbl_Kommunikation[[#This Row],[www]],"URL")) -> URL | I29: ja | J29: M
B30: 1901351112 | C30: Oberhausen | D30: Naturkindergarten "Die kleinen Forscher" | E30: +49 175 4252788 | F30: kiga@natuerlich-oberhausen.de | G30: https://natuerlich-oberhausen.de/nakioberhausen/ | H30: =IF(tbl_Kommunikation[[#This Row],[www]]="","",HYPERLINK(tbl_Kommunikation[[#This Row],[www]],"URL")) -> URL | I30: nein | J30: M
B31: 1901360018 | C31: Obersöchering | D31: Kinderhaus Söcheringer Wespennest | E31: +49 8847 6585 | F31: kindergarten@obersoechering.org | G31: https://soechering.eu/ | H31: =IF(tbl_Kommunikation[[#This Row],[www]]="","",HYPERLINK(tbl_Kommunikation[[#This Row],[www]],"URL")) -> URL | I31: ja | J31: O
B32: 1901380020 | C32: Pähl | D32: Kath. Kindertagesstätte St. Elisabeth | E32: +49 8808 359 | F32: kita.st.elisabeth.fischen@bistum-augsburg.de | G32: https://kindergarten-fischen.de/ | H32: =IF(tbl_Kommunikation[[#This Row],[www]]="","",HYPERLINK(tbl_Kommunikation[[#This Row],[www]],"URL")) -> URL | I32: nein | J32: M
B33: 1901380019 | C33: Pähl | D33: Kath. Kita St.Christophorus | E33: +49 8808 571 | F33: leitung@kita-paehl.de | G33: https://kita-paehl.de/ | H33: =IF(tbl_Kommunikation[[#This Row],[www]]="","",HYPERLINK(tbl_Kommunikation[[#This Row],[www]],"URL")) -> URL | I33: nein | J33: M
B34: 1901380022 | C34: Pähl | D34: Waldkindergarten "Bärenbande" | G34: https://natuerlich-oberhausen.de/baerenbande/ | I34: nein | J34: M
B35: 1901390024 | C35: Peißenberg | D35: AWO-Kinderhaus Pumuckl | E35: +49 8803 9443 | F35: Anja.Brockhaus@awo-obb.de | G35: https://awo-obb.de/kinder/einrichtung/awo-kinderhaus-pumuckl | H35: =IF(tbl_Kommunikation[[#This Row],[www]]="","",HYPERLINK(tbl_Kommunikation[[#This Row],[www]],"URL")) -> URL | I35: ja | J35: M
B36: 1901390023 | C36: Peißenberg | D36: Evang. Kindergarten Regenbogen | E36: +49 8803 61357 | F36: kiga.regenbogen.peissenberg@elkb.de | G36: https://www.peissenberg-evangelisch.de/kindergarten | H36: =IF(tbl_Kommunikation[[#This Row],[www]]="","",HYPERLINK(tbl_Kommunikation[[#This Row],[www]],"URL")) -> URL | I36: ja | J36: M
B37: 1901390025 | C37: Peißenberg | D37: FortSchritt Inklusives Kinderhaus an der Ammer | E37: +49 8803 489174 | F37: kinderhaus.peissenberg@fortschritt-bayern.de | G37: https://www.fortschritt-bayern.de/angebote/kindertagesstaetten/detail/16 | H37: =IF(tbl_Kommunikation[[#This Row],[www]]="","",HYPERLINK(tbl_Kommunikation[[#This Row],[www]],"URL")) -> URL | I37: ja | J37: M
B38: 1901390021 | C38: Peißenberg | D38: Kindergarten St. Johannes Baptist | E38: +49 8803 3897 | F38: kiga.st.johannes.baptist.peissenberg@bistum-augsburg.de | G38: https://www.peifo.de/familien-und-kinder/kindergarten-st-johann/ | H38: =IF(tbl_Kommunikation[[#This Row],[www]]="","",HYPERLINK(tbl_Kommunikation[[#This Row],[www]],"URL")) -> URL | I38: ja | J38: M
B39: 1901390026 | C39: Peißenberg | D39: Kinderhaus am Berg | E39: +49 8803 63220 | F39: kita.peissenberg@kinderhilfe-oberland.de | G39: https://www.kinderhilfe-oberland.de/angebot/kinderhaus-am-berg-peissenberg/ | H39: =IF(tbl_Kommunikation[[#This Row],[www]]="","",HYPERLINK(tbl_Kommunikation[[#This Row],[www]],"URL")) -> URL | I39: ja | J39: M
B40: 1901390125 | C40: Peißenberg | D40: Kinderhaus im Dorf | E40: +49 8803 632216 | F40: kita.pbgimdorf@kinderhilfe-oberland.de | G40: https://www.kinderhilfe-oberland.de/angebot/kinderhaus-im-dorf-peissenberg/ | H40: =IF(tbl_Kommunikation[[#This Row],[www]]="","",HYPERLINK(tbl_Kommunikation[[#This Row],[www]],"URL")) -> URL | I40: ja | J40: M
B41: 1901390022 | C41: Peißenberg | D41: Kindertagesstätte St. Barbara | E41: +49 08803 3299 | F41: kiga.st.barbara.peissenberg@bistum-augsburg.de | G41: https://www.peifo.de/familien-und-kinder/kindergarten-st-barbara/ | H41: =IF(tbl_Kommunikation[[#This Row],[www]]="","",HYPERLINK(tbl_Kommunikation[[#This Row],[www]],"URL")) -> URL | I41: ja | J41: M
B42: 1901400027 | C42: Peiting | D42: Caritas Kita St. Michael | E42: +49 8861 6189 | F42: Manuela.otschik@caritasmuenchen.org | G42: https://www.caritas-kindergarten-st-michael.de | H42: =IF(tbl_Kommunikation[[#This Row],[www]]="","",HYPERLINK(tbl_Kommunikation[[#This Row],[www]],"URL")) -> URL | I42: ja | J42: NW
B43: 1901400073 | C43: Peiting | D43: Integrativer Hort im Kinderhaus Peiting | E43: +49 8861 25300 | F43: hort.peiting@kinderhilfe-oberland.de | G43: https://www.kinderhilfe-oberland.de/integrative-horte/integrative-horte-peiting | H43: =IF(tbl_Kommunikation[[#This Row],[www]]="","",HYPERLINK(tbl_Kommunikation[[#This Row],[www]],"URL")) -> URL | I43: ja | J43: NW
B44: 1901400107 | C44: Peiting | D44: Integrativer Naturkindergarten am Weiherhäusle | E44: +49 1517 2689124 | F44: n.schweiger@kinderhilfe-oberland.de | G44: https://www.kinderhilfe-oberland.de/angebot/naturkindergarten-weiherhaeusle-peiting/ | H44: =IF(tbl_Kommunikation[[#This Row],[www]]="","",HYPERLINK(tbl_Kommunikation[[#This Row],[www]],"URL")) -> URL | I44: ja | J44: NW
B45: 1901400113 | C45: Peiting | D45: Integratives Kinderhaus im Forsthaus | E45: +49 8861 2218955 | F45: Kita.forsthaus@kinderhilfe-oberland.de | G45: https://www.kinderhilfe-oberland.de/angebot/kindergarten-im-forsthaus-peiting/ | H45: =IF(tbl_Kommunikation[[#This Row],[www]]="","",HYPERLINK(tbl_Kommunikation[[#This Row],[www]],"URL")) -> URL | I45: ja | J45: NW
B46: 1901400030 | C46: Peiting | D46: Kindergarten am Gumpen | E46: +49 8861 219-7000 | F46: kita.gumpen@kinderhilfe-oberland.de | G46: https://www.kinderhilfe-oberland.de/angebot/kindergarten-am-gumpen-peiting/ | H46: =IF(tbl_Kommunikation[[#This Row],[www]]="","",HYPERLINK(tbl_Kommunikation[[#This Row],[www]],"URL")) -> URL | I46: ja | J46: NW
B47: 1901400033 | C47: Peiting | D47: Kindergarten Birkland | E47: +49 8869 1506 | F47: kiga-birkland@peiting.de | G47: http://www.gemeindekindergarten-peiting.de/birkland/ | H47: =IF(tbl_Kommunikation[[#This Row],[www]]="","",HYPERLINK(tbl_Kommunikation[[#This Row],[www]],"URL")) -> URL | I47: ja | J47: NW
B48: 1901400029 | C48: Peiting | D48: Kinderhaus Peiting | E48: +49 8861 25300 | F48: kita.peiting@kinderhilfe-oberland.de | G48: https://www.kinderhilfe-oberland.de/angebot/kinderhaus-peiting/ | H48: =IF(tbl_Kommunikation[[#This Row],[www]]="","",HYPERLINK(tbl_Kommunikation[[#This Row],[www]],"URL")) -> URL | I48: ja | J48: NW
B49: 1901400100 | C49: Peiting | D49: Kita Sonnenschein | E49: +49 8861 599750 | F49: kita.sonnenschein@peiting.de | G49: https://www.gemeindekindergarten-peiting.de/sonnenschein/ | H49: =IF(tbl_Kommunikation[[#This Row],[www]]="","",HYPERLINK(tbl_Kommunikation[[#This Row],[www]],"URL")) -> URL | I49: ja | J49: NW
B50: 1901400032 | C50: Peiting | D50: Therese-Peter-Haus für Kinder | E50: +49 8861 599724 | F50: therese-peter-haus@peiting.de | G50: https://www.gemeindekindergarten-peiting.de/theresepeter/ | H50: =IF(tbl_Kommunikation[[#This Row],[www]]="","",HYPERLINK(tbl_Kommunikation[[#This Row],[www]],"URL")) -> URL | I50: ja | J50: NW
B51: 1901400098 | C51: Peiting | D51: Waldkindergarten Wurzelzwerge Peiting e.V | E51: +49 171 9050813 | F51: vorstand@kinderwalderlebnis.de | G51: www.kinderwalderlebnis.de | H51: =IF(tbl_Kommunikation[[#This Row],[www]]="","",HYPERLINK(tbl_Kommunikation[[#This Row],[www]],"URL")) -> URL | I51: ja | J51: NW
B52: 1901410040 | C52: Penzberg | D52: Albert-Schweitzer Waldkindergarten | E52: +49 179 4485834 | F52: Waldkindergarten@albert-schweitzer.org | G52: https://albert-schweitzer.org/wakiga_penzberg | H52: =IF(tbl_Kommunikation[[#This Row],[www]]="","",HYPERLINK(tbl_Kommunikation[[#This Row],[www]],"URL")) -> URL | I52: ja | J52: O
B53: 1901410037 | C53: Penzberg | D53: AWO Kinderhaus an der Birkenstraße | E53: +49 8856 6872 | F53: kinderhaus.penzberg@awo-obb.de | G53: https://www.awo-obb.de/kinder/einrichtung/awo-kinderhaus-an-der-birkenstrasse | H53: =IF(tbl_Kommunikation[[#This Row],[www]]="","",HYPERLINK(tbl_Kommunikation[[#This Row],[www]],"URL")) -> URL | I53: ja | J53: O
B54: 1901410075 | C54: Penzberg | D54: AWO Kinderhort Winterstraße | E54: +49 8856 8049662 | F54: kiho2.penzberg@awo-obb.de | G54: https://awo-obb.de/kinder/einrichtung/awo-kinderhort-an-der-winterstrasse | H54: =IF(tbl_Kommunikation[[#This Row],[www]]="","",HYPERLINK(tbl_Kommunikation[[#This Row],[www]],"URL")) -> URL | I54: ja | J54: O
B55: 1901410036 | C55: Penzberg | D55: AWOlino Kindergarten | E55: +49 8856 2420 | F55: kiga.penzberg@kita.awo-obb.de | G55: https://www.awo-obb.de/kinder/einrichtung/awo-kindergarten-awolino-penzberg | H55: =IF(tbl_Kommunikation[[#This Row],[www]]="","",HYPERLINK(tbl_Kommunikation[[#This Row],[www]],"URL")) -> URL | I55: nein | J55: O
B56: 1901410035 | C56: Penzberg | D56: Evang. Haus für Kinder Penzberg | E56: +49 8856 5696 | F56: haus-fuer-kinder.penzberg@elkb.de | G56: https://www.ev-kinderhaus-penzberg.de/ | H56: =IF(tbl_Kommunikation[[#This Row],[www]]="","",HYPERLINK(tbl_Kommunikation[[#This Row],[www]],"URL")) -> URL | I56: ja | J56: O
B57: 1901410038 | C57: Penzberg | D57: Familienzentrum Arche Noah | E57: +49 8856 608923-0 | F57: kindergarten@familienzentrum-arche-noah.de | G57: www.familienzentrum-arche-noah.de | H57: =IF(tbl_Kommunikation[[#This Row],[www]]="","",HYPERLINK(tbl_Kommunikation[[#This Row],[www]],"URL")) -> URL | I57: ja | J57: O
B58: 1901410117 | C58: Penzberg | D58: Integrativer Kindergarten mit Krippe an der Birkenstraße | E58: +49 8856 9034291 | F58: kita.penzberg@kinderhilfe-oberland.de | G58: https://www.kinderhilfe-oberland.de/angebot/krippe-an-der-birkenstrasse-penzberg/ | H58: =IF(tbl_Kommunikation[[#This Row],[www]]="","",HYPERLINK(tbl_Kommunikation[[#This Row],[www]],"URL")) -> URL | I58: ja | J58: O
B59: 1901410104 | C59: Penzberg | D59: Katholischer Kindergarten St. Franziskus | E59: +49 8856 9365738 | F59: kita.st.franziskus.penzberg@bistum-augsburg.de | G59: HTTPS://www.stfranziskus-penzberg.de | H59: =IF(tbl_Kommunikation[[#This Row],[www]]="","",HYPERLINK(tbl_Kommunikation[[#This Row],[www]],"URL")) -> URL | I59: ja | J59: O
B60: 1901410039 | C60: Penzberg | D60: KiM-Kita Penzberg | E60: +49 8856 813790 | F60: kim-kita@penzberg.de | G60: www.kim-kita-penzberg.de | H60: =IF(tbl_Kommunikation[[#This Row],[www]]="","",HYPERLINK(tbl_Kommunikation[[#This Row],[www]],"URL")) -> URL | I60: ja | J60: O
B61: 1901410122 | C61: Penzberg | D61: Kindergarten Spatzennest | E61: +49 8856 8027760 | F61: kiga@spatzennest-penzberg.de | G61: https://spatzennest-penzberg.de/ | H61: =IF(tbl_Kommunikation[[#This Row],[www]]="","",HYPERLINK(tbl_Kommunikation[[#This Row],[www]],"URL")) -> URL | I61: ja | J61: O
C62: Penzberg | D62: Kinderkrippe Spatzennest | E62: +49 8856 8027720 | F62: krippe@spatzennest-penzberg.de | G62: https://spatzennest-penzberg.de/ | H62: =IF(tbl_Kommunikation[[#This Row],[www]]="","",HYPERLINK(tbl_Kommunikation[[#This Row],[www]],"URL")) -> URL | I62: ja | J62: O
B63: 1901410034 | C63: Penzberg | D63: Kindertagesstätte St. Raphael | E63: +49 8856 7317 | F63: KiGa.st.raphael.penzberg@bistum-augsburg.de | G63: https://www.straphael-penzberg.de/ | H63: =IF(tbl_Kommunikation[[#This Row],[www]]="","",HYPERLINK(tbl_Kommunikation[[#This Row],[www]],"URL")) -> URL | I63: ja | J63: O
B64: 1901410079 | C64: Penzberg | D64: Montessori Kinderhaus Penzberg | E64: +49 8856 6094322 | F64: verwaltung@montessori-kindergarten-penzberg.de | G64: https://www.montessori-kindergarten-penzberg.de/ | H64: =IF(tbl_Kommunikation[[#This Row],[www]]="","",HYPERLINK(tbl_Kommunikation[[#This Row],[www]],"URL")) -> URL | I64: ja | J64: O
B65: 1901420041 | C65: Polling | D65: Integratives Kinderhaus Polling | E65: +49 881 930319 | F65: kita.polling@kinderhilfe-oberland.de | G65: https://www.kinderhilfe-oberland.de/angebot/kinderhaus-polling/ | H65: =IF(tbl_Kommunikation[[#This Row],[www]]="","",HYPERLINK(tbl_Kommunikation[[#This Row],[www]],"URL")) -> URL | I65: ja | J65: M
B66: 1901420042 | C66: Polling | D66: Kindertagesstätte der Gemeinde Polling | E66: +49 881 40767 | F66: gemeindekindergarten@polling.de | G66: https://kiga.polling.de/ | H66: =IF(tbl_Kommunikation[[#This Row],[www]]="","",HYPERLINK(tbl_Kommunikation[[#This Row],[www]],"URL")) -> URL | I66: ja | J66: M
B67: 1901420043 | C67: Polling | D67: Naturkindergarten 'Waldwichtel' in Polling | E67: +49 8176 44548744 | F67: kiga3@natuerlich-oberhausen.de | G67: https://natuerlich-oberhausen.de/2024/09/04/naturkindergarten-waldwichtel-in-polling/ | H67: =IF(tbl_Kommunikation[[#This Row],[www]]="","",HYPERLINK(tbl_Kommunikation[[#This Row],[www]],"URL")) -> URL | I67: ja | J67: M
B68: 1901430043 | C68: Prem | D68: Kindergarten Prem | E68: +49 8862 8387 | F68: kiga@prem-am-lech.de | G68: https://www.prem-am-lech.de/gemeinde/kindergarten.php | H68: =IF(tbl_Kommunikation[[#This Row],[www]]="","",HYPERLINK(tbl_Kommunikation[[#This Row],[www]],"URL")) -> URL | I68: ja | J68: SW
B69: 1901440101 | C69: Raisting | D69: AWO Kindertagesstätte Zwergerlnest | E69: +49 8807 9499718 | F69: zwergerlnest.raisting@awo-obb.de | G69: https://awo-obb.de/kinder/einrichtung/awo-kindertagesstatte-zwergerlnest | H69: =IF(tbl_Kommunikation[[#This Row],[www]]="","",HYPERLINK(tbl_Kommunikation[[#This Row],[www]],"URL")) -> URL | I69: nein | J69: M
B70: 1901440106 | C70: Raisting | D70: BRK Kindergarten St. Raphael Raisting | E70: +49 8807 7381 | F70: susanne.dietrich@brk-starnberg.de | G70: https://kindergarten-straphael.brk-starnberg.de/ | H70: =IF(tbl_Kommunikation[[#This Row],[www]]="","",HYPERLINK(tbl_Kommunikation[[#This Row],[www]],"URL")) -> URL | I70: ja | J70: M
B71: 1901440105 | C71: Raisting | D71: Kinderhort Bunte Kleckse | E71: +49 8807 9474406 | F71: kinderhort@raisting.bayern.de | G71: www.kinderhort.raisting.de | H71: =IF(tbl_Kommunikation[[#This Row],[www]]="","",HYPERLINK(tbl_Kommunikation[[#This Row],[www]],"URL")) -> URL | I71: ja | J71: M
B72: 1901450046 | C72: Rottenbuch | D72: Don Bosco Haus für Kinder | E72: +49 8867 8632 | F72: kigarottenbuch@t-online.de | G72: https://www.donbosco-hausfuerkinder.de | H72: =IF(tbl_Kommunikation[[#This Row],[www]]="","",HYPERLINK(tbl_Kommunikation[[#This Row],[www]],"URL")) -> URL | I72: ja | J72: SW
B73: 1901480081 | C73: Schongau | D73: Elterninitiative Kindernest Schongau e.V. | E73: +49 8861 900216 | F73: info@kindernest-schongau.de | G73: www.kindernest-schongau.de | H73: =IF(tbl_Kommunikation[[#This Row],[www]]="","",HYPERLINK(tbl_Kommunikation[[#This Row],[www]],"URL")) -> URL | I73: ja | J73: NW
B74: 1901480119 | C74: Schongau | D74: Haus für Kinder | E74: +49 8861 241230 | F74: kigahausfuerkinder@schongau.bayern.de | G74: https://www.schongau.de/de/Mein-Schongau/Kinder-Jugendliche/Kindergaerten-und-Kindertagesstaetten/Kindergarten?view=publish&item=nursery&id=1010 | H74: =IF(tbl_Kommunikation[[#This Row],[www]]="","",HYPERLINK(tbl_Kommunikation[[#This Row],[www]],"URL")) -> URL | I74: ja | J74: NW
B75: 1901480103 | C75: Schongau | D75: Kindergarten Clara-Fey | E75: +49 8861 9308013 | F75: kiga-clara-fey@kjf-soziale-angebote.de | G75: https://www.kita-schongau.de/ | H75: =IF(tbl_Kommunikation[[#This Row],[www]]="","",HYPERLINK(tbl_Kommunikation[[#This Row],[www]],"URL")) -> URL | I75: ja | J75: NW
B76: 1901480052 | C76: Schongau | D76: Kindergarten Kunterbunt | E76: +49 8861 214240 | F76: kigakunterbunt@schongau.de | G76: https://www.schongau.de/de/Mein-Schongau/Kinder-Jugendliche/Kindergaerten-und-Kindertagesstaetten | H76: =IF(tbl_Kommunikation[[#This Row],[www]]="","",HYPERLINK(tbl_Kommunikation[[#This Row],[www]],"URL")) -> URL | I76: ja | J76: NW
B77: 1901480051 | C77: Schongau | D77: Kindergarten Luftballon | E77: +49 8861 214-210 | F77: kigaluftballon@schongau.de | G77: https://www.schongau.de/de/Mein-Schongau/Kinder-Jugendliche/Kindergaerten-und-Kindertagesstaetten/Kindergarten?view=publish&item=nursery&id=1002 | H77: =IF(tbl_Kommunikation[[#This Row],[www]]="","",HYPERLINK(tbl_Kommunikation[[#This Row],[www]],"URL")) -> URL | I77: nein | J77: NW
B78: 1901480050 | C78: Schongau | D78: Kindergarten Regenbogen | E78: +49 88861 214220 | F78: kigaregenbogen@schongau.de | G78: https://www.schongau.de/de/Mein-Schongau/Kinder-Jugendliche/Kindergaerten-und-Kindertagesstaetten/Kindergarten?view=publish&item=nursery&id=1000 | H78: =IF(tbl_Kommunikation[[#This Row],[www]]="","",HYPERLINK(tbl_Kommunikation[[#This Row],[www]],"URL")) -> URL | I78: ja | J78: NW
B79: 1901480048 | C79: Schongau | D79: Kindergarten St. Franziskus - Haus für Inklusion | E79: +49 8861 20550 | F79: kita.st.franziskus.schongau@bistum-augsburg.de | G79: http://www.pg-schongau.com/kindergarten-st-franziskus/ | H79: =IF(tbl_Kommunikation[[#This Row],[www]]="","",HYPERLINK(tbl_Kommunikation[[#This Row],[www]],"URL")) -> URL | I79: nein | J79: NW
B80: 1901480047 | C80: Schongau | D80: Kindergarten St. Johannes | E80: +49 8861 4523 | F80: kita.st.johannes.schongau@bistum-augsburg.de | G80: http://www.pg-schongau.com/kindergarten-st-johannes/ | H80: =IF(tbl_Kommunikation[[#This Row],[www]]="","",HYPERLINK(tbl_Kommunikation[[#This Row],[www]],"URL")) -> URL | I80: ja | J80: NW
B81: 1901480049 | C81: Schongau | D81: Kita Mariä Himmelfahrt | E81: +49 88861 8935 | F81: kita.mhf.schongau@bistum-augsburg.de | G81: kiga-mariae-himmelfahrt.de | H81: =IF(tbl_Kommunikation[[#This Row],[www]]="","",HYPERLINK(tbl_Kommunikation[[#This Row],[www]],"URL")) -> URL | I81: ja | J81: NW
B82: 1901490053 | C82: Schwabbruck | D82: Kindergarten St. Walburga | E82: +49 8868 1578 | F82: kita.schwabbruck@bistum-augsburg.de | G82: https://www.schwabbruck.de/kindergarten | H82: =IF(tbl_Kommunikation[[#This Row],[www]]="","",HYPERLINK(tbl_Kommunikation[[#This Row],[www]],"URL")) -> URL | I82: ja | J82: NW
B83: 190151005 | C83: Schwabsoien | D83: Kindergarten mit Krippe Sonnenblume | E83: +49 8861-2196107 | F83: barbara.erhard@kinderhilfe-oberland.de | G83: https://www.kinderhilfe-oberland.de/angebot/kindergarten-schwabsoien/ | H83: =IF(tbl_Kommunikation[[#This Row],[www]]="","",HYPERLINK(tbl_Kommunikation[[#This Row],[www]],"URL")) -> URL | I83: ja | J83: NW
B84: 1901520055 | C84: Seeshaupt | D84: Kinderhaus Seeshaupt | E84: +49 8801 759 | F84: kinderhaus@seeshaupt.de | G84: www.kinderhaus-seeshaupt.de | H84: =IF(tbl_Kommunikation[[#This Row],[www]]="","",HYPERLINK(tbl_Kommunikation[[#This Row],[www]],"URL")) -> URL | I84: ja | J84: O
B85: 1901520080 | C85: Seeshaupt | D85: Kindernest Seeshaupt | E85: +49 8801 912287 | F85: info@kindernest-seeshaupt.de | G85: https://kindernest-seeshaupt.de/ | H85: =IF(tbl_Kommunikation[[#This Row],[www]]="","",HYPERLINK(tbl_Kommunikation[[#This Row],[www]],"URL")) -> URL | I85: nein | J85: O
B86: 1901530056 | C86: Sindelsdorf | D86: Gemeindekindergarten Sindelsdorf | E86: +49 8856 9109612 | F86: kiga@sindelsdorf.de | G86: http://www.sindelsdorf.de/verzeichnis/visitenkarte.php?mandat=143031 | H86: =IF(tbl_Kommunikation[[#This Row],[www]]="","",HYPERLINK(tbl_Kommunikation[[#This Row],[www]],"URL")) -> URL | I86: ja | J86: O
B87: 1901540057 | C87: Steingaden | D87: Kita Steingaden | E87: +49 8862 384 | F87: kita@gemeinde-steingaden.de | G87: www.kindergarten-steingaden.de | H87: =IF(tbl_Kommunikation[[#This Row],[www]]="","",HYPERLINK(tbl_Kommunikation[[#This Row],[www]],"URL")) -> URL | I87: ja | J87: SW
B88: 1901570062 | C88: Weilheim | D88: AWO Kinderhaus Villa Kunterbunt | E88: +49 881 9275850-1 | F88: villa-kinterbunt.weilheim@kita.awo-obb.de | G88: https://www.awo-obb.de/ | H88: =IF(tbl_Kommunikation[[#This Row],[www]]="","",HYPERLINK(tbl_Kommunikation[[#This Row],[www]],"URL")) -> URL | I88: ja | J88: M
B89: 1901570124 | C89: Weilheim | D89: BRK Kinderhaus Weltentdecker | E89: +49 8151 26023560 | F89: kinderhaus.weltentdecker@brk-starnberg.de | G89: https://kinderhaus-weltentdecker.brk-starnberg.de/ | H89: =IF(tbl_Kommunikation[[#This Row],[www]]="","",HYPERLINK(tbl_Kommunikation[[#This Row],[www]],"URL")) -> URL | I89: ja | J89: M
B90: 1901570061 | C90: Weilheim | D90: Evangelisch-Lutherisches Haus für Kinder | E90: +49 881 7296 | F90: ev.haus-fuer-kinder-wm@elkb.de | G90: https://www.ev-haus-fuer-kinder.de | H90: =IF(tbl_Kommunikation[[#This Row],[www]]="","",HYPERLINK(tbl_Kommunikation[[#This Row],[www]],"URL")) -> URL | I90: ja | J90: M
B91: 1901570116 | C91: Weilheim | D91: Fortschritt Kinderhaus am Sonnenfeld | E91: +49 881 39464260 | F91: Kinderhaus.weilheim@fortschritt-bayern.de | G91: https://www.fortschritt-bayern.de/angebote/kindertagesstaetten/detail/8 | H91: =IF(tbl_Kommunikation[[#This Row],[www]]="","",HYPERLINK(tbl_Kommunikation[[#This Row],[www]],"URL")) -> URL | I91: ja | J91: M
B92: 1901570108 | C92: Weilheim | D92: Inklusives Kinderhaus Pfiffikus | E92: +49 881 682-1640 | F92: pfiffikus@weilheim.bayern.de | G92: https://www.weilheim.de/mein-weilheim/buergerservice/kinderbetreuungseinrichtungen/staedt-kinderhaus-pfiffikus | H92: =IF(tbl_Kommunikation[[#This Row],[www]]="","",HYPERLINK(tbl_Kommunikation[[#This Row],[www]],"URL")) -> URL | I92: ja | J92: M
B93: 1901570110 | C93: Weilheim | D93: Integrativer Hort an der Ammer | E93: +49 881 927908422 | F93: hort.weilheim@kinderhilfe-oberland.de | G93: https://www.kinderhilfe-oberland.de/angebot/integrativer-hort-weilheim/ | H93: =IF(tbl_Kommunikation[[#This Row],[www]]="","",HYPERLINK(tbl_Kommunikation[[#This Row],[www]],"URL")) -> URL | I93: ja | J93: M
B94: 1901570077 | C94: Weilheim | D94: Integratives Kinderhaus Franziskus | E94: +49 881 61784 | F94: hort.franziskus.weilheim@bistum-augsburg.de | G94: https://www.integratives-kinderhaus-franziskus.de | H94: =IF(tbl_Kommunikation[[#This Row],[www]]="","",HYPERLINK(tbl_Kommunikation[[#This Row],[www]],"URL")) -> URL | I94: ja | J94: M
B95: 1901570060 | C95: Weilheim | D95: Kath. Kindergarten St. Michael Marnbach | E95: +49 1674 904942966 | F95: kita.st.michael.weilheim@bistum-augsburg.de | G95: https://www.st-michael-kindergarten.de/ | H95: =IF(tbl_Kommunikation[[#This Row],[www]]="","",HYPERLINK(tbl_Kommunikation[[#This Row],[www]],"URL")) -> URL | I95: ja | J95: M
B96: 1901570059 | C96: Weilheim | D96: Kath. Kneippkinderhaus St. Anna | E96: +49 881 69735 | F96: kita.st.anna.weilheim@bistum-augsburg.de | G96: https://www.st-anna-kinderhaus.com/ | H96: =IF(tbl_Kommunikation[[#This Row],[www]]="","",HYPERLINK(tbl_Kommunikation[[#This Row],[www]],"URL")) -> URL | I96: ja | J96: M
B97: 1901570102 | C97: Weilheim | D97: Kinderhaus im Paradeis | E97: +49 8881 12235999 | F97: monika.welchert@muetterzentrum-weilheim.de | G97: www.kinderhaus-im-paradeis.de/ | H97: =IF(tbl_Kommunikation[[#This Row],[www]]="","",HYPERLINK(tbl_Kommunikation[[#This Row],[www]],"URL")) -> URL | I97: ja | J97: M
B98: 1901570058 | C98: Weilheim | D98: Kinderhaus Mariae Himmelfahrt | E98: +49 881 3209 | F98: kita.mariae.himmelfahrt.weilheim@bistum-augsburg.de | G98: https://www.kiga-mariaehimmelfahrt.de/ | H98: =IF(tbl_Kommunikation[[#This Row],[www]]="","",HYPERLINK(tbl_Kommunikation[[#This Row],[www]],"URL")) -> URL | I98: nein | J98: M
B99: 1901570090 | C99: Weilheim | D99: Kinderkrippe Zwergerltreff | E99: +49 881 9249292 | F99: info@kinderkrippe-zwergerltreff.de | G99: https://kinderkrippe-zwergerltreff.de/ | H99: =IF(tbl_Kommunikation[[#This Row],[www]]="","",HYPERLINK(tbl_Kommunikation[[#This Row],[www]],"URL")) -> URL | I99: ja | J99: M
B100: 1901570082 | C100: Weilheim | D100: Kindernest am Rosengarten | E100: +49 881 9279878 | F100: ilka.kwak@kindernest-rosengarten.de | G100: https://www.kindernest-rosengarten.de/ | H100: =IF(tbl_Kommunikation[[#This Row],[www]]="","",HYPERLINK(tbl_Kommunikation[[#This Row],[www]],"URL")) -> URL | I100: ja | J100: M
B101: 1901570001 | C101: Weilheim | D101: Kindertgeseinrichtung der Johanniter Weilheim | E101: +49 881 41859140 | F101: kita.weilheim@johanniter.de | G101: https://www.johanniter.de/juh/lv-bayern/rv-oberbayern/standorte-einrichtungen-in-oberbayern/einrichtung-vor-ort/johanniter-kindertageseinrichtung-weilheim-iob-4460 | H101: =IF(tbl_Kommunikation[[#This Row],[www]]="","",HYPERLINK(tbl_Kommunikation[[#This Row],[www]],"URL")) -> URL | I101: nein | J101: M
B102: 1901570063 | C102: Weilheim | D102: Montessori-Kinderhaus Weilheim | E102: +49 881 9270296 | F102: kinderhaus@montessori-schule.com | G102: https://www.montessori-schule.com | H102: =IF(tbl_Kommunikation[[#This Row],[www]]="","",HYPERLINK(tbl_Kommunikation[[#This Row],[www]],"URL")) -> URL | I102: ja | J102: M
B103: 1901570080 | C103: Weilheim | D103: Naturkindergarten Schmetterlinge Weilheim | E103: +49 176 87944167 | F103: kiga4@natuerlich-oberhausen.de | G103: https://natuerlich-oberhausen.de/2024/09/04/naturkindergarten-in-weilheim/ | H103: =IF(tbl_Kommunikation[[#This Row],[www]]="","",HYPERLINK(tbl_Kommunikation[[#This Row],[www]],"URL")) -> URL | I103: ja | J103: M
B104: 1901570067 | C104: Weilheim | D104: Städt. Kindergarten und Krippe Unterhausener Dorfspatzen | E104: +49 881 682-1660 | F104: dorfspatzen@weilheim.de | G104: https://weilheim.de/mein-weilheim/buergerservice/kinderbetreuungseinrichtungen/staedt-kindergarten-und-kinderkrippe-unterhausener-dorfspatzen | H104: =IF(tbl_Kommunikation[[#This Row],[www]]="","",HYPERLINK(tbl_Kommunikation[[#This Row],[www]],"URL")) -> URL | I104: ja | J104: M
B105: 1901570066 | C105: Weilheim | D105: Städtisches Kinderhaus Nepomuk | E105: +49 881 417173 | F105: nepomuk@weilheim.de | G105: https://www.weilheim.de/mein-weilheim/buergerservice/kinderbetreuungseinrichtungen/staedt-kindergarten-nepomuk-und-kinderkrippe | H105: =IF(tbl_Kommunikation[[#This Row],[www]]="","",HYPERLINK(tbl_Kommunikation[[#This Row],[www]],"URL")) -> URL | I105: ja | J105: M
B106: 1901570064 | C106: Weilheim | D106: WaldorfHaus Weilheim | E106: +49 881 63399 | F106: info@waldorfhaus-weilheim.de | G106: https://www.waldorfhaus-weilheim.de/ | H106: =IF(tbl_Kommunikation[[#This Row],[www]]="","",HYPERLINK(tbl_Kommunikation[[#This Row],[www]],"URL")) -> URL | I106: ja | J106: M
B107: 1901570083 | C107: Weilheim | D107: Weilheimer Kindernest Gelbe Villa | E107: +49 881 62159 | F107: arnhild.bischoff@weilheimer-kindernest.de | G107: www.weilheimer-kindernest.de | H107: =IF(tbl_Kommunikation[[#This Row],[www]]="","",HYPERLINK(tbl_Kommunikation[[#This Row],[www]],"URL")) -> URL | I107: ja | J107: M
B108: 1901580069 | C108: Wessobrunn | D108: Kindergarten Bärenhöhle | E108: +49 8809 370 | F108: kiga@wessobrunn.de | G108: https://www.wessobrunn.de/schule-kitas/kita-wessobrunn/ueber-uns/ | H108: =IF(tbl_Kommunikation[[#This Row],[www]]="","",HYPERLINK(tbl_Kommunikation[[#This Row],[www]],"URL")) -> URL | I108: ja | J108: M
B109: 1901580070 | C109: Wessobrunn | D109: Kindergarten Dorfstrolche | E109: +49 8809 858 | F109: kiga.forst@wessobrunn.de | G109: https://www.wessobrunn.de/schule-kitas/kindergarten-forst/unsere-konzeption/ | H109: =IF(tbl_Kommunikation[[#This Row],[www]]="","",HYPERLINK(tbl_Kommunikation[[#This Row],[www]],"URL")) -> URL | I109: ja | J109: NW
B110: 1901570068 | C110: Weilheim | D110: Waldkindergarten Weilheim "Die Wurzelkinder" e.V. | E110: +49 160 96825884 | F110: waldkindergarten-wm@web.de | G110: https://waldkindergarten-wm.de/ | H110: =IF(tbl_Kommunikation[[#This Row],[www]]="","",HYPERLINK(tbl_Kommunikation[[#This Row],[www]],"URL")) -> URL | I110: ja | J110: M
B111: 1901590071 | C111: Wielenbach | D111: Gemeinde Kita Schatzkiste | E111: +49 881 9344210 | F111: kindergartenleitung@wielenbach.bayern.de | G111: https://www.wielenbach.de/leben-und-erleben/kita-und-schulen/kindertageseinrichtung-2 | H111: =IF(tbl_Kommunikation[[#This Row],[www]]="","",HYPERLINK(tbl_Kommunikation[[#This Row],[www]],"URL")) -> URL | I111: ja | J111: M
B112: 1901590072 | C112: Wielenbach | D112: Kinderkrippe Wielenbach | E112: +49 881 935393405 | F112: Kathrin.haake@johanniter.de | G112: https://www.johanniter.de/juh/lv-bayern/rv-oberbayern/standorte-einrichtungen-in-oberbayern/einrichtung-vor-ort/johanniter-kinderkrippe-im-marita-beissel-haus-3928/ | H112: =IF(tbl_Kommunikation[[#This Row],[www]]="","",HYPERLINK(tbl_Kommunikation[[#This Row],[www]],"URL")) -> URL | I112: ja | J112: M
B113: 1901590076 | C113: Wielenbach | D113: Waldkindergarten Wielenbach | E113: +49 0160 5022032 | F113: info@waki-wielenbach.de | G113: https://waki-wielenbach.de/ | I113: nein | J113: M
B114: 1901600072 | C114: Wildsteig | D114: Kindergarten Wildsteig | E114: +49 8867 9139619 | F114: kindergarten@gemeinde-wildsteig.de | G114: https://www.wildsteig.de/service/kontakt0/ | H114: =IF(tbl_Kommunikation[[#This Row],[www]]="","",HYPERLINK(tbl_Kommunikation[[#This Row],[www]],"URL")) -> URL | I114: ja | J114: SW
B115: Ergebnis | C115: =SUBTOTAL(103,tbl_Kommunikation[Ort]) -> 109 | J115: =SUBTOTAL(103,tbl_Kommunikation[Region]) -> 109
C116: Anzahl

Sheet Schulsprengel-Gruppen-Rechtsfor
C2: Schulsprengel/Gruppen- & Rechtsform | H2: Stand: März 2026
C4: =tbl_Schulsprengel_Gruppenform_Rechtsform[[#Totals],[Ort]] -> 109 | F4: =tbl_Schulsprengel_Gruppenform_Rechtsform[[#Totals],[Gruppenform]] -> 92 | G4: =tbl_Schulsprengel_Gruppenform_Rechtsform[[#Totals],[Rechtsform]] -> 109 | H4: =tbl_Schulsprengel_Gruppenform_Rechtsform[[#Totals],[gegründet]] -> 91
B5: Einrichtungs-Nr. | C5: Ort | D5: Einrichtung | E5: Schulsprengel | F5: Gruppenform | G5: Rechtsform | H5: gegründet | I5: Umfrage 2026
B6: 1901110002 | C6: Altenstadt | D6: Integratives Kinderhaus Altenstadt | E6: GS Altenstadt / GS Hohenfurch | F6: Teiloffen | G6: gGmbH | H6: 2023 | I6: ja
B7: 1901110001 | C7: Altenstadt | D7: Kath. Kindergarten St. Michael | E7: GS Altenstadt / GS Hohenfurch | F7: Geschlossen | G7: Kirchlich | H7: 1965 | I7: ja
B8: 1901130002 | C8: Antdorf | D8: Kindertagesstätte Antdorf | E8: GS Habach / GS Iffeldorf | F8: Teiloffen | G8: Kommunal | H8: 1992 | I8: ja
B9: 1901140003 | C9: Bernbeuren | D9: Kath. Kindergarten St. Nikolaus | E9: GS Bernbeuren | F9: Teiloffen | G9: Kirchlich | H9: 1960 | I9: ja
B10: 1901151115 | C10: Bernried | D10: Kinderhaus Bernried | E10: GS Bernried | F10: Teiloffen | G10: gGmbH | H10: 1978 | I10: ja
B11: 1901150116 | C11: Bernried | D11: Krippe am Kloster | G11: gGmbH | H11: 2021 | I11: nein
B12: 1901150005 | C12: Bernried | D12: Waldkinder Bernried e.V. | E12: k. A. | F12: Geschlossen | G12: Verein | H12: 2007 | I12: ja
B13: 1901171111 | C13: Böbing | D13: Kindergarten St. Hedwig | E13: GS Böbing | F13: Teiloffen | G13: Kommunal | H13: 1951 | I13: ja
B14: 1901180007 | C14: Burggen | D14: Katholische Kindertageseinrichtung St. Anna | E14: GS Burggen | F14: Teiloffen | G14: Kirchlich | H14: 1954 | I14: ja
B15: 1901200008 | C15: Eberfing | D15: Eberfinger Kinderhaus "Ich & Du" | E15: GS Eberfing | F15: Teiloffen | G15: Kommunal | H15: 1993 | I15: ja
B16: 1901210009 | C16: Eglfing | D16: Kindergarten Eglfing | E16: GS Huglfing | F16: Geschlossen | G16: Kommunal | H16: 1990 | I16: ja
B17: 1901210097 | C17: Eglfing | D17: Kinderkrippe Tauting | E17: k. A. | F17: Geschlossen | G17: Kommunal | H17: 2011 | I17: ja
B18: 1901260011 | C18: Habach | D18: Kindergarten Achgrom-Zwergal e.V. | G18: Verein | H18: 2022 | I18: nein
B19: 1901260010 | C19: Habach | D19: Ulrich Kinderhaus Habach | E19: GS Habach | F19: Teiloffen | G19: Kommunal | I19: ja
B20: 1901290011 | C20: Hohenfurch | D20: Kindergarten 'Sonnenblick' Kindergarten & Krippe | E20: GS Hohenfurch | F20: Teiloffen | G20: Kommunal | H20: 1965 | I20: ja
B21: 1901300012 | C21: Hohenpeißenberg | D21: Caritas Kindertagesstätte St. Anna | G21: Kirchlich | I21: nein
B22: 1901300014 | C22: Hohenpeißenberg | D22: Integratives Kinderhaus am Schächen | E22: Primus-Koch-GS | F22: Teiloffen | G22: gGmbH | H22: 2019 | I22: ja
B23: 1901300013 | C23: Hohenpeißenberg | D23: Kindergarten im Hetten | E23: Primus-Koch-GS | F23: Geschlossen | G23: gGmbH | H23: 1993 | I23: ja
B24: 1901300015 | C24: Hohenpeißenberg | D24: Naturkindergarten Bergwaldkinder | G24: Verein | I24: nein
B25: 1901310121 | C25: Huglfing | D25: Kindertagesstätte Huglhupf | E25: GS Huglfing | F25: Geschlossen | G25: Kommunal | I25: ja
B26: 1901310122 | C26: Huglfing | D26: Naturkindergarten Himmelblau | G26: Verein | H26: 2021 | I26: nein
B27: 1901320015 | C27: Iffeldorf | D27: Katholisches Haus für Kinder St. Vitus | E27: GS Iffeldorf | F27: Teiloffen | G27: Kirchlich | H27: 1976 | I27: ja
B28: 1901330016 | C28: Ingenried | D28: Kindergarten St. Georg | E28: GS Burggen | F28: Teiloffen | G28: Kommunal | H28: 1993 | I28: ja
B29: 1901350120 | C29: Oberhausen | D29: Kinderhaus am Storchennest | E29: GS Huglfing | F29: Teiloffen | G29: Kommunal | H29: 2018 | I29: ja
B30: 1901351112 | C30: Oberhausen | D30: Naturkindergarten "Die kleinen Forscher" | G30: Verein | H30: 2015 | I30: nein
B31: 1901360018 | C31: Obersöchering | D31: Kinderhaus Söcheringer Wespennest | E31: GS Obersöchering | F31: Geschlossen | G31: Kommunal | H31: 1981 | I31: ja
B32: 1901380020 | C32: Pähl | D32: Kath. Kindertagesstätte St. Elisabeth | E32: GS Pähl | G32: Kirchlich | I32: nein
B33: 1901380019 | C33: Pähl | D33: Kath. Kita St.Christophorus | E33: GS Pähl | G33: Kirchlich | H33: 1976 | I33: nein
B34: 1901380022 | C34: Pähl | D34: Waldkindergarten "Bärenbande" | E34: GS Pähl | G34: Kirchlich | H34: 2023 | I34: nein
B35: 1901390024 | C35: Peißenberg | D35: AWO-Kinderhaus Pumuckl | E35: GS St. Johann / Josef-Zerhoch-GS | F35: Teiloffen | G35: Verein | H35: 1990 | I35: ja
B36: 1901390023 | C36: Peißenberg | D36: Evang. Kindergarten Regenbogen | E36: GS St. Johann / Josef-Zerhoch-GS | F36: Teiloffen | G36: Kirchlich | H36: 1997 | I36: ja
B37: 1901390025 | C37: Peißenberg | D37: FortSchritt Inklusives Kinderhaus an der Ammer | E37: GS St. Johann / Josef-Zerhoch-GS | F37: Teiloffen | G37: gGmbH | H37: 2005 | I37: ja
B38: 1901390021 | C38: Peißenberg | D38: Kindergarten St. Johannes Baptist | E38: GS St. Johann / Josef-Zerhoch-GS | F38: Teiloffen | G38: Kirchlich | H38: 1969 | I38: ja
B39: 1901390026 | C39: Peißenberg | D39: Kinderhaus am Berg | E39: GS St. Johann / Josef-Zerhoch-GS | F39: Teiloffen | G39: gGmbH | I39: ja
B40: 1901390125 | C40: Peißenberg | D40: Kinderhaus im Dorf | E40: GS St. Johann / Josef-Zerhoch-GS | F40: Teiloffen | G40: gGmbH | H40: 2020 | I40: ja
B41: 1901390022 | C41: Peißenberg | D41: Kindertagesstätte St. Barbara | E41: Josef-Zerhoch-GS | F41: Geschlossen | G41: Kirchlich | H41: 1980 | I41: ja
B42: 1901400027 | C42: Peiting | D42: Caritas Kita St. Michael | E42: Alfons-Peter GS / Josef-Friedrich-Lentner GS | F42: Teiloffen | G42: Kirchlich | H42: 1971 | I42: ja
B43: 1901400073 | C43: Peiting | D43: Integrativer Hort im Kinderhaus Peiting | E43: Alfons-Peter GS / Josef-Friedrich-Lentner GS | F43: Geschlossen | G43: gGmbH | I43: ja
B44: 1901400107 | C44: Peiting | D44: Integrativer Naturkindergarten am Weiherhäusle | E44: Alfons-Peter-GS / Lentner-GS Peiting Staufer GS Schongau | F44: Geschlossen | G44: gGmbH | H44: 1950 | I44: ja
B45: 1901400113 | C45: Peiting | D45: Integratives Kinderhaus im Forsthaus | E45: Alfons-Peter GS / Josef-Friedrich-Lentner GS | F45: Teiloffen | G45: gGmbH | H45: 1999 | I45: ja
B46: 1901400030 | C46: Peiting | D46: Kindergarten am Gumpen | E46: Alfons-Peter GS / Josef-Friedrich-Lentner GS | F46: Offen | G46: gGmbH | H46: 1992 | I46: ja
B47: 1901400033 | C47: Peiting | D47: Kindergarten Birkland | E47: Alfons-Peter-GS | F47: Teiloffen | G47: Kommunal | H47: 1978 | I47: ja
B48: 1901400029 | C48: Peiting | D48: Kinderhaus Peiting | E48: Alfons-Peter GS / Josef-Friedrich-Lentner GS | F48: Teiloffen | G48: gGmbH | I48: ja
B49: 1901400100 | C49: Peiting | D49: Kita Sonnenschein | E49: Alfons-Peter GS / Josef-Friedrich-Lentner GS | F49: Offen | G49: Kommunal | H49: 2023 | I49: ja
B50: 1901400032 | C50: Peiting | D50: Therese-Peter-Haus für Kinder | E50: k. A. | F50: Geschlossen | G50: Kommunal | H50: 1990 | I50: ja
B51: 1901400098 | C51: Peiting | D51: Waldkindergarten Wurzelzwerge Peiting e.V | E51: Alfons-Peter GS / Josef-Friedrich-Lentner GS | F51: Geschlossen | G51: Verein | H51: 2012 | I51: ja
B52: 1901410040 | C52: Penzberg | D52: Albert-Schweitzer Waldkindergarten | E52: GS Birkenstraße / Bürgermeister-Prandl-GS | F52: Offen | G52: Verein | I52: ja
B53: 1901410037 | C53: Penzberg | D53: AWO Kinderhaus an der Birkenstraße | E53: GS Birkenstraße | F53: Offen | G53: Verein | H53: 2000 | I53: ja
B54: 1901410075 | C54: Penzberg | D54: AWO Kinderhort Winterstraße | E54: Bürgermeister-Prandl-GS / Janusz-Korczak-Schule / Von-Rothmund-Schule | F54: Teiloffen | G54: Verein | H54: 2008 | I54: ja
B55: 1901410036 | C55: Penzberg | D55: AWOlino Kindergarten | G55: Verein | H55: 1953 | I55: nein
B56: 1901410035 | C56: Penzberg | D56: Evang. Haus für Kinder Penzberg | E56: GS Birkenstraße / Bürgermeister-Prandl-GS | F56: Offen | G56: Kirchlich | H56: 2005 | I56: ja
B57: 1901410038 | C57: Penzberg | D57: Familienzentrum Arche Noah | E57: GS Birkenstraße / Bürgermeister-Prandl-GS | F57: Geschlossen | G57: gGmbH | H57: 1989 | I57: ja
B58: 1901410117 | C58: Penzberg | D58: Integrativer Kindergarten mit Krippe an der Birkenstraße | E58: GS Birkenstraße / Bürgermeister-Prandl-GS | F58: Geschlossen | G58: gGmbH | H58: 2017 | I58: ja
B59: 1901410104 | C59: Penzberg | D59: Katholischer Kindergarten St. Franziskus | E59: GS Birkenstraße / Bürgermeister-Prandl-GS | F59: Geschlossen | G59: Kirchlich | H59: 2013 | I59: ja
B60: 1901410039 | C60: Penzberg | D60: KiM-Kita Penzberg | E60: GS Birkenstraße / Bürgermeister-Prandl-GS | F60: Teiloffen | G60: Kommunal | H60: 1987 | I60: ja
B61: 1901410122 | C61: Penzberg | D61: Kindergarten Spatzennest | E61: GS Birkenstraße / Bürgermeister-Prandl-GS | F61: Teiloffen | G61: gGmbH | H61: 2002 | I61: ja
C62: Penzberg | D62: Kinderkrippe Spatzennest | E62: GS Birkenstraße / Bürgermeister-Prandl-GS | F62: Geschlossen | G62: gGmbH | H62: 2002 | I62: ja
B63: 1901410034 | C63: Penzberg | D63: Kindertagesstätte St. Raphael | E63: GS Birkenstraße / Bürgermeister-Prandl-GS | F63: Geschlossen | G63: Kirchlich | H63: 1969 | I63: ja
B64: 1901410079 | C64: Penzberg | D64: Montessori Kinderhaus Penzberg | E64: GS Birkenstraße / Bürgermeister-Prandl-GS | F64: Teiloffen | G64: Verein | H64: 1996 | I64: ja
B65: 1901420041 | C65: Polling | D65: Integratives Kinderhaus Polling | E65: GS Polling / Ammerschule / Hardtschule / Gögerlschule | F65: Geschlossen | G65: gGmbH | H65: 1974 | I65: ja
B66: 1901420042 | C66: Polling | D66: Kindertagesstätte der Gemeinde Polling | E66: GS Polling | F66: Geschlossen | G66: Kommunal | H66: 1984 | I66: ja
B67: 1901420043 | C67: Polling | D67: Naturkindergarten 'Waldwichtel' in Polling | E67: GS Polling | F67: Geschlossen | G67: Verein | H67: 2015 | I67: ja
B68: 1901430043 | C68: Prem | D68: Kindergarten Prem | E68: GS Steingaden | F68: Geschlossen | G68: Kommunal | I68: ja
B69: 1901440101 | C69: Raisting | D69: AWO Kindertagesstätte Zwergerlnest | G69: Verein | H69: 2008 | I69: nein
B70: 1901440106 | C70: Raisting | D70: BRK Kindergarten St. Raphael Raisting | E70: GS Raisting | F70: Teiloffen | G70: K.d.ö.R. | H70: 1975 | I70: ja
B71: 1901440105 | C71: Raisting | D71: Kinderhort Bunte Kleckse | E71: GS Raisting | F71: Geschlossen | G71: Kommunal | H71: 2013 | I71: ja
B72: 1901450046 | C72: Rottenbuch | D72: Don Bosco Haus für Kinder | E72: GS Rottenbuch | F72: Teiloffen | G72: K.d.ö.R. | H72: 1956 | I72: ja
B73: 1901480081 | C73: Schongau | D73: Elterninitiative Kindernest Schongau e.V. | E73: Staufer-GS | F73: Geschlossen | G73: Verein | H73: 1996 | I73: ja
B74: 1901480119 | C74: Schongau | D74: Haus für Kinder | E74: k. A. | F74: Geschlossen | G74: Kommunal | H74: 2017 | I74: ja
B75: 1901480103 | C75: Schongau | D75: Kindergarten Clara-Fey | E75: GS Schongau | F75: Geschlossen | G75: Kirchlich | I75: ja
B76: 1901480052 | C76: Schongau | D76: Kindergarten Kunterbunt | E76: Staufer-GS | F76: Teiloffen | G76: Kommunal | H76: 1997 | I76: ja
B77: 1901480051 | C77: Schongau | D77: Kindergarten Luftballon | G77: Kommunal | H77: 1955 | I77: nein
B78: 1901480050 | C78: Schongau | D78: Kindergarten Regenbogen | E78: k. A. | F78: Geschlossen | G78: Kommunal | I78: ja
B79: 1901480048 | C79: Schongau | D79: Kindergarten St. Franziskus - Haus für Inklusion | G79: Kirchlich | I79: nein
B80: 1901480047 | C80: Schongau | D80: Kindergarten St. Johannes | E80: k. A. | F80: Teiloffen | G80: Kirchlich | H80: 1967 | I80: ja
B81: 1901480049 | C81: Schongau | D81: Kita Mariä Himmelfahrt | E81: Staufer-GS | F81: Geschlossen | G81: Kirchlich | H81: 2011 | I81: ja
B82: 1901490053 | C82: Schwabbruck | D82: Kindergarten St. Walburga | E82: GS Schwabsoien | F82: Teiloffen | G82: Kirchlich | H82: 1995 | I82: ja
B83: 1901510055 | C83: Schwabsoien | D83: Kindergarten mit Krippe Sonnenblume | E83: GS Schwabsoien | F83: Teiloffen | G83: gGmbH | H83: 1993 | I83: ja
B84: 1901520055 | C84: Seeshaupt | D84: Kinderhaus Seeshaupt | E84: GS Seeshaupt | F84: Teiloffen | G84: Kommunal | H84: 2016 | I84: ja
B85: 1901520080 | C85: Seeshaupt | D85: Kindernest Seeshaupt | G85: Verein | H85: 1998 | I85: nein
B86: 1901530056 | C86: Sindelsdorf | D86: Gemeindekindergarten Sindelsdorf | E86: Bürgermeister-Prandl-GS | F86: Teiloffen | G86: Kommunal | I86: ja
B87: 1901540057 | C87: Steingaden | D87: Kita Steingaden | E87: GS Steingaden | F87: Teiloffen | G87: Kommunal | H87: 1939 | I87: ja
B88: 1901570062 | C88: Weilheim | D88: AWO Kinderhaus Villa Kunterbunt | E88: Ammerschule / Hardtschule | F88: Teiloffen | G88: Verein | H88: 2005 | I88: ja
B89: 1901570124 | C89: Weilheim | D89: BRK Kinderhaus Weltentdecker | E89: Ammerschule / Hardtschule | F89: Teiloffen | G89: K.d.ö.R. | H89: 2020 | I89: ja
B90: 1901570061 | C90: Weilheim | D90: Evangelisch-Lutherisches Haus für Kinder | E90: Ammerschule / Hardtschule | F90: Teiloffen | G90: Kirchlich | I90: ja
B91: 1901570116 | C91: Weilheim | D91: Fortschritt Kinderhaus am Sonnenfeld | E91: Ammerschule / Hardtschule | F91: Teiloffen | G91: gGmbH | H91: 2016 | I91: ja
B92: 1901570108 | C92: Weilheim | D92: Inklusives Kinderhaus Pfiffikus | E92: Hardtschule | F92: Teiloffen | G92: Kommunal | H92: 1980 | I92: ja
B93: 1901570110 | C93: Weilheim | D93: Integrativer Hort an der Ammer | E93: Ammerschule / Gögerlschule | F93: Teiloffen | G93: gGmbH | H93: 2014 | I93: ja
B94: 1901570077 | C94: Weilheim | D94: Integratives Kinderhaus Franziskus | E94: Ammerschule / Hardtschule / Gögerlschule | F94: Teiloffen | G94: Kirchlich | H94: 1994 | I94: ja
B95: 1901570060 | C95: Weilheim | D95: Kath. Kindergarten St. Michael Marnbach | E95: Hardtschule | F95: Geschlossen | G95: Kirchlich | H95: 1970 | I95: ja
B96: 1901570059 | C96: Weilheim | D96: Kath. Kneippkinderhaus St. Anna | E96: Hardtschule | F96: Teiloffen | G96: Kirchlich | H96: 1992 | I96: ja
B97: 1901570102 | C97: Weilheim | D97: Kinderhaus im Paradeis | E97: Ammerschule | F97: Geschlossen | G97: gGmbH | H97: 2012 | I97: ja
B98: 1901570058 | C98: Weilheim | D98: Kinderhaus Mariae Himmelfahrt | G98: Kirchlich | H98: 1964 | I98: nein
B99: 1901570090 | C99: Weilheim | D99: Kinderkrippe Zwergerltreff | E99: Ammerschule / Hardtschule | F99: Geschlossen | G99: gGmbH | H99: 2001 | I99: ja
B100: 1901570082 | C100: Weilheim | D100: Kindernest am Rosengarten | E100: Ammerschule / Hardtschule | F100: Geschlossen | G100: gGmbH | H100: 1995 | I100: ja
B101: 1901570001 | C101: Weilheim | D101: Kindertgeseinrichtung der Johanniter Weilheim | G101: Verein | H101: 2024 | I101: nein
B102: 1901570063 | C102: Weilheim | D102: Montessori-Kinderhaus Weilheim | E102: Ammerschule / Hardtschule | F102: Geschlossen | G102: Verein | H102: 1984 | I102: ja
B103: 1901570080 | C103: Weilheim | D103: Naturkindergarten Schmetterlinge Weilheim | E103: Hardtschule / Ammerschule / GS Wielenbach / Montessori-Schule Peißenberg / Waldorfschule Huglfing | F103: Geschlossen | G103: Verein | H103: 2022 | I103: ja
B104: 1901570067 | C104: Weilheim | D104: Städt. Kindergarten und Krippe Unterhausener Dorfspatzen | E104: GS Wielenbach / Ammerschule / Hardtschule | F104: Teiloffen | G104: Kommunal | H104: 1974 | I104: ja
B105: 1901570066 | C105: Weilheim | D105: Städtisches Kinderhaus Nepomuk | E105: Ammerschule / Hardtschule | F105: Teiloffen | G105: Kommunal | H105: 1996 | I105: ja
B106: 1901570064 | C106: Weilheim | D106: WaldorfHaus Weilheim | E106: Ammerschule / Hardtschule | F106: Geschlossen | G106: Verein | H106: 1991 | I106: ja
B107: 1901570083 | C107: Weilheim | D107: Weilheimer Kindernest Gelbe Villa | E107: Ammerschule / Hardtschule | F107: Geschlossen | G107: gGmbH | H107: 1993 | I107: ja
B108: 1901580069 | C108: Wessobrunn | D108: Kindergarten Bärenhöhle | E108: GS Wessobrunn in Forst | F108: Teiloffen | G108: Kommunal | I108: ja
B109: 1901580070 | C109: Wessobrunn | D109: Kindergarten Dorfstrolche | E109: GS Wessobrunn in Forst | F109: Teiloffen | G109: Kommunal | I109: ja
B110: 1901570068 | C110: Weilheim | D110: Waldkindergarten Weilheim "Die Wurzelkinder" e.V. | E110: Hardtschule / Ammerschule / Josef-Zerhoch-GS / GS St. Johann / GS Forst | F110: Geschlossen | G110: Verein | H110: 2000 | I110: ja
B111: 1901590071 | C111: Wielenbach | D111: Gemeinde Kita Schatzkiste | E111: GS Wielenbach | F111: Teiloffen | G111: Kommunal | I111: ja
B112: 1901590072 | C112: Wielenbach | D112: Kinderkrippe Wielenbach | E112: k. A. | F112: Geschlossen | G112: Verein | H112: 2022 | I112: ja
B113: 1901590076 | C113: Wielenbach | D113: Waldkindergarten Wielenbach | E113: GS Wielenbach | G113: Kommunal | H113: 2024 | I113: nein
B114: 1901600072 | C114: Wildsteig | D114: Kindergarten Wildsteig | E114: GS Wildsteig | F114: Geschlossen | G114: Kommunal | H114: 1995 | I114: ja
B115: Ergebnis | C115: =SUBTOTAL(103,tbl_Schulsprengel_Gruppenform_Rechtsform[Ort]) -> 109 | F115: =SUBTOTAL(103,tbl_Schulsprengel_Gruppenform_Rechtsform[Gruppenform]) -> 92 | G115: =SUBTOTAL(103,tbl_Schulsprengel_Gruppenform_Rechtsform[Rechtsform]) -> 109 | H115: =SUBTOTAL(103,tbl_Schulsprengel_Gruppenform_Rechtsform[gegründet]) -> 91 | I115: =SUBTOTAL(103,tbl_Schulsprengel_Gruppenform_Rechtsform[Umfrage 2026]) -> 109
C116: Anzahl | F116: Anzahl | G116: Anzahl | H116: Anzahl

Sheet Ausbildungsplätze
C2: Ausbildungs- & Praktikumsplätze | L2: Stand: März 2026
C3: Angaben der Kitas, die bei der online Befragung 2026 mitgewirkt haben.
E4: =tbl_Ausbildungsplaetze[[#Totals],[SEJ]] -> 47 | F4: =tbl_Ausbildungsplaetze[[#Totals],[Berufsanerken-nungsjahr]] -> 30 | G4: =tbl_Ausbildungsplaetze[[#Totals],[OptiPrax]] -> 12 | H4: =tbl_Ausbildungsplaetze[[#Totals],[PIA-Praktikum]] -> 14 | I4: =tbl_Ausbildungsplaetze[[#Totals],[Kinderpfleger/in in Ausbildung]] -> 54 | J4: =tbl_Ausbildungsplaetze[[#Totals],[Praktikant/in]] -> 16 | K4: =tbl_Ausbildungsplaetze[[#Totals],[800 Stunden-Praktikum]] -> 16
B5: Einrichtungs-Nr. | C5: Ort | D5: Einrichtung | E5: SEJ | F5: Berufsanerken-nungsjahr | G5: OptiPrax | H5: PIA-Praktikum | I5: Kinderpfleger/in in Ausbildung | J5: Praktikant/in | K5: 800 Stunden-Praktikum | L5: Bemerkungen Ausbildung und Praktika
B6: 1901110002 | C6: Altenstadt | D6: Integratives Kinderhaus Altenstadt | E6: 0 | F6: 1 | G6: 0 | H6: 0 | I6: 1 | J6: 0 | K6: 1 | L6: https://www.kinderhilfe-oberland.de/karriere/
B7: 1901110001 | C7: Altenstadt | D7: Kath. Kindergarten St. Michael | E7: 1 | F7: 0 | G7: 0 | H7: 0 | I7: 6 | J7: 0 | K7: 0
B8: 1901140003 | C8: Bernbeuren | D8: Kath. Kindergarten St. Nikolaus | E8: 1 | F8: 1 | G8: 1 | H8: 1 | I8: 3 | J8: 0 | K8: 1
B9: 1901151115 | C9: Bernried | D9: Kinderhaus Bernried | E9: 0 | F9: 0 | G9: 1 | H9: 1 | I9: 1 | J9: 0 | K9: 0
B10: 1901150005 | C10: Bernried | D10: Waldkinder Bernried e.V. | E10: 0 | F10: 0 | G10: 0 | H10: 0 | I10: 0 | J10: 0 | K10: 0 | L10: BUFDI Eine Stelle im Hort als Ergänzungskraft
B11: 1901171111 | C11: Böbing | D11: Kindergarten St. Hedwig | E11: 0 | F11: 1 | G11: 0 | H11: 0 | I11: 0 | J11: 0 | K11: 0
B12: 1901180007 | C12: Burggen | D12: Katholische Kindertageseinrichtung St. Anna | E12: 0 | F12: 1 | G12: 0 | H12: 0 | I12: 0 | J12: 0 | K12: 0
B13: 1901200008 | C13: Eberfing | D13: Eberfinger Kinderhaus "Ich & Du" | E13: 1 | F13: 0 | G13: 0 | H13: 0 | I13: 0 | J13: 0 | K13: 0
B14: 1901210009 | C14: Eglfing | D14: Kindergarten Eglfing | E14: 0 | F14: 0 | G14: 0 | H14: 0 | I14: 0 | J14: 0 | K14: 0
B15: 1901210097 | C15: Eglfing | D15: Kinderkrippe Tauting | E15: 1 | F15: 1 | G15: 0 | H15: 0 | I15: 0 | J15: 0 | K15: 0
B16: 1901260010 | C16: Habach | D16: Ulrich Kinderhaus Habach | E16: 1 | F16: 0 | G16: 0 | H16: 0 | I16: 1 | J16: 0 | K16: 0
B17: 1901300014 | C17: Hohenpeißenberg | D17: Integratives Kinderhaus am Schächen | E17: 1 | F17: 0 | G17: 0 | H17: 0 | I17: 1 | J17: 0 | K17: 0
B18: 1901300013 | C18: Hohenpeißenberg | D18: Kindergarten im Hetten | E18: 0 | F18: 1 | G18: 0 | H18: 0 | I18: 0 | J18: 0 | K18: 1
B19: 1901320015 | C19: Iffeldorf | D19: Katholisches Haus für Kinder St. Vitus | E19: 2 | F19: 1 | G19: 0 | H19: 0 | I19: 2 | J19: 2 | K19: 0 | L19: Herzliche Individualbegleitung
B20: 1901350120 | C20: Oberhausen | D20: Kinderhaus am Storchennest | E20: 1 | F20: 1 | G20: 0 | H20: 0 | I20: 1 | J20: 0 | K20: 0
B21: 1901360018 | C21: Obersöchering | D21: Kinderhaus Söcheringer Wespennest | E21: 1 | F21: 0 | G21: 0 | H21: 0 | I21: 0 | J21: 0 | K21: 0
B22: 1901390025 | C22: Peißenberg | D22: FortSchritt Inklusives Kinderhaus an der Ammer | E22: 1 | F22: 1 | G22: 0 | H22: 0 | I22: 0 | J22: 0 | K22: 0
B23: 1901390021 | C23: Peißenberg | D23: Kindergarten St. Johannes Baptist | E23: 0 | F23: 0 | G23: 0 | H23: 0 | I23: 1 | J23: 1 | K23: 1
B24: 1901390026 | C24: Peißenberg | D24: Kinderhaus am Berg | E24: 1 | F24: 0 | G24: 0 | H24: 0 | I24: 2 | J24: 0 | K24: 0
B25: 1901390022 | C25: Peißenberg | D25: Kindertagesstätte St. Barbara | E25: 1 | F25: 0 | G25: 0 | H25: 0 | I25: 0 | J25: 0 | K25: 0
B26: 1901400027 | C26: Peiting | D26: Caritas Kita St. Michael | E26: 1 | F26: 0 | G26: 0 | H26: 0 | I26: 1 | J26: 0 | K26: 0
B27: 1901400113 | C27: Peiting | D27: Integratives Kinderhaus im Forsthaus | E27: 1 | F27: 0 | G27: 0 | H27: 0 | I27: 1 | J27: 0 | K27: 0
B28: 1901400030 | C28: Peiting | D28: Kindergarten am Gumpen | E28: 1 | F28: 0 | G28: 0 | H28: 0 | I28: 0 | J28: 0 | K28: 0 | L28: https://www.kinderhilfe-oberland.de/karriere/
B29: 1901400033 | C29: Peiting | D29: Kindergarten Birkland | E29: 1 | F29: 0 | G29: 0 | H29: 0 | I29: 1 | J29: 0 | K29: 0
B30: 1901400100 | C30: Peiting | D30: Kita Sonnenschein | E30: 0 | F30: 1 | G30: 0 | H30: 0 | I30: 0 | J30: 0 | K30: 0
B31: 1901410040 | C31: Penzberg | D31: Albert-Schweitzer Waldkindergarten | E31: 1 | F31: 0 | G31: 0 | H31: 0 | I31: 0 | J31: 0 | K31: 1
B32: 1901410037 | C32: Penzberg | D32: AWO Kinderhaus an der Birkenstraße | E32: 1 | F32: 1 | G32: 1 | H32: 1 | I32: 1 | J32: 1 | K32: 1
B33: 1901410075 | C33: Penzberg | D33: AWO Kinderhort Winterstraße | E33: 1 | F33: 1 | G33: 1 | H33: 1 | I33: 1 | J33: 0 | K33: 0
B34: 1901410035 | C34: Penzberg | D34: Evang. Haus für Kinder Penzberg | E34: 0 | F34: 0 | G34: 1 | H34: 1 | I34: 0 | J34: 0 | K34: 0
B35: 1901410117 | C35: Penzberg | D35: Integrativer Kindergarten mit Krippe an der Birkenstraße | E35: 0 | F35: 0 | G35: 0 | H35: 0 | I35: 0 | J35: 0 | K35: 0 | L35: Ab 1.9. Kinderpfleger/in, Erzieher/in und Hauswirtschafterin
B36: 1901410039 | C36: Penzberg | D36: KiM-Kita Penzberg | E36: 1 | F36: 1 | G36: 0 | H36: 1 | I36: 0 | J36: 0 | K36: 0 | L36: sofern wir zwei Hortgruppen gründen: 2-4 Fachkräfte/Erzieher*innen 1-3 Ergänzungskräfte/Kinderpfleger*innen
B37: 1901410034 | C37: Penzberg | D37: Kindertagesstätte St. Raphael | E37: 0 | F37: 0 | G37: 0 | H37: 0 | I37: 2 | J37: 0 | K37: 0
B38: 1901420041 | C38: Polling | D38: Integratives Kinderhaus Polling | E38: 1 | F38: 1 | G38: 0 | H38: 0 | I38: 0 | J38: 1 | K38: 0
B39: 1901420042 | C39: Polling | D39: Kindertagesstätte der Gemeinde Polling | E39: 0 | F39: 1 | G39: 0 | H39: 0 | I39: 1 | J39: 0 | K39: 0 | L39: Bufdi
B40: 1901420043 | C40: Polling | D40: Naturkindergarten 'Waldwichtel' in Polling | E40: 1 | F40: 1 | G40: 1 | H40: 1 | I40: 1 | J40: 1 | K40: 1
B41: 1901450046 | C41: Rottenbuch | D41: Don Bosco Haus für Kinder | E41: 1 | F41: 0 | G41: 0 | H41: 0 | I41: 0 | J41: 0 | K41: 0
B42: 1901480052 | C42: Schongau | D42: Kindergarten Kunterbunt | E42: 1 | F42: 1 | G42: 1 | H42: 0 | I42: 0 | J42: 0 | K42: 1
B43: 1901480050 | C43: Schongau | D43: Kindergarten Regenbogen | E43: 1 | F43: 1 | G43: 0 | H43: 0 | I43: 2 | J43: 1 | K43: 0
B44: 1901480047 | C44: Schongau | D44: Kindergarten St. Johannes | E44: 2 | F44: 1 | G44: 0 | H44: 0 | I44: 0 | J44: 1 | K44: 0
B45: 1901480049 | C45: Schongau | D45: Kita Mariä Himmelfahrt | E45: 2 | F45: 0 | G45: 0 | H45: 0 | I45: 1 | J45: 0 | K45: 1
B46: 1901510055 | C46: Schwabsoien | D46: Kindergarten mit Krippe Sonnenblume | E46: 0 | F46: 0 | G46: 0 | H46: 0 | I46: 1 | J46: 1 | K46: 0
B47: 1901520055 | C47: Seeshaupt | D47: Kinderhaus Seeshaupt | E47: 0 | F47: 1 | G47: 0 | H47: 0 | I47: 1 | J47: 0 | K47: 0
B48: 1901540057 | C48: Steingaden | D48: Kita Steingaden | E48: 3 | F48: 1 | G48: 0 | H48: 0 | I48: 4 | J48: 0 | K48: 1
B49: 1901570124 | C49: Weilheim | D49: BRK Kinderhaus Weltentdecker | E49: 0 | F49: 0 | G49: 0 | H49: 0 | I49: 1 | J49: 1 | K49: 1
B50: 1901570061 | C50: Weilheim | D50: Evangelisch-Lutherisches Haus für Kinder | E50: 1 | F50: 1 | G50: 1 | H50: 1 | I50: 1 | J50: 1 | K50: 1
B51: 1901570116 | C51: Weilheim | D51: Fortschritt Kinderhaus am Sonnenfeld | E51: 1 | F51: 0 | G51: 0 | H51: 0 | I51: 0 | J51: 1 | K51: 0
B52: 1901570108 | C52: Weilheim | D52: Inklusives Kinderhaus Pfiffikus | E52: 2 | F52: 2 | G52: 0 | H52: 2 | I52: 0 | J52: 0 | K52: 0
B53: 1901570110 | C53: Weilheim | D53: Integrativer Hort an der Ammer | E53: 2 | F53: 0 | G53: 0 | H53: 1 | I53: 1 | J53: 0 | K53: 1
B54: 1901570077 | C54: Weilheim | D54: Integratives Kinderhaus Franziskus | E54: 0 | F54: 1 | G54: 0 | H54: 0 | I54: 0 | J54: 0 | K54: 0
B55: 1901570060 | C55: Weilheim | D55: Kath. Kindergarten St. Michael Marnbach | E55: 0 | F55: 0 | G55: 0 | H55: 0 | I55: 0 | J55: 0 | K55: 1
B56: 1901570059 | C56: Weilheim | D56: Kath. Kneippkinderhaus St. Anna | E56: 0 | F56: 1 | G56: 0 | H56: 0 | I56: 1 | J56: 0 | K56: 0
B57: 1901570102 | C57: Weilheim | D57: Kinderhaus im Paradeis | E57: 1 | F57: 1 | G57: 1 | H57: 1 | I57: 1 | J57: 1 | K57: 1
B58: 1901570082 | C58: Weilheim | D58: Kindernest am Rosengarten | E58: 0 | F58: 0 | G58: 0 | H58: 0 | I58: 1 | J58: 0 | K58: 0
B59: 1901570080 | C59: Weilheim | D59: Naturkindergarten Schmetterlinge Weilheim | E59: 1 | F59: 0 | G59: 1 | H59: 1 | I59: 1 | J59: 1 | K59: 1 | L59: Individualbegleitung 20-25 Std.
B60: 1901570067 | C60: Weilheim | D60: Städt. Kindergarten und Krippe Unterhausener Dorfspatzen | E60: 1 | F60: 1 | G60: 1 | H60: 0 | I60: 1 | J60: 0 | K60: 0
B61: 1901570066 | C61: Weilheim | D61: Städtisches Kinderhaus Nepomuk | E61: 1 | F61: 1 | G61: 0 | H61: 0 | I61: 3 | J61: 0 | K61: 0
B62: 1901570064 | C62: Weilheim | D62: WaldorfHaus Weilheim | E62: 0 | F62: 0 | G62: 0 | H62: 0 | I62: 1 | J62: 0 | K62: 0
B63: 1901570083 | C63: Weilheim | D63: Weilheimer Kindernest Gelbe Villa | E63: 0 | F63: 0 | G63: 0 | H63: 0 | I63: 2 | J63: 1 | K63: 0
B64: 1901580069 | C64: Wessobrunn | D64: Kindergarten Bärenhöhle | E64: 1 | F64: 0 | G64: 0 | H64: 0 | I64: 0 | J64: 0 | K64: 0
B65: 1901580070 | C65: Wessobrunn | D65: Kindergarten Dorfstrolche | E65: 1 | F65: 0 | G65: 0 | H65: 0 | I65: 0 | J65: 0 | K65: 0
B66: 1901570068 | C66: Weilheim | D66: Waldkindergarten Weilheim "Die Wurzelkinder" e.V. | E66: 1 | F66: 1 | G66: 1 | H66: 1 | I66: 2 | J66: 1 | K66: 0
B67: 1901600072 | C67: Wildsteig | D67: Kindergarten Wildsteig | E67: 1 | F67: 0 | G67: 0 | H67: 0 | I67: 1 | J67: 0 | K67: 0
C68: =SUBTOTAL(103,tbl_Ausbildungsplaetze[Ort]) -> 62 | E68: =SUBTOTAL(109,tbl_Ausbildungsplaetze[SEJ]) -> 47 | F68: =SUBTOTAL(109,tbl_Ausbildungsplaetze[Berufsanerken-nungsjahr]) -> 30 | G68: =SUBTOTAL(109,tbl_Ausbildungsplaetze[OptiPrax]) -> 12 | H68: =SUBTOTAL(109,tbl_Ausbildungsplaetze[PIA-Praktikum]) -> 14 | I68: =SUBTOTAL(109,tbl_Ausbildungsplaetze[Kinderpfleger/in in Ausbildung]) -> 54 | J68: =SUBTOTAL(109,tbl_Ausbildungsplaetze[Praktikant/in]) -> 16 | K68: =SUBTOTAL(109,tbl_Ausbildungsplaetze[800 Stunden-Praktikum]) -> 16
C69: Anzahl | E69: Summe | F69: Summe | G69: Summe | H69: Summe | I69: Summe | J69: Summe | K69: Summe

Sheet Ansprechperson Ausbildung
C2: Ansprechpersonen Ausbildung & Praktika | G2: Stand: März 2026
C3: Angaben der Kitas, die bei der online Befragung 2026 mitgewirkt haben.
B4: Einrichtungs-Nr. | C4: Ort | D4: Einrichtung | E4: Ansprechperson | F4: Telefon-Nr. | G4: E-Mail
B5: 1901110002 | C5: Altenstadt | D5: Integratives Kinderhaus Altenstadt | E5: Frau Hörner | F5: +49 8861 2197970 | G5: Kita.Altenstadt@kinderhilfe-oberland.de
B6: 1901110001 | C6: Altenstadt | D6: Kath. Kindergarten St. Michael | E6: Frau Anja Fibiger Frau Corinna Bremauer | F6: +49 8861 8171 | G6: kita.st.michael.altenstadt@bistum-augsburg.de
B7: 1901130002 | C7: Antdorf | D7: Kindertagesstätte Antdorf | E7: Frau Daniela Vlasic | F7: +49 8856 83344 | G7: kita@antdorf.de
B8: 1901140003 | C8: Bernbeuren | D8: Kath. Kindergarten St. Nikolaus | E8: Frau Bentenrieder | F8: +49 8860 555 | G8: kita.bernbeuren@bistum-augsburg.de
B9: 1901151115 | C9: Bernried | D9: Kinderhaus Bernried | E9: Frau Nicola Lindorfer | F9: +49 8158 9973920 | G9: nicola.lindorfer@kinderhilfe-oberland.de
B10: 1901150005 | C10: Bernried | D10: Waldkinder Bernried e.V. | E10: Frau Franziska Ebert | F10: +49 172 8219257 | G10: franziska.ebert@waldkinder-bernried.de
B11: 1901171111 | C11: Böbing | D11: Kindergarten St. Hedwig | E11: Frau Daniela Schäfer | F11: +49 8867 8216 | G11: kindergarten@boebing.de
B12: 1901180007 | C12: Burggen | D12: Katholische Kindertageseinrichtung St. Anna | E12: Frau Heidi Fichtl | F12: +49 8860 1522 | G12: Kita.burggen@bistum-augsburg.de
B13: 1901200008 | C13: Eberfing | D13: Eberfinger Kinderhaus "Ich & Du" | E13: Frau Claudia Eberle | F13: +49 8802 419 | G13: kiga@kindergarten-eberfing.de
B14: 1901210009 | C14: Eglfing | D14: Kindergarten Eglfing | E14: Frau Grundhuber | F14: +49 8847 1219 | G14: kiga.eglfing@gmail.com
B15: 1901210097 | C15: Eglfing | D15: Kinderkrippe Tauting | E15: Frau Andrea Winkelmaier | F15: +49 8847 6999473 | G15: kikri-tauting@outlook.de
B16: 1901260010 | C16: Habach | D16: Ulrich Kinderhaus Habach | E16: Frau Bacher-Rees | F16: +49 8847 453 | G16: kiga@habach.de
B17: 1901290011 | C17: Hohenfurch | D17: Kindergarten 'Sonnenblick' Kindergarten & Krippe | E17: Frau Both | F17: +49 8861 8757 | G17: kindergarten@hohenfurch.de
B18: 1901300014 | C18: Hohenpeißenberg | D18: Integratives Kinderhaus am Schächen | E18: Frau Nicole Frombeck | F18: +49 8861 2198650 | G18: nicole.frombeck@kinderhilfe-oberland.de
B19: 1901300013 | C19: Hohenpeißenberg | D19: Kindergarten im Hetten | E19: Frau Franziska Seemiller | F19: +49 881 92060 | G19: franziska.seemiller@kinderhilfe-oberland.de
B20: 1901310121 | C20: Huglfing | D20: Kindertagesstätte Huglhupf | E20: Frau Masuku | F20: +49 8802 1456 | G20: info@kita-huglhupf.de
B21: 1901320015 | C21: Iffeldorf | D21: Katholisches Haus für Kinder St. Vitus | E21: Frau Michaela Rößle | F21: +49 8856 4411 | G21: kita.st.vitus.iffeldorf@bistum-augburg.de
B22: 1901330016 | C22: Ingenried | D22: Kindergarten St. Georg | E22: Frau Stefanie Sappl | F22: +49 8860 715 | G22: kiga.ingenried@t-online.de
B23: 1901350120 | C23: Oberhausen | D23: Kinderhaus am Storchennest | E23: Frau Bertl | F23: +49 8802 9138440 | G23: kinderhaus-oberhausen@t-online.de
B24: 1901360018 | C24: Obersöchering | D24: Kinderhaus Söcheringer Wespennest | E24: Frau Stephanie Ammersinn-Staltmair | F24: +49 8847 6585 | G24: kindergarten@obersoechering.org
B25: 1901390024 | C25: Peißenberg | D25: AWO-Kinderhaus Pumuckl | E25: Frau Brockhaus | F25: +49 8803 9443 | G25: pumuckl.Peissenberg@awo-obb.de
B26: 1901390023 | C26: Peißenberg | D26: Evang. Kindergarten Regenbogen | E26: Frau Michaela Socher | F26: +49 8861 9095975 | G26: michaela.socher@elkb.de
B27: 1901390025 | C27: Peißenberg | D27: FortSchritt Inklusives Kinderhaus an der Ammer | E27: Frau Wurzinger | F27: +49 8803 489174 | G27: kinderhaus.peissenberg@fortschritt-bayern.de
B28: 1901390021 | C28: Peißenberg | D28: Kindergarten St. Johannes Baptist | E28: Frau Tina Lang | F28: +49 8803 3897 | G28: kiga.st.johannes.baptist.peissenberg@bistum-augsburg.de
B29: 1901390026 | C29: Peißenberg | D29: Kinderhaus am Berg | E29: Frau Julia Eichberger | F29: +49 8803 632290 | G29: julia.eichberger@kinderhilfe-oberland.de
B30: 1901390125 | C30: Peißenberg | D30: Kinderhaus im Dorf | E30: Frau Sabine Degenhardt | F30: +49 8803 632216 | G30: sabine.degenhardt@kinderhilfe-oberland.de
B31: 1901390022 | C31: Peißenberg | D31: Kindertagesstätte St. Barbara | E31: Frau Kerstin Morgenstern | F31: +49 8803 3299 | G31: kerstin.morgenstern@bistum-augsburg.de
B32: 1901400027 | C32: Peiting | D32: Caritas Kita St. Michael | E32: Frau Manuela Otschik | F32: +49 8861 6189 | G32: manuela.otschik@caritasmuenchen.org
B33: 1901400107 | C33: Peiting | D33: Integrativer Naturkindergarten am Weiherhäusle | E33: Frau Christiane Juraske | F33: +49 8861 2196101 | G33: info@kinderhilfe-oberland.de
B34: 1901400113 | C34: Peiting | D34: Integratives Kinderhaus im Forsthaus | E34: Frau Karin Oswald | F34: +49 8861 2218956 | G34: karin.oswald@kinderhilfe-oberland.de
B35: 1901400030 | C35: Peiting | D35: Kindergarten am Gumpen | E35: Frau Carola Kölbl | F35: +49 8861 219-6100 | G35: carola.koelbl@kinderhilfe-oberland.de
B36: 1901400033 | C36: Peiting | D36: Kindergarten Birkland | E36: Frau Marianne Schwarz | F36: +49 8869 1506 | G36: marianne.schwarz@peiting.de kiga-birkland@peiting.de
B37: 1901400029 | C37: Peiting | D37: Kinderhaus Peiting | E37: Frau Renner | F37: +49 8861 25300 | G37: petra.renner@kinderhilfe-oberland.de
B38: 1901400100 | C38: Peiting | D38: Kita Sonnenschein | E38: Frau Sylvia Wladar | F38: +49 8861 599750 | G38: kita.sonnenschein@peiting.de
B39: 1901400032 | C39: Peiting | D39: Therese-Peter-Haus für Kinder | E39: Frau Grauer | F39: +49 8861 599724 | G39: therese-peter-haus@peiting.de
B40: 1901400098 | C40: Peiting | D40: Waldkindergarten Wurzelzwerge Peiting e.V | E40: Frau Öttl | F40: +49 171 9050813 | G40: vorstand@kinderwalderlebnis.de
B41: 1901410040 | C41: Penzberg | D41: Albert-Schweitzer Waldkindergarten | E41: Frau Ivonka Hepp | F41: +49 175 5494337 | G41: Waldkindergarten@albert-schweitzer.org
B42: 1901410037 | C42: Penzberg | D42: AWO Kinderhaus an der Birkenstraße | E42: Herr Josef Ilmberger | F42: +49 8856 6872 | G42: kinderhaus.penzberg@awo-obb.de
B43: 1901410075 | C43: Penzberg | D43: AWO Kinderhort Winterstraße | E43: Frau Anke Kruger-Fink | F43: +49 8856 8049662 | G43: kiho2.penzberg@awo-obb.de
B44: 1901410035 | C44: Penzberg | D44: Evang. Haus für Kinder Penzberg | E44: Frau Sandra Streidl Frau Franziska Kargl | F44: +49 8856 5696 | G44: haus-fuer-kinder.penzberg@elkb.de
B45: 1901410038 | C45: Penzberg | D45: Familienzentrum Arche Noah | E45: Frau Gloria Gabriel | F45: +49 8856 608923-0 | G45: Gabriel@familienzentrum-arche-noah.de
B46: 1901410117 | C46: Penzberg | D46: Integrativer Kindergarten mit Krippe an der Birkenstraße | E46: Frau Ramona Frick | F46: +49 8856 9034291 | G46: ramona.frick@kinderhilfe-oberland.de
B47: 1901410104 | C47: Penzberg | D47: Katholischer Kindergarten St. Franziskus | E47: Frau Christine Eisendle Frau Carina Borsutzky | F47: +49 8856 9365737 | G47: kita.st.franziskus.penzbeeg@bistum-augsburg.de
B48: 1901410039 | C48: Penzberg | D48: KiM-Kita Penzberg | E48: Frau Martina Schweiger | F48: +49 8856 813 790 | G48: martina.schweiger@penzberg.de
B49: 1901410122 | C49: Penzberg | D49: Kindergarten Spatzennest | E49: Frau Moser | F49: +49 8856 8027712 | G49: personal@spatzennest-penzberg.de
C50: Penzberg | D50: Kinderkrippe Spatzennest | E50: Frau Moser | F50: +49 8856 8027712 | G50: personal@spatzennest-penzberg.de
B51: 1901410034 | C51: Penzberg | D51: Kindertagesstätte St. Raphael | E51: Frau Julia Mach | F51: +49 8856 7317 | G51: kiga.st.raphael.penzberg@bistum-augsburg.de
B52: 1901410079 | C52: Penzberg | D52: Montessori Kinderhaus Penzberg | E52: Frau Kristina Knauer | F52: +49 8856 6094322 | G52: verwaltung@montessori-kindergarten-penzberg.de
B53: 1901420041 | C53: Polling | D53: Integratives Kinderhaus Polling | E53: Frau Merk | F53: +49 881 930319 | G53: Ruth.merk@kinderhilfe-oberland.de
B54: 1901420042 | C54: Polling | D54: Kindertagesstätte der Gemeinde Polling | E54: Frau Eichelberg | F54: +49 881 939028 | G54: barbara.eichelberg@polling.de
B55: 1901420043 | C55: Polling | D55: Naturkindergarten 'Waldwichtel' in Polling | E55: Hintz&Niang | F55: +49 176 44548744 | G55: kiga3@natuerlich-oberhausen.de
B56: 1901430043 | C56: Prem | D56: Kindergarten Prem | E56: Frau Will | F56: +49 8862 8387 | G56: kiga@prem-am-lech.de
B57: 1901440106 | C57: Raisting | D57: BRK Kindergarten St. Raphael Raisting | E57: Frau Susanne Dietrich | F57: +49 8807 7381 | G57: susanne.dietrich@brk-starnberg.de
B58: 1901440105 | C58: Raisting | D58: Kinderhort Bunte Kleckse | E58: Frau Schmid, Kinderhort Herr Schregle, Gemeinde | F58: +49 8807 9474406 | G58: Kinderhort@raisting.bayern.de Geschäftsleitung@raisting.bayern.de
B59: 1901450046 | C59: Rottenbuch | D59: Don Bosco Haus für Kinder | E59: Frau Kordula Keller | F59: +49 8867 8632 | G59: kigarottenbuch@t-online.de
B60: 1901480081 | C60: Schongau | D60: Elterninitiative Kindernest Schongau e.V. | E60: Frau Eva Funk | F60: +49 8861 900216 | G60: info@kindernest-schongau.de
B61: 1901480119 | C61: Schongau | D61: Haus für Kinder | E61: Stadt Schongau | F61: +49 8861 214126 | G61: personalamt@schongau.de
B62: 1901480103 | C62: Schongau | D62: Kindergarten Clara-Fey | E62: Frau Susanne Siebenhüner | F62: +49 8861 9308013 | G62: Susanne.Siebenhuener@kjf-soziale-angebote.de
B63: 1901480052 | C63: Schongau | D63: Kindergarten Kunterbunt | E63: Herr Erhard | F63: +49 8861 214136 | G63: erhard.alexander@schongau.de
B64: 1901480050 | C64: Schongau | D64: Kindergarten Regenbogen | E64: Frau Bergmann | F64: +49 8861 214220 | G64: bergmann.sandra@schongau.de
B65: 1901480047 | C65: Schongau | D65: Kindergarten St. Johannes | E65: Frau Kammerer | F65: +49 8861 4523 | G65: kita.st.johannes.schongau@bistum-augsburg.de
B66: 1901480049 | C66: Schongau | D66: Kita Mariä Himmelfahrt | E66: Frau Kerstin Schwarzer | F66: +49 8861 8935 | G66: kita.mhf.schongau@bstum-augsburg.de
B67: 1901490053 | C67: Schwabbruck | D67: Kindergarten St. Walburga | E67: Frau Pia Wispereit | F67: +49 8868 1578 | G67: kita.schwabbruck@bistum-augsburg.de
B68: 1901510055 | C68: Schwabsoien | D68: Kindergarten mit Kinderhort Sonnenblume | E68: Frau Christina Müller | F68: +49 8861 2197980 | G68: kita.schwabsoien@kinderhilfe-oberland.de
B69: 1901520055 | C69: Seeshaupt | D69: Kinderhaus Seeshaupt | E69: Frau Brigitte Loth | F69: +49 8801 759 | G69: kinderhaus@seeshaupt.de
B70: 1901530056 | C70: Sindelsdorf | D70: Gemeindekindergarten Sindelsdorf | E70: Frau Musiol | F70: +49 8856 9109612 | G70: kiga@sindelsdorf.de
B71: 1901540057 | C71: Steingaden | D71: Kita Steingaden | E71: Frau Patricia Moser | F71: +49 8862 384 | G71: leitung@kita.steingaden.de
B72: 1901570062 | C72: Weilheim | D72: AWO Kinderhaus Villa Kunterbunt | E72: Frau Kathrin Foret | F72: +49 881 9275850-1 | G72: villa-kunterbunt.weilheim@kita.awo-obb.de
B73: 1901570124 | C73: Weilheim | D73: BRK Kinderhaus Weltentdecker | E73: Frau Serfling | F73: +49 8151 26023560 | G73: kinderhaus.weltentdecker@brk-starnberg.de
B74: 1901570061 | C74: Weilheim | D74: Evangelisch-Lutherisches Haus für Kinder | E74: Frau Sabine Kleber | F74: +49 881 7296 | G74: ev.haus-fuer-kinder-wm@elkb.de
B75: 1901570116 | C75: Weilheim | D75: Fortschritt Kinderhaus am Sonnenfeld | E75: Frau Ingrid Henkel | F75: +49 8151 91694914 | G75: ingrid.henkel@fortschritt-bayern.de
B76: 1901570108 | C76: Weilheim | D76: Inklusives Kinderhaus Pfiffikus | E76: Frau Bianca Menhofer Einrichtungsleitung | F76: +49 881 682-1640 | G76: pfiffikus@weilheim.bayern.de
B77: 1901570110 | C77: Weilheim | D77: Integrativer Hort an der Ammer | E77: Frau Hesse | F77: +49 881 9278422 | G77: irmela.hesse@kinderhilfe-oberland.de
B78: 1901570077 | C78: Weilheim | D78: Integratives Kinderhaus Franziskus | E78: Frau Roth-Ploeger | F78: +49 881 61784 | G78: hort.franziskus.weilheim@bistum-augsburg.de
B79: 1901570060 | C79: Weilheim | D79: Kath. Kindergarten St. Michael Marnbach | E79: Frau Laura Speckmaier | F79: +49 881 75260 | G79: kita.st.michael.weilheim@bistum-augsburg.de
B80: 1901570059 | C80: Weilheim | D80: Kath. Kneippkinderhaus St. Anna | E80: Frau Michaela Ostermayer | F80: +49 881 69735 | G80: kita.st.anna.weilheim@bistum-augsburg.de
B81: 1901570102 | C81: Weilheim | D81: Kinderhaus im Paradeis | E81: Herr Rainer Ganshorn | F81: +49 881 12233392 | G81: rainer.ganshorn@muetterzentrum-weilheim.de
B82: 1901570090 | C82: Weilheim | D82: Kinderkrippe Zwergerltreff | E82: Frau Glasow Frau Blacek | F82: +49 881 9249292 | G82: info@kinderkrippe-zwergerltreff.de
B83: 1901570082 | C83: Weilheim | D83: Kindernest am Rosengarten | E83: Frau Ilka Kwak | F83: +49 881 9279878 | G83: ilka.kwak@kindernest-rosengarten.de rainer.ganshorn@muetterzentrum-weilheim.de
B84: 1901570063 | C84: Weilheim | D84: Montessori-Kinderhaus Weilheim | E84: Herr Torsten Schumann-Müller | F84: +49 881 9270296 | G84: kinderhaus@montessori-schule.com
B85: 1901570080 | C85: Weilheim | D85: Naturkindergarten Schmetterlinge Weilheim | E85: Frau Antonia Samm | F85: +49 176 87944167 | G85: kiga4@natuerlich-oberhausen.de
B86: 1901570067 | C86: Weilheim | D86: Städt. Kindergarten und Krippe Unterhausener Dorfspatzen | E86: Frau Schuster | F86: +49 881 682-1660 | G86: dorfspatzen@weilheim.de
B87: 1901570066 | C87: Weilheim | D87: Städtisches Kinderhaus Nepomuk | E87: Frau Rauh | F87: +49 881 417173 | G87: nepomuk@weilheim.de
B88: 1901570064 | C88: Weilheim | D88: WaldorfHaus Weilheim | E88: Frau Müller | F88: +49 881 63399 | G88: info@waldorfhaus-weilheim.de
B89: 1901570083 | C89: Weilheim | D89: Weilheimer Kindernest Gelbe Villa | E89: Frau Arnhild Bischoff Hausleitung | F89: +49 881 62159 | G89: arnhild.bischoff@weilheimer-kindernest.de
B90: 1901580069 | C90: Wessobrunn | D90: Kindergarten Bärenhöhle | E90: Frau Katharina Bauer Kindergartenleitung | F90: +49 8809 370 | G90: personal@wessobrunn.de
B91: 1901580070 | C91: Wessobrunn | D91: Kindergarten Dorfstrolche | E91: Frau Andrea Strauß Kindergartenleitung | F91: +49 8809 858 | G91: personal@wessobrunn.de
B92: 1901570068 | C92: Weilheim | D92: Waldkindergarten Weilheim "Die Wurzelkinder" e.V. | E92: Herr Hanninger Frau Ulrich | F92: +49 160 96825884 | G92: waldkindergarten-wm@web.de
B93: 1901590071 | C93: Wielenbach | D93: Gemeinde Kita Schatzkiste | E93: Frau Padberg | F93: +49 881 9344210 | G93: kindergartenleitung@wielenbach.bayern.de
B94: 1901590072 | C94: Wielenbach | D94: Kinderkrippe Wielenbach | E94: Frau Kathrin Haake | F94: +49 881 935393405 | G94: Kathrin.haake@johanniter.de
B95: 1901600072 | C95: Wildsteig | D95: Kindergarten Wildsteig | E95: Frau Rehm | F95: +49 8867 9139619 | G95: kindergarten@gemeinde-wildsteig.de

Sheet Offene Stellen
C2: Offene Stellen | N2: Stand: März 2026
C3: Angaben der Kitas, die bei der online Befragung 2026 mitgewirkt haben.
B4: Einrichtungs-Nr. | C4: Ort | D4: Einrichtung | E4: Einrichtungsleitung | F4: Erzieher/in | G4: Kinderpfleger/in | H4: FSJ | I4: Hauswirtschaft | J4: Verwaltung | K4: Assistenzkräfte | L4: Weiterbildung Ergänzungskraft | M4: Weiterbildung Fachkraft | N4: Bemerkungen
B5: 1901110002 | C5: Altenstadt | D5: Integratives Kinderhaus Altenstadt | E5: 0 | F5: 0 | G5: 0 | H5: 0 | I5: 0 | J5: 0 | K5: 0 | L5: 0 | M5: 0 | N5: https://www.kinderhilfe-oberland.de/karriere/
B6: 1901140003 | C6: Bernbeuren | D6: Kath. Kindergarten St. Nikolaus | E6: 0 | F6: 0 | G6: 1 | H6: 0 | I6: 0 | J6: 0 | K6: 1 | L6: 0 | M6: 0
B7: 1901150005 | C7: Bernried | D7: Waldkinder Bernried e.V. | E7: 0 | F7: 0 | G7: 1 | H7: 0 | I7: 0 | J7: 0 | K7: 0 | L7: 0 | M7: 0 | N7: BUFDI Eine Stelle im Hort als Ergänzungskraft
B8: 1901171111 | C8: Böbing | D8: Kindergarten St. Hedwig | E8: 0 | F8: 1 | G8: 1 | H8: 0 | I8: 0 | J8: 0 | K8: 0 | L8: 0 | M8: 0
B9: 1901210097 | C9: Eglfing | D9: Kinderkrippe Tauting | E9: 0 | F9: 0 | G9: 1 | H9: 0 | I9: 0 | J9: 0 | K9: 0 | L9: 0 | M9: 0
B10: 1901310121 | C10: Huglfing | D10: Kindertagesstätte Huglhupf | E10: 0 | F10: 1 | G10: 1 | H10: 0 | I10: 0 | J10: 0 | K10: 0 | L10: 0 | M10: 0
B11: 1901320015 | C11: Iffeldorf | D11: Katholisches Haus für Kinder St. Vitus | E11: 0 | F11: 0 | G11: 0 | H11: 0 | I11: 1 | J11: 0 | K11: 0 | L11: 0 | M11: 0 | N11: Herzliche Individualbegleitung
B12: 1901350120 | C12: Oberhausen | D12: Kinderhaus am Storchennest | E12: 0 | F12: 0 | G12: 1 | H12: 1 | I12: 0 | J12: 0 | K12: 0 | L12: 0 | M12: 0
B13: 1901360018 | C13: Obersöchering | D13: Kinderhaus Söcheringer Wespennest | E13: 0 | F13: 1 | G13: 1 | H13: 1 | I13: 0 | J13: 0 | K13: 0 | L13: 0 | M13: 0
B14: 1901390125 | C14: Peißenberg | D14: Kinderhaus im Dorf | E14: 0 | F14: 2 | G14: 1 | H14: 0 | I14: 0 | J14: 0 | K14: 0 | L14: 0 | M14: 0
B15: 1901400030 | C15: Peiting | D15: Kindergarten am Gumpen | E15: 0 | F15: 0 | G15: 0 | H15: 0 | I15: 0 | J15: 0 | K15: 0 | L15: 0 | M15: 0 | N15: https://www.kinderhilfe-oberland.de/karriere/
B16: 1901400029 | C16: Peiting | D16: Kinderhaus Peiting | E16: 0 | F16: 0 | G16: 1 | H16: 0 | I16: 0 | J16: 0 | K16: 0 | L16: 0 | M16: 0
B17: 1901410040 | C17: Penzberg | D17: Albert-Schweitzer Waldkindergarten | E17: 0 | F17: 0 | G17: 0 | H17: 1 | I17: 0 | J17: 0 | K17: 0 | L17: 0 | M17: 0
B18: 1901410037 | C18: Penzberg | D18: AWO Kinderhaus an der Birkenstraße | E18: 0 | F18: 1 | G18: 0 | H18: 0 | I18: 0 | J18: 0 | K18: 0 | L18: 0 | M18: 0
B19: 1901410075 | C19: Penzberg | D19: AWO Kinderhort Winterstraße | E19: 0 | F19: 0 | G19: 0 | H19: 1 | I19: 0 | J19: 0 | K19: 0 | L19: 0 | M19: 0
B20: 1901410117 | C20: Penzberg | D20: Integrativer Kindergarten mit Krippe an der Birkenstraße | E20: 0 | F20: 0 | G20: 0 | H20: 0 | I20: 0 | J20: 0 | K20: 0 | L20: 0 | M20: 0 | N20: Ab 1.9. Kinderpfleger/in, Erzieher/in und Hauswirtschafterin
B21: 1901410104 | C21: Penzberg | D21: Katholischer Kindergarten St. Franziskus | E21: 0 | F21: 1 | G21: 1 | H21: 0 | I21: 0 | J21: 0 | K21: 0 | L21: 0 | M21: 0
B22: 1901410039 | C22: Penzberg | D22: KiM-Kita Penzberg | E22: 0 | F22: 0 | G22: 0 | H22: 0 | I22: 0 | J22: 0 | K22: 0 | L22: 0 | M22: 0 | N22: sofern wir zwei Hortgruppen gründen: 2-4 Fachkräfte/Erzieher*innen 1-3 Ergänzungskräfte/Kinderpfleger*innen
B23: 1901410122 | C23: Penzberg | D23: Kindergarten Spatzennest | E23: 0 | F23: 1 | G23: 0 | H23: 0 | I23: 0 | J23: 0 | K23: 0 | L23: 0 | M23: 0
B24: 1901420041 | C24: Polling | D24: Integratives Kinderhaus Polling | E24: 0 | F24: 0 | G24: 0 | H24: 2 | I24: 0 | J24: 0 | K24: 0 | L24: 0 | M24: 0
B25: 1901420042 | C25: Polling | D25: Kindertagesstätte der Gemeinde Polling | E25: 0 | F25: 1 | G25: 0 | H25: 0 | I25: 0 | J25: 0 | K25: 0 | L25: 0 | M25: 0 | N25: Bufdi
B26: 1901420043 | C26: Polling | D26: Naturkindergarten 'Waldwichtel' in Polling | E26: 0 | F26: 0 | G26: 0 | H26: 1 | I26: 0 | J26: 0 | K26: 1 | L26: 1 | M26: 0
C27: Prem | D27: Premer Waldkindergarten (ab. 01.09.26) | E27: 1 | F27: 1 | G27: 1 | H27: 0 | I27: 0 | J27: 0 | K27: 0 | L27: 0 | M27: 0 | N27: www.prem-am-lech.de/gewerbe/stellenangebot
B28: 1901480050 | C28: Schongau | D28: Kindergarten Regenbogen | E28: 0 | F28: 1 | G28: 0 | H28: 0 | I28: 0 | J28: 0 | K28: 0 | L28: 0 | M28: 0
B29: 1901520055 | C29: Seeshaupt | D29: Kinderhaus Seeshaupt | E29: 0 | F29: 0 | G29: 1 | H29: 0 | I29: 0 | J29: 0 | K29: 0 | L29: 0 | M29: 0
B30: 1901530056 | C30: Sindelsdorf | D30: Gemeindekindergarten Sindelsdorf | E30: 0 | F30: 1 | G30: 0 | H30: 0 | I30: 0 | J30: 0 | K30: 0 | L30: 0 | M30: 0
B31: 1901570062 | C31: Weilheim | D31: AWO Kinderhaus Villa Kunterbunt | E31: 0 | F31: 1 | G31: 1 | H31: 0 | I31: 0 | J31: 0 | K31: 0 | L31: 0 | M31: 0
B32: 1901570124 | C32: Weilheim | D32: BRK Kinderhaus Weltentdecker | E32: 0 | F32: 0 | G32: 0 | H32: 1 | I32: 0 | J32: 0 | K32: 0 | L32: 0 | M32: 0
B33: 1901570061 | C33: Weilheim | D33: Evangelisch-Lutherisches Haus für Kinder | E33: 0 | F33: 0 | G33: 0 | H33: 1 | I33: 0 | J33: 0 | K33: 0 | L33: 1 | M33: 1
B34: 1901570116 | C34: Weilheim | D34: Fortschritt Kinderhaus am Sonnenfeld | E34: 0 | F34: 1 | G34: 0 | H34: 0 | I34: 1 | J34: 0 | K34: 0 | L34: 0 | M34: 0
B35: 1901570108 | C35: Weilheim | D35: Inklusives Kinderhaus Pfiffikus | E35: 0 | F35: 0 | G35: 0 | H35: 1 | I35: 0 | J35: 0 | K35: 0 | L35: 0 | M35: 0
B36: 1901570077 | C36: Weilheim | D36: Integratives Kinderhaus Franziskus | E36: 1 | F36: 0 | G36: 0 | H36: 0 | I36: 0 | J36: 0 | K36: 1 | L36: 0 | M36: 0
B37: 1901570059 | C37: Weilheim | D37: Kath. Kneippkinderhaus St. Anna | E37: 0 | F37: 0 | G37: 0 | H37: 0 | I37: 0 | J37: 0 | K37: 1 | L37: 0 | M37: 0
B38: 1901570063 | C38: Weilheim | D38: Montessori-Kinderhaus Weilheim | E38: 0 | F38: 0 | G38: 0 | H38: 1 | I38: 0 | J38: 0 | K38: 0 | L38: 0 | M38: 0
B39: 1901570080 | C39: Weilheim | D39: Naturkindergarten Schmetterlinge | E39: 0 | F39: 0 | G39: 0 | H39: 0 | I39: 0 | J39: 0 | K39: 0 | L39: 0 | M39: 0 | N39: Individualbegleitung 20-25 Std.
B40: 1901570064 | C40: Weilheim | D40: WaldorfHaus Weilheim | E40: 0 | F40: 0 | G40: 0 | H40: 2 | I40: 0 | J40: 0 | K40: 0 | L40: 0 | M40: 0
B41: 1901580070 | C41: Wessobrunn | D41: Kindergarten Dorfstrolche | E41: 0 | F41: 0 | G41: 1 | H41: 0 | I41: 0 | J41: 0 | K41: 0 | L41: 0 | M41: 0
B42: 1901570068 | C42: Weilheim | D42: Waldkindergarten Weilheim "Die Wurzelkinder" e.V. | E42: 0 | F42: 0 | G42: 0 | H42: 1 | I42: 0 | J42: 0 | K42: 1 | L42: 0 | M42: 0
B43: 1901590071 | C43: Wielenbach | D43: Gemeinde Kita Schatzkiste | E43: 0 | F43: 1 | G43: 0 | H43: 1 | I43: 0 | J43: 0 | K43: 0 | L43: 0 | M43: 0
B44: 1901590072 | C44: Wielenbach | D44: Kinderkrippe Wielenbach | E44: 1 | F44: 1 | G44: 2 | H44: 0 | I44: 0 | J44: 0 | K44: 0 | L44: 0 | M44: 0
B45: Ergebnis | C45: =SUBTOTAL(103,tbl_Offene_Stellen[Ort]) -> 40 | E45: =SUBTOTAL(109,tbl_Offene_Stellen[Einrichtungsleitung]) -> 3 | F45: =SUBTOTAL(109,tbl_Offene_Stellen[Erzieher/in]) -> 16 | G45: =SUBTOTAL(109,tbl_Offene_Stellen[Kinderpfleger/in]) -> 16 | H45: =SUBTOTAL(109,tbl_Offene_Stellen[FSJ]) -> 15 | I45: =SUBTOTAL(109,tbl_Offene_Stellen[Hauswirtschaft]) -> 2 | J45: =SUBTOTAL(109,tbl_Offene_Stellen[Verwaltung]) -> 0 | K45: =SUBTOTAL(109,tbl_Offene_Stellen[Assistenzkräfte]) -> 5 | L45: =SUBTOTAL(109,tbl_Offene_Stellen[Weiterbildung Ergänzungskraft]) -> 2 | M45: =SUBTOTAL(109,tbl_Offene_Stellen[Weiterbildung Fachkraft]) -> 1

Sheet Ansprechperson Offene Stellen
C2: Ansprechpersonen offene Stellen | G2: Stand: März 2026
C3: Angaben der Kitas, die bei der online Befragung 2026 mitgewirkt haben.
B4: Einrichtungs-Nr. | C4: Ort | D4: Einrichtung | E4: Ansprechperson | F4: Telefon-Nr. | G4: E-Mail
B5: 1901110002 | C5: Altenstadt | D5: Integratives Kinderhaus Altenstadt | E5: Frau Hörner | F5: +49 8861 2197970 | G5: Kita.Altenstadt@kinderhilfe-oberland.de
B6: 1901140003 | C6: Bernbeuren | D6: Kath. Kindergarten St. Nikolaus | E6: Frau Bentenrieder | F6: +49 8860 555 | G6: kita.bernbeuren@bistum-augsburg.de
B7: 1901150005 | C7: Bernried | D7: Waldkinder Bernried e.V. | E7: Frau Franziska Ebert | F7: +49 172 8219257 | G7: franziska.ebert@waldkinder-bernried.de
B8: 1901171111 | C8: Böbing | D8: Kindergarten St. Hedwig | E8: Frau Daniela Schäfer | F8: +49 8867 8216 | G8: kindergarten@boebing.de
B9: 1901210097 | C9: Eglfing | D9: Kinderkrippe Tauting | E9: Frau Andrea Winkelmaier | F9: +49 8847 6999473 | G9: kikri-tauting@outlook.de
B10: 1901310121 | C10: Huglfing | D10: Kindertagesstätte Huglhupf | E10: Frau Masuku | F10: +49 8802 1456 | G10: info@kita-huglhupf.de
B11: 1901320015 | C11: Iffeldorf | D11: Katholisches Haus für Kinder St. Vitus | E11: Frau Michaela Rößle | F11: +49 8856 4411 | G11: kita.st.vitus.iffeldorf@bistum-augburg.de
B12: 1901350120 | C12: Oberhausen | D12: Kinderhaus am Storchennest | E12: Frau Bertl | F12: +49 8802 9138440 | G12: kinderhaus-oberhausen@t-online.de
B13: 1901360018 | C13: Obersöchering | D13: Kinderhaus Söcheringer Wespennest | E13: Frau Stephanie Ammersinn-Staltmair | F13: +49 8847 6585 | G13: kindergarten@obersoechering.org
B14: 1901390125 | C14: Peißenberg | D14: Kinderhaus im Dorf | E14: Frau Sabine Degenhardt | F14: +49 8803 632216 | G14: sabine.degenhardt@kinderhilfe-oberland.de
B15: 1901400030 | C15: Peiting | D15: Kindergarten am Gumpen | E15: Frau Carola Kölbl | F15: +49 8861 219-6100 | G15: carola.koelbl@kinderhilfe-oberland.de
B16: 1901400029 | C16: Peiting | D16: Kinderhaus Peiting | E16: Frau Renner | F16: +49 8861 25300 | G16: petra.renner@kinderhilfe-oberland.de
B17: 1901410040 | C17: Penzberg | D17: Albert-Schweitzer Waldkindergarten | E17: Frau Ivonka Hepp | F17: +49 175 5494337 | G17: Waldkindergarten@albert-schweitzer.org
B18: 1901410037 | C18: Penzberg | D18: AWO Kinderhaus an der Birkenstraße | E18: Herr Josef Ilmberger | F18: +49 8856 6872 | G18: kinderhaus.penzberg@awo-obb.de
B19: 1901410075 | C19: Penzberg | D19: AWO Kinderhort Winterstraße | E19: Frau Anke Kruger-Fink | F19: +49 8856 8049662 | G19: kiho2.penzberg@awo-obb.de
B20: 1901410117 | C20: Penzberg | D20: Integrativer Kindergarten mit Krippe an der Birkenstraße | E20: Frau Ramona Frick | F20: +49 8856 9034291 | G20: ramona.frick@kinderhilfe-oberland.de
B21: 1901410104 | C21: Penzberg | D21: Katholischer Kindergarten St. Franziskus | E21: Frau Christine Eisendle Frau Carina Borsutzky | F21: +49 8856 9365737 | G21: kita.st.franziskus.penzbeeg@bistum-augsburg.de
B22: 1901410039 | C22: Penzberg | D22: KiM-Kita Penzberg | E22: Frau Martina Schweiger | F22: +49 8856 813 790 | G22: martina.schweiger@penzberg.de
B23: 1901410122 | C23: Penzberg | D23: Kindergarten Spatzennest | E23: Frau Moser | F23: +49 8856 8027712 | G23: personal@spatzennest-penzberg.de
B24: 1901420041 | C24: Polling | D24: Integratives Kinderhaus Polling | E24: Frau Merk | F24: +49 881 930319 | G24: Ruth.merk@kinderhilfe-oberland.de
B25: 1901420042 | C25: Polling | D25: Kindertagesstätte der Gemeinde Polling | E25: Frau Eichelberg | F25: +49 881 939028 | G25: barbara.eichelberg@polling.de
B26: 1901420043 | C26: Polling | D26: Naturkindergarten 'Waldwichtel' in Polling | E26: Hintz&Niang | F26: +49 176 44548744 | G26: kiga3@natuerlich-oberhausen.de
C27: Prem | D27: Premer Waldkindergarten (neu ab 01.09.2026) | E27: Verwaltungsgemeinschaft Steingaden (Herr Lutz) | F27: +49 8862 9101-26 | G27: personal@vg-steingaden.de
B28: 1901480050 | C28: Schongau | D28: Kindergarten Regenbogen | E28: Frau Bergmann | F28: +49 8861 214220 | G28: bergmann.sandra@schongau.de
B29: 1901520055 | C29: Seeshaupt | D29: Kinderhaus Seeshaupt | E29: Frau Brigitte Loth | F29: +49 8801 759 | G29: kinderhaus@seeshaupt.de
B30: 1901530056 | C30: Sindelsdorf | D30: Gemeindekindergarten Sindelsdorf | E30: Frau Musiol | F30: +49 8856 9109612 | G30: kiga@sindelsdorf.de
B31: 1901570062 | C31: Weilheim | D31: AWO Kinderhaus Villa Kunterbunt | E31: Frau Kathrin Foret | F31: +49 881 9275850-1 | G31: villa-kunterbunt.weilheim@kita.awo-obb.de
B32: 1901570124 | C32: Weilheim | D32: BRK Kinderhaus Weltentdecker | E32: Frau Serfling | F32: +49 8151 26023560 | G32: kinderhaus.weltentdecker@brk-starnberg.de
B33: 1901570061 | C33: Weilheim | D33: Evangelisch-Lutherisches Haus für Kinder | E33: Frau Sabine Kleber | F33: +49 881 7296 | G33: ev.haus-fuer-kinder-wm@elkb.de
B34: 1901570116 | C34: Weilheim | D34: Fortschritt Kinderhaus am Sonnenfeld | E34: Frau Ingrid Henkel | F34: +49 8151 91694914 | G34: ingrid.henkel@fortschritt-bayern.de
B35: 1901570108 | C35: Weilheim | D35: Inklusives Kinderhaus Pfiffikus | E35: Frau Bianca Menhofer Einrichtungsleitung | F35: +49 881 682-1640 | G35: pfiffikus@weilheim.bayern.de
C36: Weilheim | D36: Integratives Kinderhaus Franziskus | E36: Frau Roth-Ploeger | F36: +49 881 61784 | G36: hort.franziskus.weilheim@bistum-augsburg.de
B37: 1901570059 | C37: Weilheim | D37: Kath. Kneippkinderhaus St. Anna | E37: Frau Michaela Ostermayer | F37: +49 881 69735 | G37: kita.st.anna.weilheim@bistum-augsburg.de
B38: 1901570063 | C38: Weilheim | D38: Montessori-Kinderhaus Weilheim | E38: Herr Torsten Schumann-Müller | F38: +49 881 9270296 | G38: kinderhaus@montessori-schule.com
B39: 1901570080 | C39: Weilheim | D39: Naturkindergarten Schmetterlinge Weilheim | E39: Frau Antonia Samm | F39: +49 176 87944167 | G39: kiga4@natuerlich-oberhausen.de
B40: 1901570064 | C40: Weilheim | D40: WaldorfHaus Weilheim | E40: Frau Müller | F40: +49 881 63399 | G40: info@waldorfhaus-weilheim.de
B41: 1901580070 | C41: Wessobrunn | D41: Kindergarten Dorfstrolche | E41: Frau Andrea Strauß Kindergartenleitung | F41: +49 8809 858 | G41: personal@wessobrunn.de
B42: 1901570068 | C42: Weilheim | D42: Waldkindergarten Weilheim "Die Wurzelkinder" e.V. | E42: Herr Hanninger Frau Ulrich | F42: +49 160 96825884 | G42: waldkindergarten-wm@web.de
B43: 1901590071 | C43: Wielenbach | D43: Gemeinde Kita Schatzkiste | E43: Frau Padberg | F43: +49 881 9344210 | G43: kindergartenleitung@wielenbach.bayern.de
B44: 1901590072 | C44: Wielenbach | D44: Kinderkrippe Wielenbach | E44: Frau Kathrin Haake | F44: +49 881 935393405 | G44: Kathrin.haake@johanniter.de

Sheet Konfession-Motto
C2: Konfession & Motto | F2: Stand: März 2024
B4: Einrichtungs-Nr. | C4: Ort | D4: Einrichtung | E4: Konfession | F4: Motto | G4: Namensbezug
B5: 1901110002 | C5: Altenstadt | D5: Integratives Kinderhaus Altenstadt | E5: Evangelisch | F5: "Gemeinsam, inklusiv, individuell" | G5: Gemeinde
B6: 1901110001 | C6: Altenstadt | D6: Kath. Kindergarten St. Michael | E6: Katholisch | F6: "Gemeinsam wachsen" | G6: Heilige/r / biblisch
B7: 1901130002 | C7: Antdorf | D7: Kindertagesstätte Antdorf | E7: Weltanschaulich neutral | F7: "Das Kind ist wie eine Pflanze zu sehen, die gute Bedingungen braucht um wachsen, gedeihen und sich entwickeln zu können." | G7: Gemeinde
B8: 1901140003 | C8: Bernbeuren | D8: Kath. Kindergarten St. Nikolaus | E8: Katholisch | G8: Heilige/r / biblisch
B9: 1901151115 | C9: Bernried | D9: Kinderhaus Bernried | E9: Evangelisch | F9: "Gemeinsam, inklusiv, individuell" | G9: Gemeinde
B10: 1901150116 | C10: Bernried | D10: Krippe am Kloster | E10: Evangelisch | F10: "Kinder sind Gäste, die nach dem Weg fragen!" | G10: Ortsbezeichnung
B11: 1901150005 | C11: Bernried | D11: Waldkinder Bernried e.V. | E11: Weltanschaulich neutral | F11: "Ein Zuhause in der Natur" | G11: Gemeinde
B12: 1901171111 | C12: Böbing | D12: Kindergarten St. Hedwig | E12: Katholisch | G12: Heilige/r / biblisch
B13: 1901180007 | C13: Burggen | D13: Kindergarten St. Anna | E13: Katholisch | F13: "Ich und Du sind Wir - gemeinsam wachsen" | G13: Heilige/r / biblisch
B14: 1901200008 | C14: Eberfing | D14: Eberfinger Kinderhaus "Ich & Du" | E14: Weltanschaulich neutral | F14: "Ein Stück Weg gemeinsam gehen …" | G14: Fröhlich
B15: 1901210009 | C15: Eglfing | D15: Kindergarten Eglfing | E15: Weltanschaulich neutral | G15: Gemeinde
B16: 1901210097 | C16: Eglfing | D16: Kinderkrippe Tauting | E16: Christlich | G16: Gemeinde
B17: 1901260011 | C17: Habach | D17: Kindergarten Achgrom-Zwergal e.V. | E17: Weltanschaulich neutral | G17: Fröhlich
B18: 1901260010 | C18: Habach | D18: Ulrich Kinderhaus Habach | E18: Weltanschaulich neutral | F18: "Hand in Hand" | G18: Heilige/r / biblisch
B19: 1901290011 | C19: Hohenfurch | D19: Kindergarten Sonnenblick | E19: Katholisch | F19: "Hilf mir es selbst zu tun" | G19: Natur, Tiere, Pflanzen
B20: 1901300012 | C20: Hohenpeißenberg | D20: Caritas Kindertagesstätte St. Anna | E20: Katholisch | F20: „Wenn Kinder klein sind, gib ihnen Wurzeln, wenn Kinder größer werden, gib ihnen Flügel“ | G20: Heilige/r / biblisch
B21: 1901300014 | C21: Hohenpeißenberg | D21: Integratives Kinderhaus am Schächen | E21: Evangelisch | F21: "Gemeinsam, inklusiv, individuell" | G21: Ortsbezeichnung
B22: 1901300013 | C22: Hohenpeißenberg | D22: Kindergarten im Hetten | E22: Evangelisch | F22: "Gemeinsam, inklusiv, individuell" | G22: Ortsbezeichnung
B23: 1901300015 | C23: Hohenpeißenberg | D23: Naturkindergarten Bergwaldkinder | E23: Weltanschaulich neutral | F23: "Ruhig und langsam die Natur sich selber helfen lassen und nur sehen, dass die umgebenden Verhältnisse die Arbeit der Natur stützen, das ist Erziehung." | G23: Natur, Tiere, Pflanzen
B24: 1901310121 | C24: Huglfing | D24: Kindertagesstätte Huglhupf | E24: Weltanschaulich neutral | F24: "Dein Kind sei so frei, es immer kann. Lass es gehen und hören, finden und fallen, aufstehen und irren." | G24: Fröhlich
B25: 1901310122 | C25: Huglfing | D25: Naturkindergarten Himmelblau | E25: Weltanschaulich neutral | F25: "Ruhig und langsam die Natur sich selber helfen lassen und nur sehen, dass die umgebenden Verhältnisse die Arbeit der Natur stützen, das ist Erziehung." | G25: Natur, Tiere, Pflanzen
B26: 1901320015 | C26: Iffeldorf | D26: Kath. Haus für Kinder St. Vitus | E26: Katholisch | G26: Heilige/r / biblisch
B27: 1901330016 | C27: Ingenried | D27: Kindergarten St. Georg | E27: Katholisch | F27: "Sage es mir und ich vergesse es, zeige es mir und ich erinnere mich, lass es mich tun und ich behalte es." | G27: Heilige/r / biblisch
B28: 1901350120 | C28: Oberhausen | D28: Kinderhaus am Storchennest | E28: Weltanschaulich neutral | G28: Natur, Tiere, Pflanzen
B29: 1901351112 | C29: Oberhausen | D29: Naturkindergarten "Die kleinen Forscher" | E29: Weltanschaulich neutral | F29: "Ruhig und langsam die Natur sich selber helfen lassen und nur sehen, dass die umgebenden Verhältnisse die Arbeit der Natur stützen, das ist Erziehung." | G29: Fröhlich
B30: 1901360018 | C30: Obersöchering | D30: Kinderhaus Söcheringer Wespennest | E30: Weltanschaulich neutral | G30: Gemeinde
B31: 1901380020 | C31: Pähl | D31: Kath. Kindertagesstätte St. Elisabeth | E31: Katholisch | F31: "Jedes Kind ist befähigt, durch sein eigenes Tun und Denken sich die Welt anzueignen. Wir begleiten diesen Prozess fachlich und persönlich kompetent." | G31: Heilige/r / biblisch
B32: 1901380019 | C32: Pähl | D32: Kath. Kita St.Christophorus | E32: Katholisch | F32: "In jedem Kind liegt eine wunderbare Tiefe" | G32: Heilige/r / biblisch
B33: 1901380022 | C33: Pähl | D33: Waldkindergarten "Bärenbande" | E33: Katholisch | G33: Fröhlich
B34: 1901390024 | C34: Peißenberg | D34: AWO-Kinderhaus Pumuckl | E34: Weltanschaulich neutral | G34: Fröhlich
B35: 1901390023 | C35: Peißenberg | D35: Evang. Kindergarten Regenbogen | E35: Evangelisch | F35: "Bildung ist nicht das Befüllen von Fässern, sondern das entzünden und erhalten von Flammen." | G35: Natur, Tiere, Pflanzen
B36: 1901390025 | C36: Peißenberg | D36: Inklusives Kinderhaus an der Ammer | E36: Weltanschaulich neutral | F36: "Hilf mir, es selbst zu tun" | G36: Ortsbezeichnung
B37: 1901390026 | C37: Peißenberg | D37: Integrativer Kindergarten mit Krippe und Hort am Berg | E37: Evangelisch | G37: Ortsbezeichnung
B38: 1901390021 | C38: Peißenberg | D38: Kindergarten St. Johannes Baptist | E38: Katholisch | F38: "Ein Kind ist kein Gefäß, das gefüllt, sondern ein Feuer, das entzündet werden will." | G38: Heilige/r / biblisch
B39: 1901390125 | C39: Peißenberg | D39: Kinderhaus im Dorf | E39: Evangelisch | F39: "Gemeinsam für einen guten Start im Leben" | G39: Ortsbezeichnung
B40: 1901390022 | C40: Peißenberg | D40: Kindertagesstätte St. Barbara | E40: Katholisch | F40: "Führe dein Kind immer nur eine Stufe nach oben. Dann gib ihm Zeit, zurückzuschauen und sich zu freuen. Lass es spüren, dass auch du dich freust, und es wird mit Freude die nächste Stufe nehmen." | G40: Heilige/r / biblisch
B41: 1901400027 | C41: Peiting | D41: Caritas Kita St. Michael | E41: Katholisch | F41: "Gemeinsam wachsen, lernen, fröhlich sein" | G41: Heilige/r / biblisch
B42: 1901400073 | C42: Peiting | D42: Integrativer Hort im Kinderhaus Peiting | E42: Weltanschaulich neutral | F42: "Gemeinsam, inklusiv, individuell" | G42: Gebäude
B43: 1901400107 | C43: Peiting | D43: Integrativer Naturkindergarten am Weiherhäusle | E43: Evangelisch | F43: "Gemeinsam, inklusiv, individuell" | G43: Ortsbezeichnung
B44: 1901400113 | C44: Peiting | D44: Integratives Kinderhaus im Forsthaus | E44: Evangelisch | F44: "Gemeinsam, inklusiv, individuell" | G44: Ortsbezeichnung
B45: 1901400030 | C45: Peiting | D45: Kindergarten am Gumpen | E45: Evangelisch | F45: "Gemeinsam, inklusiv, individuell" | G45: Ortsbezeichnung
B46: 1901400033 | C46: Peiting | D46: Kindergarten Birkland | E46: Weltanschaulich neutral | F46: "Kinder sind unsere Zukunft, gebt Ihnen Zeit, Zuwendung, Liebe und Geborgenheit" | G46: Gemeinde
B47: 1901400029 | C47: Peiting | D47: Kinderhaus Peiting | E47: Weltanschaulich neutral | F47: "Gemeinsam, inklusiv, individuell" | G47: Gemeinde
B48: 1901400100 | C48: Peiting | D48: Kita Sonnenschein | E48: Weltanschaulich neutral | F48: "Kinder sind unsere Zukunft, gebt Ihnen Zeit, Zuwendung, Liebe und Geborgenheit" | G48: Natur, Tiere, Pflanzen
B49: 1901400032 | C49: Peiting | D49: Therese-Peter-Haus für Kinder | E49: Weltanschaulich neutral | G49: Person
B50: 1901400098 | C50: Peiting | D50: Waldkindergarten Peiting 'Die Wurzelzwerge' e.V. | E50: Katholisch | F50: "Kinderwalderlebnis -Lebenslust bei Wind und Wetter" | G50: Fröhlich
B51: 1901410040 | C51: Penzberg | D51: Albert-Schweitzer Waldkindergarten | E51: Weltanschaulich neutral | G51: Person
B52: 1901410037 | C52: Penzberg | D52: AWO Kinderhaus an der Birkenstraße | E52: Weltanschaulich neutral | G52: Ortsbezeichnung
B53: 1901410075 | C53: Penzberg | D53: AWO-Kinderhort an der Winterstrasse | E53: Weltanschaulich neutral | G53: Ortsbezeichnung
B54: 1901410036 | C54: Penzberg | D54: AWOlino Kindergarten | E54: Weltanschaulich neutral | G54: Fröhlich
B55: 1901410035 | C55: Penzberg | D55: Evang. Haus für Kinder Penzberg | E55: Evangelisch | F55: "Evangelisch – und offen für alle" | G55: Ortsbezeichnung
B56: 1901410117 | C56: Penzberg | D56: Integrativer Kindergarten mit Krippe an der Birkenstraße | E56: Evangelisch | F56: "Gemeinsam, inklusiv, individuell" | G56: Ortsbezeichnung
B57: 1901410104 | C57: Penzberg | D57: Kath. Kindergarten St. Franziskus | E57: Katholisch | F57: "Hand in Hand auf dem Weg ins Leben." | G57: Heilige/r / biblisch
B58: 1901410039 | C58: Penzberg | D58: KiM-Kita Penzberg | E58: Weltanschaulich neutral | F58: "Kind im Mittelpunkt" | G58: Sonstige
B59: 1901410038 | C59: Penzberg | D59: Kindergarten Arche Noah | E59: Christlich | F59: "Wertschätzung - Wachstum - Zuversicht" | G59: Heilige/r / biblisch
B60: 1901410034 | C60: Penzberg | D60: Kindertagesstätte St. Raphael | E60: Katholisch | F60: "Miteinander leben-lernen-lachen" | G60: Heilige/r / biblisch
B61: 1901410079 | C61: Penzberg | D61: Montessori-Fördergemeinschaft Penzberg e.V. Villa Kunterbunt | E61: Weltanschaulich neutral | F61: "Hilf mir, es selbst zu tun!" | G61: Fröhlich
B62: 1901410122 | C62: Penzberg | D62: Spatzennest Familienservice gGmbH | E62: Weltanschaulich neutral | G62: Natur, Tiere, Pflanzen
B63: 1901420041 | C63: Polling | D63: Kinderhaus Polling | E63: Evangelisch | F63: "Gemeinsam, inklusiv, individuell" | G63: Gemeinde
B64: 1901420042 | C64: Polling | D64: Kindertagesstätte der Gemeinde Polling | E64: Weltanschaulich neutral | F64: "Klein reingehen, groß rauskommen!" | G64: Gemeinde
B65: 1901420043 | C65: Polling | D65: Naturkindergarten Polling ' Waldwichtel' | E65: Weltanschaulich neutral | F65: "Ruhig und langsam die Natur sich selber helfen lassen und nur sehen, dass die umgebenden Verhältnisse die Arbeit der Natur stützen, das ist Erziehung." | G65: Fröhlich
B66: 1901430043 | C66: Prem | D66: Kindergarten Prem | E66: Weltanschaulich neutral | G66: Gemeinde
B67: 1901440101 | C67: Raisting | D67: AWO Kindertagesstätte Zwergerlnest | E67: Weltanschaulich neutral | G67: Fröhlich
B68: 1901440106 | C68: Raisting | D68: BRK KiGa St. Raphael Raisting | E68: Weltanschaulich neutral | F68: "Spielend für das Leben lernen" | G68: Heilige/r / biblisch
B69: 1901440105 | C69: Raisting | D69: Kinderhort „Bunte Kleckse“ Raisting | E69: Weltanschaulich neutral | G69: Fröhlich
B70: 1901450046 | C70: Rottenbuch | D70: Don Bosco Haus für Kinder | E70: Katholisch | F70: „Erziehung ist vor allem eine Sache des Herzens“ | G70: Heilige/r / biblisch
B71: 1901480103 | C71: Schongau | D71: Clara-Fey Haus für Kinder | E71: Katholisch | F71: "Mut zum Leben" | G71: Person
B72: 1901480081 | C72: Schongau | D72: Elterninitiative Kindernest Schongau e.V. | E72: Weltanschaulich neutral | F72: "Hier kommen Ihre Kinder klein rein und groß raus." | G72: Gemeinde
B73: 1901480047 | C73: Schongau | D73: Kath. Kindergarten St. Johannes | E73: Katholisch | F73: "Bei uns stehen Kinder im Mittelpunkt" | G73: Heilige/r / biblisch
B74: 1901480119 | C74: Schongau | D74: Kindergarten Haus für Kinder | E74: Weltanschaulich neutral | F74: "Gemeinsam Hand in Hand unterwegs in Richtung Zukunft" | G74: Sonstige
B75: 1901480052 | C75: Schongau | D75: Kindergarten Kunterbunt | E75: Weltanschaulich neutral | F75: "Gemeinsam Hand in Hand unterwegs in Richtung Zukunft" | G75: Fröhlich
B76: 1901480051 | C76: Schongau | D76: Kindergarten Luftballon | E76: Weltanschaulich neutral | F76: "Gemeinsam Hand in Hand unterwegs in Richtung Zukunft" | G76: Fröhlich
B77: 1901480048 | C77: Schongau | D77: Kindergarten St. Franziskus - Haus für Inklusion | E77: Katholisch | F77: "Wir lassen das Kind Kind sein!" | G77: Heilige/r / biblisch
B78: 1901480050 | C78: Schongau | D78: Kindergarten/Krippe Regenbogen | E78: Weltanschaulich neutral | F78: "Gemeinsam Hand in Hand unterwegs in Richtung Zukunft" | G78: Natur, Tiere, Pflanzen
B79: 1901480049 | C79: Schongau | D79: Kita Mariä Himmelfahrt | E79: Katholisch | G79: Heilige/r / biblisch
B80: 1901490053 | C80: Schwabbruck | D80: Kiga St. Walburga | E80: Katholisch | G80: Heilige/r / biblisch
B81: 1901510055 | C81: Schwabsoien | D81: Kindergarten mit Krippe Sonnenblume | E81: Evangelisch | G81: Natur, Tiere, Pflanzen
B82: 1901520055 | C82: Seeshaupt | D82: Kinderhaus Seeshaupt | E82: Katholisch | F82: "Lernen. Lachen. Lustig sein." | G82: Gemeinde
B83: 1901520080 | C83: Seeshaupt | D83: Kindernest Seeshaupt | E83: Weltanschaulich neutral | G83: Gemeinde
B84: 1901530056 | C84: Sindelsdorf | D84: Gemeindekindergarten Sindelsdorf | E84: Weltanschaulich neutral | G84: Gemeinde
B85: 1901540057 | C85: Steingaden | D85: Kita Steingaden | E85: Weltanschaulich neutral | G85: Gemeinde
B86: 1901570062 | C86: Weilheim | D86: AWO Kinderhaus Villa Kunterbunt | E86: Weltanschaulich neutral | G86: Fröhlich
B87: 1901570124 | C87: Weilheim | D87: BRK Kinderhaus Weltentdecker | E87: Weltanschaulich neutral | F87: "Spielend für das Leben lernen" | G87: Fröhlich
B88: 1901570061 | C88: Weilheim | D88: Evangelisch-Lutherisches Haus für Kinder | E88: Evangelisch | F88: "Wir fangen klein an, um groß rauszukommen" | G88: Sonstige
B89: 1901570116 | C89: Weilheim | D89: Fortschritt Inklusives Kinderhaus am Sonnenfeld | E89: Weltanschaulich neutral | F89: "Kommt, lasst uns unsern Kindern leben!" | G89: Gemeinde
B90: 1901570110 | C90: Weilheim | D90: Hort an der Ammer | E90: Evangelisch | G90: Ortsbezeichnung
B91: 1901570060 | C91: Weilheim | D91: Kath. Kindergarten St. Michael | E91: Katholisch | G91: Heilige/r / biblisch
B92: 1901570059 | C92: Weilheim | D92: Kath. Kneippkinderhaus St. Anna | E92: Katholisch | F92: "Spielend für die Zukunft lernen" | G92: Heilige/r / biblisch
B93: 1901570077 | C93: Weilheim | D93: Kinderhaus Franziskus | E93: Katholisch | G93: Heilige/r / biblisch
B94: 1901570102 | C94: Weilheim | D94: Kinderhaus im Paradeis | E94: Weltanschaulich neutral | G94: Ortsbezeichnung
B95: 1901570058 | C95: Weilheim | D95: Kinderhaus Mariae Himmelfahrt | E95: Katholisch | F95: "Erziehung ist Beispiel und Liebe und sonst nichts!" | G95: Heilige/r / biblisch
B96: 1901570090 | C96: Weilheim | D96: Kinderkrippe Zwergerltreff | E96: Weltanschaulich neutral | G96: Fröhlich
B97: 1901570082 | C97: Weilheim | D97: Kindernest am Rosengarten | E97: Weltanschaulich neutral | F97: "Viele kleine Leute, an vielen Orten, die viele kleine Dinge tun, werden das Gesicht der Welt verändern." | G97: Ortsbezeichnung
B98: 1901570001 | C98: Weilheim | D98: Kindertgeseinrichtung der Johanniter Weilheim | E98: k. A. | G98: Sonstige
B99: 1901570063 | C99: Weilheim | D99: Montessori-Kinderhaus Weilheim | E99: Weltanschaulich neutral | G99: Person
B100: 1901570080 | C100: Weilheim | D100: Naturkindergarten Weilheim | E100: Weltanschaulich neutral | F100: "Ruhig und langsam die Natur sich selber helfen lassen und nur sehen, dass die umgebenden Verhältnisse die Arbeit der Natur stützen, das ist Erziehung." | G100: Gemeinde
B101: 1901570067 | C101: Weilheim | D101: Städt. Kindergarten und Krippe Unterhausener Dorfspatzen | E101: Weltanschaulich neutral | F101: "Du bist einzigartig" | G101: Natur, Tiere, Pflanzen
B102: 1901570066 | C102: Weilheim | D102: Städtischer Kindergarten Nepomuk mit Kinderkrippe | E102: Weltanschaulich neutral | G102: Sonstige
B103: 1901570108 | C103: Weilheim | D103: Städtisches Kinderhaus Pfiffikus | E103: Weltanschaulich neutral | F103: "Ein Kind ist kein Gefäß, das gefüllt, sondern ein Feuer, das entzündet werden will." | G103: Fröhlich
B104: 1901570068 | C104: Weilheim | D104: Waldkindergarten "Die Wurzelkinder" | E104: Weltanschaulich neutral | G104: Fröhlich
B105: 1901570064 | C105: Weilheim | D105: WaldorfHaus Weilheim | E105: Weltanschaulich neutral | G105: Gemeinde
B106: 1901570083 | C106: Weilheim | D106: Weilheimer Kindernest Gelbe Villa | E106: Weltanschaulich neutral | G106: Gebäude
B107: 1901580070 | C107: Wessobrunn | D107: Kindergarten Dorfstrolche | E107: Weltanschaulich neutral | F107: "Da werden Hände sein, die dich tragen, und Arme, in denen du geborgen bist und Menschen, die dir ohne Frage zeigen, dass du auf dieser Welt willkommen bist." | G107: Fröhlich
B108: 1901580069 | C108: Wessobrunn | D108: Kindertagesstätte "Bärenhöhle" | E108: Weltanschaulich neutral | G108: Natur, Tiere, Pflanzen
B109: 1901590071 | C109: Wielenbach | D109: Gemeindekindertagesstätte Schatzkiste | E109: Weltanschaulich neutral | G109: Fröhlich
B110: 1901590072 | C110: Wielenbach | D110: Kinderkrippe im Marita Beissel Haus der Johanniter | E110: Christlich | G110: Person
B111: 1901590076 | C111: Wielenbach | D111: Waldkindergarten Wielenbach | E111: Christlich | G111: Gemeinde
B112: 1901600072 | C112: Wildsteig | D112: Gemeindekindergarten Wildsteig | E112: Katholisch | G112: Gemeinde

Sheet Kinder-Gruppen
C2: Gruppen & Kinder | O2: Stand: März 2026
C3: Nur Teilnehmer an Online-Befragung 2026 | E3: =tbl_Gruppen_Kinder[[#Totals],[G-Krippe]] -> 88 | F3: =tbl_Gruppen_Kinder[[#Totals],[G-Midi]] -> 6 | G3: =tbl_Gruppen_Kinder[[#Totals],[G-Kiga]] -> 202 | H3: =tbl_Gruppen_Kinder[[#Totals],[G-Hort]] -> 33 | I3: =tbl_Gruppen_Kinder[[#Totals],[G-Gesamt]] -> 329 | J3: =tbl_Gruppen_Kinder[[#Totals],[K-Krippe]] -> 931 | K3: =tbl_Gruppen_Kinder[[#Totals],[K-Midi]] -> 81 | L3: =tbl_Gruppen_Kinder[[#Totals],[K-Kiga]] -> 4237 | M3: =tbl_Gruppen_Kinder[[#Totals],[K-Hort]] -> 805 | N3: =tbl_Gruppen_Kinder[[#Totals],[K-Gesamt]] -> 6054 | O3: =tbl_Gruppen_Kinder[[#Totals],[Größe-Kategorie]] -> 92
E4: Guppen (G) | J4: Kinder (K)
B5: Einrichtungs-Nr. | C5: Ort | D5: Einrichtung | E5: G-Krippe | F5: G-Midi | G5: G-Kiga | H5: G-Hort | I5: G-Gesamt | J5: K-Krippe | K5: K-Midi | L5: K-Kiga | M5: K-Hort | N5: K-Gesamt | O5: Größe-Kategorie
B6: 1901110002 | C6: Altenstadt | D6: Integratives Kinderhaus Altenstadt | E6: 0 | F6: 0 | G6: 2 | H6: 2 | I6: =tbl_Gruppen_Kinder[[#This Row],[G-Krippe]]+tbl_Gruppen_Kinder[[#This Row],[G-Midi]]+tbl_Gruppen_Kinder[[#This Row],[G-Kiga]]+tbl_Gruppen_Kinder[[#This Row],[G-Hort]] -> 4 | J6: 0 | K6: 0 | L6: 36 | M6: 28 | N6: =tbl_Gruppen_Kinder[[#This Row],[K-Krippe]]+tbl_Gruppen_Kinder[[#This Row],[K-Midi]]+tbl_Gruppen_Kinder[[#This Row],[K-Kiga]]+tbl_Gruppen_Kinder[[#This Row],[K-Hort]] -> 64 | O6: =IF(tbl_Gruppen_Kinder[[#This Row],[K-Gesamt]]=0,"2026 Ø",IF(tbl_Gruppen_Kinder[[#This Row],[K-Gesamt]]<25,"XS (<25 Ki.)",IF(tbl_Gruppen_Kinder[[#This Row],[K-Gesamt]]<50,"S (25-49 Ki.)",IF(tbl_Gruppen_Kinder[[#This Row],[K-Gesamt]]<100,"M (50-99 Ki.)",IF(tbl_Gruppen_Kinder[[#This Row],[K-Gesamt]]<150,"L (100-149 Ki.)","XL (150- Ki.)"))))) -> M (50-99 Ki.)
B7: 1901110001 | C7: Altenstadt | D7: Kath. Kindergarten St. Michael | E7: 1 | F7: 0 | G7: 4 | H7: 0 | I7: =tbl_Gruppen_Kinder[[#This Row],[G-Krippe]]+tbl_Gruppen_Kinder[[#This Row],[G-Midi]]+tbl_Gruppen_Kinder[[#This Row],[G-Kiga]]+tbl_Gruppen_Kinder[[#This Row],[G-Hort]] -> 5 | J7: 12 | K7: 0 | L7: 75 | M7: 0 | N7: =tbl_Gruppen_Kinder[[#This Row],[K-Krippe]]+tbl_Gruppen_Kinder[[#This Row],[K-Midi]]+tbl_Gruppen_Kinder[[#This Row],[K-Kiga]]+tbl_Gruppen_Kinder[[#This Row],[K-Hort]] -> 87 | O7: =IF(tbl_Gruppen_Kinder[[#This Row],[K-Gesamt]]=0,"2026 Ø",IF(tbl_Gruppen_Kinder[[#This Row],[K-Gesamt]]<25,"XS (<25 Ki.)",IF(tbl_Gruppen_Kinder[[#This Row],[K-Gesamt]]<50,"S (25-49 Ki.)",IF(tbl_Gruppen_Kinder[[#This Row],[K-Gesamt]]<100,"M (50-99 Ki.)",IF(tbl_Gruppen_Kinder[[#This Row],[K-Gesamt]]<150,"L (100-149 Ki.)","XL (150- Ki.)"))))) -> M (50-99 Ki.)
B8: 1901130002 | C8: Antdorf | D8: Kindertagesstätte Antdorf | E8: 1 | F8: 0 | G8: 3 | H8: 1 | I8: =tbl_Gruppen_Kinder[[#This Row],[G-Krippe]]+tbl_Gruppen_Kinder[[#This Row],[G-Midi]]+tbl_Gruppen_Kinder[[#This Row],[G-Kiga]]+tbl_Gruppen_Kinder[[#This Row],[G-Hort]] -> 5 | J8: 12 | K8: 0 | L8: 48 | M8: 17 | N8: =tbl_Gruppen_Kinder[[#This Row],[K-Krippe]]+tbl_Gruppen_Kinder[[#This Row],[K-Midi]]+tbl_Gruppen_Kinder[[#This Row],[K-Kiga]]+tbl_Gruppen_Kinder[[#This Row],[K-Hort]] -> 77 | O8: =IF(tbl_Gruppen_Kinder[[#This Row],[K-Gesamt]]=0,"2026 Ø",IF(tbl_Gruppen_Kinder[[#This Row],[K-Gesamt]]<25,"XS (<25 Ki.)",IF(tbl_Gruppen_Kinder[[#This Row],[K-Gesamt]]<50,"S (25-49 Ki.)",IF(tbl_Gruppen_Kinder[[#This Row],[K-Gesamt]]<100,"M (50-99 Ki.)",IF(tbl_Gruppen_Kinder[[#This Row],[K-Gesamt]]<150,"L (100-149 Ki.)","XL (150- Ki.)"))))) -> M (50-99 Ki.)
B9: 1901140003 | C9: Bernbeuren | D9: Kath. Kindergarten St. Nikolaus | E9: 1 | F9: 0 | G9: 5 | H9: 1 | I9: =tbl_Gruppen_Kinder[[#This Row],[G-Krippe]]+tbl_Gruppen_Kinder[[#This Row],[G-Midi]]+tbl_Gruppen_Kinder[[#This Row],[G-Kiga]]+tbl_Gruppen_Kinder[[#This Row],[G-Hort]] -> 7 | J9: 10 | K9: 0 | L9: 96 | M9: 22 | N9: =tbl_Gruppen_Kinder[[#This Row],[K-Krippe]]+tbl_Gruppen_Kinder[[#This Row],[K-Midi]]+tbl_Gruppen_Kinder[[#This Row],[K-Kiga]]+tbl_Gruppen_Kinder[[#This Row],[K-Hort]] -> 128 | O9: =IF(tbl_Gruppen_Kinder[[#This Row],[K-Gesamt]]=0,"2026 Ø",IF(tbl_Gruppen_Kinder[[#This Row],[K-Gesamt]]<25,"XS (<25 Ki.)",IF(tbl_Gruppen_Kinder[[#This Row],[K-Gesamt]]<50,"S (25-49 Ki.)",IF(tbl_Gruppen_Kinder[[#This Row],[K-Gesamt]]<100,"M (50-99 Ki.)",IF(tbl_Gruppen_Kinder[[#This Row],[K-Gesamt]]<150,"L (100-149 Ki.)","XL (150- Ki.)"))))) -> L (100-149 Ki.)
B10: 1901151115 | C10: Bernried | D10: Kinderhaus Bernried | E10: 0 | F10: 0 | G10: 4 | H10: 1 | I10: =tbl_Gruppen_Kinder[[#This Row],[G-Krippe]]+tbl_Gruppen_Kinder[[#This Row],[G-Midi]]+tbl_Gruppen_Kinder[[#This Row],[G-Kiga]]+tbl_Gruppen_Kinder[[#This Row],[G-Hort]] -> 5 | J10: 0 | K10: 0 | L10: 57 | M10: 22 | N10: =tbl_Gruppen_Kinder[[#This Row],[K-Krippe]]+tbl_Gruppen_Kinder[[#This Row],[K-Midi]]+tbl_Gruppen_Kinder[[#This Row],[K-Kiga]]+tbl_Gruppen_Kinder[[#This Row],[K-Hort]] -> 79 | O10: =IF(tbl_Gruppen_Kinder[[#This Row],[K-Gesamt]]=0,"2026 Ø",IF(tbl_Gruppen_Kinder[[#This Row],[K-Gesamt]]<25,"XS (<25 Ki.)",IF(tbl_Gruppen_Kinder[[#This Row],[K-Gesamt]]<50,"S (25-49 Ki.)",IF(tbl_Gruppen_Kinder[[#This Row],[K-Gesamt]]<100,"M (50-99 Ki.)",IF(tbl_Gruppen_Kinder[[#This Row],[K-Gesamt]]<150,"L (100-149 Ki.)","XL (150- Ki.)"))))) -> M (50-99 Ki.)
B11: 1901150005 | C11: Bernried | D11: Waldkinder Bernried e.V. | E11: 0 | F11: 0 | G11: 1 | H11: 1 | I11: =tbl_Gruppen_Kinder[[#This Row],[G-Krippe]]+tbl_Gruppen_Kinder[[#This Row],[G-Midi]]+tbl_Gruppen_Kinder[[#This Row],[G-Kiga]]+tbl_Gruppen_Kinder[[#This Row],[G-Hort]] -> 2 | J11: 0 | K11: 0 | L11: 16 | M11: 17 | N11: =tbl_Gruppen_Kinder[[#This Row],[K-Krippe]]+tbl_Gruppen_Kinder[[#This Row],[K-Midi]]+tbl_Gruppen_Kinder[[#This Row],[K-Kiga]]+tbl_Gruppen_Kinder[[#This Row],[K-Hort]] -> 33 | O11: =IF(tbl_Gruppen_Kinder[[#This Row],[K-Gesamt]]=0,"2026 Ø",IF(tbl_Gruppen_Kinder[[#This Row],[K-Gesamt]]<25,"XS (<25 Ki.)",IF(tbl_Gruppen_Kinder[[#This Row],[K-Gesamt]]<50,"S (25-49 Ki.)",IF(tbl_Gruppen_Kinder[[#This Row],[K-Gesamt]]<100,"M (50-99 Ki.)",IF(tbl_Gruppen_Kinder[[#This Row],[K-Gesamt]]<150,"L (100-149 Ki.)","XL (150- Ki.)"))))) -> S (25-49 Ki.)
B12: 1901171111 | C12: Böbing | D12: Kindergarten St. Hedwig | E12: 2 | F12: 0 | G12: 3 | H12: 0 | I12: =tbl_Gruppen_Kinder[[#This Row],[G-Krippe]]+tbl_Gruppen_Kinder[[#This Row],[G-Midi]]+tbl_Gruppen_Kinder[[#This Row],[G-Kiga]]+tbl_Gruppen_Kinder[[#This Row],[G-Hort]] -> 5 | J12: 29 | K12: 0 | L12: 71 | M12: 0 | N12: =tbl_Gruppen_Kinder[[#This Row],[K-Krippe]]+tbl_Gruppen_Kinder[[#This Row],[K-Midi]]+tbl_Gruppen_Kinder[[#This Row],[K-Kiga]]+tbl_Gruppen_Kinder[[#This Row],[K-Hort]] -> 100 | O12: =IF(tbl_Gruppen_Kinder[[#This Row],[K-Gesamt]]=0,"2026 Ø",IF(tbl_Gruppen_Kinder[[#This Row],[K-Gesamt]]<25,"XS (<25 Ki.)",IF(tbl_Gruppen_Kinder[[#This Row],[K-Gesamt]]<50,"S (25-49 Ki.)",IF(tbl_Gruppen_Kinder[[#This Row],[K-Gesamt]]<100,"M (50-99 Ki.)",IF(tbl_Gruppen_Kinder[[#This Row],[K-Gesamt]]<150,"L (100-149 Ki.)","XL (150- Ki.)"))))) -> L (100-149 Ki.)
B13: 1901180007 | C13: Burggen | D13: Katholische Kindertageseinrichtung St. Anna | E13: 1 | F13: 0 | G13: 3 | H13: 0 | I13: =tbl_Gruppen_Kinder[[#This Row],[G-Krippe]]+tbl_Gruppen_Kinder[[#This Row],[G-Midi]]+tbl_Gruppen_Kinder[[#This Row],[G-Kiga]]+tbl_Gruppen_Kinder[[#This Row],[G-Hort]] -> 4 | J13: 9 | K13: 0 | L13: 57 | M13: 0 | N13: =tbl_Gruppen_Kinder[[#This Row],[K-Krippe]]+tbl_Gruppen_Kinder[[#This Row],[K-Midi]]+tbl_Gruppen_Kinder[[#This Row],[K-Kiga]]+tbl_Gruppen_Kinder[[#This Row],[K-Hort]] -> 66 | O13: =IF(tbl_Gruppen_Kinder[[#This Row],[K-Gesamt]]=0,"2026 Ø",IF(tbl_Gruppen_Kinder[[#This Row],[K-Gesamt]]<25,"XS (<25 Ki.)",IF(tbl_Gruppen_Kinder[[#This Row],[K-Gesamt]]<50,"S (25-49 Ki.)",IF(tbl_Gruppen_Kinder[[#This Row],[K-Gesamt]]<100,"M (50-99 Ki.)",IF(tbl_Gruppen_Kinder[[#This Row],[K-Gesamt]]<150,"L (100-149 Ki.)","XL (150- Ki.)"))))) -> M (50-99 Ki.)
B14: 1901200008 | C14: Eberfing | D14: Eberfinger Kinderhaus "Ich & Du" | E14: 1 | F14: 0 | G14: 3 | H14: 1 | I14: =tbl_Gruppen_Kinder[[#This Row],[G-Krippe]]+tbl_Gruppen_Kinder[[#This Row],[G-Midi]]+tbl_Gruppen_Kinder[[#This Row],[G-Kiga]]+tbl_Gruppen_Kinder[[#This Row],[G-Hort]] -> 5 | J14: 12 | K14: 0 | L14: 66 | M14: 29 | N14: =tbl_Gruppen_Kinder[[#This Row],[K-Krippe]]+tbl_Gruppen_Kinder[[#This Row],[K-Midi]]+tbl_Gruppen_Kinder[[#This Row],[K-Kiga]]+tbl_Gruppen_Kinder[[#This Row],[K-Hort]] -> 107 | O14: =IF(tbl_Gruppen_Kinder[[#This Row],[K-Gesamt]]=0,"2026 Ø",IF(tbl_Gruppen_Kinder[[#This Row],[K-Gesamt]]<25,"XS (<25 Ki.)",IF(tbl_Gruppen_Kinder[[#This Row],[K-Gesamt]]<50,"S (25-49 Ki.)",IF(tbl_Gruppen_Kinder[[#This Row],[K-Gesamt]]<100,"M (50-99 Ki.)",IF(tbl_Gruppen_Kinder[[#This Row],[K-Gesamt]]<150,"L (100-149 Ki.)","XL (150- Ki.)"))))) -> L (100-149 Ki.)
B15: 1901210009 | C15: Eglfing | D15: Kindergarten Eglfing | E15: 0 | F15: 0 | G15: 2 | H15: 0 | I15: =tbl_Gruppen_Kinder[[#This Row],[G-Krippe]]+tbl_Gruppen_Kinder[[#This Row],[G-Midi]]+tbl_Gruppen_Kinder[[#This Row],[G-Kiga]]+tbl_Gruppen_Kinder[[#This Row],[G-Hort]] -> 2 | J15: 0 | K15: 0 | L15: 43 | M15: 0 | N15: =tbl_Gruppen_Kinder[[#This Row],[K-Krippe]]+tbl_Gruppen_Kinder[[#This Row],[K-Midi]]+tbl_Gruppen_Kinder[[#This Row],[K-Kiga]]+tbl_Gruppen_Kinder[[#This Row],[K-Hort]] -> 43 | O15: =IF(tbl_Gruppen_Kinder[[#This Row],[K-Gesamt]]=0,"2026 Ø",IF(tbl_Gruppen_Kinder[[#This Row],[K-Gesamt]]<25,"XS (<25 Ki.)",IF(tbl_Gruppen_Kinder[[#This Row],[K-Gesamt]]<50,"S (25-49 Ki.)",IF(tbl_Gruppen_Kinder[[#This Row],[K-Gesamt]]<100,"M (50-99 Ki.)",IF(tbl_Gruppen_Kinder[[#This Row],[K-Gesamt]]<150,"L (100-149 Ki.)","XL (150- Ki.)"))))) -> S (25-49 Ki.)
B16: 1901210097 | C16: Eglfing | D16: Kinderkrippe Tauting | E16: 1 | F16: 0 | G16: 0 | H16: 0 | I16: =tbl_Gruppen_Kinder[[#This Row],[G-Krippe]]+tbl_Gruppen_Kinder[[#This Row],[G-Midi]]+tbl_Gruppen_Kinder[[#This Row],[G-Kiga]]+tbl_Gruppen_Kinder[[#This Row],[G-Hort]] -> 1 | J16: 15 | K16: 0 | L16: 0 | M16: 0 | N16: =tbl_Gruppen_Kinder[[#This Row],[K-Krippe]]+tbl_Gruppen_Kinder[[#This Row],[K-Midi]]+tbl_Gruppen_Kinder[[#This Row],[K-Kiga]]+tbl_Gruppen_Kinder[[#This Row],[K-Hort]] -> 15 | O16: =IF(tbl_Gruppen_Kinder[[#This Row],[K-Gesamt]]=0,"2026 Ø",IF(tbl_Gruppen_Kinder[[#This Row],[K-Gesamt]]<25,"XS (<25 Ki.)",IF(tbl_Gruppen_Kinder[[#This Row],[K-Gesamt]]<50,"S (25-49 Ki.)",IF(tbl_Gruppen_Kinder[[#This Row],[K-Gesamt]]<100,"M (50-99 Ki.)",IF(tbl_Gruppen_Kinder[[#This Row],[K-Gesamt]]<150,"L (100-149 Ki.)","XL (150- Ki.)"))))) -> XS (<25 Ki.)
B17: 1901260010 | C17: Habach | D17: Ulrich Kinderhaus Habach | E17: 1 | F17: 0 | G17: 2 | H17: 0 | I17: =tbl_Gruppen_Kinder[[#This Row],[G-Krippe]]+tbl_Gruppen_Kinder[[#This Row],[G-Midi]]+tbl_Gruppen_Kinder[[#This Row],[G-Kiga]]+tbl_Gruppen_Kinder[[#This Row],[G-Hort]] -> 3 | J17: 12 | K17: 0 | L17: 36 | M17: 0 | N17: =tbl_Gruppen_Kinder[[#This Row],[K-Krippe]]+tbl_Gruppen_Kinder[[#This Row],[K-Midi]]+tbl_Gruppen_Kinder[[#This Row],[K-Kiga]]+tbl_Gruppen_Kinder[[#This Row],[K-Hort]] -> 48 | O17: =IF(tbl_Gruppen_Kinder[[#This Row],[K-Gesamt]]=0,"2026 Ø",IF(tbl_Gruppen_Kinder[[#This Row],[K-Gesamt]]<25,"XS (<25 Ki.)",IF(tbl_Gruppen_Kinder[[#This Row],[K-Gesamt]]<50,"S (25-49 Ki.)",IF(tbl_Gruppen_Kinder[[#This Row],[K-Gesamt]]<100,"M (50-99 Ki.)",IF(tbl_Gruppen_Kinder[[#This Row],[K-Gesamt]]<150,"L (100-149 Ki.)","XL (150- Ki.)"))))) -> S (25-49 Ki.)
B18: 1901290011 | C18: Hohenfurch | D18: Kindergarten 'Sonnenblick' Kindergarten & Krippe | E18: 1 | F18: 0 | G18: 3 | H18: 0 | I18: =tbl_Gruppen_Kinder[[#This Row],[G-Krippe]]+tbl_Gruppen_Kinder[[#This Row],[G-Midi]]+tbl_Gruppen_Kinder[[#This Row],[G-Kiga]]+tbl_Gruppen_Kinder[[#This Row],[G-Hort]] -> 4 | J18: 12 | K18: 0 | L18: 60 | M18: 0 | N18: =tbl_Gruppen_Kinder[[#This Row],[K-Krippe]]+tbl_Gruppen_Kinder[[#This Row],[K-Midi]]+tbl_Gruppen_Kinder[[#This Row],[K-Kiga]]+tbl_Gruppen_Kinder[[#This Row],[K-Hort]] -> 72 | O18: =IF(tbl_Gruppen_Kinder[[#This Row],[K-Gesamt]]=0,"2026 Ø",IF(tbl_Gruppen_Kinder[[#This Row],[K-Gesamt]]<25,"XS (<25 Ki.)",IF(tbl_Gruppen_Kinder[[#This Row],[K-Gesamt]]<50,"S (25-49 Ki.)",IF(tbl_Gruppen_Kinder[[#This Row],[K-Gesamt]]<100,"M (50-99 Ki.)",IF(tbl_Gruppen_Kinder[[#This Row],[K-Gesamt]]<150,"L (100-149 Ki.)","XL (150- Ki.)"))))) -> M (50-99 Ki.)
B19: 1901300014 | C19: Hohenpeißenberg | D19: Integratives Kinderhaus am Schächen | E19: 1 | F19: 0 | G19: 2 | H19: 0 | I19: =tbl_Gruppen_Kinder[[#This Row],[G-Krippe]]+tbl_Gruppen_Kinder[[#This Row],[G-Midi]]+tbl_Gruppen_Kinder[[#This Row],[G-Kiga]]+tbl_Gruppen_Kinder[[#This Row],[G-Hort]] -> 3 | J19: 10 | K19: 0 | L19: 39 | M19: 0 | N19: =tbl_Gruppen_Kinder[[#This Row],[K-Krippe]]+tbl_Gruppen_Kinder[[#This Row],[K-Midi]]+tbl_Gruppen_Kinder[[#This Row],[K-Kiga]]+tbl_Gruppen_Kinder[[#This Row],[K-Hort]] -> 49 | O19: =IF(tbl_Gruppen_Kinder[[#This Row],[K-Gesamt]]=0,"2026 Ø",IF(tbl_Gruppen_Kinder[[#This Row],[K-Gesamt]]<25,"XS (<25 Ki.)",IF(tbl_Gruppen_Kinder[[#This Row],[K-Gesamt]]<50,"S (25-49 Ki.)",IF(tbl_Gruppen_Kinder[[#This Row],[K-Gesamt]]<100,"M (50-99 Ki.)",IF(tbl_Gruppen_Kinder[[#This Row],[K-Gesamt]]<150,"L (100-149 Ki.)","XL (150- Ki.)"))))) -> S (25-49 Ki.)
B20: 1901300013 | C20: Hohenpeißenberg | D20: Kindergarten im Hetten | E20: 1 | F20: 0 | G20: 2 | H20: 0 | I20: =tbl_Gruppen_Kinder[[#This Row],[G-Krippe]]+tbl_Gruppen_Kinder[[#This Row],[G-Midi]]+tbl_Gruppen_Kinder[[#This Row],[G-Kiga]]+tbl_Gruppen_Kinder[[#This Row],[G-Hort]] -> 3 | J20: 11 | K20: 0 | L20: 31 | M20: 0 | N20: =tbl_Gruppen_Kinder[[#This Row],[K-Krippe]]+tbl_Gruppen_Kinder[[#This Row],[K-Midi]]+tbl_Gruppen_Kinder[[#This Row],[K-Kiga]]+tbl_Gruppen_Kinder[[#This Row],[K-Hort]] -> 42 | O20: =IF(tbl_Gruppen_Kinder[[#This Row],[K-Gesamt]]=0,"2026 Ø",IF(tbl_Gruppen_Kinder[[#This Row],[K-Gesamt]]<25,"XS (<25 Ki.)",IF(tbl_Gruppen_Kinder[[#This Row],[K-Gesamt]]<50,"S (25-49 Ki.)",IF(tbl_Gruppen_Kinder[[#This Row],[K-Gesamt]]<100,"M (50-99 Ki.)",IF(tbl_Gruppen_Kinder[[#This Row],[K-Gesamt]]<150,"L (100-149 Ki.)","XL (150- Ki.)"))))) -> S (25-49 Ki.)
B21: 1901310121 | C21: Huglfing | D21: Kindertagesstätte Huglhupf | E21: 2 | F21: 0 | G21: 5 | H21: 0 | I21: =tbl_Gruppen_Kinder[[#This Row],[G-Krippe]]+tbl_Gruppen_Kinder[[#This Row],[G-Midi]]+tbl_Gruppen_Kinder[[#This Row],[G-Kiga]]+tbl_Gruppen_Kinder[[#This Row],[G-Hort]] -> 7 | J21: 2 | K21: 0 | L21: 115 | M21: 0 | N21: =tbl_Gruppen_Kinder[[#This Row],[K-Krippe]]+tbl_Gruppen_Kinder[[#This Row],[K-Midi]]+tbl_Gruppen_Kinder[[#This Row],[K-Kiga]]+tbl_Gruppen_Kinder[[#This Row],[K-Hort]] -> 117 | O21: =IF(tbl_Gruppen_Kinder[[#This Row],[K-Gesamt]]=0,"2026 Ø",IF(tbl_Gruppen_Kinder[[#This Row],[K-Gesamt]]<25,"XS (<25 Ki.)",IF(tbl_Gruppen_Kinder[[#This Row],[K-Gesamt]]<50,"S (25-49 Ki.)",IF(tbl_Gruppen_Kinder[[#This Row],[K-Gesamt]]<100,"M (50-99 Ki.)",IF(tbl_Gruppen_Kinder[[#This Row],[K-Gesamt]]<150,"L (100-149 Ki.)","XL (150- Ki.)"))))) -> L (100-149 Ki.)
B22: 1901320015 | C22: Iffeldorf | D22: Katholisches Haus für Kinder St. Vitus | E22: 4 | F22: 1 | G22: 4 | H22: 1 | I22: =tbl_Gruppen_Kinder[[#This Row],[G-Krippe]]+tbl_Gruppen_Kinder[[#This Row],[G-Midi]]+tbl_Gruppen_Kinder[[#This Row],[G-Kiga]]+tbl_Gruppen_Kinder[[#This Row],[G-Hort]] -> 10 | J22: 2 | K22: 10 | L22: 88 | M22: 33 | N22: =tbl_Gruppen_Kinder[[#This Row],[K-Krippe]]+tbl_Gruppen_Kinder[[#This Row],[K-Midi]]+tbl_Gruppen_Kinder[[#This Row],[K-Kiga]]+tbl_Gruppen_Kinder[[#This Row],[K-Hort]] -> 133 | O22: =IF(tbl_Gruppen_Kinder[[#This Row],[K-Gesamt]]=0,"2026 Ø",IF(tbl_Gruppen_Kinder[[#This Row],[K-Gesamt]]<25,"XS (<25 Ki.)",IF(tbl_Gruppen_Kinder[[#This Row],[K-Gesamt]]<50,"S (25-49 Ki.)",IF(tbl_Gruppen_Kinder[[#This Row],[K-Gesamt]]<100,"M (50-99 Ki.)",IF(tbl_Gruppen_Kinder[[#This Row],[K-Gesamt]]<150,"L (100-149 Ki.)","XL (150- Ki.)"))))) -> L (100-149 Ki.)
B23: 1901330016 | C23: Ingenried | D23: Kindergarten St. Georg | E23: 1 | F23: 1 | G23: 2 | H23: 0 | I23: =tbl_Gruppen_Kinder[[#This Row],[G-Krippe]]+tbl_Gruppen_Kinder[[#This Row],[G-Midi]]+tbl_Gruppen_Kinder[[#This Row],[G-Kiga]]+tbl_Gruppen_Kinder[[#This Row],[G-Hort]] -> 4 | J23: 10 | K23: 13 | L23: 48 | M23: 0 | N23: =tbl_Gruppen_Kinder[[#This Row],[K-Krippe]]+tbl_Gruppen_Kinder[[#This Row],[K-Midi]]+tbl_Gruppen_Kinder[[#This Row],[K-Kiga]]+tbl_Gruppen_Kinder[[#This Row],[K-Hort]] -> 71 | O23: =IF(tbl_Gruppen_Kinder[[#This Row],[K-Gesamt]]=0,"2026 Ø",IF(tbl_Gruppen_Kinder[[#This Row],[K-Gesamt]]<25,"XS (<25 Ki.)",IF(tbl_Gruppen_Kinder[[#This Row],[K-Gesamt]]<50,"S (25-49 Ki.)",IF(tbl_Gruppen_Kinder[[#This Row],[K-Gesamt]]<100,"M (50-99 Ki.)",IF(tbl_Gruppen_Kinder[[#This Row],[K-Gesamt]]<150,"L (100-149 Ki.)","XL (150- Ki.)"))))) -> M (50-99 Ki.)
B24: 1901350120 | C24: Oberhausen | D24: Kinderhaus am Storchennest | E24: 2 | F24: 0 | G24: 3 | H24: 0 | I24: =tbl_Gruppen_Kinder[[#This Row],[G-Krippe]]+tbl_Gruppen_Kinder[[#This Row],[G-Midi]]+tbl_Gruppen_Kinder[[#This Row],[G-Kiga]]+tbl_Gruppen_Kinder[[#This Row],[G-Hort]] -> 5 | J24: 24 | K24: 0 | L24: 75 | M24: 0 | N24: =tbl_Gruppen_Kinder[[#This Row],[K-Krippe]]+tbl_Gruppen_Kinder[[#This Row],[K-Midi]]+tbl_Gruppen_Kinder[[#This Row],[K-Kiga]]+tbl_Gruppen_Kinder[[#This Row],[K-Hort]] -> 99 | O24: =IF(tbl_Gruppen_Kinder[[#This Row],[K-Gesamt]]=0,"2026 Ø",IF(tbl_Gruppen_Kinder[[#This Row],[K-Gesamt]]<25,"XS (<25 Ki.)",IF(tbl_Gruppen_Kinder[[#This Row],[K-Gesamt]]<50,"S (25-49 Ki.)",IF(tbl_Gruppen_Kinder[[#This Row],[K-Gesamt]]<100,"M (50-99 Ki.)",IF(tbl_Gruppen_Kinder[[#This Row],[K-Gesamt]]<150,"L (100-149 Ki.)","XL (150- Ki.)"))))) -> M (50-99 Ki.)
B25: 1901360018 | C25: Obersöchering | D25: Kinderhaus Söcheringer Wespennest | E25: 1 | F25: 1 | G25: 2 | H25: 0 | I25: =tbl_Gruppen_Kinder[[#This Row],[G-Krippe]]+tbl_Gruppen_Kinder[[#This Row],[G-Midi]]+tbl_Gruppen_Kinder[[#This Row],[G-Kiga]]+tbl_Gruppen_Kinder[[#This Row],[G-Hort]] -> 4 | J25: 9 | K25: 15 | L25: 50 | M25: 0 | N25: =tbl_Gruppen_Kinder[[#This Row],[K-Krippe]]+tbl_Gruppen_Kinder[[#This Row],[K-Midi]]+tbl_Gruppen_Kinder[[#This Row],[K-Kiga]]+tbl_Gruppen_Kinder[[#This Row],[K-Hort]] -> 74 | O25: =IF(tbl_Gruppen_Kinder[[#This Row],[K-Gesamt]]=0,"2026 Ø",IF(tbl_Gruppen_Kinder[[#This Row],[K-Gesamt]]<25,"XS (<25 Ki.)",IF(tbl_Gruppen_Kinder[[#This Row],[K-Gesamt]]<50,"S (25-49 Ki.)",IF(tbl_Gruppen_Kinder[[#This Row],[K-Gesamt]]<100,"M (50-99 Ki.)",IF(tbl_Gruppen_Kinder[[#This Row],[K-Gesamt]]<150,"L (100-149 Ki.)","XL (150- Ki.)"))))) -> M (50-99 Ki.)
B26: 1901390024 | C26: Peißenberg | D26: AWO-Kinderhaus Pumuckl | E26: 1 | F26: 0 | G26: 2 | H26: 1 | I26: =tbl_Gruppen_Kinder[[#This Row],[G-Krippe]]+tbl_Gruppen_Kinder[[#This Row],[G-Midi]]+tbl_Gruppen_Kinder[[#This Row],[G-Kiga]]+tbl_Gruppen_Kinder[[#This Row],[G-Hort]] -> 4 | J26: 12 | K26: 0 | L26: 51 | M26: 22 | N26: =tbl_Gruppen_Kinder[[#This Row],[K-Krippe]]+tbl_Gruppen_Kinder[[#This Row],[K-Midi]]+tbl_Gruppen_Kinder[[#This Row],[K-Kiga]]+tbl_Gruppen_Kinder[[#This Row],[K-Hort]] -> 85 | O26: =IF(tbl_Gruppen_Kinder[[#This Row],[K-Gesamt]]=0,"2026 Ø",IF(tbl_Gruppen_Kinder[[#This Row],[K-Gesamt]]<25,"XS (<25 Ki.)",IF(tbl_Gruppen_Kinder[[#This Row],[K-Gesamt]]<50,"S (25-49 Ki.)",IF(tbl_Gruppen_Kinder[[#This Row],[K-Gesamt]]<100,"M (50-99 Ki.)",IF(tbl_Gruppen_Kinder[[#This Row],[K-Gesamt]]<150,"L (100-149 Ki.)","XL (150- Ki.)"))))) -> M (50-99 Ki.)
B27: 1901390023 | C27: Peißenberg | D27: Evang. Kindergarten Regenbogen | E27: 0 | F27: 0 | G27: 3 | H27: 0 | I27: =tbl_Gruppen_Kinder[[#This Row],[G-Krippe]]+tbl_Gruppen_Kinder[[#This Row],[G-Midi]]+tbl_Gruppen_Kinder[[#This Row],[G-Kiga]]+tbl_Gruppen_Kinder[[#This Row],[G-Hort]] -> 3 | J27: 10 | K27: 0 | L27: 60 | M27: 0 | N27: =tbl_Gruppen_Kinder[[#This Row],[K-Krippe]]+tbl_Gruppen_Kinder[[#This Row],[K-Midi]]+tbl_Gruppen_Kinder[[#This Row],[K-Kiga]]+tbl_Gruppen_Kinder[[#This Row],[K-Hort]] -> 70 | O27: =IF(tbl_Gruppen_Kinder[[#This Row],[K-Gesamt]]=0,"2026 Ø",IF(tbl_Gruppen_Kinder[[#This Row],[K-Gesamt]]<25,"XS (<25 Ki.)",IF(tbl_Gruppen_Kinder[[#This Row],[K-Gesamt]]<50,"S (25-49 Ki.)",IF(tbl_Gruppen_Kinder[[#This Row],[K-Gesamt]]<100,"M (50-99 Ki.)",IF(tbl_Gruppen_Kinder[[#This Row],[K-Gesamt]]<150,"L (100-149 Ki.)","XL (150- Ki.)"))))) -> M (50-99 Ki.)
B28: 1901390025 | C28: Peißenberg | D28: FortSchritt Inklusives Kinderhaus an der Ammer | E28: 1 | F28: 0 | G28: 3 | H28: 0 | I28: =tbl_Gruppen_Kinder[[#This Row],[G-Krippe]]+tbl_Gruppen_Kinder[[#This Row],[G-Midi]]+tbl_Gruppen_Kinder[[#This Row],[G-Kiga]]+tbl_Gruppen_Kinder[[#This Row],[G-Hort]] -> 4 | J28: 12 | K28: 0 | L28: 48 | M28: 0 | N28: =tbl_Gruppen_Kinder[[#This Row],[K-Krippe]]+tbl_Gruppen_Kinder[[#This Row],[K-Midi]]+tbl_Gruppen_Kinder[[#This Row],[K-Kiga]]+tbl_Gruppen_Kinder[[#This Row],[K-Hort]] -> 60 | O28: =IF(tbl_Gruppen_Kinder[[#This Row],[K-Gesamt]]=0,"2026 Ø",IF(tbl_Gruppen_Kinder[[#This Row],[K-Gesamt]]<25,"XS (<25 Ki.)",IF(tbl_Gruppen_Kinder[[#This Row],[K-Gesamt]]<50,"S (25-49 Ki.)",IF(tbl_Gruppen_Kinder[[#This Row],[K-Gesamt]]<100,"M (50-99 Ki.)",IF(tbl_Gruppen_Kinder[[#This Row],[K-Gesamt]]<150,"L (100-149 Ki.)","XL (150- Ki.)"))))) -> M (50-99 Ki.)
B29: 1901390021 | C29: Peißenberg | D29: Kindergarten St. Johannes Baptist | E29: 1 | F29: 0 | G29: 3 | H29: 0 | I29: =tbl_Gruppen_Kinder[[#This Row],[G-Krippe]]+tbl_Gruppen_Kinder[[#This Row],[G-Midi]]+tbl_Gruppen_Kinder[[#This Row],[G-Kiga]]+tbl_Gruppen_Kinder[[#This Row],[G-Hort]] -> 4 | J29: 14 | K29: 0 | L29: 81 | M29: 0 | N29: =tbl_Gruppen_Kinder[[#This Row],[K-Krippe]]+tbl_Gruppen_Kinder[[#This Row],[K-Midi]]+tbl_Gruppen_Kinder[[#This Row],[K-Kiga]]+tbl_Gruppen_Kinder[[#This Row],[K-Hort]] -> 95 | O29: =IF(tbl_Gruppen_Kinder[[#This Row],[K-Gesamt]]=0,"2026 Ø",IF(tbl_Gruppen_Kinder[[#This Row],[K-Gesamt]]<25,"XS (<25 Ki.)",IF(tbl_Gruppen_Kinder[[#This Row],[K-Gesamt]]<50,"S (25-49 Ki.)",IF(tbl_Gruppen_Kinder[[#This Row],[K-Gesamt]]<100,"M (50-99 Ki.)",IF(tbl_Gruppen_Kinder[[#This Row],[K-Gesamt]]<150,"L (100-149 Ki.)","XL (150- Ki.)"))))) -> M (50-99 Ki.)
B30: 1901390026 | C30: Peißenberg | D30: Kinderhaus am Berg | E30: 1 | F30: 0 | G30: 3 | H30: 0 | I30: =tbl_Gruppen_Kinder[[#This Row],[G-Krippe]]+tbl_Gruppen_Kinder[[#This Row],[G-Midi]]+tbl_Gruppen_Kinder[[#This Row],[G-Kiga]]+tbl_Gruppen_Kinder[[#This Row],[G-Hort]] -> 4 | J30: 13 | K30: 0 | L30: 50 | M30: 0 | N30: =tbl_Gruppen_Kinder[[#This Row],[K-Krippe]]+tbl_Gruppen_Kinder[[#This Row],[K-Midi]]+tbl_Gruppen_Kinder[[#This Row],[K-Kiga]]+tbl_Gruppen_Kinder[[#This Row],[K-Hort]] -> 63 | O30: =IF(tbl_Gruppen_Kinder[[#This Row],[K-Gesamt]]=0,"2026 Ø",IF(tbl_Gruppen_Kinder[[#This Row],[K-Gesamt]]<25,"XS (<25 Ki.)",IF(tbl_Gruppen_Kinder[[#This Row],[K-Gesamt]]<50,"S (25-49 Ki.)",IF(tbl_Gruppen_Kinder[[#This Row],[K-Gesamt]]<100,"M (50-99 Ki.)",IF(tbl_Gruppen_Kinder[[#This Row],[K-Gesamt]]<150,"L (100-149 Ki.)","XL (150- Ki.)"))))) -> M (50-99 Ki.)
B31: 1901390125 | C31: Peißenberg | D31: Kinderhaus im Dorf | E31: 1 | F31: 0 | G31: 2 | H31: 0 | I31: =tbl_Gruppen_Kinder[[#This Row],[G-Krippe]]+tbl_Gruppen_Kinder[[#This Row],[G-Midi]]+tbl_Gruppen_Kinder[[#This Row],[G-Kiga]]+tbl_Gruppen_Kinder[[#This Row],[G-Hort]] -> 3 | J31: 8 | K31: 0 | L31: 40 | M31: 0 | N31: =tbl_Gruppen_Kinder[[#This Row],[K-Krippe]]+tbl_Gruppen_Kinder[[#This Row],[K-Midi]]+tbl_Gruppen_Kinder[[#This Row],[K-Kiga]]+tbl_Gruppen_Kinder[[#This Row],[K-Hort]] -> 48 | O31: =IF(tbl_Gruppen_Kinder[[#This Row],[K-Gesamt]]=0,"2026 Ø",IF(tbl_Gruppen_Kinder[[#This Row],[K-Gesamt]]<25,"XS (<25 Ki.)",IF(tbl_Gruppen_Kinder[[#This Row],[K-Gesamt]]<50,"S (25-49 Ki.)",IF(tbl_Gruppen_Kinder[[#This Row],[K-Gesamt]]<100,"M (50-99 Ki.)",IF(tbl_Gruppen_Kinder[[#This Row],[K-Gesamt]]<150,"L (100-149 Ki.)","XL (150- Ki.)"))))) -> S (25-49 Ki.)
B32: 1901390022 | C32: Peißenberg | D32: Kindertagesstätte St. Barbara | E32: 2 | F32: 0 | G32: 3 | H32: 0 | I32: =tbl_Gruppen_Kinder[[#This Row],[G-Krippe]]+tbl_Gruppen_Kinder[[#This Row],[G-Midi]]+tbl_Gruppen_Kinder[[#This Row],[G-Kiga]]+tbl_Gruppen_Kinder[[#This Row],[G-Hort]] -> 5 | J32: 24 | K32: 0 | L32: 75 | M32: 0 | N32: =tbl_Gruppen_Kinder[[#This Row],[K-Krippe]]+tbl_Gruppen_Kinder[[#This Row],[K-Midi]]+tbl_Gruppen_Kinder[[#This Row],[K-Kiga]]+tbl_Gruppen_Kinder[[#This Row],[K-Hort]] -> 99 | O32: =IF(tbl_Gruppen_Kinder[[#This Row],[K-Gesamt]]=0,"2026 Ø",IF(tbl_Gruppen_Kinder[[#This Row],[K-Gesamt]]<25,"XS (<25 Ki.)",IF(tbl_Gruppen_Kinder[[#This Row],[K-Gesamt]]<50,"S (25-49 Ki.)",IF(tbl_Gruppen_Kinder[[#This Row],[K-Gesamt]]<100,"M (50-99 Ki.)",IF(tbl_Gruppen_Kinder[[#This Row],[K-Gesamt]]<150,"L (100-149 Ki.)","XL (150- Ki.)"))))) -> M (50-99 Ki.)
B33: 1901400027 | C33: Peiting | D33: Caritas Kita St. Michael | E33: 0 | F33: 0 | G33: 3 | H33: 0 | I33: =tbl_Gruppen_Kinder[[#This Row],[G-Krippe]]+tbl_Gruppen_Kinder[[#This Row],[G-Midi]]+tbl_Gruppen_Kinder[[#This Row],[G-Kiga]]+tbl_Gruppen_Kinder[[#This Row],[G-Hort]] -> 3 | J33: 0 | K33: 0 | L33: 72 | M33: 0 | N33: =tbl_Gruppen_Kinder[[#This Row],[K-Krippe]]+tbl_Gruppen_Kinder[[#This Row],[K-Midi]]+tbl_Gruppen_Kinder[[#This Row],[K-Kiga]]+tbl_Gruppen_Kinder[[#This Row],[K-Hort]] -> 72 | O33: =IF(tbl_Gruppen_Kinder[[#This Row],[K-Gesamt]]=0,"2026 Ø",IF(tbl_Gruppen_Kinder[[#This Row],[K-Gesamt]]<25,"XS (<25 Ki.)",IF(tbl_Gruppen_Kinder[[#This Row],[K-Gesamt]]<50,"S (25-49 Ki.)",IF(tbl_Gruppen_Kinder[[#This Row],[K-Gesamt]]<100,"M (50-99 Ki.)",IF(tbl_Gruppen_Kinder[[#This Row],[K-Gesamt]]<150,"L (100-149 Ki.)","XL (150- Ki.)"))))) -> M (50-99 Ki.)
B34: 1901400073 | C34: Peiting | D34: Integrativer Hort im Kinderhaus Peiting | E34: 0 | F34: 0 | G34: 0 | H34: 1 | I34: =tbl_Gruppen_Kinder[[#This Row],[G-Krippe]]+tbl_Gruppen_Kinder[[#This Row],[G-Midi]]+tbl_Gruppen_Kinder[[#This Row],[G-Kiga]]+tbl_Gruppen_Kinder[[#This Row],[G-Hort]] -> 1 | J34: 0 | K34: 0 | L34: 0 | M34: 14 | N34: =tbl_Gruppen_Kinder[[#This Row],[K-Krippe]]+tbl_Gruppen_Kinder[[#This Row],[K-Midi]]+tbl_Gruppen_Kinder[[#This Row],[K-Kiga]]+tbl_Gruppen_Kinder[[#This Row],[K-Hort]] -> 14 | O34: =IF(tbl_Gruppen_Kinder[[#This Row],[K-Gesamt]]=0,"2026 Ø",IF(tbl_Gruppen_Kinder[[#This Row],[K-Gesamt]]<25,"XS (<25 Ki.)",IF(tbl_Gruppen_Kinder[[#This Row],[K-Gesamt]]<50,"S (25-49 Ki.)",IF(tbl_Gruppen_Kinder[[#This Row],[K-Gesamt]]<100,"M (50-99 Ki.)",IF(tbl_Gruppen_Kinder[[#This Row],[K-Gesamt]]<150,"L (100-149 Ki.)","XL (150- Ki.)"))))) -> XS (<25 Ki.)
B35: 1901400107 | C35: Peiting | D35: Integrativer Naturkindergarten am Weiherhäusle | E35: 0 | F35: 0 | G35: 1 | H35: 0 | I35: =tbl_Gruppen_Kinder[[#This Row],[G-Krippe]]+tbl_Gruppen_Kinder[[#This Row],[G-Midi]]+tbl_Gruppen_Kinder[[#This Row],[G-Kiga]]+tbl_Gruppen_Kinder[[#This Row],[G-Hort]] -> 1 | J35: 0 | K35: 0 | L35: 15 | M35: 0 | N35: =tbl_Gruppen_Kinder[[#This Row],[K-Krippe]]+tbl_Gruppen_Kinder[[#This Row],[K-Midi]]+tbl_Gruppen_Kinder[[#This Row],[K-Kiga]]+tbl_Gruppen_Kinder[[#This Row],[K-Hort]] -> 15 | O35: =IF(tbl_Gruppen_Kinder[[#This Row],[K-Gesamt]]=0,"2026 Ø",IF(tbl_Gruppen_Kinder[[#This Row],[K-Gesamt]]<25,"XS (<25 Ki.)",IF(tbl_Gruppen_Kinder[[#This Row],[K-Gesamt]]<50,"S (25-49 Ki.)",IF(tbl_Gruppen_Kinder[[#This Row],[K-Gesamt]]<100,"M (50-99 Ki.)",IF(tbl_Gruppen_Kinder[[#This Row],[K-Gesamt]]<150,"L (100-149 Ki.)","XL (150- Ki.)"))))) -> XS (<25 Ki.)
B36: 1901400113 | C36: Peiting | D36: Integratives Kinderhaus im Forsthaus | E36: 0 | F36: 0 | G36: 3 | H36: 1 | I36: =tbl_Gruppen_Kinder[[#This Row],[G-Krippe]]+tbl_Gruppen_Kinder[[#This Row],[G-Midi]]+tbl_Gruppen_Kinder[[#This Row],[G-Kiga]]+tbl_Gruppen_Kinder[[#This Row],[G-Hort]] -> 4 | J36: 0 | K36: 0 | L36: 40 | M36: 15 | N36: =tbl_Gruppen_Kinder[[#This Row],[K-Krippe]]+tbl_Gruppen_Kinder[[#This Row],[K-Midi]]+tbl_Gruppen_Kinder[[#This Row],[K-Kiga]]+tbl_Gruppen_Kinder[[#This Row],[K-Hort]] -> 55 | O36: =IF(tbl_Gruppen_Kinder[[#This Row],[K-Gesamt]]=0,"2026 Ø",IF(tbl_Gruppen_Kinder[[#This Row],[K-Gesamt]]<25,"XS (<25 Ki.)",IF(tbl_Gruppen_Kinder[[#This Row],[K-Gesamt]]<50,"S (25-49 Ki.)",IF(tbl_Gruppen_Kinder[[#This Row],[K-Gesamt]]<100,"M (50-99 Ki.)",IF(tbl_Gruppen_Kinder[[#This Row],[K-Gesamt]]<150,"L (100-149 Ki.)","XL (150- Ki.)"))))) -> M (50-99 Ki.)
B37: 1901400030 | C37: Peiting | D37: Kindergarten am Gumpen | E37: 0 | F37: 0 | G37: 0 | H37: 0 | I37: =tbl_Gruppen_Kinder[[#This Row],[G-Krippe]]+tbl_Gruppen_Kinder[[#This Row],[G-Midi]]+tbl_Gruppen_Kinder[[#This Row],[G-Kiga]]+tbl_Gruppen_Kinder[[#This Row],[G-Hort]] -> 0 | J37: 0 | K37: 0 | L37: 35 | M37: 0 | N37: =tbl_Gruppen_Kinder[[#This Row],[K-Krippe]]+tbl_Gruppen_Kinder[[#This Row],[K-Midi]]+tbl_Gruppen_Kinder[[#This Row],[K-Kiga]]+tbl_Gruppen_Kinder[[#This Row],[K-Hort]] -> 35 | O37: =IF(tbl_Gruppen_Kinder[[#This Row],[K-Gesamt]]=0,"2026 Ø",IF(tbl_Gruppen_Kinder[[#This Row],[K-Gesamt]]<25,"XS (<25 Ki.)",IF(tbl_Gruppen_Kinder[[#This Row],[K-Gesamt]]<50,"S (25-49 Ki.)",IF(tbl_Gruppen_Kinder[[#This Row],[K-Gesamt]]<100,"M (50-99 Ki.)",IF(tbl_Gruppen_Kinder[[#This Row],[K-Gesamt]]<150,"L (100-149 Ki.)","XL (150- Ki.)"))))) -> S (25-49 Ki.)
B38: 1901400033 | C38: Peiting | D38: Kindergarten Birkland | E38: 0 | F38: 0 | G38: 1 | H38: 0 | I38: =tbl_Gruppen_Kinder[[#This Row],[G-Krippe]]+tbl_Gruppen_Kinder[[#This Row],[G-Midi]]+tbl_Gruppen_Kinder[[#This Row],[G-Kiga]]+tbl_Gruppen_Kinder[[#This Row],[G-Hort]] -> 1 | J38: 0 | K38: 0 | L38: 21 | M38: 0 | N38: =tbl_Gruppen_Kinder[[#This Row],[K-Krippe]]+tbl_Gruppen_Kinder[[#This Row],[K-Midi]]+tbl_Gruppen_Kinder[[#This Row],[K-Kiga]]+tbl_Gruppen_Kinder[[#This Row],[K-Hort]] -> 21 | O38: =IF(tbl_Gruppen_Kinder[[#This Row],[K-Gesamt]]=0,"2026 Ø",IF(tbl_Gruppen_Kinder[[#This Row],[K-Gesamt]]<25,"XS (<25 Ki.)",IF(tbl_Gruppen_Kinder[[#This Row],[K-Gesamt]]<50,"S (25-49 Ki.)",IF(tbl_Gruppen_Kinder[[#This Row],[K-Gesamt]]<100,"M (50-99 Ki.)",IF(tbl_Gruppen_Kinder[[#This Row],[K-Gesamt]]<150,"L (100-149 Ki.)","XL (150- Ki.)"))))) -> XS (<25 Ki.)
B39: 1901400029 | C39: Peiting | D39: Kinderhaus Peiting | E39: 1 | F39: 0 | G39: 2 | H39: 0 | I39: =tbl_Gruppen_Kinder[[#This Row],[G-Krippe]]+tbl_Gruppen_Kinder[[#This Row],[G-Midi]]+tbl_Gruppen_Kinder[[#This Row],[G-Kiga]]+tbl_Gruppen_Kinder[[#This Row],[G-Hort]] -> 3 | J39: 10 | K39: 0 | L39: 30 | M39: 0 | N39: =tbl_Gruppen_Kinder[[#This Row],[K-Krippe]]+tbl_Gruppen_Kinder[[#This Row],[K-Midi]]+tbl_Gruppen_Kinder[[#This Row],[K-Kiga]]+tbl_Gruppen_Kinder[[#This Row],[K-Hort]] -> 40 | O39: =IF(tbl_Gruppen_Kinder[[#This Row],[K-Gesamt]]=0,"2026 Ø",IF(tbl_Gruppen_Kinder[[#This Row],[K-Gesamt]]<25,"XS (<25 Ki.)",IF(tbl_Gruppen_Kinder[[#This Row],[K-Gesamt]]<50,"S (25-49 Ki.)",IF(tbl_Gruppen_Kinder[[#This Row],[K-Gesamt]]<100,"M (50-99 Ki.)",IF(tbl_Gruppen_Kinder[[#This Row],[K-Gesamt]]<150,"L (100-149 Ki.)","XL (150- Ki.)"))))) -> S (25-49 Ki.)
B40: 1901400100 | C40: Peiting | D40: Kita Sonnenschein | E40: 0 | F40: 0 | G40: 0 | H40: 0 | I40: =tbl_Gruppen_Kinder[[#This Row],[G-Krippe]]+tbl_Gruppen_Kinder[[#This Row],[G-Midi]]+tbl_Gruppen_Kinder[[#This Row],[G-Kiga]]+tbl_Gruppen_Kinder[[#This Row],[G-Hort]] -> 0 | J40: 0 | K40: 0 | L40: 155 | M40: 0 | N40: =tbl_Gruppen_Kinder[[#This Row],[K-Krippe]]+tbl_Gruppen_Kinder[[#This Row],[K-Midi]]+tbl_Gruppen_Kinder[[#This Row],[K-Kiga]]+tbl_Gruppen_Kinder[[#This Row],[K-Hort]] -> 155 | O40: =IF(tbl_Gruppen_Kinder[[#This Row],[K-Gesamt]]=0,"2026 Ø",IF(tbl_Gruppen_Kinder[[#This Row],[K-Gesamt]]<25,"XS (<25 Ki.)",IF(tbl_Gruppen_Kinder[[#This Row],[K-Gesamt]]<50,"S (25-49 Ki.)",IF(tbl_Gruppen_Kinder[[#This Row],[K-Gesamt]]<100,"M (50-99 Ki.)",IF(tbl_Gruppen_Kinder[[#This Row],[K-Gesamt]]<150,"L (100-149 Ki.)","XL (150- Ki.)"))))) -> XL (150- Ki.)
B41: 1901400032 | C41: Peiting | D41: Therese-Peter-Haus für Kinder | E41: 6 | F41: 0 | G41: 0 | H41: 0 | I41: =tbl_Gruppen_Kinder[[#This Row],[G-Krippe]]+tbl_Gruppen_Kinder[[#This Row],[G-Midi]]+tbl_Gruppen_Kinder[[#This Row],[G-Kiga]]+tbl_Gruppen_Kinder[[#This Row],[G-Hort]] -> 6 | J41: 68 | K41: 0 | L41: 0 | M41: 0 | N41: =tbl_Gruppen_Kinder[[#This Row],[K-Krippe]]+tbl_Gruppen_Kinder[[#This Row],[K-Midi]]+tbl_Gruppen_Kinder[[#This Row],[K-Kiga]]+tbl_Gruppen_Kinder[[#This Row],[K-Hort]] -> 68 | O41: =IF(tbl_Gruppen_Kinder[[#This Row],[K-Gesamt]]=0,"2026 Ø",IF(tbl_Gruppen_Kinder[[#This Row],[K-Gesamt]]<25,"XS (<25 Ki.)",IF(tbl_Gruppen_Kinder[[#This Row],[K-Gesamt]]<50,"S (25-49 Ki.)",IF(tbl_Gruppen_Kinder[[#This Row],[K-Gesamt]]<100,"M (50-99 Ki.)",IF(tbl_Gruppen_Kinder[[#This Row],[K-Gesamt]]<150,"L (100-149 Ki.)","XL (150- Ki.)"))))) -> M (50-99 Ki.)
B42: 1901400098 | C42: Peiting | D42: Waldkindergarten Wurzelzwerge Peiting e.V | E42: 0 | F42: 0 | G42: 1 | H42: 0 | I42: =tbl_Gruppen_Kinder[[#This Row],[G-Krippe]]+tbl_Gruppen_Kinder[[#This Row],[G-Midi]]+tbl_Gruppen_Kinder[[#This Row],[G-Kiga]]+tbl_Gruppen_Kinder[[#This Row],[G-Hort]] -> 1 | J42: 0 | K42: 0 | L42: 22 | M42: 0 | N42: =tbl_Gruppen_Kinder[[#This Row],[K-Krippe]]+tbl_Gruppen_Kinder[[#This Row],[K-Midi]]+tbl_Gruppen_Kinder[[#This Row],[K-Kiga]]+tbl_Gruppen_Kinder[[#This Row],[K-Hort]] -> 22 | O42: =IF(tbl_Gruppen_Kinder[[#This Row],[K-Gesamt]]=0,"2026 Ø",IF(tbl_Gruppen_Kinder[[#This Row],[K-Gesamt]]<25,"XS (<25 Ki.)",IF(tbl_Gruppen_Kinder[[#This Row],[K-Gesamt]]<50,"S (25-49 Ki.)",IF(tbl_Gruppen_Kinder[[#This Row],[K-Gesamt]]<100,"M (50-99 Ki.)",IF(tbl_Gruppen_Kinder[[#This Row],[K-Gesamt]]<150,"L (100-149 Ki.)","XL (150- Ki.)"))))) -> XS (<25 Ki.)
B43: 1901410040 | C43: Penzberg | D43: Albert-Schweitzer Waldkindergarten | E43: 0 | F43: 0 | G43: 0 | H43: 0 | I43: =tbl_Gruppen_Kinder[[#This Row],[G-Krippe]]+tbl_Gruppen_Kinder[[#This Row],[G-Midi]]+tbl_Gruppen_Kinder[[#This Row],[G-Kiga]]+tbl_Gruppen_Kinder[[#This Row],[G-Hort]] -> 0 | J43: 0 | K43: 0 | L43: 15 | M43: 0 | N43: =tbl_Gruppen_Kinder[[#This Row],[K-Krippe]]+tbl_Gruppen_Kinder[[#This Row],[K-Midi]]+tbl_Gruppen_Kinder[[#This Row],[K-Kiga]]+tbl_Gruppen_Kinder[[#This Row],[K-Hort]] -> 15 | O43: =IF(tbl_Gruppen_Kinder[[#This Row],[K-Gesamt]]=0,"2026 Ø",IF(tbl_Gruppen_Kinder[[#This Row],[K-Gesamt]]<25,"XS (<25 Ki.)",IF(tbl_Gruppen_Kinder[[#This Row],[K-Gesamt]]<50,"S (25-49 Ki.)",IF(tbl_Gruppen_Kinder[[#This Row],[K-Gesamt]]<100,"M (50-99 Ki.)",IF(tbl_Gruppen_Kinder[[#This Row],[K-Gesamt]]<150,"L (100-149 Ki.)","XL (150- Ki.)"))))) -> XS (<25 Ki.)
B44: 1901410037 | C44: Penzberg | D44: AWO Kinderhaus an der Birkenstraße | E44: 0 | F44: 0 | G44: 0 | I44: =tbl_Gruppen_Kinder[[#This Row],[G-Krippe]]+tbl_Gruppen_Kinder[[#This Row],[G-Midi]]+tbl_Gruppen_Kinder[[#This Row],[G-Kiga]]+tbl_Gruppen_Kinder[[#This Row],[G-Hort]] -> 0 | J44: 0 | K44: 0 | L44: 0 | M44: 145 | N44: =tbl_Gruppen_Kinder[[#This Row],[K-Krippe]]+tbl_Gruppen_Kinder[[#This Row],[K-Midi]]+tbl_Gruppen_Kinder[[#This Row],[K-Kiga]]+tbl_Gruppen_Kinder[[#This Row],[K-Hort]] -> 145 | O44: =IF(tbl_Gruppen_Kinder[[#This Row],[K-Gesamt]]=0,"2026 Ø",IF(tbl_Gruppen_Kinder[[#This Row],[K-Gesamt]]<25,"XS (<25 Ki.)",IF(tbl_Gruppen_Kinder[[#This Row],[K-Gesamt]]<50,"S (25-49 Ki.)",IF(tbl_Gruppen_Kinder[[#This Row],[K-Gesamt]]<100,"M (50-99 Ki.)",IF(tbl_Gruppen_Kinder[[#This Row],[K-Gesamt]]<150,"L (100-149 Ki.)","XL (150- Ki.)"))))) -> L (100-149 Ki.)
B45: 1901410075 | C45: Penzberg | D45: AWO Kinderhort Winterstraße | E45: 0 | F45: 0 | G45: 0 | H45: 8 | I45: =tbl_Gruppen_Kinder[[#This Row],[G-Krippe]]+tbl_Gruppen_Kinder[[#This Row],[G-Midi]]+tbl_Gruppen_Kinder[[#This Row],[G-Kiga]]+tbl_Gruppen_Kinder[[#This Row],[G-Hort]] -> 8 | J45: 0 | K45: 0 | L45: 0 | M45: 149 | N45: =tbl_Gruppen_Kinder[[#This Row],[K-Krippe]]+tbl_Gruppen_Kinder[[#This Row],[K-Midi]]+tbl_Gruppen_Kinder[[#This Row],[K-Kiga]]+tbl_Gruppen_Kinder[[#This Row],[K-Hort]] -> 149 | O45: =IF(tbl_Gruppen_Kinder[[#This Row],[K-Gesamt]]=0,"2026 Ø",IF(tbl_Gruppen_Kinder[[#This Row],[K-Gesamt]]<25,"XS (<25 Ki.)",IF(tbl_Gruppen_Kinder[[#This Row],[K-Gesamt]]<50,"S (25-49 Ki.)",IF(tbl_Gruppen_Kinder[[#This Row],[K-Gesamt]]<100,"M (50-99 Ki.)",IF(tbl_Gruppen_Kinder[[#This Row],[K-Gesamt]]<150,"L (100-149 Ki.)","XL (150- Ki.)"))))) -> L (100-149 Ki.)
B46: 1901410035 | C46: Penzberg | D46: Evang. Haus für Kinder Penzberg | E46: 1 | F46: 0 | G46: 2 | H46: 1 | I46: =tbl_Gruppen_Kinder[[#This Row],[G-Krippe]]+tbl_Gruppen_Kinder[[#This Row],[G-Midi]]+tbl_Gruppen_Kinder[[#This Row],[G-Kiga]]+tbl_Gruppen_Kinder[[#This Row],[G-Hort]] -> 4 | J46: 12 | K46: 0 | L46: 39 | M46: 11 | N46: =tbl_Gruppen_Kinder[[#This Row],[K-Krippe]]+tbl_Gruppen_Kinder[[#This Row],[K-Midi]]+tbl_Gruppen_Kinder[[#This Row],[K-Kiga]]+tbl_Gruppen_Kinder[[#This Row],[K-Hort]] -> 62 | O46: =IF(tbl_Gruppen_Kinder[[#This Row],[K-Gesamt]]=0,"2026 Ø",IF(tbl_Gruppen_Kinder[[#This Row],[K-Gesamt]]<25,"XS (<25 Ki.)",IF(tbl_Gruppen_Kinder[[#This Row],[K-Gesamt]]<50,"S (25-49 Ki.)",IF(tbl_Gruppen_Kinder[[#This Row],[K-Gesamt]]<100,"M (50-99 Ki.)",IF(tbl_Gruppen_Kinder[[#This Row],[K-Gesamt]]<150,"L (100-149 Ki.)","XL (150- Ki.)"))))) -> M (50-99 Ki.)
B47: 1901410038 | C47: Penzberg | D47: Familienzentrum Arche Noah | E47: 0 | F47: 0 | G47: 2 | H47: 0 | I47: =tbl_Gruppen_Kinder[[#This Row],[G-Krippe]]+tbl_Gruppen_Kinder[[#This Row],[G-Midi]]+tbl_Gruppen_Kinder[[#This Row],[G-Kiga]]+tbl_Gruppen_Kinder[[#This Row],[G-Hort]] -> 2 | J47: 0 | K47: 0 | L47: 34 | M47: 0 | N47: =tbl_Gruppen_Kinder[[#This Row],[K-Krippe]]+tbl_Gruppen_Kinder[[#This Row],[K-Midi]]+tbl_Gruppen_Kinder[[#This Row],[K-Kiga]]+tbl_Gruppen_Kinder[[#This Row],[K-Hort]] -> 34 | O47: =IF(tbl_Gruppen_Kinder[[#This Row],[K-Gesamt]]=0,"2026 Ø",IF(tbl_Gruppen_Kinder[[#This Row],[K-Gesamt]]<25,"XS (<25 Ki.)",IF(tbl_Gruppen_Kinder[[#This Row],[K-Gesamt]]<50,"S (25-49 Ki.)",IF(tbl_Gruppen_Kinder[[#This Row],[K-Gesamt]]<100,"M (50-99 Ki.)",IF(tbl_Gruppen_Kinder[[#This Row],[K-Gesamt]]<150,"L (100-149 Ki.)","XL (150- Ki.)"))))) -> S (25-49 Ki.)
B48: 1901410117 | C48: Penzberg | D48: Integrativer Kindergarten mit Krippe an der Birkenstraße | E48: 2 | F48: 0 | G48: 2 | H48: 0 | I48: =tbl_Gruppen_Kinder[[#This Row],[G-Krippe]]+tbl_Gruppen_Kinder[[#This Row],[G-Midi]]+tbl_Gruppen_Kinder[[#This Row],[G-Kiga]]+tbl_Gruppen_Kinder[[#This Row],[G-Hort]] -> 4 | J48: 23 | K48: 0 | L48: 35 | M48: 0 | N48: =tbl_Gruppen_Kinder[[#This Row],[K-Krippe]]+tbl_Gruppen_Kinder[[#This Row],[K-Midi]]+tbl_Gruppen_Kinder[[#This Row],[K-Kiga]]+tbl_Gruppen_Kinder[[#This Row],[K-Hort]] -> 58 | O48: =IF(tbl_Gruppen_Kinder[[#This Row],[K-Gesamt]]=0,"2026 Ø",IF(tbl_Gruppen_Kinder[[#This Row],[K-Gesamt]]<25,"XS (<25 Ki.)",IF(tbl_Gruppen_Kinder[[#This Row],[K-Gesamt]]<50,"S (25-49 Ki.)",IF(tbl_Gruppen_Kinder[[#This Row],[K-Gesamt]]<100,"M (50-99 Ki.)",IF(tbl_Gruppen_Kinder[[#This Row],[K-Gesamt]]<150,"L (100-149 Ki.)","XL (150- Ki.)"))))) -> M (50-99 Ki.)
B49: 1901410104 | C49: Penzberg | D49: Katholischer Kindergarten St. Franziskus | E49: 1 | F49: 0 | G49: 3 | H49: 0 | I49: =tbl_Gruppen_Kinder[[#This Row],[G-Krippe]]+tbl_Gruppen_Kinder[[#This Row],[G-Midi]]+tbl_Gruppen_Kinder[[#This Row],[G-Kiga]]+tbl_Gruppen_Kinder[[#This Row],[G-Hort]] -> 4 | J49: 12 | K49: 0 | L49: 60 | M49: 0 | N49: =tbl_Gruppen_Kinder[[#This Row],[K-Krippe]]+tbl_Gruppen_Kinder[[#This Row],[K-Midi]]+tbl_Gruppen_Kinder[[#This Row],[K-Kiga]]+tbl_Gruppen_Kinder[[#This Row],[K-Hort]] -> 72 | O49: =IF(tbl_Gruppen_Kinder[[#This Row],[K-Gesamt]]=0,"2026 Ø",IF(tbl_Gruppen_Kinder[[#This Row],[K-Gesamt]]<25,"XS (<25 Ki.)",IF(tbl_Gruppen_Kinder[[#This Row],[K-Gesamt]]<50,"S (25-49 Ki.)",IF(tbl_Gruppen_Kinder[[#This Row],[K-Gesamt]]<100,"M (50-99 Ki.)",IF(tbl_Gruppen_Kinder[[#This Row],[K-Gesamt]]<150,"L (100-149 Ki.)","XL (150- Ki.)"))))) -> M (50-99 Ki.)
B50: 1901410039 | C50: Penzberg | D50: KiM-Kita Penzberg | E50: 2 | F50: 0 | G50: 5 | H50: 0 | I50: =tbl_Gruppen_Kinder[[#This Row],[G-Krippe]]+tbl_Gruppen_Kinder[[#This Row],[G-Midi]]+tbl_Gruppen_Kinder[[#This Row],[G-Kiga]]+tbl_Gruppen_Kinder[[#This Row],[G-Hort]] -> 7 | J50: 24 | K50: 0 | L50: 94 | M50: 0 | N50: =tbl_Gruppen_Kinder[[#This Row],[K-Krippe]]+tbl_Gruppen_Kinder[[#This Row],[K-Midi]]+tbl_Gruppen_Kinder[[#This Row],[K-Kiga]]+tbl_Gruppen_Kinder[[#This Row],[K-Hort]] -> 118 | O50: =IF(tbl_Gruppen_Kinder[[#This Row],[K-Gesamt]]=0,"2026 Ø",IF(tbl_Gruppen_Kinder[[#This Row],[K-Gesamt]]<25,"XS (<25 Ki.)",IF(tbl_Gruppen_Kinder[[#This Row],[K-Gesamt]]<50,"S (25-49 Ki.)",IF(tbl_Gruppen_Kinder[[#This Row],[K-Gesamt]]<100,"M (50-99 Ki.)",IF(tbl_Gruppen_Kinder[[#This Row],[K-Gesamt]]<150,"L (100-149 Ki.)","XL (150- Ki.)"))))) -> L (100-149 Ki.)
B51: 1901410122 | C51: Penzberg | D51: Kindergarten Spatzennest | E51: 0 | F51: 0 | G51: 6 | H51: 0 | I51: =tbl_Gruppen_Kinder[[#This Row],[G-Krippe]]+tbl_Gruppen_Kinder[[#This Row],[G-Midi]]+tbl_Gruppen_Kinder[[#This Row],[G-Kiga]]+tbl_Gruppen_Kinder[[#This Row],[G-Hort]] -> 6 | J51: 0 | K51: 0 | L51: 110 | M51: 0 | N51: =tbl_Gruppen_Kinder[[#This Row],[K-Krippe]]+tbl_Gruppen_Kinder[[#This Row],[K-Midi]]+tbl_Gruppen_Kinder[[#This Row],[K-Kiga]]+tbl_Gruppen_Kinder[[#This Row],[K-Hort]] -> 110 | O51: =IF(tbl_Gruppen_Kinder[[#This Row],[K-Gesamt]]=0,"2026 Ø",IF(tbl_Gruppen_Kinder[[#This Row],[K-Gesamt]]<25,"XS (<25 Ki.)",IF(tbl_Gruppen_Kinder[[#This Row],[K-Gesamt]]<50,"S (25-49 Ki.)",IF(tbl_Gruppen_Kinder[[#This Row],[K-Gesamt]]<100,"M (50-99 Ki.)",IF(tbl_Gruppen_Kinder[[#This Row],[K-Gesamt]]<150,"L (100-149 Ki.)","XL (150- Ki.)"))))) -> L (100-149 Ki.)
C52: Penzberg | D52: Kinderkrippe Spatzennest | E52: 6 | F52: 0 | G52: 0 | H52: 0 | I52: =tbl_Gruppen_Kinder[[#This Row],[G-Krippe]]+tbl_Gruppen_Kinder[[#This Row],[G-Midi]]+tbl_Gruppen_Kinder[[#This Row],[G-Kiga]]+tbl_Gruppen_Kinder[[#This Row],[G-Hort]] -> 6 | J52: 66 | K52: 0 | L52: 0 | M52: 0 | N52: =tbl_Gruppen_Kinder[[#This Row],[K-Krippe]]+tbl_Gruppen_Kinder[[#This Row],[K-Midi]]+tbl_Gruppen_Kinder[[#This Row],[K-Kiga]]+tbl_Gruppen_Kinder[[#This Row],[K-Hort]] -> 66 | O52: =IF(tbl_Gruppen_Kinder[[#This Row],[K-Gesamt]]=0,"2026 Ø",IF(tbl_Gruppen_Kinder[[#This Row],[K-Gesamt]]<25,"XS (<25 Ki.)",IF(tbl_Gruppen_Kinder[[#This Row],[K-Gesamt]]<50,"S (25-49 Ki.)",IF(tbl_Gruppen_Kinder[[#This Row],[K-Gesamt]]<100,"M (50-99 Ki.)",IF(tbl_Gruppen_Kinder[[#This Row],[K-Gesamt]]<150,"L (100-149 Ki.)","XL (150- Ki.)"))))) -> M (50-99 Ki.)
B53: 1901410034 | C53: Penzberg | D53: Kindertagesstätte St. Raphael | E53: 2 | F53: 0 | G53: 4 | H53: 0 | I53: =tbl_Gruppen_Kinder[[#This Row],[G-Krippe]]+tbl_Gruppen_Kinder[[#This Row],[G-Midi]]+tbl_Gruppen_Kinder[[#This Row],[G-Kiga]]+tbl_Gruppen_Kinder[[#This Row],[G-Hort]] -> 6 | J53: 24 | K53: 0 | L53: 80 | M53: 0 | N53: =tbl_Gruppen_Kinder[[#This Row],[K-Krippe]]+tbl_Gruppen_Kinder[[#This Row],[K-Midi]]+tbl_Gruppen_Kinder[[#This Row],[K-Kiga]]+tbl_Gruppen_Kinder[[#This Row],[K-Hort]] -> 104 | O53: =IF(tbl_Gruppen_Kinder[[#This Row],[K-Gesamt]]=0,"2026 Ø",IF(tbl_Gruppen_Kinder[[#This Row],[K-Gesamt]]<25,"XS (<25 Ki.)",IF(tbl_Gruppen_Kinder[[#This Row],[K-Gesamt]]<50,"S (25-49 Ki.)",IF(tbl_Gruppen_Kinder[[#This Row],[K-Gesamt]]<100,"M (50-99 Ki.)",IF(tbl_Gruppen_Kinder[[#This Row],[K-Gesamt]]<150,"L (100-149 Ki.)","XL (150- Ki.)"))))) -> L (100-149 Ki.)
B54: 1901410079 | C54: Penzberg | D54: Montessori Kinderhaus Penzberg | E54: 0 | F54: 0 | G54: 2 | H54: 0 | I54: =tbl_Gruppen_Kinder[[#This Row],[G-Krippe]]+tbl_Gruppen_Kinder[[#This Row],[G-Midi]]+tbl_Gruppen_Kinder[[#This Row],[G-Kiga]]+tbl_Gruppen_Kinder[[#This Row],[G-Hort]] -> 2 | J54: 0 | K54: 0 | L54: 28 | M54: 0 | N54: =tbl_Gruppen_Kinder[[#This Row],[K-Krippe]]+tbl_Gruppen_Kinder[[#This Row],[K-Midi]]+tbl_Gruppen_Kinder[[#This Row],[K-Kiga]]+tbl_Gruppen_Kinder[[#This Row],[K-Hort]] -> 28 | O54: =IF(tbl_Gruppen_Kinder[[#This Row],[K-Gesamt]]=0,"2026 Ø",IF(tbl_Gruppen_Kinder[[#This Row],[K-Gesamt]]<25,"XS (<25 Ki.)",IF(tbl_Gruppen_Kinder[[#This Row],[K-Gesamt]]<50,"S (25-49 Ki.)",IF(tbl_Gruppen_Kinder[[#This Row],[K-Gesamt]]<100,"M (50-99 Ki.)",IF(tbl_Gruppen_Kinder[[#This Row],[K-Gesamt]]<150,"L (100-149 Ki.)","XL (150- Ki.)"))))) -> S (25-49 Ki.)
B55: 1901420041 | C55: Polling | D55: Integratives Kinderhaus Polling | E55: 2 | F55: 0 | G55: 4 | H55: 1 | I55: =tbl_Gruppen_Kinder[[#This Row],[G-Krippe]]+tbl_Gruppen_Kinder[[#This Row],[G-Midi]]+tbl_Gruppen_Kinder[[#This Row],[G-Kiga]]+tbl_Gruppen_Kinder[[#This Row],[G-Hort]] -> 7 | J55: 16 | K55: 0 | L55: 60 | M55: 21 | N55: =tbl_Gruppen_Kinder[[#This Row],[K-Krippe]]+tbl_Gruppen_Kinder[[#This Row],[K-Midi]]+tbl_Gruppen_Kinder[[#This Row],[K-Kiga]]+tbl_Gruppen_Kinder[[#This Row],[K-Hort]] -> 97 | O55: =IF(tbl_Gruppen_Kinder[[#This Row],[K-Gesamt]]=0,"2026 Ø",IF(tbl_Gruppen_Kinder[[#This Row],[K-Gesamt]]<25,"XS (<25 Ki.)",IF(tbl_Gruppen_Kinder[[#This Row],[K-Gesamt]]<50,"S (25-49 Ki.)",IF(tbl_Gruppen_Kinder[[#This Row],[K-Gesamt]]<100,"M (50-99 Ki.)",IF(tbl_Gruppen_Kinder[[#This Row],[K-Gesamt]]<150,"L (100-149 Ki.)","XL (150- Ki.)"))))) -> M (50-99 Ki.)
B56: 1901420042 | C56: Polling | D56: Kindertagesstätte der Gemeinde Polling | E56: 3 | F56: 0 | G56: 3 | H56: 1 | I56: =tbl_Gruppen_Kinder[[#This Row],[G-Krippe]]+tbl_Gruppen_Kinder[[#This Row],[G-Midi]]+tbl_Gruppen_Kinder[[#This Row],[G-Kiga]]+tbl_Gruppen_Kinder[[#This Row],[G-Hort]] -> 7 | J56: 31 | K56: 0 | L56: 66 | M56: 21 | N56: =tbl_Gruppen_Kinder[[#This Row],[K-Krippe]]+tbl_Gruppen_Kinder[[#This Row],[K-Midi]]+tbl_Gruppen_Kinder[[#This Row],[K-Kiga]]+tbl_Gruppen_Kinder[[#This Row],[K-Hort]] -> 118 | O56: =IF(tbl_Gruppen_Kinder[[#This Row],[K-Gesamt]]=0,"2026 Ø",IF(tbl_Gruppen_Kinder[[#This Row],[K-Gesamt]]<25,"XS (<25 Ki.)",IF(tbl_Gruppen_Kinder[[#This Row],[K-Gesamt]]<50,"S (25-49 Ki.)",IF(tbl_Gruppen_Kinder[[#This Row],[K-Gesamt]]<100,"M (50-99 Ki.)",IF(tbl_Gruppen_Kinder[[#This Row],[K-Gesamt]]<150,"L (100-149 Ki.)","XL (150- Ki.)"))))) -> L (100-149 Ki.)
B57: 1901420043 | C57: Polling | D57: Naturkindergarten 'Waldwichtel' in Polling | E57: 0 | F57: 0 | G57: 1 | H57: 0 | I57: =tbl_Gruppen_Kinder[[#This Row],[G-Krippe]]+tbl_Gruppen_Kinder[[#This Row],[G-Midi]]+tbl_Gruppen_Kinder[[#This Row],[G-Kiga]]+tbl_Gruppen_Kinder[[#This Row],[G-Hort]] -> 1 | J57: 0 | K57: 0 | L57: 17 | M57: 0 | N57: =tbl_Gruppen_Kinder[[#This Row],[K-Krippe]]+tbl_Gruppen_Kinder[[#This Row],[K-Midi]]+tbl_Gruppen_Kinder[[#This Row],[K-Kiga]]+tbl_Gruppen_Kinder[[#This Row],[K-Hort]] -> 17 | O57: =IF(tbl_Gruppen_Kinder[[#This Row],[K-Gesamt]]=0,"2026 Ø",IF(tbl_Gruppen_Kinder[[#This Row],[K-Gesamt]]<25,"XS (<25 Ki.)",IF(tbl_Gruppen_Kinder[[#This Row],[K-Gesamt]]<50,"S (25-49 Ki.)",IF(tbl_Gruppen_Kinder[[#This Row],[K-Gesamt]]<100,"M (50-99 Ki.)",IF(tbl_Gruppen_Kinder[[#This Row],[K-Gesamt]]<150,"L (100-149 Ki.)","XL (150- Ki.)"))))) -> XS (<25 Ki.)
B58: 1901430043 | C58: Prem | D58: Kindergarten Prem | E58: 0 | F58: 0 | G58: 1 | H58: 0 | I58: =tbl_Gruppen_Kinder[[#This Row],[G-Krippe]]+tbl_Gruppen_Kinder[[#This Row],[G-Midi]]+tbl_Gruppen_Kinder[[#This Row],[G-Kiga]]+tbl_Gruppen_Kinder[[#This Row],[G-Hort]] -> 1 | J58: 0 | K58: 0 | L58: 28 | M58: 0 | N58: =tbl_Gruppen_Kinder[[#This Row],[K-Krippe]]+tbl_Gruppen_Kinder[[#This Row],[K-Midi]]+tbl_Gruppen_Kinder[[#This Row],[K-Kiga]]+tbl_Gruppen_Kinder[[#This Row],[K-Hort]] -> 28 | O58: =IF(tbl_Gruppen_Kinder[[#This Row],[K-Gesamt]]=0,"2026 Ø",IF(tbl_Gruppen_Kinder[[#This Row],[K-Gesamt]]<25,"XS (<25 Ki.)",IF(tbl_Gruppen_Kinder[[#This Row],[K-Gesamt]]<50,"S (25-49 Ki.)",IF(tbl_Gruppen_Kinder[[#This Row],[K-Gesamt]]<100,"M (50-99 Ki.)",IF(tbl_Gruppen_Kinder[[#This Row],[K-Gesamt]]<150,"L (100-149 Ki.)","XL (150- Ki.)"))))) -> S (25-49 Ki.)
B59: 1901440106 | C59: Raisting | D59: BRK Kindergarten St. Raphael Raisting | E59: 0 | F59: 0 | G59: 3 | H59: 0 | I59: =tbl_Gruppen_Kinder[[#This Row],[G-Krippe]]+tbl_Gruppen_Kinder[[#This Row],[G-Midi]]+tbl_Gruppen_Kinder[[#This Row],[G-Kiga]]+tbl_Gruppen_Kinder[[#This Row],[G-Hort]] -> 3 | J59: 0 | K59: 0 | L59: 75 | M59: 0 | N59: =tbl_Gruppen_Kinder[[#This Row],[K-Krippe]]+tbl_Gruppen_Kinder[[#This Row],[K-Midi]]+tbl_Gruppen_Kinder[[#This Row],[K-Kiga]]+tbl_Gruppen_Kinder[[#This Row],[K-Hort]] -> 75 | O59: =IF(tbl_Gruppen_Kinder[[#This Row],[K-Gesamt]]=0,"2026 Ø",IF(tbl_Gruppen_Kinder[[#This Row],[K-Gesamt]]<25,"XS (<25 Ki.)",IF(tbl_Gruppen_Kinder[[#This Row],[K-Gesamt]]<50,"S (25-49 Ki.)",IF(tbl_Gruppen_Kinder[[#This Row],[K-Gesamt]]<100,"M (50-99 Ki.)",IF(tbl_Gruppen_Kinder[[#This Row],[K-Gesamt]]<150,"L (100-149 Ki.)","XL (150- Ki.)"))))) -> M (50-99 Ki.)
B60: 1901440105 | C60: Raisting | D60: Kinderhort Bunte Kleckse | E60: 0 | F60: 0 | G60: 0 | H60: 1 | I60: =tbl_Gruppen_Kinder[[#This Row],[G-Krippe]]+tbl_Gruppen_Kinder[[#This Row],[G-Midi]]+tbl_Gruppen_Kinder[[#This Row],[G-Kiga]]+tbl_Gruppen_Kinder[[#This Row],[G-Hort]] -> 1 | J60: 0 | K60: 0 | L60: 0 | M60: 21 | N60: =tbl_Gruppen_Kinder[[#This Row],[K-Krippe]]+tbl_Gruppen_Kinder[[#This Row],[K-Midi]]+tbl_Gruppen_Kinder[[#This Row],[K-Kiga]]+tbl_Gruppen_Kinder[[#This Row],[K-Hort]] -> 21 | O60: =IF(tbl_Gruppen_Kinder[[#This Row],[K-Gesamt]]=0,"2026 Ø",IF(tbl_Gruppen_Kinder[[#This Row],[K-Gesamt]]<25,"XS (<25 Ki.)",IF(tbl_Gruppen_Kinder[[#This Row],[K-Gesamt]]<50,"S (25-49 Ki.)",IF(tbl_Gruppen_Kinder[[#This Row],[K-Gesamt]]<100,"M (50-99 Ki.)",IF(tbl_Gruppen_Kinder[[#This Row],[K-Gesamt]]<150,"L (100-149 Ki.)","XL (150- Ki.)"))))) -> XS (<25 Ki.)
B61: 1901450046 | C61: Rottenbuch | D61: Don Bosco Haus für Kinder | E61: 1 | F61: 0 | G61: 3 | H61: 0 | I61: =tbl_Gruppen_Kinder[[#This Row],[G-Krippe]]+tbl_Gruppen_Kinder[[#This Row],[G-Midi]]+tbl_Gruppen_Kinder[[#This Row],[G-Kiga]]+tbl_Gruppen_Kinder[[#This Row],[G-Hort]] -> 4 | J61: 12 | K61: 0 | L61: 64 | M61: 10 | N61: =tbl_Gruppen_Kinder[[#This Row],[K-Krippe]]+tbl_Gruppen_Kinder[[#This Row],[K-Midi]]+tbl_Gruppen_Kinder[[#This Row],[K-Kiga]]+tbl_Gruppen_Kinder[[#This Row],[K-Hort]] -> 86 | O61: =IF(tbl_Gruppen_Kinder[[#This Row],[K-Gesamt]]=0,"2026 Ø",IF(tbl_Gruppen_Kinder[[#This Row],[K-Gesamt]]<25,"XS (<25 Ki.)",IF(tbl_Gruppen_Kinder[[#This Row],[K-Gesamt]]<50,"S (25-49 Ki.)",IF(tbl_Gruppen_Kinder[[#This Row],[K-Gesamt]]<100,"M (50-99 Ki.)",IF(tbl_Gruppen_Kinder[[#This Row],[K-Gesamt]]<150,"L (100-149 Ki.)","XL (150- Ki.)"))))) -> M (50-99 Ki.)
B62: 1901480081 | C62: Schongau | D62: Elterninitiative Kindernest Schongau e.V. | E62: 0 | F62: 0 | G62: 1 | H62: 0 | I62: =tbl_Gruppen_Kinder[[#This Row],[G-Krippe]]+tbl_Gruppen_Kinder[[#This Row],[G-Midi]]+tbl_Gruppen_Kinder[[#This Row],[G-Kiga]]+tbl_Gruppen_Kinder[[#This Row],[G-Hort]] -> 1 | J62: 0 | K62: 0 | L62: 15 | M62: 0 | N62: =tbl_Gruppen_Kinder[[#This Row],[K-Krippe]]+tbl_Gruppen_Kinder[[#This Row],[K-Midi]]+tbl_Gruppen_Kinder[[#This Row],[K-Kiga]]+tbl_Gruppen_Kinder[[#This Row],[K-Hort]] -> 15 | O62: =IF(tbl_Gruppen_Kinder[[#This Row],[K-Gesamt]]=0,"2026 Ø",IF(tbl_Gruppen_Kinder[[#This Row],[K-Gesamt]]<25,"XS (<25 Ki.)",IF(tbl_Gruppen_Kinder[[#This Row],[K-Gesamt]]<50,"S (25-49 Ki.)",IF(tbl_Gruppen_Kinder[[#This Row],[K-Gesamt]]<100,"M (50-99 Ki.)",IF(tbl_Gruppen_Kinder[[#This Row],[K-Gesamt]]<150,"L (100-149 Ki.)","XL (150- Ki.)"))))) -> XS (<25 Ki.)
B63: 1901480119 | C63: Schongau | D63: Haus für Kinder | E63: 1 | F63: 0 | G63: 3 | H63: 0 | I63: =tbl_Gruppen_Kinder[[#This Row],[G-Krippe]]+tbl_Gruppen_Kinder[[#This Row],[G-Midi]]+tbl_Gruppen_Kinder[[#This Row],[G-Kiga]]+tbl_Gruppen_Kinder[[#This Row],[G-Hort]] -> 4 | J63: 12 | K63: 0 | L63: 63 | M63: 0 | N63: =tbl_Gruppen_Kinder[[#This Row],[K-Krippe]]+tbl_Gruppen_Kinder[[#This Row],[K-Midi]]+tbl_Gruppen_Kinder[[#This Row],[K-Kiga]]+tbl_Gruppen_Kinder[[#This Row],[K-Hort]] -> 75 | O63: =IF(tbl_Gruppen_Kinder[[#This Row],[K-Gesamt]]=0,"2026 Ø",IF(tbl_Gruppen_Kinder[[#This Row],[K-Gesamt]]<25,"XS (<25 Ki.)",IF(tbl_Gruppen_Kinder[[#This Row],[K-Gesamt]]<50,"S (25-49 Ki.)",IF(tbl_Gruppen_Kinder[[#This Row],[K-Gesamt]]<100,"M (50-99 Ki.)",IF(tbl_Gruppen_Kinder[[#This Row],[K-Gesamt]]<150,"L (100-149 Ki.)","XL (150- Ki.)"))))) -> M (50-99 Ki.)
B64: 1901480103 | C64: Schongau | D64: Kindergarten Clara-Fey | E64: 0 | F64: 0 | G64: 1 | H64: 0 | I64: =tbl_Gruppen_Kinder[[#This Row],[G-Krippe]]+tbl_Gruppen_Kinder[[#This Row],[G-Midi]]+tbl_Gruppen_Kinder[[#This Row],[G-Kiga]]+tbl_Gruppen_Kinder[[#This Row],[G-Hort]] -> 1 | J64: 0 | K64: 0 | L64: 17 | M64: 0 | N64: =tbl_Gruppen_Kinder[[#This Row],[K-Krippe]]+tbl_Gruppen_Kinder[[#This Row],[K-Midi]]+tbl_Gruppen_Kinder[[#This Row],[K-Kiga]]+tbl_Gruppen_Kinder[[#This Row],[K-Hort]] -> 17 | O64: =IF(tbl_Gruppen_Kinder[[#This Row],[K-Gesamt]]=0,"2026 Ø",IF(tbl_Gruppen_Kinder[[#This Row],[K-Gesamt]]<25,"XS (<25 Ki.)",IF(tbl_Gruppen_Kinder[[#This Row],[K-Gesamt]]<50,"S (25-49 Ki.)",IF(tbl_Gruppen_Kinder[[#This Row],[K-Gesamt]]<100,"M (50-99 Ki.)",IF(tbl_Gruppen_Kinder[[#This Row],[K-Gesamt]]<150,"L (100-149 Ki.)","XL (150- Ki.)"))))) -> XS (<25 Ki.)
B65: 1901480052 | C65: Schongau | D65: Kindergarten Kunterbunt | E65: 0 | F65: 0 | G65: 2 | H65: 0 | I65: =tbl_Gruppen_Kinder[[#This Row],[G-Krippe]]+tbl_Gruppen_Kinder[[#This Row],[G-Midi]]+tbl_Gruppen_Kinder[[#This Row],[G-Kiga]]+tbl_Gruppen_Kinder[[#This Row],[G-Hort]] -> 2 | J65: 0 | K65: 0 | L65: 50 | M65: 0 | N65: =tbl_Gruppen_Kinder[[#This Row],[K-Krippe]]+tbl_Gruppen_Kinder[[#This Row],[K-Midi]]+tbl_Gruppen_Kinder[[#This Row],[K-Kiga]]+tbl_Gruppen_Kinder[[#This Row],[K-Hort]] -> 50 | O65: =IF(tbl_Gruppen_Kinder[[#This Row],[K-Gesamt]]=0,"2026 Ø",IF(tbl_Gruppen_Kinder[[#This Row],[K-Gesamt]]<25,"XS (<25 Ki.)",IF(tbl_Gruppen_Kinder[[#This Row],[K-Gesamt]]<50,"S (25-49 Ki.)",IF(tbl_Gruppen_Kinder[[#This Row],[K-Gesamt]]<100,"M (50-99 Ki.)",IF(tbl_Gruppen_Kinder[[#This Row],[K-Gesamt]]<150,"L (100-149 Ki.)","XL (150- Ki.)"))))) -> M (50-99 Ki.)
B66: 1901480050 | C66: Schongau | D66: Kindergarten Regenbogen | E66: 1 | F66: 1 | G66: 2 | H66: 0 | I66: =tbl_Gruppen_Kinder[[#This Row],[G-Krippe]]+tbl_Gruppen_Kinder[[#This Row],[G-Midi]]+tbl_Gruppen_Kinder[[#This Row],[G-Kiga]]+tbl_Gruppen_Kinder[[#This Row],[G-Hort]] -> 4 | J66: 10 | K66: 13 | L66: 37 | M66: 0 | N66: =tbl_Gruppen_Kinder[[#This Row],[K-Krippe]]+tbl_Gruppen_Kinder[[#This Row],[K-Midi]]+tbl_Gruppen_Kinder[[#This Row],[K-Kiga]]+tbl_Gruppen_Kinder[[#This Row],[K-Hort]] -> 60 | O66: =IF(tbl_Gruppen_Kinder[[#This Row],[K-Gesamt]]=0,"2026 Ø",IF(tbl_Gruppen_Kinder[[#This Row],[K-Gesamt]]<25,"XS (<25 Ki.)",IF(tbl_Gruppen_Kinder[[#This Row],[K-Gesamt]]<50,"S (25-49 Ki.)",IF(tbl_Gruppen_Kinder[[#This Row],[K-Gesamt]]<100,"M (50-99 Ki.)",IF(tbl_Gruppen_Kinder[[#This Row],[K-Gesamt]]<150,"L (100-149 Ki.)","XL (150- Ki.)"))))) -> M (50-99 Ki.)
B67: 1901480047 | C67: Schongau | D67: Kindergarten St. Johannes | E67: 1 | F67: 1 | G67: 2 | H67: 0 | I67: =tbl_Gruppen_Kinder[[#This Row],[G-Krippe]]+tbl_Gruppen_Kinder[[#This Row],[G-Midi]]+tbl_Gruppen_Kinder[[#This Row],[G-Kiga]]+tbl_Gruppen_Kinder[[#This Row],[G-Hort]] -> 4 | J67: 12 | K67: 15 | L67: 47 | M67: 0 | N67: =tbl_Gruppen_Kinder[[#This Row],[K-Krippe]]+tbl_Gruppen_Kinder[[#This Row],[K-Midi]]+tbl_Gruppen_Kinder[[#This Row],[K-Kiga]]+tbl_Gruppen_Kinder[[#This Row],[K-Hort]] -> 74 | O67: =IF(tbl_Gruppen_Kinder[[#This Row],[K-Gesamt]]=0,"2026 Ø",IF(tbl_Gruppen_Kinder[[#This Row],[K-Gesamt]]<25,"XS (<25 Ki.)",IF(tbl_Gruppen_Kinder[[#This Row],[K-Gesamt]]<50,"S (25-49 Ki.)",IF(tbl_Gruppen_Kinder[[#This Row],[K-Gesamt]]<100,"M (50-99 Ki.)",IF(tbl_Gruppen_Kinder[[#This Row],[K-Gesamt]]<150,"L (100-149 Ki.)","XL (150- Ki.)"))))) -> M (50-99 Ki.)
B68: 1901480049 | C68: Schongau | D68: Kita Mariä Himmelfahrt | E68: 1 | F68: 0 | G68: 2 | H68: 0 | I68: =tbl_Gruppen_Kinder[[#This Row],[G-Krippe]]+tbl_Gruppen_Kinder[[#This Row],[G-Midi]]+tbl_Gruppen_Kinder[[#This Row],[G-Kiga]]+tbl_Gruppen_Kinder[[#This Row],[G-Hort]] -> 3 | J68: 13 | K68: 0 | L68: 48 | M68: 0 | N68: =tbl_Gruppen_Kinder[[#This Row],[K-Krippe]]+tbl_Gruppen_Kinder[[#This Row],[K-Midi]]+tbl_Gruppen_Kinder[[#This Row],[K-Kiga]]+tbl_Gruppen_Kinder[[#This Row],[K-Hort]] -> 61 | O68: =IF(tbl_Gruppen_Kinder[[#This Row],[K-Gesamt]]=0,"2026 Ø",IF(tbl_Gruppen_Kinder[[#This Row],[K-Gesamt]]<25,"XS (<25 Ki.)",IF(tbl_Gruppen_Kinder[[#This Row],[K-Gesamt]]<50,"S (25-49 Ki.)",IF(tbl_Gruppen_Kinder[[#This Row],[K-Gesamt]]<100,"M (50-99 Ki.)",IF(tbl_Gruppen_Kinder[[#This Row],[K-Gesamt]]<150,"L (100-149 Ki.)","XL (150- Ki.)"))))) -> M (50-99 Ki.)
B69: 1901490053 | C69: Schwabbruck | D69: Kindergarten St. Walburga | E69: 1 | F69: 0 | G69: 3 | H69: 0 | I69: =tbl_Gruppen_Kinder[[#This Row],[G-Krippe]]+tbl_Gruppen_Kinder[[#This Row],[G-Midi]]+tbl_Gruppen_Kinder[[#This Row],[G-Kiga]]+tbl_Gruppen_Kinder[[#This Row],[G-Hort]] -> 4 | J69: 12 | K69: 0 | L69: 55 | M69: 0 | N69: =tbl_Gruppen_Kinder[[#This Row],[K-Krippe]]+tbl_Gruppen_Kinder[[#This Row],[K-Midi]]+tbl_Gruppen_Kinder[[#This Row],[K-Kiga]]+tbl_Gruppen_Kinder[[#This Row],[K-Hort]] -> 67 | O69: =IF(tbl_Gruppen_Kinder[[#This Row],[K-Gesamt]]=0,"2026 Ø",IF(tbl_Gruppen_Kinder[[#This Row],[K-Gesamt]]<25,"XS (<25 Ki.)",IF(tbl_Gruppen_Kinder[[#This Row],[K-Gesamt]]<50,"S (25-49 Ki.)",IF(tbl_Gruppen_Kinder[[#This Row],[K-Gesamt]]<100,"M (50-99 Ki.)",IF(tbl_Gruppen_Kinder[[#This Row],[K-Gesamt]]<150,"L (100-149 Ki.)","XL (150- Ki.)"))))) -> M (50-99 Ki.)
B70: 1901510055 | C70: Schwabsoien | D70: Kindergarten mit Krippe Sonnenblume | E70: 1 | F70: 0 | G70: 3 | H70: 0 | I70: =tbl_Gruppen_Kinder[[#This Row],[G-Krippe]]+tbl_Gruppen_Kinder[[#This Row],[G-Midi]]+tbl_Gruppen_Kinder[[#This Row],[G-Kiga]]+tbl_Gruppen_Kinder[[#This Row],[G-Hort]] -> 4 | J70: 12 | K70: 0 | L70: 57 | M70: 0 | N70: =tbl_Gruppen_Kinder[[#This Row],[K-Krippe]]+tbl_Gruppen_Kinder[[#This Row],[K-Midi]]+tbl_Gruppen_Kinder[[#This Row],[K-Kiga]]+tbl_Gruppen_Kinder[[#This Row],[K-Hort]] -> 69 | O70: =IF(tbl_Gruppen_Kinder[[#This Row],[K-Gesamt]]=0,"2026 Ø",IF(tbl_Gruppen_Kinder[[#This Row],[K-Gesamt]]<25,"XS (<25 Ki.)",IF(tbl_Gruppen_Kinder[[#This Row],[K-Gesamt]]<50,"S (25-49 Ki.)",IF(tbl_Gruppen_Kinder[[#This Row],[K-Gesamt]]<100,"M (50-99 Ki.)",IF(tbl_Gruppen_Kinder[[#This Row],[K-Gesamt]]<150,"L (100-149 Ki.)","XL (150- Ki.)"))))) -> M (50-99 Ki.)
B71: 1901520055 | C71: Seeshaupt | D71: Kinderhaus Seeshaupt | E71: 3 | F71: 0 | G71: 4 | H71: 1 | I71: =tbl_Gruppen_Kinder[[#This Row],[G-Krippe]]+tbl_Gruppen_Kinder[[#This Row],[G-Midi]]+tbl_Gruppen_Kinder[[#This Row],[G-Kiga]]+tbl_Gruppen_Kinder[[#This Row],[G-Hort]] -> 8 | J71: 24 | K71: 0 | L71: 71 | M71: 40 | N71: =tbl_Gruppen_Kinder[[#This Row],[K-Krippe]]+tbl_Gruppen_Kinder[[#This Row],[K-Midi]]+tbl_Gruppen_Kinder[[#This Row],[K-Kiga]]+tbl_Gruppen_Kinder[[#This Row],[K-Hort]] -> 135 | O71: =IF(tbl_Gruppen_Kinder[[#This Row],[K-Gesamt]]=0,"2026 Ø",IF(tbl_Gruppen_Kinder[[#This Row],[K-Gesamt]]<25,"XS (<25 Ki.)",IF(tbl_Gruppen_Kinder[[#This Row],[K-Gesamt]]<50,"S (25-49 Ki.)",IF(tbl_Gruppen_Kinder[[#This Row],[K-Gesamt]]<100,"M (50-99 Ki.)",IF(tbl_Gruppen_Kinder[[#This Row],[K-Gesamt]]<150,"L (100-149 Ki.)","XL (150- Ki.)"))))) -> L (100-149 Ki.)
B72: 1901530056 | C72: Sindelsdorf | D72: Gemeindekindergarten Sindelsdorf | E72: 2 | F72: 0 | G72: 2 | H72: 0 | I72: =tbl_Gruppen_Kinder[[#This Row],[G-Krippe]]+tbl_Gruppen_Kinder[[#This Row],[G-Midi]]+tbl_Gruppen_Kinder[[#This Row],[G-Kiga]]+tbl_Gruppen_Kinder[[#This Row],[G-Hort]] -> 4 | J72: 14 | K72: 0 | L72: 39 | M72: 0 | N72: =tbl_Gruppen_Kinder[[#This Row],[K-Krippe]]+tbl_Gruppen_Kinder[[#This Row],[K-Midi]]+tbl_Gruppen_Kinder[[#This Row],[K-Kiga]]+tbl_Gruppen_Kinder[[#This Row],[K-Hort]] -> 53 | O72: =IF(tbl_Gruppen_Kinder[[#This Row],[K-Gesamt]]=0,"2026 Ø",IF(tbl_Gruppen_Kinder[[#This Row],[K-Gesamt]]<25,"XS (<25 Ki.)",IF(tbl_Gruppen_Kinder[[#This Row],[K-Gesamt]]<50,"S (25-49 Ki.)",IF(tbl_Gruppen_Kinder[[#This Row],[K-Gesamt]]<100,"M (50-99 Ki.)",IF(tbl_Gruppen_Kinder[[#This Row],[K-Gesamt]]<150,"L (100-149 Ki.)","XL (150- Ki.)"))))) -> M (50-99 Ki.)
B73: 1901540057 | C73: Steingaden | D73: Kita Steingaden | E73: 2 | F73: 0 | G73: 7 | H73: 0 | I73: =tbl_Gruppen_Kinder[[#This Row],[G-Krippe]]+tbl_Gruppen_Kinder[[#This Row],[G-Midi]]+tbl_Gruppen_Kinder[[#This Row],[G-Kiga]]+tbl_Gruppen_Kinder[[#This Row],[G-Hort]] -> 9 | J73: 19 | K73: 0 | L73: 130 | M73: 0 | N73: =tbl_Gruppen_Kinder[[#This Row],[K-Krippe]]+tbl_Gruppen_Kinder[[#This Row],[K-Midi]]+tbl_Gruppen_Kinder[[#This Row],[K-Kiga]]+tbl_Gruppen_Kinder[[#This Row],[K-Hort]] -> 149 | O73: =IF(tbl_Gruppen_Kinder[[#This Row],[K-Gesamt]]=0,"2026 Ø",IF(tbl_Gruppen_Kinder[[#This Row],[K-Gesamt]]<25,"XS (<25 Ki.)",IF(tbl_Gruppen_Kinder[[#This Row],[K-Gesamt]]<50,"S (25-49 Ki.)",IF(tbl_Gruppen_Kinder[[#This Row],[K-Gesamt]]<100,"M (50-99 Ki.)",IF(tbl_Gruppen_Kinder[[#This Row],[K-Gesamt]]<150,"L (100-149 Ki.)","XL (150- Ki.)"))))) -> L (100-149 Ki.)
B74: 1901570062 | C74: Weilheim | D74: AWO Kinderhaus Villa Kunterbunt | E74: 1 | F74: 0 | G74: 6 | H74: 1 | I74: =tbl_Gruppen_Kinder[[#This Row],[G-Krippe]]+tbl_Gruppen_Kinder[[#This Row],[G-Midi]]+tbl_Gruppen_Kinder[[#This Row],[G-Kiga]]+tbl_Gruppen_Kinder[[#This Row],[G-Hort]] -> 8 | J74: 12 | K74: 0 | L74: 121 | M74: 20 | N74: =tbl_Gruppen_Kinder[[#This Row],[K-Krippe]]+tbl_Gruppen_Kinder[[#This Row],[K-Midi]]+tbl_Gruppen_Kinder[[#This Row],[K-Kiga]]+tbl_Gruppen_Kinder[[#This Row],[K-Hort]] -> 153 | O74: =IF(tbl_Gruppen_Kinder[[#This Row],[K-Gesamt]]=0,"2026 Ø",IF(tbl_Gruppen_Kinder[[#This Row],[K-Gesamt]]<25,"XS (<25 Ki.)",IF(tbl_Gruppen_Kinder[[#This Row],[K-Gesamt]]<50,"S (25-49 Ki.)",IF(tbl_Gruppen_Kinder[[#This Row],[K-Gesamt]]<100,"M (50-99 Ki.)",IF(tbl_Gruppen_Kinder[[#This Row],[K-Gesamt]]<150,"L (100-149 Ki.)","XL (150- Ki.)"))))) -> XL (150- Ki.)
B75: 1901570124 | C75: Weilheim | D75: BRK Kinderhaus Weltentdecker | E75: 2 | F75: 0 | G75: 2 | H75: 0 | I75: =tbl_Gruppen_Kinder[[#This Row],[G-Krippe]]+tbl_Gruppen_Kinder[[#This Row],[G-Midi]]+tbl_Gruppen_Kinder[[#This Row],[G-Kiga]]+tbl_Gruppen_Kinder[[#This Row],[G-Hort]] -> 4 | J75: 24 | K75: 0 | L75: 50 | M75: 0 | N75: =tbl_Gruppen_Kinder[[#This Row],[K-Krippe]]+tbl_Gruppen_Kinder[[#This Row],[K-Midi]]+tbl_Gruppen_Kinder[[#This Row],[K-Kiga]]+tbl_Gruppen_Kinder[[#This Row],[K-Hort]] -> 74 | O75: =IF(tbl_Gruppen_Kinder[[#This Row],[K-Gesamt]]=0,"2026 Ø",IF(tbl_Gruppen_Kinder[[#This Row],[K-Gesamt]]<25,"XS (<25 Ki.)",IF(tbl_Gruppen_Kinder[[#This Row],[K-Gesamt]]<50,"S (25-49 Ki.)",IF(tbl_Gruppen_Kinder[[#This Row],[K-Gesamt]]<100,"M (50-99 Ki.)",IF(tbl_Gruppen_Kinder[[#This Row],[K-Gesamt]]<150,"L (100-149 Ki.)","XL (150- Ki.)"))))) -> M (50-99 Ki.)
B76: 1901570061 | C76: Weilheim | D76: Evangelisch-Lutherisches Haus für Kinder | E76: 1 | F76: 0 | G76: 3 | H76: 1 | I76: =tbl_Gruppen_Kinder[[#This Row],[G-Krippe]]+tbl_Gruppen_Kinder[[#This Row],[G-Midi]]+tbl_Gruppen_Kinder[[#This Row],[G-Kiga]]+tbl_Gruppen_Kinder[[#This Row],[G-Hort]] -> 5 | J76: 13 | K76: 0 | L76: 63 | M76: 24 | N76: =tbl_Gruppen_Kinder[[#This Row],[K-Krippe]]+tbl_Gruppen_Kinder[[#This Row],[K-Midi]]+tbl_Gruppen_Kinder[[#This Row],[K-Kiga]]+tbl_Gruppen_Kinder[[#This Row],[K-Hort]] -> 100 | O76: =IF(tbl_Gruppen_Kinder[[#This Row],[K-Gesamt]]=0,"2026 Ø",IF(tbl_Gruppen_Kinder[[#This Row],[K-Gesamt]]<25,"XS (<25 Ki.)",IF(tbl_Gruppen_Kinder[[#This Row],[K-Gesamt]]<50,"S (25-49 Ki.)",IF(tbl_Gruppen_Kinder[[#This Row],[K-Gesamt]]<100,"M (50-99 Ki.)",IF(tbl_Gruppen_Kinder[[#This Row],[K-Gesamt]]<150,"L (100-149 Ki.)","XL (150- Ki.)"))))) -> L (100-149 Ki.)
B77: 1901570116 | C77: Weilheim | D77: Fortschritt Kinderhaus am Sonnenfeld | E77: 2 | F77: 0 | G77: 2 | H77: 0 | I77: =tbl_Gruppen_Kinder[[#This Row],[G-Krippe]]+tbl_Gruppen_Kinder[[#This Row],[G-Midi]]+tbl_Gruppen_Kinder[[#This Row],[G-Kiga]]+tbl_Gruppen_Kinder[[#This Row],[G-Hort]] -> 4 | J77: 22 | K77: 0 | L77: 39 | M77: 0 | N77: =tbl_Gruppen_Kinder[[#This Row],[K-Krippe]]+tbl_Gruppen_Kinder[[#This Row],[K-Midi]]+tbl_Gruppen_Kinder[[#This Row],[K-Kiga]]+tbl_Gruppen_Kinder[[#This Row],[K-Hort]] -> 61 | O77: =IF(tbl_Gruppen_Kinder[[#This Row],[K-Gesamt]]=0,"2026 Ø",IF(tbl_Gruppen_Kinder[[#This Row],[K-Gesamt]]<25,"XS (<25 Ki.)",IF(tbl_Gruppen_Kinder[[#This Row],[K-Gesamt]]<50,"S (25-49 Ki.)",IF(tbl_Gruppen_Kinder[[#This Row],[K-Gesamt]]<100,"M (50-99 Ki.)",IF(tbl_Gruppen_Kinder[[#This Row],[K-Gesamt]]<150,"L (100-149 Ki.)","XL (150- Ki.)"))))) -> M (50-99 Ki.)
B78: 1901570108 | C78: Weilheim | D78: Inklusives Kinderhaus Pfiffikus | E78: 2 | F78: 0 | G78: 2 | H78: 0 | I78: =tbl_Gruppen_Kinder[[#This Row],[G-Krippe]]+tbl_Gruppen_Kinder[[#This Row],[G-Midi]]+tbl_Gruppen_Kinder[[#This Row],[G-Kiga]]+tbl_Gruppen_Kinder[[#This Row],[G-Hort]] -> 4 | J78: 25 | K78: 0 | L78: 46 | M78: 0 | N78: =tbl_Gruppen_Kinder[[#This Row],[K-Krippe]]+tbl_Gruppen_Kinder[[#This Row],[K-Midi]]+tbl_Gruppen_Kinder[[#This Row],[K-Kiga]]+tbl_Gruppen_Kinder[[#This Row],[K-Hort]] -> 71 | O78: =IF(tbl_Gruppen_Kinder[[#This Row],[K-Gesamt]]=0,"2026 Ø",IF(tbl_Gruppen_Kinder[[#This Row],[K-Gesamt]]<25,"XS (<25 Ki.)",IF(tbl_Gruppen_Kinder[[#This Row],[K-Gesamt]]<50,"S (25-49 Ki.)",IF(tbl_Gruppen_Kinder[[#This Row],[K-Gesamt]]<100,"M (50-99 Ki.)",IF(tbl_Gruppen_Kinder[[#This Row],[K-Gesamt]]<150,"L (100-149 Ki.)","XL (150- Ki.)"))))) -> M (50-99 Ki.)
B79: 1901570110 | C79: Weilheim | D79: Integrativer Hort an der Ammer | E79: 0 | F79: 0 | G79: 0 | H79: 2 | I79: =tbl_Gruppen_Kinder[[#This Row],[G-Krippe]]+tbl_Gruppen_Kinder[[#This Row],[G-Midi]]+tbl_Gruppen_Kinder[[#This Row],[G-Kiga]]+tbl_Gruppen_Kinder[[#This Row],[G-Hort]] -> 2 | J79: 0 | K79: 0 | L79: 0 | M79: 26 | N79: =tbl_Gruppen_Kinder[[#This Row],[K-Krippe]]+tbl_Gruppen_Kinder[[#This Row],[K-Midi]]+tbl_Gruppen_Kinder[[#This Row],[K-Kiga]]+tbl_Gruppen_Kinder[[#This Row],[K-Hort]] -> 26 | O79: =IF(tbl_Gruppen_Kinder[[#This Row],[K-Gesamt]]=0,"2026 Ø",IF(tbl_Gruppen_Kinder[[#This Row],[K-Gesamt]]<25,"XS (<25 Ki.)",IF(tbl_Gruppen_Kinder[[#This Row],[K-Gesamt]]<50,"S (25-49 Ki.)",IF(tbl_Gruppen_Kinder[[#This Row],[K-Gesamt]]<100,"M (50-99 Ki.)",IF(tbl_Gruppen_Kinder[[#This Row],[K-Gesamt]]<150,"L (100-149 Ki.)","XL (150- Ki.)"))))) -> S (25-49 Ki.)
B80: 1901570077 | C80: Weilheim | D80: Integratives Kinderhaus Franziskus | E80: 0 | F80: 0 | G80: 1 | H80: 3 | I80: =tbl_Gruppen_Kinder[[#This Row],[G-Krippe]]+tbl_Gruppen_Kinder[[#This Row],[G-Midi]]+tbl_Gruppen_Kinder[[#This Row],[G-Kiga]]+tbl_Gruppen_Kinder[[#This Row],[G-Hort]] -> 4 | J80: 0 | K80: 0 | L80: 17 | M80: 48 | N80: =tbl_Gruppen_Kinder[[#This Row],[K-Krippe]]+tbl_Gruppen_Kinder[[#This Row],[K-Midi]]+tbl_Gruppen_Kinder[[#This Row],[K-Kiga]]+tbl_Gruppen_Kinder[[#This Row],[K-Hort]] -> 65 | O80: =IF(tbl_Gruppen_Kinder[[#This Row],[K-Gesamt]]=0,"2026 Ø",IF(tbl_Gruppen_Kinder[[#This Row],[K-Gesamt]]<25,"XS (<25 Ki.)",IF(tbl_Gruppen_Kinder[[#This Row],[K-Gesamt]]<50,"S (25-49 Ki.)",IF(tbl_Gruppen_Kinder[[#This Row],[K-Gesamt]]<100,"M (50-99 Ki.)",IF(tbl_Gruppen_Kinder[[#This Row],[K-Gesamt]]<150,"L (100-149 Ki.)","XL (150- Ki.)"))))) -> M (50-99 Ki.)
B81: 1901570060 | C81: Weilheim | D81: Kath. Kindergarten St. Michael Marnbach | E81: 0 | F81: 0 | G81: 1 | H81: 0 | I81: =tbl_Gruppen_Kinder[[#This Row],[G-Krippe]]+tbl_Gruppen_Kinder[[#This Row],[G-Midi]]+tbl_Gruppen_Kinder[[#This Row],[G-Kiga]]+tbl_Gruppen_Kinder[[#This Row],[G-Hort]] -> 1 | J81: 0 | K81: 0 | L81: 32 | M81: 0 | N81: =tbl_Gruppen_Kinder[[#This Row],[K-Krippe]]+tbl_Gruppen_Kinder[[#This Row],[K-Midi]]+tbl_Gruppen_Kinder[[#This Row],[K-Kiga]]+tbl_Gruppen_Kinder[[#This Row],[K-Hort]] -> 32 | O81: =IF(tbl_Gruppen_Kinder[[#This Row],[K-Gesamt]]=0,"2026 Ø",IF(tbl_Gruppen_Kinder[[#This Row],[K-Gesamt]]<25,"XS (<25 Ki.)",IF(tbl_Gruppen_Kinder[[#This Row],[K-Gesamt]]<50,"S (25-49 Ki.)",IF(tbl_Gruppen_Kinder[[#This Row],[K-Gesamt]]<100,"M (50-99 Ki.)",IF(tbl_Gruppen_Kinder[[#This Row],[K-Gesamt]]<150,"L (100-149 Ki.)","XL (150- Ki.)"))))) -> S (25-49 Ki.)
B82: 1901570059 | C82: Weilheim | D82: Kath. Kneippkinderhaus St. Anna | E82: 1 | F82: 0 | G82: 2 | H82: 1 | I82: =tbl_Gruppen_Kinder[[#This Row],[G-Krippe]]+tbl_Gruppen_Kinder[[#This Row],[G-Midi]]+tbl_Gruppen_Kinder[[#This Row],[G-Kiga]]+tbl_Gruppen_Kinder[[#This Row],[G-Hort]] -> 4 | J82: 14 | K82: 0 | L82: 46 | M82: 22 | N82: =tbl_Gruppen_Kinder[[#This Row],[K-Krippe]]+tbl_Gruppen_Kinder[[#This Row],[K-Midi]]+tbl_Gruppen_Kinder[[#This Row],[K-Kiga]]+tbl_Gruppen_Kinder[[#This Row],[K-Hort]] -> 82 | O82: =IF(tbl_Gruppen_Kinder[[#This Row],[K-Gesamt]]=0,"2026 Ø",IF(tbl_Gruppen_Kinder[[#This Row],[K-Gesamt]]<25,"XS (<25 Ki.)",IF(tbl_Gruppen_Kinder[[#This Row],[K-Gesamt]]<50,"S (25-49 Ki.)",IF(tbl_Gruppen_Kinder[[#This Row],[K-Gesamt]]<100,"M (50-99 Ki.)",IF(tbl_Gruppen_Kinder[[#This Row],[K-Gesamt]]<150,"L (100-149 Ki.)","XL (150- Ki.)"))))) -> M (50-99 Ki.)
B83: 1901570102 | C83: Weilheim | D83: Kinderhaus im Paradeis | E83: 1 | F83: 0 | G83: 1 | H83: 0 | I83: =tbl_Gruppen_Kinder[[#This Row],[G-Krippe]]+tbl_Gruppen_Kinder[[#This Row],[G-Midi]]+tbl_Gruppen_Kinder[[#This Row],[G-Kiga]]+tbl_Gruppen_Kinder[[#This Row],[G-Hort]] -> 2 | J83: 11 | K83: 0 | L83: 21 | M83: 0 | N83: =tbl_Gruppen_Kinder[[#This Row],[K-Krippe]]+tbl_Gruppen_Kinder[[#This Row],[K-Midi]]+tbl_Gruppen_Kinder[[#This Row],[K-Kiga]]+tbl_Gruppen_Kinder[[#This Row],[K-Hort]] -> 32 | O83: =IF(tbl_Gruppen_Kinder[[#This Row],[K-Gesamt]]=0,"2026 Ø",IF(tbl_Gruppen_Kinder[[#This Row],[K-Gesamt]]<25,"XS (<25 Ki.)",IF(tbl_Gruppen_Kinder[[#This Row],[K-Gesamt]]<50,"S (25-49 Ki.)",IF(tbl_Gruppen_Kinder[[#This Row],[K-Gesamt]]<100,"M (50-99 Ki.)",IF(tbl_Gruppen_Kinder[[#This Row],[K-Gesamt]]<150,"L (100-149 Ki.)","XL (150- Ki.)"))))) -> S (25-49 Ki.)
B84: 1901570090 | C84: Weilheim | D84: Kinderkrippe Zwergerltreff | E84: 1 | F84: 0 | G84: 0 | H84: 0 | I84: =tbl_Gruppen_Kinder[[#This Row],[G-Krippe]]+tbl_Gruppen_Kinder[[#This Row],[G-Midi]]+tbl_Gruppen_Kinder[[#This Row],[G-Kiga]]+tbl_Gruppen_Kinder[[#This Row],[G-Hort]] -> 1 | J84: 15 | K84: 0 | L84: 0 | M84: 0 | N84: =tbl_Gruppen_Kinder[[#This Row],[K-Krippe]]+tbl_Gruppen_Kinder[[#This Row],[K-Midi]]+tbl_Gruppen_Kinder[[#This Row],[K-Kiga]]+tbl_Gruppen_Kinder[[#This Row],[K-Hort]] -> 15 | O84: =IF(tbl_Gruppen_Kinder[[#This Row],[K-Gesamt]]=0,"2026 Ø",IF(tbl_Gruppen_Kinder[[#This Row],[K-Gesamt]]<25,"XS (<25 Ki.)",IF(tbl_Gruppen_Kinder[[#This Row],[K-Gesamt]]<50,"S (25-49 Ki.)",IF(tbl_Gruppen_Kinder[[#This Row],[K-Gesamt]]<100,"M (50-99 Ki.)",IF(tbl_Gruppen_Kinder[[#This Row],[K-Gesamt]]<150,"L (100-149 Ki.)","XL (150- Ki.)"))))) -> XS (<25 Ki.)
B85: 1901570082 | C85: Weilheim | D85: Kindernest am Rosengarten | E85: 0 | F85: 0 | G85: 1 | H85: 0 | I85: =tbl_Gruppen_Kinder[[#This Row],[G-Krippe]]+tbl_Gruppen_Kinder[[#This Row],[G-Midi]]+tbl_Gruppen_Kinder[[#This Row],[G-Kiga]]+tbl_Gruppen_Kinder[[#This Row],[G-Hort]] -> 1 | J85: 3 | K85: 0 | L85: 12 | M85: 0 | N85: =tbl_Gruppen_Kinder[[#This Row],[K-Krippe]]+tbl_Gruppen_Kinder[[#This Row],[K-Midi]]+tbl_Gruppen_Kinder[[#This Row],[K-Kiga]]+tbl_Gruppen_Kinder[[#This Row],[K-Hort]] -> 15 | O85: =IF(tbl_Gruppen_Kinder[[#This Row],[K-Gesamt]]=0,"2026 Ø",IF(tbl_Gruppen_Kinder[[#This Row],[K-Gesamt]]<25,"XS (<25 Ki.)",IF(tbl_Gruppen_Kinder[[#This Row],[K-Gesamt]]<50,"S (25-49 Ki.)",IF(tbl_Gruppen_Kinder[[#This Row],[K-Gesamt]]<100,"M (50-99 Ki.)",IF(tbl_Gruppen_Kinder[[#This Row],[K-Gesamt]]<150,"L (100-149 Ki.)","XL (150- Ki.)"))))) -> XS (<25 Ki.)
B86: 1901570063 | C86: Weilheim | D86: Montessori-Kinderhaus Weilheim | E86: 1 | F86: 0 | G86: 1 | H86: 0 | I86: =tbl_Gruppen_Kinder[[#This Row],[G-Krippe]]+tbl_Gruppen_Kinder[[#This Row],[G-Midi]]+tbl_Gruppen_Kinder[[#This Row],[G-Kiga]]+tbl_Gruppen_Kinder[[#This Row],[G-Hort]] -> 2 | J86: 12 | K86: 0 | L86: 25 | M86: 0 | N86: =tbl_Gruppen_Kinder[[#This Row],[K-Krippe]]+tbl_Gruppen_Kinder[[#This Row],[K-Midi]]+tbl_Gruppen_Kinder[[#This Row],[K-Kiga]]+tbl_Gruppen_Kinder[[#This Row],[K-Hort]] -> 37 | O86: =IF(tbl_Gruppen_Kinder[[#This Row],[K-Gesamt]]=0,"2026 Ø",IF(tbl_Gruppen_Kinder[[#This Row],[K-Gesamt]]<25,"XS (<25 Ki.)",IF(tbl_Gruppen_Kinder[[#This Row],[K-Gesamt]]<50,"S (25-49 Ki.)",IF(tbl_Gruppen_Kinder[[#This Row],[K-Gesamt]]<100,"M (50-99 Ki.)",IF(tbl_Gruppen_Kinder[[#This Row],[K-Gesamt]]<150,"L (100-149 Ki.)","XL (150- Ki.)"))))) -> S (25-49 Ki.)
B87: 1901570080 | C87: Weilheim | D87: Naturkindergarten Schmetterlinge Weilheim | E87: 0 | F87: 0 | G87: 1 | H87: 0 | I87: =tbl_Gruppen_Kinder[[#This Row],[G-Krippe]]+tbl_Gruppen_Kinder[[#This Row],[G-Midi]]+tbl_Gruppen_Kinder[[#This Row],[G-Kiga]]+tbl_Gruppen_Kinder[[#This Row],[G-Hort]] -> 1 | J87: 0 | K87: 0 | L87: 14 | M87: 0 | N87: =tbl_Gruppen_Kinder[[#This Row],[K-Krippe]]+tbl_Gruppen_Kinder[[#This Row],[K-Midi]]+tbl_Gruppen_Kinder[[#This Row],[K-Kiga]]+tbl_Gruppen_Kinder[[#This Row],[K-Hort]] -> 14 | O87: =IF(tbl_Gruppen_Kinder[[#This Row],[K-Gesamt]]=0,"2026 Ø",IF(tbl_Gruppen_Kinder[[#This Row],[K-Gesamt]]<25,"XS (<25 Ki.)",IF(tbl_Gruppen_Kinder[[#This Row],[K-Gesamt]]<50,"S (25-49 Ki.)",IF(tbl_Gruppen_Kinder[[#This Row],[K-Gesamt]]<100,"M (50-99 Ki.)",IF(tbl_Gruppen_Kinder[[#This Row],[K-Gesamt]]<150,"L (100-149 Ki.)","XL (150- Ki.)"))))) -> XS (<25 Ki.)
B88: 1901570067 | C88: Weilheim | D88: Städt. Kindergarten und Krippe Unterhausener Dorfspatzen | E88: 1 | F88: 0 | G88: 3 | H88: 0 | I88: =tbl_Gruppen_Kinder[[#This Row],[G-Krippe]]+tbl_Gruppen_Kinder[[#This Row],[G-Midi]]+tbl_Gruppen_Kinder[[#This Row],[G-Kiga]]+tbl_Gruppen_Kinder[[#This Row],[G-Hort]] -> 4 | J88: 15 | K88: 0 | L88: 65 | M88: 0 | N88: =tbl_Gruppen_Kinder[[#This Row],[K-Krippe]]+tbl_Gruppen_Kinder[[#This Row],[K-Midi]]+tbl_Gruppen_Kinder[[#This Row],[K-Kiga]]+tbl_Gruppen_Kinder[[#This Row],[K-Hort]] -> 80 | O88: =IF(tbl_Gruppen_Kinder[[#This Row],[K-Gesamt]]=0,"2026 Ø",IF(tbl_Gruppen_Kinder[[#This Row],[K-Gesamt]]<25,"XS (<25 Ki.)",IF(tbl_Gruppen_Kinder[[#This Row],[K-Gesamt]]<50,"S (25-49 Ki.)",IF(tbl_Gruppen_Kinder[[#This Row],[K-Gesamt]]<100,"M (50-99 Ki.)",IF(tbl_Gruppen_Kinder[[#This Row],[K-Gesamt]]<150,"L (100-149 Ki.)","XL (150- Ki.)"))))) -> M (50-99 Ki.)
B89: 1901570066 | C89: Weilheim | D89: Städtisches Kinderhaus Nepomuk | E89: 1 | F89: 0 | G89: 3 | H89: 0 | I89: =tbl_Gruppen_Kinder[[#This Row],[G-Krippe]]+tbl_Gruppen_Kinder[[#This Row],[G-Midi]]+tbl_Gruppen_Kinder[[#This Row],[G-Kiga]]+tbl_Gruppen_Kinder[[#This Row],[G-Hort]] -> 4 | J89: 15 | K89: 0 | L89: 75 | M89: 0 | N89: =tbl_Gruppen_Kinder[[#This Row],[K-Krippe]]+tbl_Gruppen_Kinder[[#This Row],[K-Midi]]+tbl_Gruppen_Kinder[[#This Row],[K-Kiga]]+tbl_Gruppen_Kinder[[#This Row],[K-Hort]] -> 90 | O89: =IF(tbl_Gruppen_Kinder[[#This Row],[K-Gesamt]]=0,"2026 Ø",IF(tbl_Gruppen_Kinder[[#This Row],[K-Gesamt]]<25,"XS (<25 Ki.)",IF(tbl_Gruppen_Kinder[[#This Row],[K-Gesamt]]<50,"S (25-49 Ki.)",IF(tbl_Gruppen_Kinder[[#This Row],[K-Gesamt]]<100,"M (50-99 Ki.)",IF(tbl_Gruppen_Kinder[[#This Row],[K-Gesamt]]<150,"L (100-149 Ki.)","XL (150- Ki.)"))))) -> M (50-99 Ki.)
B90: 1901570064 | C90: Weilheim | D90: WaldorfHaus Weilheim | E90: 1 | F90: 0 | G90: 1 | H90: 0 | I90: =tbl_Gruppen_Kinder[[#This Row],[G-Krippe]]+tbl_Gruppen_Kinder[[#This Row],[G-Midi]]+tbl_Gruppen_Kinder[[#This Row],[G-Kiga]]+tbl_Gruppen_Kinder[[#This Row],[G-Hort]] -> 2 | J90: 8 | K90: 0 | L90: 18 | M90: 0 | N90: =tbl_Gruppen_Kinder[[#This Row],[K-Krippe]]+tbl_Gruppen_Kinder[[#This Row],[K-Midi]]+tbl_Gruppen_Kinder[[#This Row],[K-Kiga]]+tbl_Gruppen_Kinder[[#This Row],[K-Hort]] -> 26 | O90: =IF(tbl_Gruppen_Kinder[[#This Row],[K-Gesamt]]=0,"2026 Ø",IF(tbl_Gruppen_Kinder[[#This Row],[K-Gesamt]]<25,"XS (<25 Ki.)",IF(tbl_Gruppen_Kinder[[#This Row],[K-Gesamt]]<50,"S (25-49 Ki.)",IF(tbl_Gruppen_Kinder[[#This Row],[K-Gesamt]]<100,"M (50-99 Ki.)",IF(tbl_Gruppen_Kinder[[#This Row],[K-Gesamt]]<150,"L (100-149 Ki.)","XL (150- Ki.)"))))) -> S (25-49 Ki.)
B91: 1901570083 | C91: Weilheim | D91: Weilheimer Kindernest Gelbe Villa | E91: 0 | F91: 0 | G91: 1 | H91: 0 | I91: =tbl_Gruppen_Kinder[[#This Row],[G-Krippe]]+tbl_Gruppen_Kinder[[#This Row],[G-Midi]]+tbl_Gruppen_Kinder[[#This Row],[G-Kiga]]+tbl_Gruppen_Kinder[[#This Row],[G-Hort]] -> 1 | J91: 0 | K91: 0 | L91: 15 | M91: 0 | N91: =tbl_Gruppen_Kinder[[#This Row],[K-Krippe]]+tbl_Gruppen_Kinder[[#This Row],[K-Midi]]+tbl_Gruppen_Kinder[[#This Row],[K-Kiga]]+tbl_Gruppen_Kinder[[#This Row],[K-Hort]] -> 15 | O91: =IF(tbl_Gruppen_Kinder[[#This Row],[K-Gesamt]]=0,"2026 Ø",IF(tbl_Gruppen_Kinder[[#This Row],[K-Gesamt]]<25,"XS (<25 Ki.)",IF(tbl_Gruppen_Kinder[[#This Row],[K-Gesamt]]<50,"S (25-49 Ki.)",IF(tbl_Gruppen_Kinder[[#This Row],[K-Gesamt]]<100,"M (50-99 Ki.)",IF(tbl_Gruppen_Kinder[[#This Row],[K-Gesamt]]<150,"L (100-149 Ki.)","XL (150- Ki.)"))))) -> XS (<25 Ki.)
B92: 1901580069 | C92: Wessobrunn | D92: Kindergarten Bärenhöhle | E92: 1 | F92: 0 | G92: 2 | H92: 0 | I92: =tbl_Gruppen_Kinder[[#This Row],[G-Krippe]]+tbl_Gruppen_Kinder[[#This Row],[G-Midi]]+tbl_Gruppen_Kinder[[#This Row],[G-Kiga]]+tbl_Gruppen_Kinder[[#This Row],[G-Hort]] -> 3 | J92: 11 | K92: 0 | L92: 44 | M92: 0 | N92: =tbl_Gruppen_Kinder[[#This Row],[K-Krippe]]+tbl_Gruppen_Kinder[[#This Row],[K-Midi]]+tbl_Gruppen_Kinder[[#This Row],[K-Kiga]]+tbl_Gruppen_Kinder[[#This Row],[K-Hort]] -> 55 | O92: =IF(tbl_Gruppen_Kinder[[#This Row],[K-Gesamt]]=0,"2026 Ø",IF(tbl_Gruppen_Kinder[[#This Row],[K-Gesamt]]<25,"XS (<25 Ki.)",IF(tbl_Gruppen_Kinder[[#This Row],[K-Gesamt]]<50,"S (25-49 Ki.)",IF(tbl_Gruppen_Kinder[[#This Row],[K-Gesamt]]<100,"M (50-99 Ki.)",IF(tbl_Gruppen_Kinder[[#This Row],[K-Gesamt]]<150,"L (100-149 Ki.)","XL (150- Ki.)"))))) -> M (50-99 Ki.)
B93: 1901580070 | C93: Wessobrunn | D93: Kindergarten Dorfstrolche | E93: 0 | F93: 1 | G93: 1 | H93: 0 | I93: =tbl_Gruppen_Kinder[[#This Row],[G-Krippe]]+tbl_Gruppen_Kinder[[#This Row],[G-Midi]]+tbl_Gruppen_Kinder[[#This Row],[G-Kiga]]+tbl_Gruppen_Kinder[[#This Row],[G-Hort]] -> 2 | J93: 0 | K93: 15 | L93: 25 | M93: 0 | N93: =tbl_Gruppen_Kinder[[#This Row],[K-Krippe]]+tbl_Gruppen_Kinder[[#This Row],[K-Midi]]+tbl_Gruppen_Kinder[[#This Row],[K-Kiga]]+tbl_Gruppen_Kinder[[#This Row],[K-Hort]] -> 40 | O93: =IF(tbl_Gruppen_Kinder[[#This Row],[K-Gesamt]]=0,"2026 Ø",IF(tbl_Gruppen_Kinder[[#This Row],[K-Gesamt]]<25,"XS (<25 Ki.)",IF(tbl_Gruppen_Kinder[[#This Row],[K-Gesamt]]<50,"S (25-49 Ki.)",IF(tbl_Gruppen_Kinder[[#This Row],[K-Gesamt]]<100,"M (50-99 Ki.)",IF(tbl_Gruppen_Kinder[[#This Row],[K-Gesamt]]<150,"L (100-149 Ki.)","XL (150- Ki.)"))))) -> S (25-49 Ki.)
B94: 1901570068 | C94: Weilheim | D94: Waldkindergarten Weilheim "Die Wurzelkinder" e.V. | E94: 0 | F94: 0 | G94: 1 | H94: 0 | I94: =tbl_Gruppen_Kinder[[#This Row],[G-Krippe]]+tbl_Gruppen_Kinder[[#This Row],[G-Midi]]+tbl_Gruppen_Kinder[[#This Row],[G-Kiga]]+tbl_Gruppen_Kinder[[#This Row],[G-Hort]] -> 1 | J94: 0 | K94: 0 | L94: 20 | M94: 0 | N94: =tbl_Gruppen_Kinder[[#This Row],[K-Krippe]]+tbl_Gruppen_Kinder[[#This Row],[K-Midi]]+tbl_Gruppen_Kinder[[#This Row],[K-Kiga]]+tbl_Gruppen_Kinder[[#This Row],[K-Hort]] -> 20 | O94: =IF(tbl_Gruppen_Kinder[[#This Row],[K-Gesamt]]=0,"2026 Ø",IF(tbl_Gruppen_Kinder[[#This Row],[K-Gesamt]]<25,"XS (<25 Ki.)",IF(tbl_Gruppen_Kinder[[#This Row],[K-Gesamt]]<50,"S (25-49 Ki.)",IF(tbl_Gruppen_Kinder[[#This Row],[K-Gesamt]]<100,"M (50-99 Ki.)",IF(tbl_Gruppen_Kinder[[#This Row],[K-Gesamt]]<150,"L (100-149 Ki.)","XL (150- Ki.)"))))) -> XS (<25 Ki.)
B95: 1901590071 | C95: Wielenbach | D95: Gemeinde Kita Schatzkiste | E95: 2 | F95: 0 | G95: 6 | H95: 1 | I95: =tbl_Gruppen_Kinder[[#This Row],[G-Krippe]]+tbl_Gruppen_Kinder[[#This Row],[G-Midi]]+tbl_Gruppen_Kinder[[#This Row],[G-Kiga]]+tbl_Gruppen_Kinder[[#This Row],[G-Hort]] -> 9 | J95: 13 | K95: 0 | L95: 105 | M95: 28 | N95: =tbl_Gruppen_Kinder[[#This Row],[K-Krippe]]+tbl_Gruppen_Kinder[[#This Row],[K-Midi]]+tbl_Gruppen_Kinder[[#This Row],[K-Kiga]]+tbl_Gruppen_Kinder[[#This Row],[K-Hort]] -> 146 | O95: =IF(tbl_Gruppen_Kinder[[#This Row],[K-Gesamt]]=0,"2026 Ø",IF(tbl_Gruppen_Kinder[[#This Row],[K-Gesamt]]<25,"XS (<25 Ki.)",IF(tbl_Gruppen_Kinder[[#This Row],[K-Gesamt]]<50,"S (25-49 Ki.)",IF(tbl_Gruppen_Kinder[[#This Row],[K-Gesamt]]<100,"M (50-99 Ki.)",IF(tbl_Gruppen_Kinder[[#This Row],[K-Gesamt]]<150,"L (100-149 Ki.)","XL (150- Ki.)"))))) -> L (100-149 Ki.)
B96: 1901590072 | C96: Wielenbach | D96: Kinderkrippe Wielenbach | E96: 1 | F96: 0 | G96: 0 | H96: 0 | I96: =tbl_Gruppen_Kinder[[#This Row],[G-Krippe]]+tbl_Gruppen_Kinder[[#This Row],[G-Midi]]+tbl_Gruppen_Kinder[[#This Row],[G-Kiga]]+tbl_Gruppen_Kinder[[#This Row],[G-Hort]] -> 1 | J96: 8 | K96: 0 | L96: 0 | M96: 0 | N96: =tbl_Gruppen_Kinder[[#This Row],[K-Krippe]]+tbl_Gruppen_Kinder[[#This Row],[K-Midi]]+tbl_Gruppen_Kinder[[#This Row],[K-Kiga]]+tbl_Gruppen_Kinder[[#This Row],[K-Hort]] -> 8 | O96: =IF(tbl_Gruppen_Kinder[[#This Row],[K-Gesamt]]=0,"2026 Ø",IF(tbl_Gruppen_Kinder[[#This Row],[K-Gesamt]]<25,"XS (<25 Ki.)",IF(tbl_Gruppen_Kinder[[#This Row],[K-Gesamt]]<50,"S (25-49 Ki.)",IF(tbl_Gruppen_Kinder[[#This Row],[K-Gesamt]]<100,"M (50-99 Ki.)",IF(tbl_Gruppen_Kinder[[#This Row],[K-Gesamt]]<150,"L (100-149 Ki.)","XL (150- Ki.)"))))) -> XS (<25 Ki.)
B97: 1901600072 | C97: Wildsteig | D97: Kindergarten Wildsteig | E97: 0 | F97: 0 | G97: 3 | H97: 0 | I97: =tbl_Gruppen_Kinder[[#This Row],[G-Krippe]]+tbl_Gruppen_Kinder[[#This Row],[G-Midi]]+tbl_Gruppen_Kinder[[#This Row],[G-Kiga]]+tbl_Gruppen_Kinder[[#This Row],[G-Hort]] -> 3 | J97: 0 | K97: 0 | L97: 48 | M97: 0 | N97: =tbl_Gruppen_Kinder[[#This Row],[K-Krippe]]+tbl_Gruppen_Kinder[[#This Row],[K-Midi]]+tbl_Gruppen_Kinder[[#This Row],[K-Kiga]]+tbl_Gruppen_Kinder[[#This Row],[K-Hort]] -> 48 | O97: =IF(tbl_Gruppen_Kinder[[#This Row],[K-Gesamt]]=0,"2026 Ø",IF(tbl_Gruppen_Kinder[[#This Row],[K-Gesamt]]<25,"XS (<25 Ki.)",IF(tbl_Gruppen_Kinder[[#This Row],[K-Gesamt]]<50,"S (25-49 Ki.)",IF(tbl_Gruppen_Kinder[[#This Row],[K-Gesamt]]<100,"M (50-99 Ki.)",IF(tbl_Gruppen_Kinder[[#This Row],[K-Gesamt]]<150,"L (100-149 Ki.)","XL (150- Ki.)"))))) -> S (25-49 Ki.)
C98: =SUBTOTAL(103,tbl_Gruppen_Kinder[Ort]) -> 92 | E98: =SUBTOTAL(109,tbl_Gruppen_Kinder[G-Krippe]) -> 88 | F98: =SUBTOTAL(109,tbl_Gruppen_Kinder[G-Midi]) -> 6 | G98: =SUBTOTAL(109,tbl_Gruppen_Kinder[G-Kiga]) -> 202 | H98: =SUBTOTAL(109,tbl_Gruppen_Kinder[G-Hort]) -> 33 | I98: =SUBTOTAL(109,tbl_Gruppen_Kinder[G-Gesamt]) -> 329 | J98: =SUBTOTAL(109,tbl_Gruppen_Kinder[K-Krippe]) -> 931 | K98: =SUBTOTAL(109,tbl_Gruppen_Kinder[K-Midi]) -> 81 | L98: =SUBTOTAL(109,tbl_Gruppen_Kinder[K-Kiga]) -> 4237 | M98: =SUBTOTAL(109,tbl_Gruppen_Kinder[K-Hort]) -> 805 | N98: =SUBTOTAL(109,tbl_Gruppen_Kinder[K-Gesamt]) -> 6054 | O98: =SUBTOTAL(103,tbl_Gruppen_Kinder[Größe-Kategorie]) -> 92
C99: Anzahl | E99: Summe | F99: Summe | G99: Summe | H99: Summe | I99: Summe | J99: Summe | K99: Summe | L99: Summe | M99: Summe | N99: Summe | O99: Anzahl

Sheet Kita-Typen
C2: Kita-Typen | J2: Stand: März 2026
C3: Angaben der Kitas, die bei der online Befragung 2026 mitgewirkt haben. | E3: =tbl_Kita_Typen[[#Totals],[Größe-Kategorie]] -> 92 | F3: =tbl_Kita_Typen[[#Totals],[Krippe]] -> 57 | G3: =tbl_Kita_Typen[[#Totals],[Midi]] -> 6 | H3: =tbl_Kita_Typen[[#Totals],[Kindergarten]] -> 79 | I3: =tbl_Kita_Typen[[#Totals],[Hort]] -> 22
B4: Einrichtungs-Nr. | C4: Ort | D4: Einrichtung | E4: Größe-Kategorie | F4: Krippe | G4: Midi | H4: Kindergarten | I4: Hort | J4: Typ
B5: 1901110002 | C5: Altenstadt | D5: Integratives Kinderhaus Altenstadt | E5: M (50-99 Ki.) | H5: ja | I5: ja | J5: Kindergarten & Hort
B6: 1901110001 | C6: Altenstadt | D6: Kath. Kindergarten St. Michael | E6: M (50-99 Ki.) | F6: ja | H6: ja | J6: Krippe & Kindergarten
B7: 1901130002 | C7: Antdorf | D7: Kindertagesstätte Antdorf | E7: M (50-99 Ki.) | F7: ja | H7: ja | I7: ja | J7: Krippe & Kindergarten & Hort
B8: 1901140003 | C8: Bernbeuren | D8: Kath. Kindergarten St. Nikolaus | E8: L (100-149 Ki.) | F8: ja | H8: ja | I8: ja | J8: Krippe & Kindergarten & Hort
B9: 1901151115 | C9: Bernried | D9: Kinderhaus Bernried | E9: M (50-99 Ki.) | H9: ja | I9: ja | J9: Kindergarten & Hort
B10: 1901150005 | C10: Bernried | D10: Waldkinder Bernried e.V. | E10: S (25-49 Ki.) | H10: ja | I10: ja | J10: Kindergarten & Hort
B11: 1901171111 | C11: Böbing | D11: Kindergarten St. Hedwig | E11: L (100-149 Ki.) | F11: ja | H11: ja | J11: Krippe & Kindergarten
B12: 1901180007 | C12: Burggen | D12: Katholische Kindertageseinrichtung St. Anna | E12: M (50-99 Ki.) | F12: ja | H12: ja | J12: Krippe & Kindergarten
B13: 1901200008 | C13: Eberfing | D13: Eberfinger Kinderhaus "Ich & Du" | E13: L (100-149 Ki.) | F13: ja | H13: ja | I13: ja | J13: Krippe & Kindergarten & Hort
B14: 1901210009 | C14: Eglfing | D14: Kindergarten Eglfing | E14: S (25-49 Ki.) | H14: ja | J14: Kindergarten
B15: 1901210097 | C15: Eglfing | D15: Kinderkrippe Tauting | E15: XS (<25 Ki.) | F15: ja | J15: Krippe
B16: 1901260010 | C16: Habach | D16: Ulrich Kinderhaus Habach | E16: S (25-49 Ki.) | F16: ja | H16: ja | J16: Krippe & Kindergarten
B17: 1901290011 | C17: Hohenfurch | D17: Kindergarten 'Sonnenblick' Kindergarten & Krippe | E17: M (50-99 Ki.) | F17: ja | H17: ja | J17: Krippe & Kindergarten
B18: 1901300014 | C18: Hohenpeißenberg | D18: Integratives Kinderhaus am Schächen | E18: S (25-49 Ki.) | F18: ja | H18: ja | J18: Krippe & Kindergarten
B19: 1901300013 | C19: Hohenpeißenberg | D19: Kindergarten im Hetten | E19: S (25-49 Ki.) | F19: ja | H19: ja | J19: Krippe & Kindergarten
B20: 1901310121 | C20: Huglfing | D20: Kindertagesstätte Huglhupf | E20: L (100-149 Ki.) | F20: ja | H20: ja | J20: Krippe & Kindergarten
B21: 1901320015 | C21: Iffeldorf | D21: Katholisches Haus für Kinder St. Vitus | E21: L (100-149 Ki.) | F21: ja | G21: ja | H21: ja | I21: ja | J21: Krippe & Kindergarten & Hort
B22: 1901330016 | C22: Ingenried | D22: Kindergarten St. Georg | E22: M (50-99 Ki.) | F22: ja | G22: ja | H22: ja | J22: Krippe & Kindergarten
B23: 1901350120 | C23: Oberhausen | D23: Kinderhaus am Storchennest | E23: M (50-99 Ki.) | F23: ja | H23: ja | J23: Krippe & Kindergarten
B24: 1901360018 | C24: Obersöchering | D24: Kinderhaus Söcheringer Wespennest | E24: M (50-99 Ki.) | F24: ja | G24: ja | H24: ja | J24: Krippe & Kindergarten
B25: 1901390024 | C25: Peißenberg | D25: AWO-Kinderhaus Pumuckl | E25: M (50-99 Ki.) | F25: ja | H25: ja | I25: ja | J25: Krippe & Kindergarten & Hort
B26: 1901390023 | C26: Peißenberg | D26: Evang. Kindergarten Regenbogen | E26: M (50-99 Ki.) | H26: ja | J26: Krippe & Kindergarten
B27: 1901390025 | C27: Peißenberg | D27: FortSchritt Inklusives Kinderhaus an der Ammer | E27: M (50-99 Ki.) | F27: ja | H27: ja | J27: Krippe & Kindergarten
B28: 1901390021 | C28: Peißenberg | D28: Kindergarten St. Johannes Baptist | E28: M (50-99 Ki.) | F28: ja | H28: ja | J28: Krippe & Kindergarten
B29: 1901390026 | C29: Peißenberg | D29: Kinderhaus am Berg | E29: M (50-99 Ki.) | F29: ja | H29: ja | J29: Krippe & Kindergarten
B30: 1901390125 | C30: Peißenberg | D30: Kinderhaus im Dorf | E30: S (25-49 Ki.) | F30: ja | H30: ja | J30: Krippe & Kindergarten
B31: 1901390022 | C31: Peißenberg | D31: Kindertagesstätte St. Barbara | E31: M (50-99 Ki.) | F31: ja | H31: ja | J31: Krippe & Kindergarten
B32: 1901400027 | C32: Peiting | D32: Caritas Kita St. Michael | E32: M (50-99 Ki.) | H32: ja | J32: Kindergarten
B33: 1901400073 | C33: Peiting | D33: Integrativer Hort im Kinderhaus Peiting | E33: XS (<25 Ki.) | I33: ja | J33: Hort
B34: 1901400107 | C34: Peiting | D34: Integrativer Naturkindergarten am Weiherhäusle | E34: XS (<25 Ki.) | H34: ja | J34: Kindergarten
B35: 1901400113 | C35: Peiting | D35: Integratives Kinderhaus im Forsthaus | E35: M (50-99 Ki.) | H35: ja | I35: ja | J35: Kindergarten & Hort
B36: 1901400030 | C36: Peiting | D36: Kindergarten am Gumpen | E36: S (25-49 Ki.) | J36: Kindergarten
B37: 1901400033 | C37: Peiting | D37: Kindergarten Birkland | E37: XS (<25 Ki.) | H37: ja | J37: Kindergarten
B38: 1901400029 | C38: Peiting | D38: Kinderhaus Peiting | E38: S (25-49 Ki.) | F38: ja | H38: ja | J38: Krippe & Kindergarten
B39: 1901400100 | C39: Peiting | D39: Kita Sonnenschein | E39: XL (150- Ki.) | J39: Kindergarten
B40: 1901400032 | C40: Peiting | D40: Therese-Peter-Haus für Kinder | E40: M (50-99 Ki.) | F40: ja | J40: Krippe
B41: 1901400098 | C41: Peiting | D41: Waldkindergarten Wurzelzwerge Peiting e.V | E41: XS (<25 Ki.) | H41: ja | J41: Kindergarten
B42: 1901410040 | C42: Penzberg | D42: Albert-Schweitzer Waldkindergarten | E42: XS (<25 Ki.) | J42: Kindergarten
B43: 1901410037 | C43: Penzberg | D43: AWO Kinderhaus an der Birkenstraße | E43: L (100-149 Ki.) | J43: Hort
B44: 1901410075 | C44: Penzberg | D44: AWO Kinderhort Winterstraße | E44: L (100-149 Ki.) | I44: ja | J44: Hort
B45: 1901410035 | C45: Penzberg | D45: Evang. Haus für Kinder Penzberg | E45: M (50-99 Ki.) | F45: ja | H45: ja | I45: ja | J45: Krippe & Kindergarten & Hort
B46: 1901410038 | C46: Penzberg | D46: Familienzentrum Arche Noah | E46: S (25-49 Ki.) | H46: ja | J46: Kindergarten
B47: 1901410117 | C47: Penzberg | D47: Integrativer Kindergarten mit Krippe an der Birkenstraße | E47: M (50-99 Ki.) | F47: ja | H47: ja | J47: Krippe & Kindergarten
B48: 1901410104 | C48: Penzberg | D48: Katholischer Kindergarten St. Franziskus | E48: M (50-99 Ki.) | F48: ja | H48: ja | J48: Krippe & Kindergarten
B49: 1901410039 | C49: Penzberg | D49: KiM-Kita Penzberg | E49: L (100-149 Ki.) | F49: ja | H49: ja | J49: Krippe & Kindergarten
B50: 1901410122 | C50: Penzberg | D50: Kindergarten Spatzennest | E50: L (100-149 Ki.) | H50: ja | J50: Kindergarten
C51: Penzberg | D51: Kinderkrippe Spatzennest | E51: M (50-99 Ki.) | F51: ja | J51: Krippe
B52: 1901410034 | C52: Penzberg | D52: Kindertagesstätte St. Raphael | E52: L (100-149 Ki.) | F52: ja | H52: ja | J52: Krippe & Kindergarten
B53: 1901410079 | C53: Penzberg | D53: Montessori Kinderhaus Penzberg | E53: S (25-49 Ki.) | H53: ja | J53: Kindergarten
B54: 1901420041 | C54: Polling | D54: Integratives Kinderhaus Polling | E54: M (50-99 Ki.) | F54: ja | H54: ja | I54: ja | J54: Krippe & Kindergarten & Hort
B55: 1901420042 | C55: Polling | D55: Kindertagesstätte der Gemeinde Polling | E55: L (100-149 Ki.) | F55: ja | H55: ja | I55: ja | J55: Krippe & Kindergarten & Hort
B56: 1901420043 | C56: Polling | D56: Naturkindergarten 'Waldwichtel' in Polling | E56: XS (<25 Ki.) | H56: ja | J56: Kindergarten
B57: 1901430043 | C57: Prem | D57: Kindergarten Prem | E57: S (25-49 Ki.) | H57: ja | J57: Kindergarten
B58: 1901440106 | C58: Raisting | D58: BRK Kindergarten St. Raphael Raisting | E58: M (50-99 Ki.) | H58: ja | J58: Kindergarten
B59: 1901440105 | C59: Raisting | D59: Kinderhort Bunte Kleckse | E59: XS (<25 Ki.) | I59: ja | J59: Hort
B60: 1901450046 | C60: Rottenbuch | D60: Don Bosco Haus für Kinder | E60: M (50-99 Ki.) | F60: ja | H60: ja | J60: Krippe & Kindergarten & Hort
B61: 1901480081 | C61: Schongau | D61: Elterninitiative Kindernest Schongau e.V. | E61: XS (<25 Ki.) | H61: ja | J61: Kindergarten
B62: 1901480119 | C62: Schongau | D62: Haus für Kinder | E62: M (50-99 Ki.) | F62: ja | H62: ja | J62: Krippe & Kindergarten
B63: 1901480103 | C63: Schongau | D63: Kindergarten Clara-Fey | E63: XS (<25 Ki.) | H63: ja | J63: Kindergarten
B64: 1901480052 | C64: Schongau | D64: Kindergarten Kunterbunt | E64: M (50-99 Ki.) | H64: ja | J64: Kindergarten
B65: 1901480050 | C65: Schongau | D65: Kindergarten Regenbogen | E65: M (50-99 Ki.) | F65: ja | G65: ja | H65: ja | J65: Krippe & Kindergarten
B66: 1901480047 | C66: Schongau | D66: Kindergarten St. Johannes | E66: M (50-99 Ki.) | F66: ja | G66: ja | H66: ja | J66: Krippe & Kindergarten
B67: 1901480049 | C67: Schongau | D67: Kita Mariä Himmelfahrt | E67: M (50-99 Ki.) | F67: ja | H67: ja | J67: Krippe & Kindergarten
B68: 1901490053 | C68: Schwabbruck | D68: Kindergarten St. Walburga | E68: M (50-99 Ki.) | F68: ja | H68: ja | J68: Krippe & Kindergarten
B69: 1901510055 | C69: Schwabsoien | D69: Kindergarten mit Krippe Sonnenblume | E69: M (50-99 Ki.) | F69: ja | H69: ja | J69: Krippe & Kindergarten
B70: 1901520055 | C70: Seeshaupt | D70: Kinderhaus Seeshaupt | E70: L (100-149 Ki.) | F70: ja | H70: ja | I70: ja | J70: Krippe & Kindergarten & Hort
B71: 1901530056 | C71: Sindelsdorf | D71: Gemeindekindergarten Sindelsdorf | E71: M (50-99 Ki.) | F71: ja | H71: ja | J71: Krippe & Kindergarten
B72: 1901540057 | C72: Steingaden | D72: Kita Steingaden | E72: L (100-149 Ki.) | F72: ja | H72: ja | J72: Krippe & Kindergarten
B73: 1901570062 | C73: Weilheim | D73: AWO Kinderhaus Villa Kunterbunt | E73: XL (150- Ki.) | F73: ja | H73: ja | I73: ja | J73: Krippe & Kindergarten & Hort
B74: 1901570124 | C74: Weilheim | D74: BRK Kinderhaus Weltentdecker | E74: M (50-99 Ki.) | F74: ja | H74: ja | J74: Krippe & Kindergarten
B75: 1901570061 | C75: Weilheim | D75: Evangelisch-Lutherisches Haus für Kinder | E75: L (100-149 Ki.) | F75: ja | H75: ja | I75: ja | J75: Krippe & Kindergarten & Hort
B76: 1901570116 | C76: Weilheim | D76: Fortschritt Kinderhaus am Sonnenfeld | E76: M (50-99 Ki.) | F76: ja | H76: ja | J76: Krippe & Kindergarten
B77: 1901570108 | C77: Weilheim | D77: Inklusives Kinderhaus Pfiffikus | E77: M (50-99 Ki.) | F77: ja | H77: ja | J77: Krippe & Kindergarten
B78: 1901570110 | C78: Weilheim | D78: Integrativer Hort an der Ammer | E78: S (25-49 Ki.) | I78: ja | J78: Hort
B79: 1901570077 | C79: Weilheim | D79: Integratives Kinderhaus Franziskus | E79: M (50-99 Ki.) | H79: ja | I79: ja | J79: Kindergarten & Hort
B80: 1901570060 | C80: Weilheim | D80: Kath. Kindergarten St. Michael Marnbach | E80: S (25-49 Ki.) | H80: ja | J80: Kindergarten
B81: 1901570059 | C81: Weilheim | D81: Kath. Kneippkinderhaus St. Anna | E81: M (50-99 Ki.) | F81: ja | H81: ja | I81: ja | J81: Krippe & Kindergarten & Hort
B82: 1901570102 | C82: Weilheim | D82: Kinderhaus im Paradeis | E82: S (25-49 Ki.) | F82: ja | H82: ja | J82: Krippe & Kindergarten
B83: 1901570090 | C83: Weilheim | D83: Kinderkrippe Zwergerltreff | E83: XS (<25 Ki.) | F83: ja | J83: Krippe
B84: 1901570082 | C84: Weilheim | D84: Kindernest am Rosengarten | E84: XS (<25 Ki.) | H84: ja | J84: Krippe & Kindergarten
B85: 1901570063 | C85: Weilheim | D85: Montessori-Kinderhaus Weilheim | E85: S (25-49 Ki.) | F85: ja | H85: ja | J85: Krippe & Kindergarten
B86: 1901570080 | C86: Weilheim | D86: Naturkindergarten Schmetterlinge Weilheim | E86: XS (<25 Ki.) | H86: ja | J86: Kindergarten
B87: 1901570067 | C87: Weilheim | D87: Städt. Kindergarten und Krippe Unterhausener Dorfspatzen | E87: M (50-99 Ki.) | F87: ja | H87: ja | J87: Krippe & Kindergarten
B88: 1901570066 | C88: Weilheim | D88: Städtisches Kinderhaus Nepomuk | E88: M (50-99 Ki.) | F88: ja | H88: ja | J88: Krippe & Kindergarten
B89: 1901570064 | C89: Weilheim | D89: WaldorfHaus Weilheim | E89: S (25-49 Ki.) | F89: ja | H89: ja | J89: Krippe & Kindergarten
B90: 1901570083 | C90: Weilheim | D90: Weilheimer Kindernest Gelbe Villa | E90: XS (<25 Ki.) | H90: ja | J90: Kindergarten
B91: 1901580069 | C91: Wessobrunn | D91: Kindergarten Bärenhöhle | E91: M (50-99 Ki.) | F91: ja | H91: ja | J91: Krippe & Kindergarten
B92: 1901580070 | C92: Wessobrunn | D92: Kindergarten Dorfstrolche | E92: S (25-49 Ki.) | G92: ja | H92: ja | J92: Kindergarten
B93: 1901570068 | C93: Weilheim | D93: Waldkindergarten Weilheim "Die Wurzelkinder" e.V. | E93: XS (<25 Ki.) | H93: ja | J93: Kindergarten
B94: 1901590071 | C94: Wielenbach | D94: Gemeinde Kita Schatzkiste | E94: L (100-149 Ki.) | F94: ja | H94: ja | I94: ja | J94: Krippe & Kindergarten & Hort
B95: 1901590072 | C95: Wielenbach | D95: Kinderkrippe Wielenbach | E95: XS (<25 Ki.) | F95: ja | J95: Krippe
B96: 1901600072 | C96: Wildsteig | D96: Kindergarten Wildsteig | E96: S (25-49 Ki.) | H96: ja | J96: Kindergarten
C97: =SUBTOTAL(103,tbl_Kita_Typen[Ort]) -> 92 | E97: =SUBTOTAL(103,tbl_Kita_Typen[Größe-Kategorie]) -> 92 | F97: =SUBTOTAL(103,tbl_Kita_Typen[Krippe]) -> 57 | G97: =SUBTOTAL(103,tbl_Kita_Typen[Midi]) -> 6 | H97: =SUBTOTAL(103,tbl_Kita_Typen[Kindergarten]) -> 79 | I97: =SUBTOTAL(103,tbl_Kita_Typen[Hort]) -> 22
C98: Anzahl | E98: Anzahl | F98: Anzahl | G98: Anzahl | H98: Anzahl | I98: Anzahl

Sheet Oeffnungszeiten
C2: Öffnungszeiten | N2: Stand: März 2026
C3: Angaben der Kitas, die bei der online Befragung 2026 mitgewirkt haben.
C4: =tbl_Oeffnungszeiten[[#Totals],[Ort]] -> 92 | J4: =tbl_Oeffnungszeiten[[#Totals],[Früheste Öffnung]] -> 92 | K4: =tbl_Oeffnungszeiten[[#Totals],[Späteste Schließung]] -> 92 | N4: =tbl_Oeffnungszeiten[[#Totals],[>45 Std./ Wo.]] -> 92
B5: Einrichtungs-Nr. | C5: Ort | D5: Einrichtung | E5: Mo | F5: Di | G5: Mi | H5: Do | I5: Fr | J5: Früheste Öffnung | K5: Späteste Schließung | L5: Std./Wo. | M5: WAZ | N5: >45 Std./ Wo.
B6: 1901110002 | C6: Altenstadt | D6: Integratives Kinderhaus Altenstadt | E6: 07:00-16:30 | F6: 07:00-16:30 | G6: 07:00-16:30 | H6: 07:00-16:30 | I6: 07:00-15:00 | J6: 07:00 | K6: 16:30 | L6: 46:00 | M6: 1.916666667 | N6: ja
B7: 1901110001 | C7: Altenstadt | D7: Kath. Kindergarten St. Michael | E7: 07:00-16:00 | F7: 07:00-16:00 | G7: 07:00-16:00 | H7: 07:00-16:00 | I7: 07:00-14:00 | J7: 07:00 | K7: 16:00 | L7: 43:00 | M7: 1.791666667 | N7: nein
B8: 1901130002 | C8: Antdorf | D8: Kindertagesstätte Antdorf | E8: 07:00-15:00 | F8: 07:00-15:00 | G8: 07:00-15:00 | H8: 07:00-15:00 | I8: 07:00-14:00 | J8: 07:00 | K8: 15:00 | L8: 39:00 | M8: 1.625 | N8: nein
B9: 1901140003 | C9: Bernbeuren | D9: Kath. Kindergarten St. Nikolaus | E9: 07:00-15:15 | F9: 07:00-16:30 | G9: 07:00-15:15 | H9: 07:00-16:30 | I9: 07:00-14:15 | J9: 07:00 | K9: 16:30 | L9: 42:45 | M9: 1.78125 | N9: nein
B10: 1901151115 | C10: Bernried | D10: Kinderhaus Bernried | E10: 07:30-16:30 | F10: 07:30-16:30 | G10: 07:30-16:30 | H10: 07:30-16:30 | I10: 07:30-16:30 | J10: 07:30 | K10: 16:30 | L10: 45:00 | M10: 1.875 | N10: ja
B11: 1901150005 | C11: Bernried | D11: Waldkinder Bernried e.V. | E11: 08:00-16:45 | F11: 08:00-16:45 | G11: 08:00-16:45 | H11: 08:00-16:45 | I11: 08:00-16:45 | J11: 08:00 | K11: 16:45 | L11: 43:45 | M11: 1.822916667 | N11: nein
B12: 1901171111 | C12: Böbing | D12: Kindergarten St. Hedwig | E12: 07:30-16:00 | F12: 07:30-16:00 | G12: 07:30-16:00 | H12: 07:30-16:00 | I12: 07:30-14:00 | J12: 07:30 | K12: 16:00 | L12: 40:30 | M12: 1.6875 | N12: nein
B13: 1901180007 | C13: Burggen | D13: Katholische Kindertageseinrichtung St. Anna | E13: 07:30-15:00 | F13: 07:30-15:00 | G13: 07:30-15:00 | H13: 07:30-15:00 | I13: 07:30-13:30 | J13: 07:30 | K13: 15:00 | L13: 36:00 | M13: 1.5 | N13: nein
B14: 1901200008 | C14: Eberfing | D14: Eberfinger Kinderhaus "Ich & Du" | E14: 07:15-16:00 | F14: 07:15-16:00 | G14: 07:15-16:00 | H14: 07:15-16:00 | I14: 07:15-15:00 | J14: 07:15 | K14: 16:00 | L14: 42:45 | M14: 1.78125 | N14: nein
B15: 1901210009 | C15: Eglfing | D15: Kindergarten Eglfing | E15: 07:30-15:00 | F15: 07:30-15:00 | G15: 07:30-15:00 | H15: 07:30-15:00 | I15: 07:30-15:00 | J15: 07:30 | K15: 15:00 | L15: 37:30 | M15: 1.5625 | N15: nein
B16: 1901210097 | C16: Eglfing | D16: Kinderkrippe Tauting | E16: 07:30-15:00 | F16: 07:30-15:00 | G16: 07:30-15:00 | H16: 07:30-15:00 | I16: 07:30-15:00 | J16: 07:30 | K16: 15:00 | L16: 37:30 | M16: 1.5625 | N16: nein
B17: 1901260010 | C17: Habach | D17: Ulrich Kinderhaus Habach | E17: 07:30-14:00 | F17: 07:30-14:00 | G17: 07:30-15:00 | H17: 07:30-16:00 | I17: 07:30-14:00 | J17: 07:30 | K17: 16:00 | L17: 35:30 | M17: 1.479166667 | N17: nein
B18: 1901290011 | C18: Hohenfurch | D18: Kindergarten 'Sonnenblick' Kindergarten & Krippe | E18: 07:00-15:00 | F18: 07:00-15:00 | G18: 07:00-15:00 | H18: 07:00-15:00 | I18: 07:00-15:00 | J18: 07:00 | K18: 15:00 | L18: 40:00 | M18: 1.666666667 | N18: nein
B19: 1901300014 | C19: Hohenpeißenberg | D19: Integratives Kinderhaus am Schächen | E19: 07:00-15:30 | F19: 07:00-15:30 | G19: 07:00-15:30 | H19: 07:00-15:30 | I19: 07:00-14:30 | J19: 07:00 | K19: 15:30 | L19: 41:30 | M19: 1.729166667 | N19: nein
B20: 1901300013 | C20: Hohenpeißenberg | D20: Kindergarten im Hetten | E20: 07:30-16:00 | F20: 07:30-16:00 | G20: 07:30-16:00 | H20: 07:30-16:00 | I20: 07:30-14:30 | J20: 07:30 | K20: 16:00 | L20: 41:00 | M20: 1.708333333 | N20: nein
B21: 1901310121 | C21: Huglfing | D21: Kindertagesstätte Huglhupf | E21: 07:00-15:30 | F21: 07:00-15:30 | G21: 07:00-15:30 | H21: 07:00-15:30 | I21: 07:00-14:00 | J21: 07:00 | K21: 15:30 | L21: 41:00 | M21: 1.708333333 | N21: nein
B22: 1901320015 | C22: Iffeldorf | D22: Katholisches Haus für Kinder St. Vitus | E22: 07:00-16:00 | F22: 07:00-16:00 | G22: 07:00-16:00 | H22: 07:00-16:00 | I22: 07:00-16:00 | J22: 07:00 | K22: 16:00 | L22: 45:00 | M22: 1.875 | N22: ja
B23: 1901330016 | C23: Ingenried | D23: Kindergarten St. Georg | E23: 07:00-15:00 | F23: 07:00-15:00 | G23: 07:00-15:00 | H23: 07:00-15:00 | I23: 07:00-13:00 | J23: 07:00 | K23: 15:00 | L23: 38:00 | M23: 1.583333333 | N23: nein
B24: 1901350120 | C24: Oberhausen | D24: Kinderhaus am Storchennest | E24: 07:00-15:00 | F24: 07:00-16:00 | G24: 07:00-15:00 | H24: 07:00-15:00 | I24: 07:00-14:00 | J24: 07:00 | K24: 16:00 | L24: 40:00 | M24: 1.666666667 | N24: nein
B25: 1901360018 | C25: Obersöchering | D25: Kinderhaus Söcheringer Wespennest | E25: 07:30-14:00 | F25: 07:30-15:30 | G25: 07:30-15:30 | H25: 07:30-15:30 | I25: 07:30-14:00 | J25: 07:30 | K25: 15:30 | L25: 37:00 | M25: 1.541666667 | N25: nein
B26: 1901390024 | C26: Peißenberg | D26: AWO-Kinderhaus Pumuckl | E26: 07:00-16:30 | F26: 07:00-16:30 | G26: 07:00-16:30 | H26: 07:00-16:30 | I26: 07:00-15:30 | J26: 07:00 | K26: 16:30 | L26: 46:30 | M26: 1.9375 | N26: ja
B27: 1901390023 | C27: Peißenberg | D27: Evang. Kindergarten Regenbogen | E27: 07:00-16:00 | F27: 07:00-16:00 | G27: 07:00-16:00 | H27: 07:00-16:00 | I27: 07:00-15:30 | J27: 07:00 | K27: 16:00 | L27: 44:30 | M27: 1.854166667 | N27: nein
B28: 1901390025 | C28: Peißenberg | D28: FortSchritt Inklusives Kinderhaus an der Ammer | E28: 07:00-16:00 | F28: 07:00-16:00 | G28: 07:00-16:00 | H28: 07:00-16:00 | I28: 07:00-16:00 | J28: 07:00 | K28: 16:00 | L28: 45:00 | M28: 1.875 | N28: ja
B29: 1901390021 | C29: Peißenberg | D29: Kindergarten St. Johannes Baptist | E29: 07:00-16:00 | F29: 07:00-16:00 | G29: 07:00-16:00 | H29: 07:00-16:00 | I29: 07:00-14:00 | J29: 07:00 | K29: 16:00 | L29: 43:00 | M29: 1.791666667 | N29: nein
B30: 1901390026 | C30: Peißenberg | D30: Kinderhaus am Berg | E30: 07:00-16:00 | F30: 07:00-16:00 | G30: 07:00-16:00 | H30: 07:00-16:00 | I30: 07:00-16:00 | J30: 07:00 | K30: 16:00 | L30: 45:00 | M30: 1.875 | N30: ja
B31: 1901390125 | C31: Peißenberg | D31: Kinderhaus im Dorf | E31: 07:00-16:00 | F31: 07:00-16:00 | G31: 07:00-16:00 | H31: 07:00-16:00 | I31: 07:00-16:00 | J31: 07:00 | K31: 16:00 | L31: 45:00 | M31: 1.875 | N31: ja
B32: 1901390022 | C32: Peißenberg | D32: Kindertagesstätte St. Barbara | E32: 07:00-16:00 | F32: 07:00-16:00 | G32: 07:00-16:00 | H32: 07:00-16:00 | I32: 07:00-15:00 | J32: 07:00 | K32: 16:00 | L32: 44:00 | M32: 1.833333333 | N32: nein
B33: 1901400027 | C33: Peiting | D33: Caritas Kita St. Michael | E33: 07:00-16:30 | F33: 07:00-16:30 | G33: 07:00-16:30 | H33: 07:00-16:30 | I33: 07:00-15:00 | J33: 07:00 | K33: 16:30 | L33: 46:00 | M33: 1.916666667 | N33: ja
B34: 1901400073 | C34: Peiting | D34: Integrativer Hort im Kinderhaus Peiting | E34: 07:00-15:30 | F34: 07:00-15:30 | G34: 07:00-15:30 | H34: 07:00-15:30 | I34: 07:00-15:30 | J34: 07:00 | K34: 15:30 | L34: 42:30 | M34: 1.770833333 | N34: nein
B35: 1901400107 | C35: Peiting | D35: Integrativer Naturkindergarten am Weiherhäusle | E35: 07:30-14:00 | F35: 07:30-14:00 | G35: 07:30-14:00 | H35: 07:30-14:00 | I35: 07:30-12:30 | J35: 07:30 | K35: 14:00 | L35: 31:00 | M35: 1.291666667 | N35: nein
B36: 1901400113 | C36: Peiting | D36: Integratives Kinderhaus im Forsthaus | E36: 07:30-17:00 | F36: 07:30-17:00 | G36: 07:30-17:00 | H36: 07:30-17:00 | I36: 07:30-17:00 | J36: 07:30 | K36: 17:00 | L36: 47:30 | M36: 1.979166667 | N36: ja
B37: 1901400030 | C37: Peiting | D37: Kindergarten am Gumpen | E37: 07:30-15:30 | F37: 07:30-15:30 | G37: 07:30-15:30 | H37: 07:30-15:30 | I37: 07:30-15:30 | J37: 07:30 | K37: 15:30 | L37: 40:00 | M37: 1.666666667 | N37: nein
B38: 1901400033 | C38: Peiting | D38: Kindergarten Birkland | E38: 07:30-13:00 | F38: 07:30-13:00 | G38: 07:30-13:00 | H38: 07:30-13:00 | I38: 07:30-13:00 | J38: 07:30 | K38: 13:00 | L38: 27:30 | M38: 1.145833333 | N38: nein
B39: 1901400029 | C39: Peiting | D39: Kinderhaus Peiting | E39: 07:00-15:30 | F39: 07:00-15:30 | G39: 07:00-15:30 | H39: 07:00-15:30 | I39: 07:00-15:30 | J39: 07:00 | K39: 15:30 | L39: 42:30 | M39: 1.770833333 | N39: nein
B40: 1901400100 | C40: Peiting | D40: Kita Sonnenschein | E40: 07:00-16:30 | F40: 07:00-16:30 | G40: 07:00-16:30 | H40: 07:00-16:30 | I40: 07:00-16:00 | J40: 07:00 | K40: 16:30 | L40: 47:00 | M40: 1.958333333 | N40: ja
B41: 1901400032 | C41: Peiting | D41: Therese-Peter-Haus für Kinder | E41: 07:00-16:00 | F41: 07:00-16:00 | G41: 07:00-16:00 | H41: 07:00-16:00 | I41: 07:00-16:00 | J41: 07:00 | K41: 16:00 | L41: 45:00 | M41: 1.875 | N41: ja
B42: 1901400098 | C42: Peiting | D42: Waldkindergarten Wurzelzwerge Peiting e.V | E42: 08:00-13:30 | F42: 08:00-13:30 | G42: 08:00-13:30 | H42: 08:00-13:30 | I42: 08:00-13:30 | J42: 08:00 | K42: 13:30 | L42: 27:30 | M42: 1.145833333 | N42: nein
B43: 1901410040 | C43: Penzberg | D43: Albert-Schweitzer Waldkindergarten | E43: 08:00-13:30 | F43: 08:00-13:30 | G43: 08:00-13:30 | H43: 08:00-13:30 | I43: 08:00-13:30 | J43: 08:00 | K43: 13:00 | L43: 27:30 | M43: 1.145833333 | N43: nein
B44: 1901410037 | C44: Penzberg | D44: AWO Kinderhaus an der Birkenstraße | E44: 11:15-17:00 | F44: 11:15-17:00 | G44: 11:15-17:00 | H44: 11:15-17:00 | I44: 11:15-16:00 | J44: 11:15 | K44: 17:00 | L44: 27:45 | M44: 1.15625 | N44: nein
B45: 1901410075 | C45: Penzberg | D45: AWO Kinderhort Winterstraße | E45: 07:30-17:00 | F45: 07:30-17:00 | G45: 07:30-17:00 | H45: 07:30-17:00 | I45: 07:30-17:00 | J45: 07:30 | K45: 17:00 | L45: 47:30 | M45: 1.979166667 | N45: ja
B46: 1901410035 | C46: Penzberg | D46: Evang. Haus für Kinder Penzberg | E46: 07:00-16:30 | F46: 07:00-16:30 | G46: 07:00-16:30 | H46: 07:00-16:30 | I46: 07:00-15:30 | J46: 07:00 | K46: 16:30 | L46: 46:30 | M46: 1.9375 | N46: ja
B47: 1901410038 | C47: Penzberg | D47: Familienzentrum Arche Noah | E47: 07:30-16:30 | F47: 07:30-16:30 | G47: 07:30-16:30 | H47: 07:30-16:30 | I47: 07:30-16:00 | J47: 07:30 | K47: 16:30 | L47: 44:30 | M47: 1.854166667 | N47: nein
B48: 1901410117 | C48: Penzberg | D48: Integrativer Kindergarten mit Krippe an der Birkenstraße | E48: 07:00-16:00 | F48: 07:00-16:00 | G48: 07:00-16:00 | H48: 07:00-16:00 | I48: 07:00-16:00 | J48: 07:00 | K48: 16:00 | L48: 45:00 | M48: 1.875 | N48: ja
B49: 1901410104 | C49: Penzberg | D49: Katholischer Kindergarten St. Franziskus | E49: 07:00-16:00 | F49: 07:00-16:00 | G49: 07:00-16:00 | H49: 07:00-16:00 | I49: 07:00-15:00 | J49: 07:00 | K49: 16:00 | L49: 44:00 | M49: 1.833333333 | N49: nein
B50: 1901410039 | C50: Penzberg | D50: KiM-Kita Penzberg | E50: 07:00-16:30 | F50: 07:00-16:30 | G50: 07:00-16:30 | H50: 07:00-16:30 | I50: 07:00-16:00 | J50: 07:00 | K50: 16:30 | L50: 47:00 | M50: 1.958333333 | N50: ja
B51: 1901410122 | C51: Penzberg | D51: Kindergarten Spatzennest | E51: 07:00-17:00 | F51: 07:00-17:00 | G51: 07:00-17:00 | H51: 07:00-17:00 | I51: 07:00-17:00 | J51: 07:00 | K51: 17:00 | L51: 50:00 | M51: 2.083333333 | N51: ja
C52: Penzberg | D52: Kinderkrippe Spatzennest | E52: 07:00-17:00 | F52: 07:00-17:00 | G52: 07:00-17:00 | H52: 07:00-17:00 | I52: 07:00-17:00 | J52: 07:00 | K52: 17:00 | L52: 50:00 | M52: 2.083333333 | N52: ja
B53: 1901410034 | C53: Penzberg | D53: Kindertagesstätte St. Raphael | E53: 07:00-16:00 | F53: 07:00-16:00 | G53: 07:00-16:00 | H53: 07:00-16:00 | I53: 07:00-16:00 | J53: 07:00 | K53: 16:00 | L53: 45:00 | M53: 1.875 | N53: ja
B54: 1901410079 | C54: Penzberg | D54: Montessori Kinderhaus Penzberg | E54: 07:30-15:00 | F54: 07:30-15:00 | G54: 07:30-15:00 | H54: 07:30-15:00 | I54: 07:30-13:00 | J54: 07:30 | K54: 15:00 | L54: 35:30 | M54: 1.479166667 | N54: nein
B55: 1901420041 | C55: Polling | D55: Integratives Kinderhaus Polling | E55: 07:00-17:00 | F55: 07:00-17:00 | G55: 07:00-17:00 | H55: 07:00-17:00 | I55: 07:00-16:00 | J55: 07:00 | K55: 17:00 | L55: 49:00 | M55: 2.041666667 | N55: ja
B56: 1901420042 | C56: Polling | D56: Kindertagesstätte der Gemeinde Polling | E56: 07:15-16:00 | F56: 07:15-16:00 | G56: 07:15-16:00 | H56: 07:15-16:00 | I56: 07:15-16:00 | J56: 07:15 | K56: 16:00 | L56: 43:45 | M56: 1.822916667 | N56: nein
B57: 1901420043 | C57: Polling | D57: Naturkindergarten 'Waldwichtel' in Polling | E57: 07:30-14:00 | F57: 07:30-14:00 | G57: 07:30-14:00 | H57: 07:30-14:00 | I57: 07:30-14:00 | J57: 07:30 | K57: 14:00 | L57: 32:30 | M57: 1.354166667 | N57: nein
B58: 1901430043 | C58: Prem | D58: Kindergarten Prem | E58: 07:30-13:30 | F58: 07:30-13:30 | G58: 07:30-13:30 | H58: 07:30-13:30 | I58: 07:30-13:30 | J58: 07:30 | K58: 13:30 | L58: 30:00 | M58: 1.25 | N58: nein
B59: 1901440106 | C59: Raisting | D59: BRK Kindergarten St. Raphael Raisting | E59: 07:30-16:00 | F59: 07:30-16:00 | G59: 07:30-16:00 | H59: 07:30-16:00 | I59: 07:30-15:00 | J59: 07:30 | K59: 16:00 | L59: 41:30 | M59: 1.729166667 | N59: nein
B60: 1901440105 | C60: Raisting | D60: Kinderhort Bunte Kleckse | E60: 11:00-16:00 | F60: 11:00-16:00 | G60: 11:00-16:00 | H60: 11:00-16:00 | I60: 11:00-16:00 | J60: 11:00 | K60: 16:00 | L60: 25:00 | M60: 1.041666667 | N60: nein
B61: 1901450046 | C61: Rottenbuch | D61: Don Bosco Haus für Kinder | E61: 07:00-16:00 | F61: 07:00-16:00 | G61: 07:00-16:00 | H61: 07:00-16:00 | I61: 07:00-13:00 | J61: 07:00 | K61: 16:00 | L61: 42:00 | M61: 1.75 | N61: nein
B62: 1901480081 | C62: Schongau | D62: Elterninitiative Kindernest Schongau e.V. | E62: 07:30-14:00 | F62: 07:30-14:00 | G62: 07:30-14:00 | H62: 07:30-14:00 | I62: 07:30-13:00 | J62: 07:30 | K62: 14:30 | L62: 31:30 | M62: 1.3125 | N62: nein
B63: 1901480119 | C63: Schongau | D63: Haus für Kinder | E63: 07:00-15:30 | F63: 07:00-15:30 | G63: 07:00-15:30 | H63: 07:00-15:30 | I63: 07:00-15:30 | J63: 07:00 | K63: 15:30 | L63: 42:30 | M63: 1.770833333 | N63: nein
B64: 1901480103 | C64: Schongau | D64: Kindergarten Clara-Fey | E64: 07:15-15:15 | F64: 07:15-15:15 | G64: 07:15-15:15 | H64: 07:15-15:15 | I64: 07:15-14:15 | J64: 07:15 | K64: 15:15 | L64: 39:00 | M64: 1.625 | N64: nein
B65: 1901480052 | C65: Schongau | D65: Kindergarten Kunterbunt | E65: 07:15-15:15 | F65: 07:15-15:15 | G65: 07:15-15:15 | H65: 07:15-15:15 | I65: 07:15-14:00 | J65: 07:15 | K65: 15:15 | L65: 38:45 | M65: 1.614583333 | N65: nein
B66: 1901480050 | C66: Schongau | D66: Kindergarten Regenbogen | E66: 07:15-15:00 | F66: 07:15-15:00 | G66: 07:15-15:00 | H66: 07:15-15:00 | I66: 07:15-14:00 | J66: 07:15 | K66: 15:00 | L66: 37:45 | M66: 1.572916667 | N66: nein
B67: 1901480047 | C67: Schongau | D67: Kindergarten St. Johannes | E67: 07:00-15:00 | F67: 07:00-15:00 | G67: 07:00-15:00 | H67: 07:00-15:00 | I67: 07:00-15:00 | J67: 07:00 | K67: 15:00 | L67: 40:00 | M67: 1.666666667 | N67: nein
B68: 1901480049 | C68: Schongau | D68: Kita Mariä Himmelfahrt | E68: 07:00-15:30 | F68: 07:00-15:30 | G68: 07:00-15:30 | H68: 07:00-15:30 | I68: 07:00-15:00 | J68: 07:15 | K68: 16:00 | L68: 42:00 | M68: 1.75 | N68: nein
B69: 1901490053 | C69: Schwabbruck | D69: Kindergarten St. Walburga | E69: 07:15-14:30 | F69: 07:15-14:30 | G69: 07:15-14:30 | H69: 07:15-14:30 | I69: 07:15-14:00 | J69: 07:15 | K69: 14:30 | L69: 35:45 | M69: 1.489583333 | N69: nein
B70: 1901510055 | C70: Schwabsoien | D70: Kindergarten mit Krippe Sonnenblume | E70: 07:30-13:30 | F70: 07:30-13:30 | G70: 07:30-13:30 | H70: 07:30-15:30 | I70: 07:30-13:30 | J70: 07:30 | K70: 15:30 | L70: 32:00 | M70: 1.333333333 | N70: nein
B71: 1901520055 | C71: Seeshaupt | D71: Kinderhaus Seeshaupt | E71: 07:30-16:00 | F71: 07:30-16:00 | G71: 07:30-16:00 | H71: 07:30-16:00 | I71: 07:30-16:00 | J71: 07:30 | K71: 16:00 | L71: 42:30 | M71: 1.770833333 | N71: nein
B72: 1901530056 | C72: Sindelsdorf | D72: Gemeindekindergarten Sindelsdorf | E72: 07:30-16:00 | F72: 07:30-16:00 | G72: 07:30-16:00 | H72: 07:30-16:00 | I72: 07:30-14:00 | J72: 07:30 | K72: 16:00 | L72: 40:30 | M72: 1.6875 | N72: nein
B73: 1901540057 | C73: Steingaden | D73: Kita Steingaden | E73: 07:00-15:00 | F73: 07:00-15:00 | G73: 07:00-15:00 | H73: 07:00-15:00 | I73: 07:00-15:00 | J73: 07:00 | K73: 15:00 | L73: 40:00 | M73: 1.666666667 | N73: nein
B74: 1901570062 | C74: Weilheim | D74: AWO Kinderhaus Villa Kunterbunt | E74: 07:30-17:00 | F74: 07:30-17:00 | G74: 07:30-17:00 | H74: 07:30-17:00 | I74: 07:30-16:00 | J74: 07:30 | K74: 17:00 | L74: 46:30 | M74: 1.9375 | N74: ja
B75: 1901570124 | C75: Weilheim | D75: BRK Kinderhaus Weltentdecker | E75: 07:00-16:00 | F75: 07:00-16:00 | G75: 07:00-16:00 | H75: 07:00-16:00 | I75: 07:00-15:00 | J75: 07:00 | K75: 16:00 | L75: 44:00 | M75: 1.833333333 | N75: nein
B76: 1901570061 | C76: Weilheim | D76: Evangelisch-Lutherisches Haus für Kinder | E76: 07:30-16:00 | F76: 07:30-16:00 | G76: 07:30-16:00 | H76: 07:30-16:00 | I76: 07:30-16:00 | J76: 07:30 | K76: 16:00 | L76: 42:30 | M76: 1.770833333 | N76: nein
B77: 1901570116 | C77: Weilheim | D77: Fortschritt Kinderhaus am Sonnenfeld | E77: 07:30-16:30 | F77: 07:30-16:30 | G77: 07:30-16:30 | H77: 07:30-16:30 | I77: 07:30-15:00 | J77: 07:30 | K77: 16:30 | L77: 43:30 | M77: 1.8125 | N77: nein
B78: 1901570108 | C78: Weilheim | D78: Inklusives Kinderhaus Pfiffikus | E78: 07:00-16:00 | F78: 07:00-16:00 | G78: 07:00-16:00 | H78: 07:00-16:00 | I78: 07:00-16:00 | J78: 07:00 | K78: 16:00 | L78: 45:00 | M78: 1.875 | N78: ja
B79: 1901570110 | C79: Weilheim | D79: Integrativer Hort an der Ammer | E79: 10:00-17:00 | F79: 10:00-17:00 | G79: 10:00-17:00 | H79: 10:00-17:00 | I79: 10:00-17:00 | J79: 10:00 | K79: 17:00 | L79: 35:00 | M79: 1.458333333 | N79: nein
B80: 1901570077 | C80: Weilheim | D80: Integratives Kinderhaus Franziskus | E80: 08:00-17:30 | F80: 08:00-17:30 | G80: 08:00-17:30 | H80: 08:00-17:30 | I80: 08:00-17:30 | J80: 08:00 | K80: 17:30 | L80: 47:30 | M80: 1.979166667 | N80: ja
B81: 1901570060 | C81: Weilheim | D81: Kath. Kindergarten St. Michael Marnbach | E81: 07:30-13:30 | F81: 07:30-15:00 | G81: 07:30-13:30 | H81: 07:30-13:30 | I81: 07:30-12:30 | J81: 07:30 | K81: 15:00 | L81: 30:30 | M81: 1.270833333 | N81: nein
B82: 1901570059 | C82: Weilheim | D82: Kath. Kneippkinderhaus St. Anna | E82: 07:00-16:30 | F82: 07:00-16:30 | G82: 07:00-16:30 | H82: 07:00-16:30 | I82: 07:00-16:30 | J82: 07:00 | K82: 17:00 | L82: 47:30 | M82: 1.979166667 | N82: ja
B83: 1901570102 | C83: Weilheim | D83: Kinderhaus im Paradeis | E83: 07:30-16:00 | F83: 07:30-16:00 | G83: 07:30-16:00 | H83: 07:30-16:00 | I83: 07:30-15:00 | J83: 07:30 | K83: 16:00 | L83: 41:30 | M83: 1.729166667 | N83: nein
B84: 1901570090 | C84: Weilheim | D84: Kinderkrippe Zwergerltreff | E84: 07:30-16:00 | F84: 07:30-16:00 | G84: 07:30-16:00 | H84: 07:30-16:00 | I84: 07:30-16:00 | J84: 07:30 | K84: 16:00 | L84: 42:30 | M84: 1.770833333 | N84: nein
B85: 1901570082 | C85: Weilheim | D85: Kindernest am Rosengarten | E85: 07:30-15:00 | F85: 07:30-15:00 | G85: 07:30-15:00 | H85: 07:30-15:00 | I85: 07:30-15:30 | J85: 07:30 | K85: 15:30 | L85: 38:00 | M85: 1.583333333 | N85: nein
B86: 1901570063 | C86: Weilheim | D86: Montessori-Kinderhaus Weilheim | E86: 07:30-15:30 | F86: 07:30-15:30 | G86: 07:30-15:30 | H86: 07:30-15:30 | I86: 07:30-15:30 | J86: 07:30 | K86: 15:30 | L86: 40:00 | M86: 1.666666667 | N86: nein
B87: 1901570080 | C87: Weilheim | D87: Naturkindergarten Schmetterlinge Weilheim | E87: 07:30-14:00 | F87: 07:30-14:00 | G87: 07:30-14:00 | H87: 07:30-14:00 | I87: 07:30-14:00 | J87: 07:30 | K87: 14:00 | L87: 32:30 | M87: 1.354166667 | N87: nein
B88: 1901570067 | C88: Weilheim | D88: Städt. Kindergarten und Krippe Unterhausener Dorfspatzen | E88: 07:00-15:00 | F88: 07:00-15:00 | G88: 07:00-15:00 | H88: 07:00-15:00 | I88: 07:00-15:00 | J88: 07:00 | K88: 15:00 | L88: 40:00 | M88: 1.666666667 | N88: nein
B89: 1901570066 | C89: Weilheim | D89: Städtisches Kinderhaus Nepomuk | E89: 07:00-16:00 | F89: 07:00-16:00 | G89: 07:00-16:00 | H89: 07:00-16:00 | I89: 07:00-15:00 | J89: 07:00 | K89: 16:00 | L89: 44:00 | M89: 1.833333333 | N89: nein
B90: 1901570064 | C90: Weilheim | D90: WaldorfHaus Weilheim | E90: 07:15-15:00 | F90: 07:15-15:00 | G90: 07:15-15:00 | H90: 07:15-15:00 | I90: 07:15-13:00 | J90: 07:15 | K90: 15:00 | L90: 36:45 | M90: 1.53125 | N90: nein
B91: 1901570083 | C91: Weilheim | D91: Weilheimer Kindernest Gelbe Villa | E91: 07:30-14:00 | F91: 07:30-14:00 | G91: 07:30-14:00 | H91: 07:30-14:00 | I91: 07:30-13:00 | J91: 07:30 | K91: 14:00 | L91: 31:30 | M91: 1.3125 | N91: nein
B92: 1901580069 | C92: Wessobrunn | D92: Kindergarten Bärenhöhle | E92: 07:00-16:00 | F92: 07:00-16:00 | G92: 07:00-16:00 | H92: 07:00-16:00 | I92: 07:00-14:00 | J92: 07:00 | K92: 16:00 | L92: 43:00 | M92: 1.791666667 | N92: nein
B93: 1901580070 | C93: Wessobrunn | D93: Kindergarten Dorfstrolche | E93: 07:30-14:00 | F93: 07:30-14:00 | G93: 07:30-14:00 | H93: 07:30-14:00 | I93: 07:30-13:00 | J93: 07:30 | K93: 14:00 | L93: 31:30 | M93: 1.3125 | N93: nein
B94: 1901570068 | C94: Weilheim | D94: Waldkindergarten Weilheim "Die Wurzelkinder" e.V. | E94: 08:00-13:30 | F94: 08:00-13:30 | G94: 08:00-13:30 | H94: 08:00-13:30 | I94: 08:00-13:30 | J94: 08:00 | K94: 13:30 | L94: 27:30 | M94: 1.145833333 | N94: nein
B95: 1901590071 | C95: Wielenbach | D95: Gemeinde Kita Schatzkiste | E95: 07:30-16:00 | F95: 07:30-16:00 | G95: 07:30-16:00 | H95: 07:30-16:00 | I95: 07:30-15:00 | J95: 07:30 | K95: 16:00 | L95: 41:30 | M95: 1.729166667 | N95: nein
B96: 1901590072 | C96: Wielenbach | D96: Kinderkrippe Wielenbach | E96: 07:00-15:00 | F96: 07:00-15:00 | G96: 07:00-15:00 | H96: 07:00-15:00 | I96: 07:00-15:00 | J96: 07:00 | K96: 15:00 | L96: 40:00 | M96: 1.666666667 | N96: nein
B97: 1901600072 | C97: Wildsteig | D97: Kindergarten Wildsteig | E97: 07:30-13:00 | F97: 07:30-13:00 | G97: 07:30-13:00 | H97: 07:30-13:00 | I97: 07:30-13:00 | J97: 07:30 | K97: 13:00 | L97: 27:30 | M97: 1.145833333 | N97: nein
B98: Ergebnis | C98: =SUBTOTAL(103,tbl_Oeffnungszeiten[Ort]) -> 92 | J98: =SUBTOTAL(103,tbl_Oeffnungszeiten[Früheste Öffnung]) -> 92 | K98: =SUBTOTAL(103,tbl_Oeffnungszeiten[Späteste Schließung]) -> 92 | N98: =SUBTOTAL(103,tbl_Oeffnungszeiten[>45 Std./ Wo.]) -> 92
C99: Anzahl | J99: Anzahl | K99: Anzahl | N99: Anzahl

Sheet Mittagsverpflegung
C2: Mittagsverpflegung | F2: Stand: März 2026
C3: Angaben der Kitas, die bei der online Befragung 2026 mitgewirkt haben.
B4: Einrichtungs-Nr. | C4: Ort | D4: Einrichtung | E4: Mittagessen | F4: Caterer
B5: 1901110002 | C5: Altenstadt | D5: Integratives Kinderhaus Altenstadt | E5: Caterer | F5: Albrechthof
B6: 1901110001 | C6: Altenstadt | D6: Kath. Kindergarten St. Michael | E6: Caterer | F6: Albrechthof
B7: 1901130002 | C7: Antdorf | D7: Kindertagesstätte Antdorf | E7: Caterer | F7: Albrechthof
B8: 1901140003 | C8: Bernbeuren | D8: Kath. Kindergarten St. Nikolaus | E8: Eigene Küche
B9: 1901151115 | C9: Bernried | D9: Kinderhaus Bernried | E9: Caterer | F9: Albrechthof
B10: 1901150005 | C10: Bernried | D10: Waldkinder Bernried e.V. | E10: Caterer | F10: Albrechthof
B11: 1901171111 | C11: Böbing | D11: Kindergarten St. Hedwig | E11: Caterer | F11: Regens-Wagner Rottenbuch
B12: 1901180007 | C12: Burggen | D12: Katholische Kindertageseinrichtung St. Anna | E12: Caterer | F12: Fischerhof
B13: 1901200008 | C13: Eberfing | D13: Eberfinger Kinderhaus "Ich & Du" | E13: Caterer | F13: Albrechthof
B14: 1901210009 | C14: Eglfing | D14: Kindergarten Eglfing | E14: Caterer | F14: Albrechthof
B15: 1901210097 | C15: Eglfing | D15: Kinderkrippe Tauting | E15: Caterer | F15: Albrechthof
B16: 1901260010 | C16: Habach | D16: Ulrich Kinderhaus Habach | E16: Caterer | F16: Albrechthof
B17: 1901290011 | C17: Hohenfurch | D17: Kindergarten 'Sonnenblick' Kindergarten & Krippe | E17: Caterer | F17: Fischerhof
B18: 1901300014 | C18: Hohenpeißenberg | D18: Integratives Kinderhaus am Schächen | E18: Caterer | F18: Albrechthof
B19: 1901300013 | C19: Hohenpeißenberg | D19: Kindergarten im Hetten | E19: Caterer | F19: Albrechthof
B20: 1901310121 | C20: Huglfing | D20: Kindertagesstätte Huglhupf | E20: Caterer | F20: Albrechthof
B21: 1901320015 | C21: Iffeldorf | D21: Katholisches Haus für Kinder St. Vitus | E21: Caterer | F21: Albrechthof
B22: 1901330016 | C22: Ingenried | D22: Kindergarten St. Georg | E22: Caterer | F22: Albrechthof
B23: 1901350120 | C23: Oberhausen | D23: Kinderhaus am Storchennest | E23: Caterer | F23: Albrechthof
B24: 1901360018 | C24: Obersöchering | D24: Kinderhaus Söcheringer Wespennest | E24: Caterer | F24: Albrechthof
B25: 1901390024 | C25: Peißenberg | D25: AWO-Kinderhaus Pumuckl | E25: Caterer | F25: Seniorenzentrum Peißenberg
B26: 1901390023 | C26: Peißenberg | D26: Evang. Kindergarten Regenbogen | E26: Caterer | F26: Albrechthof
B27: 1901390025 | C27: Peißenberg | D27: FortSchritt Inklusives Kinderhaus an der Ammer | E27: Caterer | F27: Albrechthof
B28: 1901390021 | C28: Peißenberg | D28: Kindergarten St. Johannes Baptist | E28: Caterer | F28: Albrechthof
B29: 1901390026 | C29: Peißenberg | D29: Kinderhaus am Berg | E29: Caterer | F29: Albrechthof
B30: 1901390125 | C30: Peißenberg | D30: Kinderhaus im Dorf | E30: Caterer | F30: Albrechthof
B31: 1901390022 | C31: Peißenberg | D31: Kindertagesstätte St. Barbara | E31: Caterer | F31: Albrechthof
B32: 1901400027 | C32: Peiting | D32: Caritas Kita St. Michael | E32: Caterer | F32: Albrechthof
B33: 1901400073 | C33: Peiting | D33: Integrativer Hort im Kinderhaus Peiting | E33: Caterer | F33: Albrechthof
B34: 1901400107 | C34: Peiting | D34: Integrativer Naturkindergarten am Weiherhäusle | E34: Zweite Brotzeit
B35: 1901400113 | C35: Peiting | D35: Integratives Kinderhaus im Forsthaus | E35: Caterer | F35: Albrechthof
B36: 1901400030 | C36: Peiting | D36: Kindergarten am Gumpen | E36: Caterer | F36: Albrechthof
B37: 1901400033 | C37: Peiting | D37: Kindergarten Birkland | E37: Kein ME
B38: 1901400029 | C38: Peiting | D38: Kinderhaus Peiting | E38: Caterer | F38: Albrechthof
B39: 1901400100 | C39: Peiting | D39: Kita Sonnenschein | E39: Caterer | F39: Albrechthof
B40: 1901400032 | C40: Peiting | D40: Therese-Peter-Haus für Kinder | E40: Caterer | F40: Albrechthof
B41: 1901400098 | C41: Peiting | D41: Waldkindergarten Wurzelzwerge Peiting e.V | E41: Zweite Brotzeit
B42: 1901410040 | C42: Penzberg | D42: Albert-Schweitzer Waldkindergarten | E42: Kein ME
B43: 1901410037 | C43: Penzberg | D43: AWO Kinderhaus an der Birkenstraße | E43: Eigene Küche
B44: 1901410075 | C44: Penzberg | D44: AWO Kinderhort Winterstraße | E44: Caterer | F44: Albrechthof
B45: 1901410035 | C45: Penzberg | D45: Evang. Haus für Kinder Penzberg | E45: Eigene Küche
B46: 1901410038 | C46: Penzberg | D46: Familienzentrum Arche Noah | E46: Eigene Küche
B47: 1901410117 | C47: Penzberg | D47: Integrativer Kindergarten mit Krippe an der Birkenstraße | E47: Caterer | F47: Albrechthof
B48: 1901410104 | C48: Penzberg | D48: Katholischer Kindergarten St. Franziskus | E48: Caterer | F48: Schmankerlküche Wolfratshausen
B49: 1901410039 | C49: Penzberg | D49: KiM-Kita Penzberg | E49: Caterer | F49: Albrechthof
B50: 1901410122 | C50: Penzberg | D50: Kindergarten Spatzennest | E50: Caterer | F50: Albrechthof
C51: Penzberg | D51: Kinderkrippe Spatzennest | E51: Caterer | F51: Albrechthof
B52: 1901410034 | C52: Penzberg | D52: Kindertagesstätte St. Raphael | E52: Caterer | F52: Kaiserapfel
B53: 1901410079 | C53: Penzberg | D53: Montessori Kinderhaus Penzberg | E53: Caterer | F53: Albrechthof
B54: 1901420041 | C54: Polling | D54: Integratives Kinderhaus Polling | E54: Caterer | F54: Albrechthof
B55: 1901420042 | C55: Polling | D55: Kindertagesstätte der Gemeinde Polling | E55: Caterer | F55: Albrechthof
B56: 1901420043 | C56: Polling | D56: Naturkindergarten 'Waldwichtel' in Polling | E56: Caterer | F56: Albrechthof
B57: 1901430043 | C57: Prem | D57: Kindergarten Prem | E57: Kein ME
B58: 1901440106 | C58: Raisting | D58: BRK Kindergarten St. Raphael Raisting | E58: Caterer | F58: Albrechthof
B59: 1901440105 | C59: Raisting | D59: Kinderhort Bunte Kleckse | E59: Caterer | F59: Albrechthof
B60: 1901450046 | C60: Rottenbuch | D60: Don Bosco Haus für Kinder | E60: Caterer | F60: Regens-Wagner Rottenbuch
B61: 1901480081 | C61: Schongau | D61: Elterninitiative Kindernest Schongau e.V. | E61: Caterer | F61: Albrechthof
B62: 1901480119 | C62: Schongau | D62: Haus für Kinder | E62: Caterer | F62: Albrechthof
B63: 1901480103 | C63: Schongau | D63: Kindergarten Clara-Fey | E63: Caterer | F63: Albrechthof
B64: 1901480052 | C64: Schongau | D64: Kindergarten Kunterbunt | E64: Caterer | F64: Fischerhof
B65: 1901480050 | C65: Schongau | D65: Kindergarten Regenbogen | E65: Caterer | F65: Albrechthof
B66: 1901480047 | C66: Schongau | D66: Kindergarten St. Johannes | E66: Caterer | F66: Albrechthof
B67: 1901480049 | C67: Schongau | D67: Kita Mariä Himmelfahrt | E67: Caterer | F67: Albrechthof
B68: 1901490053 | C68: Schwabbruck | D68: Kindergarten St. Walburga | E68: Caterer | F68: Albrechthof
B69: 1901510055 | C69: Schwabsoien | D69: Kindergarten mit Krippe Sonnenblume | E69: Caterer | F69: Fischerhof
B70: 1901520055 | C70: Seeshaupt | D70: Kinderhaus Seeshaupt | E70: Caterer | F70: Albrechthof
B71: 1901530056 | C71: Sindelsdorf | D71: Gemeindekindergarten Sindelsdorf | E71: Caterer | F71: Kaiserapfel
B72: 1901540057 | C72: Steingaden | D72: Kita Steingaden | E72: Caterer | F72: Fischerhof
B73: 1901570062 | C73: Weilheim | D73: AWO Kinderhaus Villa Kunterbunt | E73: Eigene Küche
B74: 1901570124 | C74: Weilheim | D74: BRK Kinderhaus Weltentdecker | E74: Caterer | F74: Albrechthof
B75: 1901570061 | C75: Weilheim | D75: Evangelisch-Lutherisches Haus für Kinder | E75: Caterer | F75: Albrechthof
B76: 1901570116 | C76: Weilheim | D76: Fortschritt Kinderhaus am Sonnenfeld | E76: Caterer | F76: Leckerbissen
B77: 1901570108 | C77: Weilheim | D77: Inklusives Kinderhaus Pfiffikus | E77: Eigene Küche
B78: 1901570110 | C78: Weilheim | D78: Integrativer Hort an der Ammer | E78: Caterer | F78: Albrechthof
B79: 1901570077 | C79: Weilheim | D79: Integratives Kinderhaus Franziskus | E79: Eigene Küche
B80: 1901570060 | C80: Weilheim | D80: Kath. Kindergarten St. Michael Marnbach | E80: Zweite Brotzeit
B81: 1901570059 | C81: Weilheim | D81: Kath. Kneippkinderhaus St. Anna | E81: Caterer | F81: Albrechthof
B82: 1901570102 | C82: Weilheim | D82: Kinderhaus im Paradeis | E82: Caterer | F82: Albrechthof
B83: 1901570090 | C83: Weilheim | D83: Kinderkrippe Zwergerltreff | E83: Eigene Küche
B84: 1901570082 | C84: Weilheim | D84: Kindernest am Rosengarten | E84: Caterer | F84: Albrechthof
B85: 1901570063 | C85: Weilheim | D85: Montessori-Kinderhaus Weilheim | E85: Caterer | F85: Albrechthof
B86: 1901570080 | C86: Weilheim | D86: Naturkindergarten Schmetterlinge Weilheim | E86: Caterer | F86: Albrechthof
B87: 1901570067 | C87: Weilheim | D87: Städt. Kindergarten und Krippe Unterhausener Dorfspatzen | E87: Caterer | F87: Leckerbissen
B88: 1901570066 | C88: Weilheim | D88: Städtisches Kinderhaus Nepomuk | E88: Caterer | F88: Leckerbissen
B89: 1901570064 | C89: Weilheim | D89: WaldorfHaus Weilheim | E89: Caterer | F89: Albrechthof
B90: 1901570083 | C90: Weilheim | D90: Weilheimer Kindernest Gelbe Villa | E90: Eigene Küche
B91: 1901580069 | C91: Wessobrunn | D91: Kindergarten Bärenhöhle | E91: Caterer | F91: Albrechthof
B92: 1901580070 | C92: Wessobrunn | D92: Kindergarten Dorfstrolche | E92: Zweite Brotzeit
B93: 1901570068 | C93: Weilheim | D93: Waldkindergarten Weilheim "Die Wurzelkinder" e.V. | E93: Kein ME
B94: 1901590071 | C94: Wielenbach | D94: Gemeinde Kita Schatzkiste | E94: Caterer | F94: Albrechthof
B95: 1901590072 | C95: Wielenbach | D95: Kinderkrippe Wielenbach | E95: Eigene Küche
B96: 1901600072 | C96: Wildsteig | D96: Kindergarten Wildsteig | E96: Kein ME
B97: Total | C97: =SUBTOTAL(103,tbl_Mittagsverpflegung[Ort]) -> 92 | E97: =SUBTOTAL(103,tbl_Mittagsverpflegung[Mittagessen]) -> 92 | F97: =SUBTOTAL(103,tbl_Mittagsverpflegung[Caterer]) -> 73
C98: Anzahl | E98: Anzahl | F98: Anzahl

Sheet Gebuehren
C2: Gebühren | G2: Stand: März 2026
C3: Angaben der Kitas, die bei der online Befragung 2026 mitgewirkt haben.
B4: Einrichtungs-Nr. | C4: Ort | D4: Einrichtung | E4: Krippe | F4: Kindergarten | G4: Hort
B5: 1901110002 | C5: Altenstadt | D5: Integratives Kinderhaus Altenstadt | F5: 165 | G5: 140
B6: 1901110001 | C6: Altenstadt | D6: Kath. Kindergarten St. Michael | E6: 210 | F6: 160
B7: 1901130002 | C7: Antdorf | D7: Kindertagesstätte Antdorf | E7: 185 | F7: 130 | G7: 162
B8: 1901140003 | C8: Bernbeuren | D8: Kath. Kindergarten St. Nikolaus | E8: 275 | F8: 195 | G8: 195
B9: 1901151115 | C9: Bernried | D9: Kinderhaus Bernried | F9: 130 | G9: 218
B10: 1901150005 | C10: Bernried | D10: Waldkinder Bernried e.V. | F10: 190 | G10: 200
B11: 1901171111 | C11: Böbing | D11: Kindergarten St. Hedwig | E11: 200 | F11: 128
B12: 1901180007 | C12: Burggen | D12: Katholische Kindertageseinrichtung St. Anna | E12: 213 | F12: 156
B13: 1901200008 | C13: Eberfing | D13: Eberfinger Kinderhaus "Ich & Du" | E13: 200 | F13: 110 | G13: 110
B14: 1901210009 | C14: Eglfing | D14: Kindergarten Eglfing | F14: 110
B15: 1901210097 | C15: Eglfing | D15: Kinderkrippe Tauting | E15: 180
B16: 1901290011 | C16: Hohenfurch | D16: Kindergarten 'Sonnenblick' Kindergarten & Krippe | E16: 241 | F16: 170
B17: 1901300014 | C17: Hohenpeißenberg | D17: Integratives Kinderhaus am Schächen | E17: 219 | F17: 157
B18: 1901300013 | C18: Hohenpeißenberg | D18: Kindergarten im Hetten | E18: 219 | F18: 233
B19: 1901310121 | C19: Huglfing | D19: Kindertagesstätte Huglhupf | E19: 180 | F19: 115
B20: 1901320015 | C20: Iffeldorf | D20: Katholisches Haus für Kinder St. Vitus | E20: 308 | F20: 160 | G20: 154
B21: 1901330016 | C21: Ingenried | D21: Kindergarten St. Georg | E21: 210.76 | F21: 141.58
B22: 1901350120 | C22: Oberhausen | D22: Kinderhaus am Storchennest | E22: 180 | F22: 115
B23: 1901360018 | C23: Obersöchering | D23: Kinderhaus Söcheringer Wespennest | E23: 175 | F23: 125
B24: 1901390024 | C24: Peißenberg | D24: AWO-Kinderhaus Pumuckl | E24: 285 | F24: 180 | G24: 135
B25: 1901390023 | C25: Peißenberg | D25: Evang. Kindergarten Regenbogen | E25: 280 | F25: 175
B26: 1901390025 | C26: Peißenberg | D26: FortSchritt Inklusives Kinderhaus an der Ammer | E26: 285 | F26: 180
B27: 1901390021 | C27: Peißenberg | D27: Kindergarten St. Johannes Baptist | E27: 285 | F27: 180
B28: 1901390026 | C28: Peißenberg | D28: Kinderhaus am Berg | E28: 290 | F28: 185
B29: 1901390125 | C29: Peißenberg | D29: Kinderhaus im Dorf | E29: 263.5 | F29: 185
B30: 1901390022 | C30: Peißenberg | D30: Kindertagesstätte St. Barbara | E30: 260 | F30: 150
B31: 1901400027 | C31: Peiting | D31: Caritas Kita St. Michael | F31: 176
B32: 1901400073 | C32: Peiting | D32: Integrativer Hort im Kinderhaus Peiting | G32: 145
B33: 1901400113 | C33: Peiting | D33: Integratives Kinderhaus im Forsthaus | F33: 181 | G33: 145
B34: 1901400030 | C34: Peiting | D34: Kindergarten am Gumpen | F34: 181
B35: 1901400033 | C35: Peiting | D35: Kindergarten Birkland | F35: 176
B36: 1901400029 | C36: Peiting | D36: Kinderhaus Peiting | E36: 206 | F36: 181
B37: 1901400100 | C37: Peiting | D37: Kita Sonnenschein | F37: 176
B38: 1901400032 | C38: Peiting | D38: Therese-Peter-Haus für Kinder | E38: 201
B39: 1901400098 | C39: Peiting | D39: Waldkindergarten Wurzelzwerge Peiting e.V | F39: 150
B40: 1901410040 | C40: Penzberg | D40: Albert-Schweitzer Waldkindergarten | F40: 74
B41: 1901410037 | C41: Penzberg | D41: AWO Kinderhaus an der Birkenstraße | G41: 156
B42: 1901410075 | C42: Penzberg | D42: AWO Kinderhort Winterstraße | G42: 156
B43: 1901410035 | C43: Penzberg | D43: Evang. Haus für Kinder Penzberg | E43: 317 | F43: 194 | G43: 156
B44: 1901410038 | C44: Penzberg | D44: Familienzentrum Arche Noah | F44: 194
B45: 1901410117 | C45: Penzberg | D45: Integrativer Kindergarten mit Krippe an der Birkenstraße | E45: 317 | F45: 194
B46: 1901410104 | C46: Penzberg | D46: Katholischer Kindergarten St. Franziskus | E46: 317 | F46: 194
B47: 1901410039 | C47: Penzberg | D47: KiM-Kita Penzberg | E47: 317 | F47: 194
B48: 1901410122 | C48: Penzberg | D48: Kindergarten Spatzennest | F48: 162
C49: Penzberg | D49: Kinderkrippe Spatzennest | E49: 316
B50: 1901410034 | C50: Penzberg | D50: Kindertagesstätte St. Raphael | E50: 317 | F50: 194
B51: 1901410079 | C51: Penzberg | D51: Montessori Kinderhaus Penzberg | F51: 200
B52: 1901420041 | C52: Polling | D52: Integratives Kinderhaus Polling | E52: 265 | F52: 183 | G52: 188
B53: 1901420042 | C53: Polling | D53: Kindertagesstätte der Gemeinde Polling | E53: 240 | F53: 120 | G53: 125
B54: 1901420043 | C54: Polling | D54: Naturkindergarten 'Waldwichtel' in Polling | F54: 150
B55: 1901430043 | C55: Prem | D55: Kindergarten Prem | F55: 163.25
B56: 1901440106 | C56: Raisting | D56: BRK Kindergarten St. Raphael Raisting | F56: 186
B57: 1901440105 | C57: Raisting | D57: Kinderhort Bunte Kleckse | G57: 186
B58: 1901450046 | C58: Rottenbuch | D58: Don Bosco Haus für Kinder | E58: 243 | F58: 158 | G58: 105
B59: 1901480081 | C59: Schongau | D59: Elterninitiative Kindernest Schongau e.V. | F59: 176
B60: 1901480119 | C60: Schongau | D60: Haus für Kinder | E60: 385 | F60: 162
B61: 1901480103 | C61: Schongau | D61: Kindergarten Clara-Fey | F61: 176
B62: 1901480052 | C62: Schongau | D62: Kindergarten Kunterbunt | F62: 97
B63: 1901480050 | C63: Schongau | D63: Kindergarten Regenbogen | E63: 352 | F63: 176
B64: 1901480047 | C64: Schongau | D64: Kindergarten St. Johannes | E64: 352 | F64: 176
B65: 1901480049 | C65: Schongau | D65: Kita Mariä Himmelfahrt | E65: 335.4 | F65: 167.7
B66: 1901490053 | C66: Schwabbruck | D66: Kindergarten St. Walburga | E66: 210 | F66: 160
B67: 1901510055 | C67: Schwabsoien | D67: Kindergarten mit Krippe Sonnenblume | E67: 192 | F67: 160
B68: 1901520055 | C68: Seeshaupt | D68: Kinderhaus Seeshaupt | E68: 308 | F68: 176 | G68: 176
B69: 1901530056 | C69: Sindelsdorf | D69: Gemeindekindergarten Sindelsdorf | E69: 195 | F69: 140
B70: 1901540057 | C70: Steingaden | D70: Kita Steingaden | E70: 256.52 | F70: 163.95
B71: 1901570062 | C71: Weilheim | D71: AWO Kinderhaus Villa Kunterbunt | E71: 315 | F71: 205 | G71: 205
B72: 1901570124 | C72: Weilheim | D72: BRK Kinderhaus Weltentdecker | E72: 315 | F72: 205
B73: 1901570061 | C73: Weilheim | D73: Evangelisch-Lutherisches Haus für Kinder | E73: 315 | F73: 205 | G73: 220
B74: 1901570116 | C74: Weilheim | D74: Fortschritt Kinderhaus am Sonnenfeld | E74: 315 | F74: 205
B75: 1901570108 | C75: Weilheim | D75: Inklusives Kinderhaus Pfiffikus | E75: 315 | F75: 205
B76: 1901570110 | C76: Weilheim | D76: Integrativer Hort an der Ammer | G76: 220
B77: 1901570077 | C77: Weilheim | D77: Integratives Kinderhaus Franziskus | F77: 205 | G77: 205
B78: 1901570059 | C78: Weilheim | D78: Kath. Kneippkinderhaus St. Anna | E78: 315 | F78: 205 | G78: 205
B79: 1901570102 | C79: Weilheim | D79: Kinderhaus im Paradeis | E79: 315 | F79: 205
B80: 1901570082 | C80: Weilheim | D80: Kindernest am Rosengarten | F80: 205
B81: 1901570063 | C81: Weilheim | D81: Montessori-Kinderhaus Weilheim | E81: 315 | F81: 205
B82: 1901570080 | C82: Weilheim | D82: Naturkindergarten Schmetterlinge Weilheim | F82: 225
B83: 1901570067 | C83: Weilheim | D83: Städt. Kindergarten und Krippe Unterhausener Dorfspatzen | E83: 315 | F83: 205
B84: 1901570066 | C84: Weilheim | D84: Städtisches Kinderhaus Nepomuk | E84: 315 | F84: 205
B85: 1901570064 | C85: Weilheim | D85: WaldorfHaus Weilheim | E85: 315 | F85: 229
B86: 1901570083 | C86: Weilheim | D86: Weilheimer Kindernest Gelbe Villa | F86: 205
B87: 1901580069 | C87: Wessobrunn | D87: Kindergarten Bärenhöhle | E87: 210 | F87: 140
B88: 1901580070 | C88: Wessobrunn | D88: Kindergarten Dorfstrolche | F88: 140
B89: 1901570068 | C89: Weilheim | D89: Waldkindergarten Weilheim "Die Wurzelkinder" e.V. | F89: 145
B90: 1901590071 | C90: Wielenbach | D90: Gemeinde Kita Schatzkiste | E90: 200 | F90: 300 | G90: 195
B91: 1901600072 | C91: Wildsteig | D91: Kindergarten Wildsteig | F91: 163.25
B92: Ergebnis | C92: =SUBTOTAL(103,tbl_Gebuehren[Ort]) -> 87 | D92: Mittelwert | E92: =SUBTOTAL(101,tbl_Gebuehren[Krippe]) -> 266.5669091 | F92: =SUBTOTAL(101,tbl_Gebuehren[Kindergarten]) -> 172.7181013 | G92: =SUBTOTAL(101,tbl_Gebuehren[Hort]) -> 170.9166667
D93: Niedrigster Beitrag | E93: =MIN(tbl_Gebuehren[Krippe]) -> 175 | F93: =MIN(tbl_Gebuehren[Kindergarten]) -> 74 | G93: =MIN(tbl_Gebuehren[Hort]) -> 105
D94: Höchster Beitrag | E94: =MAX(tbl_Gebuehren[Krippe]) -> 385 | F94: =MAX(tbl_Gebuehren[Kindergarten]) -> 300 | G94: =MAX(tbl_Gebuehren[Hort]) -> 220

Sheet Konzepte
C2: Pädagogische Konzepte | R2: Stand: März 2026
C3: Angaben der Kitas, die bei der online Befragung 2026 mitgewirkt haben. | E3: =tbl_Konzepte[[#Totals],[Schwerpunkt-KiTa]] -> 3 | F3: =tbl_Konzepte[[#Totals],[Sprach-KITA]] -> 6 | G3: =tbl_Konzepte[[#Totals],[Vorkurs Deutsch]] -> 55 | H3: =tbl_Konzepte[[#Totals],[Wald- und Naturpädagogik]] -> 26 | I3: =tbl_Konzepte[[#Totals],[MINT-KITA]] -> 2 | J3: =tbl_Konzepte[[#Totals],[Werkstatt-Pädagogik]] -> 8 | K3: =tbl_Konzepte[[#Totals],[Montessori-Pädagogik]] -> 8 | L3: =tbl_Konzepte[[#Totals],[Waldorf-Pädagogik]] -> 1 | M3: =tbl_Konzepte[[#Totals],[Kneipp-Pädagogik]] -> 2 | N3: =tbl_Konzepte[[#Totals],[Tiergestützte Pädagogik]] -> 5 | O3: =tbl_Konzepte[[#Totals],[Musik- und Bewegungs-KITA]] -> 8 | P3: =tbl_Konzepte[[#Totals],[Interkulturelle KITA]] -> 2 | Q3: =tbl_Konzepte[[#Totals],[Öko-Kids]] -> 11 | R3: =tbl_Konzepte[[#Totals],[PQB]] -> 5
B4: Einrichtungs-Nr. | C4: Ort | D4: Einrichtung | E4: Schwerpunkt-KiTa | F4: Sprach-KITA | G4: Vorkurs Deutsch | H4: Wald- und Naturpädagogik | I4: MINT-KITA | J4: Werkstatt-Pädagogik | K4: Montessori-Pädagogik | L4: Waldorf-Pädagogik | M4: Kneipp-Pädagogik | N4: Tiergestützte Pädagogik | O4: Musik- und Bewegungs-KITA | P4: Interkulturelle KITA | Q4: Öko-Kids | R4: PQB | S4: Umfrage 2026
B5: 1901110002 | C5: Altenstadt | D5: Integratives Kinderhaus Altenstadt | G5: ja | S5: ja
B6: 1901110001 | C6: Altenstadt | D6: Kath. Kindergarten St. Michael | G6: ja | S6: ja
B7: 1901130002 | C7: Antdorf | D7: Kindertagesstätte Antdorf | S7: ja
B8: 1901140003 | C8: Bernbeuren | D8: Kath. Kindergarten St. Nikolaus | E8: ja | F8: ja | G8: ja | H8: ja | Q8: ja | S8: ja
B9: 1901151115 | C9: Bernried | D9: Kinderhaus Bernried | G9: ja | S9: ja
B10: 1901150005 | C10: Bernried | D10: Waldkinder Bernried e.V. | H10: ja | S10: ja
B11: 1901171111 | C11: Böbing | D11: Kindergarten St. Hedwig | S11: ja
B12: 1901180007 | C12: Burggen | D12: Katholische Kindertageseinrichtung St. Anna | G12: ja | H12: ja | S12: ja
B13: 1901200008 | C13: Eberfing | D13: Eberfinger Kinderhaus "Ich & Du" | G13: ja | H13: ja | K13: ja | O13: ja | S13: ja
B14: 1901210009 | C14: Eglfing | D14: Kindergarten Eglfing | G14: ja | S14: ja
B15: 1901210097 | C15: Eglfing | D15: Kinderkrippe Tauting | S15: ja
B16: 1901260010 | C16: Habach | D16: Ulrich Kinderhaus Habach | S16: ja
B17: 1901290011 | C17: Hohenfurch | D17: Kindergarten 'Sonnenblick' Kindergarten & Krippe | S17: ja
B18: 1901300014 | C18: Hohenpeißenberg | D18: Integratives Kinderhaus am Schächen | G18: ja | K18: ja | O18: ja | S18: ja
B19: 1901300013 | C19: Hohenpeißenberg | D19: Kindergarten im Hetten | G19: ja | Q19: ja | S19: ja
B20: 1901310121 | C20: Huglfing | D20: Kindertagesstätte Huglhupf | H20: ja | S20: ja
B21: 1901320015 | C21: Iffeldorf | D21: Katholisches Haus für Kinder St. Vitus | G21: ja | K21: ja | S21: ja
B22: 1901330016 | C22: Ingenried | D22: Kindergarten St. Georg | S22: ja
B23: 1901350120 | C23: Oberhausen | D23: Kinderhaus am Storchennest | G23: ja | H23: ja | S23: ja
B24: 1901360018 | C24: Obersöchering | D24: Kinderhaus Söcheringer Wespennest | R24: ja | S24: ja
B25: 1901390024 | C25: Peißenberg | D25: AWO-Kinderhaus Pumuckl | G25: ja | S25: ja
B26: 1901390023 | C26: Peißenberg | D26: Evang. Kindergarten Regenbogen | G26: ja | H26: ja | S26: ja
B27: 1901390025 | C27: Peißenberg | D27: FortSchritt Inklusives Kinderhaus an der Ammer | F27: ja | G27: ja | K27: ja | S27: ja
B28: 1901390021 | C28: Peißenberg | D28: Kindergarten St. Johannes Baptist | G28: ja | S28: ja
B29: 1901390026 | C29: Peißenberg | D29: Kinderhaus am Berg | G29: ja | H29: ja | Q29: ja | S29: ja
B30: 1901390125 | C30: Peißenberg | D30: Kinderhaus im Dorf | G30: ja | S30: ja
B31: 1901390022 | C31: Peißenberg | D31: Kindertagesstätte St. Barbara | S31: ja
B32: 1901400027 | C32: Peiting | D32: Caritas Kita St. Michael | G32: ja | S32: ja
B33: 1901400073 | C33: Peiting | D33: Integrativer Hort im Kinderhaus Peiting | S33: ja
B34: 1901400107 | C34: Peiting | D34: Integrativer Naturkindergarten am Weiherhäusle | H34: ja | S34: ja
B35: 1901400113 | C35: Peiting | D35: Integratives Kinderhaus im Forsthaus | G35: ja | H35: ja | Q35: ja | S35: ja
B36: 1901400030 | C36: Peiting | D36: Kindergarten am Gumpen | S36: ja
B37: 1901400033 | C37: Peiting | D37: Kindergarten Birkland | S37: ja
B38: 1901400029 | C38: Peiting | D38: Kinderhaus Peiting | G38: ja | S38: ja
B39: 1901400100 | C39: Peiting | D39: Kita Sonnenschein | G39: ja | J39: ja | S39: ja
B40: 1901400032 | C40: Peiting | D40: Therese-Peter-Haus für Kinder | S40: ja
B41: 1901400098 | C41: Peiting | D41: Waldkindergarten Wurzelzwerge Peiting e.V | H41: ja | S41: ja
B42: 1901410040 | C42: Penzberg | D42: Albert-Schweitzer Waldkindergarten | H42: ja | S42: ja
B43: 1901410037 | C43: Penzberg | D43: AWO Kinderhaus an der Birkenstraße | S43: ja
B44: 1901410075 | C44: Penzberg | D44: AWO Kinderhort Winterstraße | S44: ja
B45: 1901410035 | C45: Penzberg | D45: Evang. Haus für Kinder Penzberg | G45: ja | N45: ja | R45: ja | S45: ja
B46: 1901410038 | C46: Penzberg | D46: Familienzentrum Arche Noah | G46: ja | I46: ja | Q46: ja | S46: ja
B47: 1901410117 | C47: Penzberg | D47: Integrativer Kindergarten mit Krippe an der Birkenstraße | G47: ja | H47: ja | J47: ja | O47: ja | Q47: ja | S47: ja
B48: 1901410104 | C48: Penzberg | D48: Katholischer Kindergarten St. Franziskus | G48: ja | S48: ja
B49: 1901410039 | C49: Penzberg | D49: KiM-Kita Penzberg | G49: ja | H49: ja | J49: ja | P49: ja | S49: ja
B50: 1901410122 | C50: Penzberg | D50: Kindergarten Spatzennest | G50: ja | O50: ja | Q50: ja | R50: ja | S50: ja
C51: Penzberg | D51: Kinderkrippe Spatzennest | O51: ja | Q51: ja | S51: ja
B52: 1901410034 | C52: Penzberg | D52: Kindertagesstätte St. Raphael | G52: ja | S52: ja
B53: 1901410079 | C53: Penzberg | D53: Montessori Kinderhaus Penzberg | K53: ja | Q53: ja | S53: ja
B54: 1901420041 | C54: Polling | D54: Integratives Kinderhaus Polling | G54: ja | S54: ja
B55: 1901420042 | C55: Polling | D55: Kindertagesstätte der Gemeinde Polling | G55: ja | S55: ja
B56: 1901420043 | C56: Polling | D56: Naturkindergarten 'Waldwichtel' in Polling | H56: ja | N56: ja | R56: ja | S56: ja
B57: 1901430043 | C57: Prem | D57: Kindergarten Prem | G57: ja | S57: ja
B58: 1901440106 | C58: Raisting | D58: BRK Kindergarten St. Raphael Raisting | S58: ja
B59: 1901440105 | C59: Raisting | D59: Kinderhort Bunte Kleckse | S59: ja
B60: 1901450046 | C60: Rottenbuch | D60: Don Bosco Haus für Kinder | M60: ja | S60: ja
B61: 1901480081 | C61: Schongau | D61: Elterninitiative Kindernest Schongau e.V. | S61: ja
B62: 1901480119 | C62: Schongau | D62: Haus für Kinder | S62: ja
B63: 1901480103 | C63: Schongau | D63: Kindergarten Clara-Fey | S63: ja
B64: 1901480052 | C64: Schongau | D64: Kindergarten Kunterbunt | G64: ja | S64: ja
B65: 1901480050 | C65: Schongau | D65: Kindergarten Regenbogen | G65: ja | H65: ja | O65: ja | Q65: ja | S65: ja
B66: 1901480047 | C66: Schongau | D66: Kindergarten St. Johannes | G66: ja | S66: ja
B67: 1901480049 | C67: Schongau | D67: Kita Mariä Himmelfahrt | G67: ja | S67: ja
B68: 1901490053 | C68: Schwabbruck | D68: Kindergarten St. Walburga | G68: ja | S68: ja
B69: 1901510055 | C69: Schwabsoien | D69: Kindergarten mit Krippe Sonnenblume | G69: ja | S69: ja
B70: 1901520055 | C70: Seeshaupt | D70: Kinderhaus Seeshaupt | G70: ja | H70: ja | S70: ja
B71: 1901530056 | C71: Sindelsdorf | D71: Gemeindekindergarten Sindelsdorf | G71: ja | S71: ja
B72: 1901540057 | C72: Steingaden | D72: Kita Steingaden | G72: ja | H72: ja | S72: ja
B73: 1901570062 | C73: Weilheim | D73: AWO Kinderhaus Villa Kunterbunt | F73: ja | G73: ja | R73: ja | S73: ja
B74: 1901570124 | C74: Weilheim | D74: BRK Kinderhaus Weltentdecker | G74: ja | J74: ja | S74: ja
B75: 1901570061 | C75: Weilheim | D75: Evangelisch-Lutherisches Haus für Kinder | G75: ja | H75: ja | S75: ja
B76: 1901570116 | C76: Weilheim | D76: Fortschritt Kinderhaus am Sonnenfeld | E76: ja | F76: ja | S76: ja
B77: 1901570108 | C77: Weilheim | D77: Inklusives Kinderhaus Pfiffikus | F77: ja | G77: ja | S77: ja
B78: 1901570110 | C78: Weilheim | D78: Integrativer Hort an der Ammer | S78: ja
B79: 1901570077 | C79: Weilheim | D79: Integratives Kinderhaus Franziskus | G79: ja | H79: ja | P79: ja | S79: ja
B80: 1901570060 | C80: Weilheim | D80: Kath. Kindergarten St. Michael Marnbach | G80: ja | S80: ja
B81: 1901570059 | C81: Weilheim | D81: Kath. Kneippkinderhaus St. Anna | E81: ja | F81: ja | M81: ja | S81: ja
B82: 1901570102 | C82: Weilheim | D82: Kinderhaus im Paradeis | G82: ja | H82: ja | S82: ja
B83: 1901570090 | C83: Weilheim | D83: Kinderkrippe Zwergerltreff | S83: ja
B84: 1901570082 | C84: Weilheim | D84: Kindernest am Rosengarten | G84: ja | H84: ja | I84: ja | O84: ja | S84: ja
B85: 1901570063 | C85: Weilheim | D85: Montessori-Kinderhaus Weilheim | K85: ja | S85: ja
B86: 1901570080 | C86: Weilheim | D86: Naturkindergarten Schmetterlinge Weilheim | G86: ja | H86: ja | J86: ja | K86: ja | N86: ja | S86: ja
B87: 1901570067 | C87: Weilheim | D87: Städt. Kindergarten und Krippe Unterhausener Dorfspatzen | G87: ja | S87: ja
B88: 1901570066 | C88: Weilheim | D88: Städtisches Kinderhaus Nepomuk | G88: ja | N88: ja | S88: ja
B89: 1901570064 | C89: Weilheim | D89: WaldorfHaus Weilheim | L89: ja | S89: ja
B90: 1901570083 | C90: Weilheim | D90: Weilheimer Kindernest Gelbe Villa | G90: ja | H90: ja | K90: ja | O90: ja | S90: ja
B91: 1901580069 | C91: Wessobrunn | D91: Kindergarten Bärenhöhle | G91: ja | J91: ja | S91: ja
B92: 1901580070 | C92: Wessobrunn | D92: Kindergarten Dorfstrolche | G92: ja | S92: ja
B93: 1901570068 | C93: Weilheim | D93: Waldkindergarten Weilheim "Die Wurzelkinder" e.V. | H93: ja | J93: ja | N93: ja | S93: ja
B94: 1901590071 | C94: Wielenbach | D94: Gemeinde Kita Schatzkiste | G94: ja | J94: ja | Q94: ja | S94: ja
B95: 1901590072 | C95: Wielenbach | D95: Kinderkrippe Wielenbach | S95: ja
B96: 1901600072 | C96: Wildsteig | D96: Kindergarten Wildsteig | H96: ja | S96: ja
B97: Ergebnis | C97: =SUBTOTAL(103,tbl_Konzepte[Ort]) -> 92 | E97: =SUBTOTAL(103,tbl_Konzepte[Schwerpunkt-KiTa]) -> 3 | F97: =SUBTOTAL(103,tbl_Konzepte[Sprach-KITA]) -> 6 | G97: =SUBTOTAL(103,tbl_Konzepte[Vorkurs Deutsch]) -> 55 | H97: =SUBTOTAL(103,tbl_Konzepte[Wald- und Naturpädagogik]) -> 26 | I97: =SUBTOTAL(103,tbl_Konzepte[MINT-KITA]) -> 2 | J97: =SUBTOTAL(103,tbl_Konzepte[Werkstatt-Pädagogik]) -> 8 | K97: =SUBTOTAL(103,tbl_Konzepte[Montessori-Pädagogik]) -> 8 | L97: =SUBTOTAL(103,tbl_Konzepte[Waldorf-Pädagogik]) -> 1 | M97: =SUBTOTAL(103,tbl_Konzepte[Kneipp-Pädagogik]) -> 2 | N97: =SUBTOTAL(103,tbl_Konzepte[Tiergestützte Pädagogik]) -> 5 | O97: =SUBTOTAL(103,tbl_Konzepte[Musik- und Bewegungs-KITA]) -> 8 | P97: =SUBTOTAL(103,tbl_Konzepte[Interkulturelle KITA]) -> 2 | Q97: =SUBTOTAL(103,tbl_Konzepte[Öko-Kids]) -> 11 | R97: =SUBTOTAL(103,tbl_Konzepte[PQB]) -> 5
C98: Anzahl | E98: Anzahl | F98: Anzahl | G98: Anzahl | H98: Anzahl | I98: Anzahl | J98: Anzahl | K98: Anzahl | L98: Anzahl | M98: Anzahl | N98: Anzahl | O98: Anzahl | P98: Anzahl | Q98: Anzahl | R98: Anzahl

Sheet Sonstige Konzepte
C2: Sonstige Konzepte | E2: Stand: März 2026
C3: Angaben der Kitas, die bei der online Befragung 2026 mitgewirkt haben.
B4: Einrichtungs-Nr. | C4: Ort | D4: Einrichtung | E4: Sonstige Konzepte
B5: 1901151115 | C5: Bernried | D5: Kinderhaus Bernried | E5: Integratives Kinderhaus
B6: 1901200008 | C6: Eberfing | D6: Eberfinger Kinderhaus "Ich & Du" | E6: Situative und partizipative Konzepte
B7: 1901300014 | C7: Hohenpeißenberg | D7: Integratives Kinderhaus am Schächen | E7: Intensive Förderung von Kindern mit Entwicklungsverzögerung - gemeinsame Betreuung, Erziehung und Förderung von Kindern mit altersgemäßer Entwicklung und Kindern mit Entwicklungsver- zögerungen und (drohender) Behinderung
B8: 1901300013 | C8: Hohenpeißenberg | D8: Kindergarten im Hetten | E8: JolinchenKids
B9: 1901320015 | C9: Iffeldorf | D9: Katholisches Haus für Kinder St. Vitus | E9: Situationsorientieren Ansatz
B10: 1901400030 | C10: Peiting | D10: Kindergarten am Gumpen | E10: Integratives/inklusives Konzept
B11: 1901410122 | C11: Penzberg | D11: Kindergarten Spatzennest | E11: Integrative Einrichtung
C12: Penzberg | D12: Kinderkrippe Spatzennest | E12: Integrative Einrichtung
B13: 1901410034 | C13: Penzberg | D13: Kindertagesstätte St. Raphael | E13: Religionspädagogik
B14: 1901420041 | C14: Polling | D14: Integratives Kinderhaus Polling | E14: Integrative Einrichtung
B15: 1901520055 | C15: Seeshaupt | D15: Kinderhaus Seeshaupt | E15: Haus der kleinen Forscher / Europa Kita
B16: 1901540057 | C16: Steingaden | D16: Kita Steingaden | E16: Inklusion
B17: 1901570102 | C17: Weilheim | D17: Kinderhaus im Paradeis | E17: Wir haben keine Zertifizierung im Bereich Bewegung/Musik und MINT, bieten jedoch in der Kinder-gartengruppe in diesen Bereichen wöchentlich etwas an. Die Krippengruppe arbeitet u.a. nach der Montessorie-Pädaogogik.
B18: 1901570082 | C18: Weilheim | D18: Kindernest am Rosengarten | E18: Netz für Kinder / Elterninitiative, wo Kinder, Eltern und Fachkräfte eine Einheit bilden

Sheet Konzepte-Vorhaben
C2: Konzeptionelle Vorhaben | E2: Stand: März 2026
C3: Angaben der Kitas, die bei der online Befragung 2026 mitgewirkt haben.
B4: Einrichtungs-Nr. | C4: Ort | D4: Einrichtung | E4: Konzeptionelle Vorhaben
B5: 1901110001 | C5: Altenstadt | D5: Kath. Kindergarten St. Michael | E5: Ausbau I-Plätze
B6: 1901140003 | C6: Bernbeuren | D6: Kath. Kindergarten St. Nikolaus | E6: MINT
B7: 1901200008 | C7: Eberfing | D7: Eberfinger Kinderhaus "Ich & Du" | E7: Trau-Dich' Projekt
B8: 1901310121 | C8: Huglfing | D8: Kindertagesstätte Huglhupf | E8: Wir möchten uns Richtung Inklusion weiter entwickeln
B9: 1901390125 | C9: Peißenberg | D9: Kinderhaus im Dorf | E9: Umsetzung eines Teiloffenen Konzeptes
B10: 1901390022 | C10: Peißenberg | D10: Kindertagesstätte St. Barbara | E10: Inklusion
B11: 1901410075 | C11: Penzberg | D11: AWO Kinderhort Winterstraße | E11: AWO Grundwerte, Vorurteilsbewusste Erziehung (Anti Bias Ansatz), Interkulturalität, Inklusion
B12: 1901410104 | C12: Penzberg | D12: Katholischer Kindergarten St. Franziskus | E12: Alle Gruppen inkl. der Krippe sollen I-Gruppen werden
B13: 1901410039 | C13: Penzberg | D13: KiM-Kita Penzberg | E13: ggf. die Gründung von zwei Hortgruppen
C14: Penzberg | D14: Kinderkrippe Spatzennest | E14: Pädagogische Qualitätsbegleitung in der Kindertagesbetreuung
B15: 1901410034 | C15: Penzberg | D15: Kindertagesstätte St. Raphael | E15: Qualitätsrahmenhandbuch vom Bistum Augsburg 'Kinder wertvoll begleiten'
B16: 1901420042 | C16: Polling | D16: Kindertagesstätte der Gemeinde Polling | E16: Einrichtung von Einzelintegration
B17: 1901420043 | C17: Polling | D17: Naturkindergarten 'Waldwichtel' in Polling | E17: Schutzkonzept( Beschwerdemanagment), QM Handbuch Erweiterung
B18: 1901480103 | C18: Schongau | D18: Kindergarten Clara-Fey | E18: Inte Hp
B19: 1901480049 | C19: Schongau | D19: Kita Mariä Himmelfahrt | E19: Inklusion
B20: 1901520055 | C20: Seeshaupt | D20: Kinderhaus Seeshaupt | E20: Wir haben eine befristete Betriebserlaubnis für unsere Naturgruppe. Die Gruppe findet bei den Eltern großen Anklang und wir planen die Beantragung für eine Verlängerung dieser Gruppe.
B21: 1901540057 | C21: Steingaden | D21: Kita Steingaden | E21: Ausbau der Kindertagesstätte
B22: 1901570110 | C22: Weilheim | D22: Integrativer Hort an der Ammer | E22: Schwerpunkt Integration ausländischer Kinder und Kinder mi besonderem Förderbedarf /I-Hort (immer schon)
B23: 1901570060 | C23: Weilheim | D23: Kath. Kindergarten St. Michael Marnbach | E23: Derzeit festigen wir die umstrukturierte Bringsituation / Das Schutzkonzept wird derzeit auf die steigende Zahl der Wickelkinder angepasst / Der Bereich der Inklusion wird überarbeitet.
B24: 1901570059 | C24: Weilheim | D24: Kath. Kneippkinderhaus St. Anna | E24: Ausarbeitung des KTK - Qualitätsmanagement - in den Endzügen
B25: 1901570102 | C25: Weilheim | D25: Kinderhaus im Paradeis | E25: Aktuell Teilnahme am Programm Fit4Future mit dem Ziel der Zertifizierung zur Fit4Furure-Einrichtung + Wir streben an, zudem eine EineWeltKita zu werden.
B26: 1901570082 | C26: Weilheim | D26: Kindernest am Rosengarten | E26: BNE
B27: 1901570063 | C27: Weilheim | D27: Montessori-Kinderhaus Weilheim | E27: Wir planen für 2027 eine Erweiterung in ein neues Gebäude. Dann werden wir im Mutterhaus ausschließlich Krippenkinder und in der Filiale in unmittelbarer Nähe ausschließlich Kindergartenkinder betreuen
B28: 1901570080 | C28: Weilheim | D28: Naturkindergarten Schmetterlinge Weilheim | E28: Öko Kita Zertifizierung 2026 geplant
B29: 1901570064 | C29: Weilheim | D29: WaldorfHaus Weilheim | E29: Musikalische Früherziehung, Ergänzungen in der Sprachentwicklung, strukturelle und gruppenspezifische Themen
B30: 1901570083 | C30: Weilheim | D30: Weilheimer Kindernest Gelbe Villa | E30: Musikzertifikat 'Die Carusos' wir singen täglich mit den Kinder 15 Minuten in Begleitung von Instrumenten. Fester Waldtag und Sporttag in der Turnhalle der Berufsschule.
B31: 1901590072 | C31: Wielenbach | D31: Kinderkrippe Wielenbach | E31: Erlebnispädagogik
B32: 1901600072 | C32: Wildsteig | D32: Kindergarten Wildsteig | E32: Öffnung für Kinder ab 2 Jahren und Mittagsbetreuung der Schulkinder

Sheet Inklusion
C2: Inklusion | I2: Stand: März 2026
C3: Angaben der Kitas, die bei der online Befragung 2026 mitgewirkt haben. | G3: =tbl_Inklusion[[#Totals],[seelisch]] -> 292 | H3: =tbl_Inklusion[[#Totals],[körperlich]] -> 40 | I3: =tbl_Inklusion[[#Totals],[geistig]] -> 78
G4: Art der Behinderung
B5: Einrichtungs-Nr. | C5: Ort | D5: Einrichtung | E5: Inklusion | F5: Inklusion-Text | G5: seelisch | H5: körperlich | I5: geistig
B6: 1901110002 | C6: Altenstadt | D6: Integratives Kinderhaus Altenstadt | E6: 3+ | F6: Integrative Einrichtung | G6: 13 | H6: 1 | I6: 2
B7: 1901110001 | C7: Altenstadt | D7: Kath. Kindergarten St. Michael | E7: 3+ | F7: Integrative Einrichtung | G7: 5 | H7: 0 | I7: 0
B8: 1901130002 | C8: Antdorf | D8: Kindertagesstätte Antdorf | E8: 0 | F8: Keine Plätze | G8: 0 | H8: 0 | I8: 0
B9: 1901140003 | C9: Bernbeuren | D9: Kath. Kindergarten St. Nikolaus | E9: 3+ | F9: Integrative Einrichtung | G9: 5 | H9: 1 | I9: 4
B10: 1901151115 | C10: Bernried | D10: Kinderhaus Bernried | E10: 3+ | F10: Integrative Einrichtung | G10: 10 | H10: 1 | I10: 9
B11: 1901150005 | C11: Bernried | D11: Waldkinder Bernried e.V. | E11: 3+ | F11: Integrative Einrichtung | G11: 0 | H11: 0 | I11: 0
B12: 1901171111 | C12: Böbing | D12: Kindergarten St. Hedwig | E12: 3+ | F12: Integrative Einrichtung | G12: 3 | H12: 3 | I12: 3
B13: 1901180007 | C13: Burggen | D13: Katholische Kindertageseinrichtung St. Anna | E13: 3+ | F13: Integrative Einrichtung | G13: 2 | H13: 0 | I13: 2
B14: 1901200008 | C14: Eberfing | D14: Eberfinger Kinderhaus "Ich & Du" | E14: 0 | F14: Keine Plätze | G14: 0 | H14: 0 | I14: 0
B15: 1901210009 | C15: Eglfing | D15: Kindergarten Eglfing | E15: 0 | F15: Keine Plätze | G15: 0 | H15: 0 | I15: 0
B16: 1901210097 | C16: Eglfing | D16: Kinderkrippe Tauting | E16: 0 | F16: Keine Plätze | G16: 0 | H16: 0 | I16: 0
B17: 1901260010 | C17: Habach | D17: Ulrich Kinderhaus Habach | E17: 3+ | F17: Integrative Einrichtung | G17: 3 | H17: 1 | I17: 0
B18: 1901290011 | C18: Hohenfurch | D18: Kindergarten 'Sonnenblick' Kindergarten & Krippe | E18: 0 | F18: Keine Plätze | G18: 0 | H18: 0 | I18: 0
B19: 1901300014 | C19: Hohenpeißenberg | D19: Integratives Kinderhaus am Schächen | E19: 3+ | F19: Integrative Einrichtung | G19: 5 | H19: 0 | I19: 1
B20: 1901300013 | C20: Hohenpeißenberg | D20: Kindergarten im Hetten | E20: 0 | G20: 6 | H20: 0 | I20: 0
B21: 1901310121 | C21: Huglfing | D21: Kindertagesstätte Huglhupf | E21: 3+ | F21: Integrative Einrichtung | G21: 0 | H21: 0 | I21: 3
B22: 1901320015 | C22: Iffeldorf | D22: Katholisches Haus für Kinder St. Vitus | E22: 3+ | F22: Integrative Einrichtung | G22: 7 | H22: 0 | I22: 0
B23: 1901330016 | C23: Ingenried | D23: Kindergarten St. Georg | E23: 0 | F23: Keine Plätze | G23: 0 | H23: 0 | I23: 0
B24: 1901350120 | C24: Oberhausen | D24: Kinderhaus am Storchennest | E24: 3+ | F24: Integrative Einrichtung | G24: 2 | H24: 1 | I24: 0
B25: 1901360018 | C25: Obersöchering | D25: Kinderhaus Söcheringer Wespennest | E25: 1-2 | F25: Einzel-Integration | G25: 0 | H25: 0 | I25: 0
B26: 1901390024 | C26: Peißenberg | D26: AWO-Kinderhaus Pumuckl | E26: 0 | G26: 0 | H26: 0 | I26: 0
B27: 1901390023 | C27: Peißenberg | D27: Evang. Kindergarten Regenbogen | E27: 3+ | F27: Integrative Einrichtung | G27: 0 | H27: 0 | I27: 0
B28: 1901390025 | C28: Peißenberg | D28: FortSchritt Inklusives Kinderhaus an der Ammer | E28: 3+ | F28: Integrative Einrichtung | G28: 0 | H28: 0 | I28: 0
B29: 1901390021 | C29: Peißenberg | D29: Kindergarten St. Johannes Baptist | E29: 3+ | F29: Integrative Einrichtung | G29: 4 | H29: 0 | I29: 0
B30: 1901390026 | C30: Peißenberg | D30: Kinderhaus am Berg | E30: 3+ | F30: Integrative Einrichtung | G30: 15 | H30: 1 | I30: 1
B31: 1901390125 | C31: Peißenberg | D31: Kinderhaus im Dorf | E31: 3+ | F31: Integrative Einrichtung | G31: 0 | H31: 0 | I31: 0
B32: 1901390022 | C32: Peißenberg | D32: Kindertagesstätte St. Barbara | E32: 0 | F32: Keine Plätze | G32: 0 | H32: 0 | I32: 2
B33: 1901400027 | C33: Peiting | D33: Caritas Kita St. Michael | E33: 1-2 | F33: Einzel-Integration | G33: 0 | H33: 0 | I33: 0
B34: 1901400073 | C34: Peiting | D34: Integrativer Hort im Kinderhaus Peiting | E34: 3+ | F34: Integrative Einrichtung | G34: 16 | H34: 0 | I34: 0
B35: 1901400107 | C35: Peiting | D35: Integrativer Naturkindergarten am Weiherhäusle | E35: 3+ | F35: Integrative Einrichtung | G35: 4 | H35: 0 | I35: 0
B36: 1901400113 | C36: Peiting | D36: Integratives Kinderhaus im Forsthaus | E36: 3+ | F36: Integrative Einrichtung | G36: 8 | H36: 1 | I36: 0
B37: 1901400030 | C37: Peiting | D37: Kindergarten am Gumpen | E37: 3+ | F37: Integrative Einrichtung | G37: 10 | H37: 0 | I37: 0
B38: 1901400033 | C38: Peiting | D38: Kindergarten Birkland | E38: 0 | F38: Keine Plätze | G38: 0 | H38: 0 | I38: 0
B39: 1901400029 | C39: Peiting | D39: Kinderhaus Peiting | E39: 3+ | F39: Integrative Einrichtung | G39: 16 | H39: 0 | I39: 0
B40: 1901400100 | C40: Peiting | D40: Kita Sonnenschein | E40: 3+ | F40: Integrative Einrichtung | G40: 0 | H40: 0 | I40: 0
B41: 1901400032 | C41: Peiting | D41: Therese-Peter-Haus für Kinder | E41: 0 | F41: Keine Plätze | G41: 0 | H41: 0 | I41: 0
B42: 1901400098 | C42: Peiting | D42: Waldkindergarten Wurzelzwerge Peiting e.V | E42: 0 | G42: 0 | H42: 0 | I42: 0
B43: 1901410040 | C43: Penzberg | D43: Albert-Schweitzer Waldkindergarten | E43: 3+ | F43: Integrative Einrichtung | G43: 3 | H43: 0 | I43: 0
B44: 1901410037 | C44: Penzberg | D44: AWO Kinderhaus an der Birkenstraße | E44: 0 | F44: Keine Plätze | G44: 0 | H44: 0 | I44: 0
B45: 1901410075 | C45: Penzberg | D45: AWO Kinderhort Winterstraße | E45: 3+ | F45: Integrative Einrichtung | G45: 10 | H45: 0 | I45: 2
B46: 1901410035 | C46: Penzberg | D46: Evang. Haus für Kinder Penzberg | E46: 3+ | F46: Integrative Einrichtung | G46: 2 | H46: 1 | I46: 1
B47: 1901410038 | C47: Penzberg | D47: Familienzentrum Arche Noah | E47: 0 | G47: 7 | H47: 0 | I47: 0
